{"text_format":"1","workbook":"xlsx","n_sheets":51,"sheets":["App.2-X_CoS_Flowchart","LDC Info","HistoricalBalances","App.2-A_Capital Projects","App 2-B FixAsset2010-CGAAP","App 2-B FixAsset 2011-CGAAP","App 2-B FixAsset 2012-CGAAP","App 2-B FixAsset 2013-CGAAP","App.2-B_FixAsset 2013-MIFRS","App.2-B_FixAsset 2014-CGAAP","App.2-B_FixAsset 2014-MIFRS","App.2-CA_CGAAP_DepExp_2012","App.2-CB_MIFRS_DepExp_2012","App.2-CC_MIFRS_DepExp_2013","App.2-CD_MIFRS_DepExp_2014","App.2-CE_CGAAP_DepExp_2010","App.2-CE_CGAAP_DepExp_2011","App.2-CE_CGAAP_DepExp_2012","App.2-CF_CGAAP_DepExp_2013","App.2-CF_CGAAP_DepExp_2014","App.2-CG_MIFRS_DepExp_2013","App.2-CH_MIFRS_DepExp_2014","App.2-CI_AltAccStd_DepExp","App.2-D_Overhead","App.2-EA_PP&E Deferral Account","App.2-EB_PP&E Deferral Account","App.2-G_Detailed_OM&A_Expenses","App.2-H_OM&A_Detailed_Analysis","App.2-I_OM&A_Summary_Analys","App.2-J_OM&A_Cost _Drivers","App.2-K_Employee Costs","App.2-L_OM&A_per_Cust_FTEE","App.2-M_Regulatory_Costs","App.2-N_Corp_Cost_Allocation","App.2-R_Loss Factors","App.2-F_Other_Oper_Rev","App.2-T_1592_Tax_Variance","App.2-OB_Debt Instruments","App.2-OA CapStructure-CGAAP","App.2-OA CapStructure-MIFRS","App.2-P_Cost_Allocation","App.2-Q_Cost of Serv. Emb. Dx","App.2-S_Stranded Meters","App.2-U_IFRS Transition Costs","App.2-V_Rev_Reconciliation","App.2-W_Bill Impacts-Res","App.2-W_Bill Impacts GS<50","App.2-W_Bill Impacts GS>50","App.2-W_Bill Impacts-USL","App.2-W_Bill Impacts-SL","Sheet1"],"not_rendered":{"charts":0,"images":1,"macros":1,"external_links":4,"defined_names":52,"comments":1,"pivot_tables":0},"unopened":[],"bounds":{"document_bytes":16777216,"sheet_cells":100000,"rows_first":2000,"rows_last":500,"rows_between":2000,"halvings":0,"cell_chars":16384,"cell_head_chars":4096},"cells_cut":0,"cells_raw":0,"read":"whole","date_system":"1900"}

{"sheet":"App.2-X_CoS_Flowchart","index":0,"n_rows":16,"n_cols":7,"rows_kept":16,"cut":false,"hidden":false,"merged":[[15,1,15,6],[12,1,12,6],[13,1,13,6]]}
[null,null,null,null,null,"File Number:",{"$f":"'LDC Info'!$E$18","v":"EB-2013-0122"}]
[null,null,null,null,null,"Exhibit:"]
[null,null,null,null,null,"Tab:"]
[null,null,null,null,null,"Schedule:"]
[null,null,null,null,null,"Page:"]
[]
[null,null,null,null,null,"Date:"]
[]
[]
[]
[]
[]
[null,"Appendix 2-X"]
[null,"Cost of Service Rate Application Schematic"]
[]
[null,"The Cost of Service Rate Application Schematic is a flowchart appended to Chapter 2 of the Filing Requirements as a guide for the components of an application and how demand and costs interrelate to derive the revenue requirement and then how the revenue requirement is allocated between classes and through fixed/variable splits to derive rates that will be compensatory for the annual revenue requirement, based on the the forecasted demand.  There is no form to be filled out; therefore, this Schedule is not required to be filed. "]

{"sheet":"LDC Info","index":1,"n_rows":38,"n_cols":5,"rows_kept":38,"cut":false,"hidden":false,"merged":[[13,4,13,8],[33,2,33,11],[37,2,37,12],[15,4,15,8],[17,4,17,8],[21,4,21,8],[23,4,23,8],[25,4,25,6],[27,4,27,6],[35,2,35,13],[29,4,29,6],[19,4,19,8]]}
[]
[]
[]
[]
[]
[]
[]
[]
[]
[]
[]
[]
[]
[null,null,null,"Utility Name   ","Coopertive Hydro Embrun Inc."]
[]
[null,null,null,"Service Territory"]
[]
[null,null,null,"Assigned EB Number","EB-2013-0122"]
[]
[null,null,null,"Name of Contact and Title","Benoit Lamarche"]
[]
[null,null,null,"Phone Number   ","613-443-5110"]
[]
[null,null,null,"Email Address   "]
[]
[null,null,null,"Bridge Year",2013]
[]
[null,null,null,"Test Year",2014]
[]
[null,null,null,"Last Rebasing Year",2010]
[]
[null,"Notes"]
[]
[null,null,"Pale green cells represent input cells."]
[]
[null,null,"Pale blue cells represent drop-down lists.  The applicant should select the appropriate item from the drop-down list."]
[]
[null,null,"White cells contain fixed values, automatically generated values or formulae. "]

{"sheet":"HistoricalBalances","index":2,"n_rows":506,"n_cols":13,"rows_kept":506,"cut":false,"hidden":false,"merged":[[0,0,0,1],[1,0,1,1],[2,0,2,1],[11,5,11,7],[8,0,8,8],[9,0,9,8],[12,3,12,4],[0,9,0,10],[1,9,1,10],[2,9,2,10],[3,9,3,10],[4,9,4,10],[6,9,6,10],[12,5,12,8]]}
[null,null,null,null,null,null,null,null,"File Number:",{"$f":"'LDC Info'!$E$18","v":"EB-2013-0122"}]
[null,null,null,null,null,null,null,null,"Exhibit:"]
[null,null,null,null,null,null,null,null,"Tab:"]
[null,null,null,null,null,null,null,null,"Schedule:"]
[null,null,null,null,null,null,null,null,"Page:"]
[]
[null,null,null,null,null,null,null,null,"Date:"]
[]
["TESI-3"]
["Historical Balances"]
[]
[null,null,null,null,null,"2.1.7 RRR FILINGS"]
[null,null,null,"Modified CGAAP",null,"CGAAP"]
["OEB","Description",null,"2014 Test Year","2013 Bridge Year","2012 Actual","2011 Actual","2010 Actual","2010 Board Appr",null,"2009 Actual"]
["1050-Current Assets","1005-Cash","BS",null,null,2092801.3199999998,1902275.82,1568657.78,1691857,null,1432203.36]
["1050-Current Assets","1010-Cash Advances and Working Funds","BS",null,null,200,200,200,200,null,200]
["1050-Current Assets","1020-Interest Special Deposits","BS"]
["1050-Current Assets","1030-Dividend Special Deposits","BS"]
["1050-Current Assets","1040-Other Special Deposits","BS"]
["1050-Current Assets","1060-Term Deposits","BS"]
["1050-Current Assets","1070-Current Investments","BS"]
["1050-Current Assets","1100-Customer Accounts Receivable","BS",null,null,287201.03999999998,247158.31,276270.33,300000,null,256702.42]
["1050-Current Assets","1102-Accounts Receivable - Services","BS",null,null,null,null,null,null,null,-100.13]
["1050-Current Assets","1104-Accounts Receivable - Recoverable Work","BS",null,null,4222.09,37914.480000000003,15176.5,5000,null,4859.54]
["1050-Current Assets","1105-Accounts Receivable - Merchandise","BS"]
["1050-Current Assets","1110-Other Accounts Receivable","BS"]
["1050-Current Assets","1120-Accrued Utility Revenues","BS",null,null,360163.89,360821.83,431771.51,520000,null,71635.570000000007]
["1050-Current Assets","1130-Accumulated Provision for Uncollectible Accounts--Credit","BS",null,null,null,-3849.89,-3849.89,-5000,null,-3849.89]
["1050-Current Assets","1140-Interest and Dividends Receivable","BS",null,null,31086.9,17465.43,4405.58,2000,null,931.51]
["1050-Current Assets","1150-Rents Receivable","BS"]
["1050-Current Assets","1170-Notes Receivable","BS"]
["1050-Current Assets","1180-Prepayments","BS"]
["1050-Current Assets","1190-Miscellaneous Current and Accrued Assets","BS"]
["1050-Current Assets","1200-Accounts Receivable from Associated Companies","BS"]
["1050-Current Assets","1210-Notes Receivable from Associated Companies","BS"]
[null,"Subtotal",null,{"$f":"SUM(D15:D35)","v":0},0,2775675.2399999998,2561985.98,2292631.81,2514057,null,{"$f":"SUM(K15:K35)","v":1762582.3800000004}]
["1100-Inventory","1305-Fuel Stock","BS"]
["1100-Inventory","1330-Plant Materials and Operating Supplies","BS"]
["1100-Inventory","1340-Merchandise","BS"]
["1100-Inventory","1350-Non-Regulated Materials and Supplies","BS"]
[null,"Subtotal",null,{"$f":"SUM(D37:D40)","v":0},0,0,0,0,0,null,{"$f":"SUM(K37:K40)","v":0}]
["1150-Non-Current Assets","1405-Non-Current  Investments in Non-Associated Companies","BS"]
["1150-Non-Current Assets","1407 Finance Lease Receivable","BS"]
["1150-Non-Current Assets","1408-Long Term Receivable - Street Lighting Transfer","BS"]
["1150-Non-Current Assets","1410-Other Special or Collateral Funds","BS"]
["1150-Non-Current Assets","1415-Sinking Funds","BS"]
["1150-Non-Current Assets","1425-Unamortized Debt Expense","BS"]
["1150-Non-Current Assets","1445-Unamortized Discount on Long-Term Debt--Debit","BS"]
["1150-Non-Current Assets","1455-Unamortized Deferred Foreign Currency Translation Gains and Losses","BS"]
["1150-Non-Current Assets","1460-Other Non-Current Assets","BS",null,null,16556.77,40699.300000000003,144525.84,135000,null,136852.76]
["1150-Non-Current Assets","1470-Past Service Costs - Other Post-Employment Benefits","BS"]
["1150-Non-Current Assets","1475-Past Service Costs - Other Pension Plans","BS"]
["1150-Non-Current Assets","1480-Portfolio Investments - Associated Companies","BS"]
["1150-Non-Current Assets","1481-Investment in Equity-Accounted Joint Venture","BS"]
["1150-Non-Current Assets","1485-Investment in Associated Companies - Significant Influence","BS"]
["1150-Non-Current Assets","1490-Investment in Subsidiary Companies","BS"]
["1150-Non-Current Assets","1495-Deferred Taxes - Non-Current Assets","BS"]
[null,"Subtotal",null,{"$f":"SUM(D42:D57)","v":0},0,16556.77,40699.300000000003,144525.84,135000,null,{"$f":"SUM(K42:K57)","v":136852.76}]
["1200-Other Assets and Deferred Charges","1505-Unrecovered Plant and Regulatory Study Costs","BS"]
["1200-Other Assets and Deferred Charges","1508-Other Regulatory Assets,Sub-account IFRS Transition Cost Variance","BS"]
["1200-Other Assets and Deferred Charges","1508-Other Regulatory Assets,Sub-account Incremental Capital Charges","BS"]
["1200-Other Assets and Deferred Charges","1508-Other Regulatory Assets, Sub-account Financial Assistance Payment and Recovery Variance - Ontario Clean Energy Benefit","BS",null,null,1249.32,1231.57,1213.8499999999999,10,null,4034.98]
["1200-Other Assets and Deferred Charges","1510-Preliminary Survey and Investigation Charges","BS"]
["1200-Other Assets and Deferred Charges","1515-Emission Allowance Inventory","BS"]
["1200-Other Assets and Deferred Charges","1516-Emission Allowances Withheld","BS"]
["1200-Other Assets and Deferred Charges","1518-RCVARetail","BS"]
["1200-Other Assets and Deferred Charges","1520-Power Purchase Variance Account","BS"]
["1200-Other Assets and Deferred Charges","1521-Special Purpose Charge Assessment Variance Account","BS",null,null,null,323.06,5636.16]
[null,"1525-Miscellaneous Deferred Debits","BS"]
["1200-Other Assets and Deferred Charges","1530-Deferred Losses from Disposition of Utility Plant","BS"]
["1200-Other Assets and Deferred Charges","1531-Renewable Connection Capital Deferral","BS"]
["1200-Other Assets and Deferred Charges","1532-Renewable Connection OM&A Deferral","BS"]
["1200-Other Assets and Deferred Charges","1534-Smart Grid Capital Deferral Account","BS"]
["1200-Other Assets and Deferred Charges","1535-Smart Grid OM&A Deferral Account","BS",null,null,26056.1,21305.35,8181.95]
["1200-Other Assets and Deferred Charges","1536-Smart Grid Funding Adder Deferral Account","BS"]
["1200-Other Assets and Deferred Charges","1540-Unamortized Loss on Reacquired Debt","BS"]
["1200-Other Assets and Deferred Charges","1548-RCVASTR","BS"]
["1200-Other Assets and Deferred Charges","1550-LV Variance Account","BS",null,null,20847.400000000001,11124.39,2550.06,39,null,22056.33]
["1200-Other Assets and Deferred Charges","1555-Smart Meters Capital Variance Account","BS",null,null,142244.37,188829.92,235474.7,null,null,-30468.76]
["1200-Other Assets and Deferred Charges","1556-Smart Meters OM&A Variance Account","BS",null,null,165834.29,104389.63,34278.19,-16238,null,294043.05]
["1200-Other Assets and Deferred Charges","1560-Deferred Development Costs","BS"]
["1200-Other Assets and Deferred Charges","1562-Deferred Payments in Lieu of Taxes","BS",null,null,5353.35,-127469.75,-125957.19,-125097,null,-125136.6]
["1200-Other Assets and Deferred Charges","1563-Account 1563 - Deferred PILs Contra Account","BS"]
[null,"1565-CDM Expenditures and Recoveries (former)","BS",null,null,null,null,null,null,null,8971]
[null,"1566-CDM Expenditures and Recoveries (former)","BS",null,null,null,null,null,null,null,-8971]
["1200-Other Assets and Deferred Charges","1567-Board-Approved CDM Programs Variance Account","BS"]
["1200-Other Assets and Deferred Charges","1572-Extraordinary Event Costs","BS"]
["1200-Other Assets and Deferred Charges","1574-Deferred Rate Impact Amounts","BS"]
["1200-Other Assets and Deferred Charges","1575-IFRS-CGAAP Transitional PP&E Amounts","BS"]
["1200-Other Assets and Deferred Charges","1580-RSVAWMS","BS",null,null,-22908.639999999999,-101730.27,-77125.740000000005,31,null,-15640.65]
["1200-Other Assets and Deferred Charges","1582-RSVAONE-TIME","BS"]
["1200-Other Assets and Deferred Charges","1584-RSVANW","BS",null,null,-2564.54,2049,-3359.9,-96,null,-42002.73]
["1200-Other Assets and Deferred Charges","1586-RSVACN","BS",null,null,2018.42,-26617.05,-28972.33,-155,null,-68234.23]
["1200-Other Assets and Deferred Charges","1588-RSVAPOWER Main Account","BS",null,null,-29125.86,-1010.04,2664.76,263,null,148770.03]
["1200-Other Assets and Deferred Charges","1589 RSVA GA","BS",null,null,null,null,null,8533]
[null,"1590-Recovery of Reg Assets","BS",null,null,null,null,null,6437,null,-24572.35]
["1200-Other Assets and Deferred Charges","1592-2006 PILs/Taxes Variance for 2006 and Subsequent Years, Sub-account HST OVAT Input Tax Credits (ITCs)","BS",null,null,-2765.56,1596.44,4376.4399999999996]
["1200-Other Assets and Deferred Charges","1595-Disposition and Recovery/Refund of Regulatory Balances, Control Account","BS",null,null,null,2307.63,-13736.6]
["1200-Other Assets and Deferred Charges","1595-Disposition and Recovery/Refund of Regulatory Balances, Sub-account Principal Balances Approved in 20yy","BS",null,null,-116876.39,null,28243.99]
["1200-Other Assets and Deferred Charges","1595-Disposition and Recovery/Refund of Regulatory Balances, Sub-account Carrying Charges Approved in 20yy","BS"]
["1200-Other Assets and Deferred Charges","1595-Disposition and Recovery/Refund of Regulatory Balances, Sub-account Carrying Charges for Net Principal in 20yy","BS"]
[null,"Subtotal",null,{"$f":"SUM(D59:D101)","v":0},0,189362.25999999995,76329.880000000048,73468.34000000004,-126273,null,{"$f":"SUM(K59:K101)","v":162849.06999999998}]
["1300-Intangible Plant","1606-Organization","BS",null,null,374,374.03,374.03,374,null,374.03]
["1300-Intangible Plant","1608-Franchises and Consents","BS"]
["1300-Intangible Plant","1609-Capital Contribution Paid","BS"]
["1300-Intangible Plant","1610-Miscellaneous Intangible Plant","BS",null,null,158352.37,158352.37,158352.37,158532,null,158352.37]
["1300-Intangible Plant","1611-Computer Software","BS",{"$f":"'App.2-B_FixAsset 2014-CGAAP'!N16","v":51929.450000000012},{"$f":"'App 2-B FixAsset 2012-CGAAP'!N16","v":28949.240000000005}]
["1300-Intangible Plant","1612-Land Rights","BS"]
["1350-Not for distributor use","1615-Land","BS"]
["1350-Not for distributor use","1616-Land Rights","BS"]
["1350-Not for distributor use","1620-Buildings and Fixtures","BS"]
["1350-Not for distributor use","1630-Leasehold Improvements","BS"]
["1350-Not for distributor use","1635-Boiler Plant Equipment","BS"]
["1350-Not for distributor use","1640-Engines and Engine-Driven Generators","BS"]
["1350-Not for distributor use","1645-Turbogenerator Units","BS"]
["1350-Not for distributor use","1650-Reservoirs, Dams and Waterways","BS"]
["1350-Not for distributor use","1655-Water Wheels, Turbines and Generators","BS"]
["1350-Not for distributor use","1660-Roads, Railroads and Bridges","BS"]
["1350-Not for distributor use","1665-Fuel Holders, Producers and Accessories","BS"]
["1350-Not for distributor use","1670-Prime Movers","BS"]
["1350-Not for distributor use","1675-Generators","BS"]
["1350-Not for distributor use","1680-Accessory Electric Equipment","BS"]
["1350-Not for distributor use","1685-Miscellaneous Power Plant Equipment","BS"]
["1350-Not for distributor use","1705-Land","BS"]
["1350-Not for distributor use","1706-Land Rights","BS"]
["1350-Not for distributor use","1708-Buildings and Fixtures","BS"]
["1350-Not for distributor use","1710-Leasehold Improvements","BS"]
["1350-Not for distributor use","1715-Station Equipment","BS"]
["1350-Not for distributor use","1720-Towers and Fixtures","BS"]
["1350-Not for distributor use","1725-Poles and Fixtures","BS"]
["1350-Not for distributor use","1730-Overhead Conductors and Devices","BS"]
["1350-Not for distributor use","1735-Underground Conduit","BS"]
["1350-Not for distributor use","1740-Underground Conductors and Devices","BS"]
["1350-Not for distributor use","1745-Roads and Trails","BS"]
["1450-Distribution Plant","1805-Land","BS",{"$f":"'App.2-B_FixAsset 2014-CGAAP'!E18","v":50000},50000,50000,50000,50000,50000,null,50000]
["1450-Distribution Plant","1806-Land Rights","BS"]
["1450-Distribution Plant","1808-Buildings and Fixtures","BS",null,null,null,null,null,null,null,null,null," "]
["1450-Distribution Plant","1810-Leasehold Improvements","BS"]
["1450-Distribution Plant","1815-Transformer Station Equipment - Normally Primary above 50 kV","BS"]
["1450-Distribution Plant","1820-Distribution Station Equipment - Normally Primary below 50 kV","BS",{"$f":"'App.2-B_FixAsset 2014-CGAAP'!E22","v":284888},{"$f":"'App 2-B FixAsset 2013-CGAAP'!E22","v":222488},222488,222488,222518,197522,null,211021.5]
["1450-Distribution Plant","1825-Storage Battery Equipment","BS",{"$f":"'App.2-B_FixAsset 2014-CGAAP'!E23","v":0},{"$f":"'App 2-B FixAsset 2013-CGAAP'!E23","v":0}]
["1450-Distribution Plant","1830-Poles, Towers and Fixtures","BS",{"$f":"'App.2-B_FixAsset 2014-CGAAP'!E24","v":647384},{"$f":"'App 2-B FixAsset 2013-CGAAP'!E24","v":563534},563533.24,560435.24,542338,506477,null,480083.22]
["1450-Distribution Plant","1835-Overhead Conductors and Devices","BS",{"$f":"'App.2-B_FixAsset 2014-CGAAP'!E25","v":605736},{"$f":"'App 2-B FixAsset 2013-CGAAP'!E25","v":546986},546986.68999999994,546986.68999999994,542762.46,574674,null,541906.46]
["1450-Distribution Plant","1840-Underground Conduit","BS",{"$f":"'App.2-B_FixAsset 2014-CGAAP'!E26","v":0},{"$f":"'App 2-B FixAsset 2013-CGAAP'!E26","v":0}]
["1450-Distribution Plant","1845-Underground Conductors and Devices","BS",{"$f":"'App.2-B_FixAsset 2014-CGAAP'!E27","v":1010387},{"$f":"'App 2-B FixAsset 2013-CGAAP'!E27","v":957987},957986.74,952145.74,952145,1295556,null,952145.74]
["1450-Distribution Plant","1850-Line Transformers","BS",{"$f":"'App.2-B_FixAsset 2014-CGAAP'!E28","v":759023},{"$f":"'App 2-B FixAsset 2013-CGAAP'!E28","v":747023},747021.94,710933.94,689380,662087,null,661052.79]
["1450-Distribution Plant","1855-Services","BS",{"$f":"'App.2-B_FixAsset 2014-CGAAP'!E29","v":188212},{"$f":"'App 2-B FixAsset 2013-CGAAP'!E29","v":183212},183210.51,178138.01,174101.76000000001,193838,null,161465.26]
["1450-Distribution Plant","1860-Meters","BS",340712,310212,310212,79071.94,79071.94,79072,null,79071.94]
["1450-Distribution Plant","1865-Other Installations on Customer's Premises","BS"]
["1450-Distribution Plant","1870-Leased Property on Customer Premises","BS",{"$f":"'App.2-B_FixAsset 2014-CGAAP'!E32","v":0},{"$f":"'App 2-B FixAsset 2013-CGAAP'!E32","v":0}]
["1450-Distribution Plant","1875-Street Lighting and Signal Systems","BS",{"$f":"'App.2-B_FixAsset 2014-CGAAP'!E33","v":0},{"$f":"'App 2-B FixAsset 2013-CGAAP'!E33","v":0}]
["1500-General Plant","1905-Land","BS",{"$f":"'App.2-B_FixAsset 2014-CGAAP'!E34","v":0},{"$f":"'App 2-B FixAsset 2013-CGAAP'!E34","v":0}]
["1500-General Plant","1908-Buildings and Fixtures","BS",{"$f":"'App.2-B_FixAsset 2014-CGAAP'!E35","v":50903},{"$f":"'App 2-B FixAsset 2013-CGAAP'!E35","v":49403}]
["1500-General Plant","1910-Leasehold Improvements","BS",{"$f":"'App.2-B_FixAsset 2014-CGAAP'!E36","v":0},{"$f":"'App 2-B FixAsset 2013-CGAAP'!E36","v":0}]
["1500-General Plant","1915-Office Furniture and Equipment","BS",{"$f":"'App.2-B_FixAsset 2014-CGAAP'!E37","v":26037},{"$f":"'App 2-B FixAsset 2013-CGAAP'!E37","v":24537},49402.97,49402.97,34708.97,34964,null,31696.43]
["1500-General Plant","1920-Computer Equipment - Hardware","BS",{"$f":"'App.2-B_FixAsset 2014-CGAAP'!E38","v":0},{"$f":"'App 2-B FixAsset 2013-CGAAP'!E38","v":0},24538.400000000001,21792.83,19472.93,25392,null,16392.439999999999]
["1500-General Plant","1925-Computer Software","BS",{"$f":"'App.2-B_FixAsset 2014-CGAAP'!E39","v":0},{"$f":"'App 2-B FixAsset 2013-CGAAP'!E39","v":0},84927.16,84927.16,83427.16,78843,null,69127.16]
["1500-General Plant","1930-Transportation Equipment","BS",{"$f":"'App.2-B_FixAsset 2014-CGAAP'!E40","v":0},{"$f":"'App 2-B FixAsset 2013-CGAAP'!E40","v":0}]
["1500-General Plant","1935-Stores Equipment","BS",{"$f":"'App.2-B_FixAsset 2014-CGAAP'!E41","v":4320},{"$f":"'App 2-B FixAsset 2013-CGAAP'!E41","v":4320},4320,4320,4320,4320,null,4281]
["1500-General Plant","1940-Tools, Shop and Garage Equipment","BS",{"$f":"'App.2-B_FixAsset 2014-CGAAP'!E42","v":4205},{"$f":"'App 2-B FixAsset 2013-CGAAP'!E42","v":4205},4205]
["1500-General Plant","1945-Measurement and Testing Equipment","BS",{"$f":"'App.2-B_FixAsset 2014-CGAAP'!E43","v":4281},{"$f":"'App 2-B FixAsset 2013-CGAAP'!E43","v":4281},4281,4281,4281,4281]
["1500-General Plant","1950-Power Operated Equipment","BS"]
["1500-General Plant","1955-Communication Equipment","BS"]
["1500-General Plant","1960-Miscellaneous Equipment","BS",null," "]
["1500-General Plant","1965-Water Heater Rental Units","BS"]
["1500-General Plant","1970-Load Management Controls - Customer Premises","BS"]
["1500-General Plant","1975-Load Management Controls - Utility Premises","BS"]
["1500-General Plant","1980-System Supervisory Equipment","BS"]
["1500-General Plant","1985-Sentinel Lighting Rental Units","BS"]
["1500-General Plant","1990-Other Tangible Property","BS"]
["1550-Other Capital Assets","1995-Contributions and Grants - Credit","BS",{"$f":"'App.2-B_FixAsset 2014-CGAAP'!E51","v":-560963},{"$f":"'App 2-B FixAsset 2013-CGAAP'!E51","v":-552963},-552963,-551363,-543589,-690099,null,-421427.5]
["1550-Other Capital Assets","2005-Property Under Finance Leases","BS"]
["1550-Other Capital Assets","2010-Electric Plant Purchased or Sold","BS"]
["1550-Other Capital Assets","2020-Experimental Electric Plant Unclassified","BS"]
["1550-Other Capital Assets","2030-Electric Plant and Equipment Leased to Others","BS"]
["1550-Other Capital Assets","2040-Electric Plant Held for Future Use","BS"]
["1550-Other Capital Assets","2050-Completed Construction Not Classified--Electric","BS"]
["1550-Other Capital Assets","2055-Construction Work in Progress--Electric","BS",null,null,null,null,null,13500]
["1550-Other Capital Assets","2060-Electric Plant Acquisition Adjustment","BS"]
["1550-Other Capital Assets","2065-Other Electric Plant Adjustment","BS"]
["1550-Other Capital Assets","2070-Other Utility Plant","BS"]
["1550-Other Capital Assets","2075-Non-Rate Regulated Utility Property Owned or Under Finance Leases","BS"]
[null,"Subtotal",null,{"$f":"SUM(D103:D182)","v":3467054.45},3144174.24,{"$f":"SUM(F103:F182)","v":3358877.0200000005},3072286.9200000009,3013664.6200000006,3189333,null,{"$f":"SUM(K103:K182)","v":2995542.8400000003}]
["1600-Accumulated Amortization","2105-Accumulated Depreciation of Electric Utility Plant - Property, Plant, & Equipment","BS",{"$f":"'App.2-B_FixAsset 2014-CGAAP'!M58","v":-1426880.9139999999},{"$f":"'App 2-B FixAsset 2013-CGAAP'!M58","v":-1294451.8339999998},-1403654.23,-1251985.6499999999,-1102488.18,-984032,null,-955777.12]
["1600-Accumulated Amortization","2120-Accumulated Amortization of Electric Utility Plant - Intangibles","BS"]
["1600-Accumulated Amortization","2140-Accumulated Amortization of Electric Plant Acquisition Adjustment","BS"]
["1600-Accumulated Amortization","2160-Accumulated Depreciation of Other Utility Plant","BS"]
["1600-Accumulated Amortization","2180-Accumulated Depreciation of Non-Rate-Regulated Property","BS",null,null,-158726.39999999999,-158726.39999999999,-145528.76999999999,-145529,null,-129693.77]
[null,"Subtotal",null,{"$f":"SUM(D184:D188)","v":-1426880.9139999999},-1294451.8339999998,-1562380.63,-1410712.0499999998,-1248016.95,-1129561,null,{"$f":"SUM(K184:K188)","v":-1085470.8899999999}]
["1650-Current Liabilities","2205-Accounts Payable","BS",null,null,-652735.03,-626461.64,-617457.46,-630000,null,-300621.48]
["1650-Current Liabilities","2208-Customer Credit Balances","BS",null,null,-117162.73,-133395.23000000001,-124358.58,-160000,null,-153383.17000000001]
["1650-Current Liabilities","2210-Customer Deposits","BS",null,null,null,null,-20691.05,-20600,null,-24075.11]
["1650-Current Liabilities","2215-Dividends Declared","BS"]
["1650-Current Liabilities","2220-Miscellaneous Current and Accrued Liabilities","BS",null,null,-56125,-23808,-19495,-25000]
["1650-Current Liabilities","2225-Notes and Loans Payable","BS"]
["1650-Current Liabilities","2240-Accounts Payable to Associated Companies","BS"]
["1650-Current Liabilities","2242-Notes Payable to Associated Companies","BS"]
["1650-Current Liabilities","2250-Debt Retirement Charges( DRC) Payable","BS",null,null,-16654.919999999998,-15099.57,-16767.310000000001,-57000,null,-17962.830000000002]
["1650-Current Liabilities","2252-Transmission Charges Payable","BS"]
["1650-Current Liabilities","2254-Electrical Safety Authority Fees Payable","BS"]
["1650-Current Liabilities","2256-Independent Market Operator Fees and Penalties Payable","BS"]
["1650-Current Liabilities","2260-Current Long Term Debt","BS"]
["1650-Current Liabilities","2264-OMERS - Current","BS"]
["1650-Current Liabilities","2265-Non-Omers - Current","BS"]
["1650-Current Liabilities","2268-Accrued Interest on Long Term Debt","BS"]
["1650-Current Liabilities","2270-Matured Long Term Debt","BS"]
["1650-Current Liabilities","2272-Matured Interest on Long Term Debt","BS"]
["1650-Current Liabilities","2285-Obligations Under Finance Leases -Current, Sub-account Generation Facility Liabilities","BS"]
["1650-Current Liabilities","2290-Commodity Taxes","BS",null,null,null,null,null,null,null,13500.5]
["1650-Current Liabilities","2292-Payroll Deductions / Expenses Payable","BS"]
["1650-Current Liabilities","2294-Accrual for Taxes, Payments in Lieu of Taxes, Etc.","BS",null,null,-13734,-4612,4074,null,null,24988]
[null,"Subtotal",null,{"$f":"SUM(D190:D211)","v":0},0,-856411.68,-803376.44,-794695.4,-892600,null,{"$f":"SUM(K190:K211)","v":-457554.09}]
["1700-Non-Current Liabilities","2305-Accumulated Provision for Injuries and Damages","BS"]
["1700-Non-Current Liabilities","2306-OPEB Liability","BS"]
["1700-Non-Current Liabilities","2308-Other Pensions Liability","BS"]
["1700-Non-Current Liabilities","2310-Vested Sick Leave Liability","BS"]
["1700-Non-Current Liabilities","2312-Past Service Cost-Other Post-Employment Benefits","BS"]
["1700-Non-Current Liabilities","2313-Past Service Cost-Other Pension Plans","BS"]
["1700-Non-Current Liabilities","2315-Accumulated Provision for Rate Refunds","BS"]
["1700-Non-Current Liabilities","2320-Other Miscellaneous Non-Current Liabilities","BS"]
["1700-Non-Current Liabilities","2325-Obligation Under Finance Lease-Non-Current","BS"]
["1700-Non-Current Liabilities","2285-Obligations Under Finance Leases -Non-Current, Sub-account Generation Facility Liabilities","BS"]
["1700-Non-Current Liabilities","2335-Non-Current Customer Deposits","BS",null,null,{"$f":"-4312.76+-12270","v":-16582.760000000002},-15162.76,-30052.37,-38000,null,-22680.68]
["1700-Non-Current Liabilities","2340-Collateral Funds Liability","BS"]
["1700-Non-Current Liabilities","2345-Unamortized Premium on Long Term Debt","BS"]
["1700-Non-Current Liabilities","2348-OMERS. - Long Term Portion","BS"]
["1700-Non-Current Liabilities","2350-Deferred Tax Non-Current Liability","BS"]
["1700-Non-Current Liabilities","2405-Other Regulatory Liabilities/Credits","BS"]
["1700-Non-Current Liabilities","2410-Deferred Gains from Disposition of Utility Plant","BS"]
["1700-Non-Current Liabilities","2415-Unamortized Gain on Reacquired Debt","BS"]
["1700-Non-Current Liabilities","2425-Other Deferred Credits","BS"]
["1700-Non-Current Liabilities","2435-Accrued Rate-Payer Benefit","BS"]
["1700-Non-Current Liabilities","2440-Deferred Revenues","BS"]
[null,"Subtotal",null,{"$f":"SUM(D213:D233)","v":0},0,-16582.760000000002,-15162.76,-30052.37,-38000,null,{"$f":"SUM(K213:K233)","v":-22680.68}]
["1800-Long-Term Debt","2505-Debentures Outstanding - Long Term","BS"]
["1800-Long-Term Debt","2510-Debenture Advances","BS"]
["1800-Long-Term Debt","2515-Reacquired Bonds","BS"]
["1800-Long-Term Debt","2520-OtherNon_Current Debt","BS"]
["1800-Long-Term Debt","2525-Term Bank Loans - Long Term ","BS"]
["1800-Long-Term Debt","2550-Advances from Associated Companies","BS"]
["1850-Shareholders' Equity","3005-Common Shares Issued","BS"]
["1850-Shareholders' Equity","3008-Preference Shares Issued","BS"]
["1850-Shareholders' Equity","3010-Contributed Surplus","BS",null,null,-2862993.7,-2862993.7,-2862993.7,-2862994,null,-2862993.7]
["1850-Shareholders' Equity","3020-Donations Received","BS"]
["1850-Shareholders' Equity","3022-Development Charges Transferred to Equity","BS"]
["1850-Shareholders' Equity","3026-Capital Stock Held in Treasury","BS"]
["1850-Shareholders' Equity","3030-Miscellaneous Paid-In Capital","BS"]
["1850-Shareholders' Equity","3035-Installments Received on Capital Stock","BS"]
["1850-Shareholders' Equity","3040-Appropriated Retained Earnings","BS"]
["1850-Shareholders' Equity","3045-Unappropriated Retained Earnings","BS",null,null,-124966.58,-124966.58,-112267.74,-185037]
["1850-Shareholders' Equity","3046-Balance Transferred From Income","BS",null,null,-171517,null,null,-160539,null,-83662.61]
["1850-Shareholders' Equity","3047-Appropriations of Retained Earnings - Current Period","BS"]
["1850-Shareholders' Equity","3048-Dividends Payable-Preference Shares","BS"]
["1850-Shareholders' Equity","3049-Dividends Payable-Common Shares","BS",null,null,null,null,null,25000]
["1850-Shareholders' Equity","3055-Adjustment to Retained Earnings","BS",null,null,-745715.7,-745715.7,-633447.96,-468207,null,-549784.86]
["1850-Shareholders' Equity","3065-Unappropriated Undistributed Subsidiary Earnings","BS"]
["1850-Shareholders' Equity","3070-Non Rate-Regulated Utility Shareholder's Equity","BS"]
["1850-Shareholders' Equity","3071-Non Rate-Regulated Utility Shareholder's Equity, Sub-account Generation Facilities","BS"]
["1850-Shareholders' Equity","3075-Non Utility Shareholders Equity","BS"]
["1850-Shareholders' Equity","3080-Current Taxes - Shareholder's Equity","BS"]
["1850-Shareholders' Equity","3081-Deferred Taxes - Shareholder's Equity","BS"]
["1850-Shareholders' Equity","3090-Accumulated Other Comprehensive Income","BS"]
[null,"Subtotal",null,{"$f":"SUM(D235:D262)","v":0},0,-3905192.9800000004,-3733675.9800000004,-3608709.4000000004,-3651777,null,{"$f":"SUM(K235:K262)","v":-3496441.17}]
["3000-Sales of Electricity","4006-Residential Energy Sales","PL",null,null,-1726518.9,-1905409.86,-1360848.95,-1625781,null,-943579.86]
["3000-Sales of Electricity","4010-Commercial Energy Sales","PL",null,null,-345026.98,null,-347619.56]
["3000-Sales of Electricity","4015-Industrial Energy Sales","PL",null,null,-38294.879999999997,-48532.39,-47656.84]
["3000-Sales of Electricity","4020-Energy Sales to Large Users","PL"]
["3000-Sales of Electricity","4025-Street Lighting Energy Sales","PL",null,null,null,-6366.72,-12402.91,-25528,null,-21770.39]
["3000-Sales of Electricity","4030-Sentinel Lighting Energy Sales","PL"]
["3000-Sales of Electricity","4035-General Energy Sales","PL",null,null,-49771.71,-79644.899999999994,-114738.06,-288494,null,-26550.15]
["3000-Sales of Electricity","4040-Other Energy Sales to Public Authorities","PL"]
["3000-Sales of Electricity","4050-Revenue Adjustment","PL"]
["3000-Sales of Electricity","4055-Energy Sales for Resale","PL",null,null,-64564.4,-63129.99,-76047.7,null,null,-57260.3]
["3000-Sales of Electricity","4060-Interdepartmental Energy Sales","PL"]
["3000-Sales of Electricity","4062-Billed WMS","PL",null,null,-191197.21,-175935.06,-157799.29,-202876,null,-146287.32]
["3000-Sales of Electricity","4064-Billed-One-Time","PL"]
["3000-Sales of Electricity","4066-Billed NW","PL",null,null,-171346.77,-168773.29,-147693.15,-156762,null,-118221.75999999999]
["3000-Sales of Electricity","4068-Billed CN","PL",null,null,-137719.32,-139063.75,-131243.14000000001,-139815,null,-110211.88]
["3000-Sales of Electricity","4075-Billed-LV","PL",null,null,-40482.81,-38436.46,-32374.57,-41000,null,-25127.5]
[null,"Subtotal",null,{"$f":"SUM(D264:D279)","v":0},0,-2764922.9799999995,-2625292.42,-2428424.17,-2480256,null,{"$f":"SUM(K264:K279)","v":-1449009.1600000001}]
["3050-Revenues From Services - Distribution","4080-Distribution Services Revenue","PL",null,null,-869290.9,-768816.86,-710675.11,-789060,null,-604427.63]
["3050-Revenues From Services - Distribution","4082-Retail Services Revenues","PL",null,null,-3614.1,-3712.8,-3816.6,-3530,null,-3278]
["3050-Revenues From Services - Distribution","4084-Service Transaction Requests (STR) Revenues","PL",null,null,-7.5,-11.5,-54.2,-94,null,-3.25]
["3050-Revenues From Services - Distribution","4090-Electric Services Incidental to Energy Sales","PL"]
[null,"Subtotal",null,{"$f":"SUM(D281:D284)","v":0},0,-872912.5,-772541.16,-714545.90999999992,-792684,null,{"$f":"SUM(K281:K284)","v":-607708.88}]
["3070-Not for distributor use","4105-Transmission Charges Revenue","PL"]
["3070-Not for distributor use","4110-Transmission Services Revenue","PL"]
["3100-Other Operating Revenues","4205-Interdepartmental Rents","PL"]
["3100-Other Operating Revenues","4210-Rent from Electric Property","PL",null,null,-7343.48,-6170.15,-6423.82,-7020,null,-6561.26]
["3100-Other Operating Revenues","4215-Other Utility Operating Income","PL"]
["3100-Other Operating Revenues","4220-Other Electric Revenues","PL"]
["3100-Other Operating Revenues","4225-Late Payment Charges","PL",null,null,-5208,-7109.1,-5764.41,-5250,null,-6026.63]
["3100-Other Operating Revenues","4230-Sales of Water and Water Power","PL"]
["3100-Other Operating Revenues","4235-Miscellaneous Service Revenues","PL",null,null,-14436.64,-15417.83,-9276,-10285,null,-8895]
["3100-Other Operating Revenues","4240-Provision for Rate Refunds","PL",null,null,55708,24018,19705,null,null,24610]
["3100-Other Operating Revenues","4245-Government and Other Assistance Directly Credited to Income","PL"]
[null,"Subtotal",null,{"$f":"SUM(D288:D296)","v":0},0,28719.88,-4679.0800000000017,-1759.2299999999996,-22555,null,{"$f":"SUM(K288:K296)","v":3127.1100000000006}]
["3150-Other Income & Deductions","4305-Regulatory Debits","PL"]
["3150-Other Income & Deductions","4310-Regulatory Credits","PL"]
["3150-Other Income & Deductions","4315-Revenues from Electric Plant Leased to Others","PL"]
["3150-Other Income & Deductions","4320-Expenses of Electric Plant Leased to Others","PL"]
["3150-Other Income & Deductions","4324-Special Purpose Charge Recovery","PL",null,null,null,-5334.89,-5570.36]
["3150-Other Income & Deductions","4325-Revenues from Merchandise, Jobbing, Etc.","PL"]
["3150-Other Income & Deductions","4330-Costs and Expenses of Merchandising, Jobbing, Etc.","PL"]
["3150-Other Income & Deductions","4335-Profits and Losses from Financial Instrument Hedges","PL"]
["3150-Other Income & Deductions","4340-Profits and Losses from Financial Instrument Investments","PL"]
["3150-Other Income & Deductions","4345-Gains from Disposition of Future Use Utility Plant","PL"]
["3150-Other Income & Deductions","4350-Losses from Disposition of Future Use Utility Plant","PL"]
["3150-Other Income & Deductions","4355-Gain on Disposition of Utility and Other Property","PL"]
["3150-Other Income & Deductions","4360-Loss on Disposition of Utility and Other Property","PL"]
["3150-Other Income & Deductions","4365-Gains from Disposition of Allowances for Emission","PL"]
["3150-Other Income & Deductions","4370-Losses from Disposition of Allowances for Emission","PL"]
["3150-Other Income & Deductions","4375-Revenues from Non-Rate-Regulated Utility Operations","PL",null,null,78371.25,-53789.98,-42161.8,null,null,-2500]
["3150-Other Income & Deductions","4380-Revenues from Non-Rate-Regulated Operations","PL",null,null,-78371.25,25641.73,38161.800000000003]
["3150-Other Income & Deductions","4385-Non-Rate-Regulated Rental Income","PL"]
["3150-Other Income & Deductions","4390-Miscellaneous Non-Operating Income","PL",null,null,-1537.13,null,-863.38,-300,null,-5070.4399999999996]
["3150-Other Income & Deductions","4395-Rate-Payer Benefit Including Interest","PL"]
["3150-Other Income & Deductions","4398-Foreign Exchange Gains and Losses, Including Amortization","PL"]
[null,"Subtotal",null,{"$f":"SUM(D298:D318)","v":0},0,-1537.13,-33483.14,-10433.74,-300,null,{"$f":"SUM(K298:K318)","v":-7570.44}]
["3200-Investment Income","4405-Interest and Dividend Income","PL",null,null,-28961.32,-24968.95,-17914.740000000002,-9600,null,-13757.21]
["3200-Investment Income","4415-Equity in Earnings of Subsidiary Companies","PL"]
["3200-Investment Income","4420-Share of Profit or Loss of Joint Venture","PL"]
[null,"Subtotal",null,{"$f":"SUM(D320:D322)","v":0},0,-28961.32,-24968.95,-17914.740000000002,-9600,null,{"$f":"SUM(K320:K322)","v":-13757.21}]
["3250-Not for distributor use","4505-Operation Supervision and Engineering","PL"]
["3250-Not for distributor use","4510-Fuel","PL"]
["3250-Not for distributor use","4515-Steam Expense","PL"]
["3250-Not for distributor use","4520-Steam From Other Sources","PL"]
["3250-Not for distributor use","4525-Steam Transferred--Credit","PL"]
["3250-Not for distributor use","4530-Electric Expense","PL"]
["3250-Not for distributor use","4535-Water For Power","PL"]
["3250-Not for distributor use","4540-Water Power Taxes","PL"]
["3250-Not for distributor use","4545-Hydraulic Expenses","PL"]
["3250-Not for distributor use","4550-Generation Expense","PL"]
["3250-Not for distributor use","4555-Miscellaneous Power Generation Expenses","PL"]
["3250-Not for distributor use","4560-Rents","PL"]
["3250-Not for distributor use","4565-Allowances for Emissions","PL"]
["3250-Not for distributor use","4605-Maintenance Supervision and Engineering","PL"]
["3250-Not for distributor use","4610-Maintenance of Structures","PL"]
["3250-Not for distributor use","4615-Maintenance of Boiler Plant","PL"]
["3250-Not for distributor use","4620-Maintenance of Electric Plant","PL"]
["3250-Not for distributor use","4625-Maintenance of Reservoirs, Dams and Waterways","PL"]
["3250-Not for distributor use","4630-Maintenance of Water Wheels, Turbines and Generators","PL"]
["3250-Not for distributor use","4635-Maintenance of Generating and Electric Plant","PL"]
["3250-Not for distributor use","4640-Maintenance of Miscellaneous Power Generation Plant","PL"]
["3350-Power Supply Expenses","4705-Power Purchased","PL",null,null,2224176.87,2103083.86,1959314.02,1939803,null,1049160.69]
["3350-Power Supply Expenses","4707-Charges-Global Adjustment","PL"]
["3350-Power Supply Expenses","4708-Charges-WMS","PL",null,null,191197.21,175935.06,157799.29,162300,null,146287.32]
["3350-Power Supply Expenses","4710-Cost of Power Adjustments","PL"]
["3350-Power Supply Expenses","4712-Charges-One-Time","PL"]
["3350-Power Supply Expenses","4714-Charges-NW","PL",null,null,171346.77,168773.29,147693.15,156300,null,119935.26]
["3350-Power Supply Expenses","4715-System Control and Load Dispatching","PL"]
["3350-Power Supply Expenses","4716-Charges-CN","PL",null,null,137719.32,139063.75,131243.14000000001,139815,null,108498.39]
["3350-Power Supply Expenses","4720-Other Expenses","PL",null,null,null,null,null,40575]
["3350-Power Supply Expenses","4750-Charges-LV","PL",null,null,40482.81,38436.46,32374.57,41000,null,25127.5]
[null,"Subtotal",null,{"$f":"SUM(D345:D354)","v":0},0,2764922.98,2625292.42,2428424.17,2479793,null,{"$f":"SUM(K345:K354)","v":1449009.16}]
["3450-Not for distributor use","4805-Operation Supervision and Engineering","PL"]
["3450-Not for distributor use","4810-Load Dispatching","PL"]
["3450-Not for distributor use","4815-Station Buildings and Fixtures Expenses","PL"]
["3450-Not for distributor use","4820-Transformer Station Equipment - Operating Labour","PL"]
["3450-Not for distributor use","4825-Transformer Station Equipment - Operating Supplies and Expense","PL"]
["3450-Not for distributor use","4830-Overhead Line Expenses","PL"]
["3450-Not for distributor use","4835-Underground Line Expenses","PL"]
["3450-Not for distributor use","4840-Transmission of Electricity by Others","PL"]
["3450-Not for distributor use","4845-Miscellaneous Transmission Expense","PL"]
["3450-Not for distributor use","4850-Rents","PL"]
["3450-Not for distributor use","4905-Maintenance Supervision and Engineering","PL"]
["3450-Not for distributor use","4910-Maintenance of Transformer Station Buildings and Fixtures","PL"]
["3450-Not for distributor use","4916-Maintenance of Transformer Station Equipment","PL"]
["3450-Not for distributor use","4930-Maintenance of Towers, Poles and Fixtures","PL"]
["3450-Not for distributor use","4935-Maintenance of Overhead Conductors and Devices","PL"]
["3450-Not for distributor use","4940-Maintenance of Overhead Lines - Right of Way","PL"]
["3450-Not for distributor use","4945-Maintenance of Overhead Lines - Roads and Trails Repairs","PL"]
["3450-Not for distributor use","4950-Maintenance of Overhead Lines - Snow Removal from Roads and Trails","PL"]
["3450-Not for distributor use","4960-Maintenance of Underground Lines","PL"]
["3450-Not for distributor use","4965-Maintenance of Miscellaneous Transmission Plant","PL"]
["3500-Distribution Expenses - Operation","5005-Operation Supervision and Engineering","PL",null,null,0]
["3500-Distribution Expenses - Operation","5010-Load Dispatching","PL"]
["3500-Distribution Expenses - Operation","5012-Station Buildings and Fixtures Expense","PL",1900,1600,1451.35,1521.27,1647.42,1860,null,1645.72]
["3500-Distribution Expenses - Operation","5014-Transformer Station Equipment - Operation Labour","PL"]
["3500-Distribution Expenses - Operation","5015-Transformer Station Equipment - Operation Supplies and Expenses","PL"]
["3500-Distribution Expenses - Operation","5016-Distribution Station Equipment - Operation Labour","PL"]
["3500-Distribution Expenses - Operation","5017-Distribution Station Equipment - Operation Supplies and Expenses","PL"]
["3500-Distribution Expenses - Operation","5020-Overhead Distribution Lines and Feeders - Operation Labour","PL"]
["3500-Distribution Expenses - Operation","5025-Overhead Distribution Lines & Feeders - Operation Supplies and Expenses","PL"]
["3500-Distribution Expenses - Operation","5030-Overhead Subtransmission Feeders - Operation","PL"]
["3500-Distribution Expenses - Operation","5035-Overhead Distribution Transformers- Operation","PL",6000,3000,605,1508.5,5812.37,null,null,3650]
["3500-Distribution Expenses - Operation","5040-Underground Distribution Lines and Feeders - Operation Labour","PL"]
["3500-Distribution Expenses - Operation","5045-Underground Distribution Lines & Feeders - Operation Supplies & Expenses","PL"]
["3500-Distribution Expenses - Operation","5050-Underground Subtransmission Feeders - Operation","PL"]
["3500-Distribution Expenses - Operation","5055-Underground Distribution Transformers - Operation","PL",null,null,null,null,null,12000]
["3500-Distribution Expenses - Operation","5060-Street Lighting and Signal System Expense","PL"]
["3500-Distribution Expenses - Operation","5065-Meter Expense","PL",2000,1500,null,2650,null,2000,null,1342]
["3500-Distribution Expenses - Operation","5070-Customer Premises - Operation Labour","PL"]
["3500-Distribution Expenses - Operation","5075-Customer Premises - Materials and Expenses","PL",6000,6000,7031,8736.25,7767.5,6000,null,7780]
["3500-Distribution Expenses - Operation","5085-Miscellaneous Distribution Expense","PL",5000,3450,7210.87,6548.93,5599.55,12000,null,3931.1]
["3500-Distribution Expenses - Operation","5090-Underground Distribution Lines and Feeders - Rental Paid","PL"]
["3500-Distribution Expenses - Operation","5095-Overhead Distribution Lines and Feeders - Rental Paid","PL"]
["3500-Distribution Expenses - Operation","5096-Other Rent","PL"]
["3550-Distribution Expenses - Maintenance","5105-Maintenance Supervision and Engineering","PL",null,null,null,null,null,2500]
["3550-Distribution Expenses - Maintenance","5110-Maintenance of Buildings and Fixtures - Distribution Stations","PL",{"$f":"1600+5400+2600","v":9600},{"$f":"1400+4800+2400","v":8600},8538,8236.9599999999991,8753.5400000000009,2425,null,5552.4]
["3550-Distribution Expenses - Maintenance","5112-Maintenance of Transformer Station Equipment","PL"]
["3550-Distribution Expenses - Maintenance","5114-Maintenance of Distribution Station Equipment","PL",5200,10200,19003,2706.84,4310.55,12000,null,8441]
["3550-Distribution Expenses - Maintenance","5120-Maintenance of Poles, Towers and Fixtures","PL",6000,5000,2523.5,3053.75,550,2500,null,1707]
["3550-Distribution Expenses - Maintenance","5125-Maintenance of Overhead Conductors and Devices","PL",6000,5000,6033.3,10283.9,2278.5,6000,null,3982]
["3550-Distribution Expenses - Maintenance","5130-Maintenance of Overhead Services","PL"]
["3550-Distribution Expenses - Maintenance","5135-Overhead Distribution Lines and Feeders - Right of Way","PL",7500,6000,4302.5,5090,7772.5,7000,null,7625]
["3550-Distribution Expenses - Maintenance","5145-Maintenance of Underground Conduit","PL",null,null,5775.25,1346,487.5]
["3550-Distribution Expenses - Maintenance","5150-Maintenance of Underground Conductors and Devices","PL"]
["3550-Distribution Expenses - Maintenance","5155-Maintenance of Underground Services","PL"]
["3550-Distribution Expenses - Maintenance","5160-Maintenance of Line Transformers","PL",6000,5000,2453,8601.43,12480.75,5000,null,2243.5]
["3550-Distribution Expenses - Maintenance","5165-Maintenance of Street Lighting and Signal Systems","PL"]
["3550-Distribution Expenses - Maintenance","5170-Sentinel Lights - Labour","PL"]
["3550-Distribution Expenses - Maintenance","5172-Sentinel Lights - Materials and Expenses","PL"]
["3550-Distribution Expenses - Maintenance","5175-Maintenance of Meters","PL"]
["3550-Distribution Expenses - Maintenance","5178-Customer Installations Expenses- Leased Property","PL"]
["3550-Distribution Expenses - Maintenance","5185-Water Heater Rentals - Labour","PL"]
["3550-Distribution Expenses - Maintenance","5186-Water Heater Rentals - Materials and Expenses","PL"]
["3550-Distribution Expenses - Maintenance","5190-Water Heater Controls - Labour","PL"]
["3550-Distribution Expenses - Maintenance","5192-Water Heater Controls - Materials and Expenses","PL"]
["3550-Distribution Expenses - Maintenance","5195-Maintenance of Other Installations on Customer Premises","PL"]
[null,"Subtotal",null,{"$f":"SUM(D376:D420)","v":61200},55350,64926.770000000004,60283.83,57460.18,71285,null,{"$f":"SUM(K376:K420)","v":47899.72}]
["3600-Not for distributor use","5205-Purchase of Transmission and System Services","PL"]
["3600-Not for distributor use","5210-Transmission Charges","PL"]
["3600-Not for distributor use","5215-Transmission Charges Recovered","PL"]
[null,"Subtotal"]
["3650-Billing and Collecting","5305-Supervision","PL"]
["3650-Billing and Collecting","5310-Meter Reading Expense","PL",null,null,null,null,null,11600,null,10312.76]
["3650-Billing and Collecting","5315-Customer Billing","PL",{"$f":"37668+31400+52000+40106","v":161174},{"$f":"37668+50082.73+38106.42","v":125857.15000000001},{"$f":"148059.91-8000-8000","v":132059.91},161098.56,144118.9,141547,null,142385.38]
["3650-Billing and Collecting","5320-Collecting","PL"]
["3650-Billing and Collecting","5325-Collecting- Cash Over and Short","PL"]
["3650-Billing and Collecting","5330-Collection Charges","PL",4000,3200,3366.36,2040,2310,1500,null,2108]
["3650-Billing and Collecting","5335-Bad Debt Expense","PL",5000,5000,null,null,null,600]
["3650-Billing and Collecting","5340-Miscellaneous Customer Accounts Expenses","PL"]
[null,"Subtotal",null,{"$f":"SUM(D426:D433)","v":170174},134057.15000000002,135426.26999999999,163138.56,146428.9,155247,null,{"$f":"SUM(K426:K433)","v":154806.14000000001}]
["3700-Community Relations","5405-Supervision","PL"]
["3700-Community Relations","5410-Community Relations - Sundry","PL",4000,3100,6709.95,1316.25,2182.16,3000,null,3505]
["3700-Community Relations","5415-Energy Conservation","PL"]
["3700-Community Relations","5420-Community Safety Program","PL"]
["3700-Community Relations","5425-Miscellaneous Customer Service and Informational Expenses","PL"]
["3700-Community Relations","5505-Supervision","PL"]
["3700-Community Relations","5510-Demonstrating and Selling Expense","PL"]
["3700-Community Relations","5515-Advertising Expense","PL"]
["3700-Community Relations","5520-Miscellaneous Sales Expense","PL"]
[null,"Subtotal",null,{"$f":"SUM(D435:D443)","v":4000},3100,6709.95,1316.25,2182.16,3000,null,{"$f":"SUM(K435:K443)","v":3505}]
["3800-Administrative and General Expenses","5605-Executive Salaries and Expenses","PL",28000,25000,25148.44,24911.68,19021.560000000001,21200,null,18920]
["3800-Administrative and General Expenses","5610-Management Salaries and Expenses","PL",84000,77983.16,77597.58,87009.86,83144.94,82000,null,81657.240000000005]
["3800-Administrative and General Expenses","5615-General Administrative Salaries and Expenses","PL",{"$f":"42905+6000+9000+3000+5000+1500","v":67405},{"$f":"38389+5300+4000+2200+4000+400","v":54289},62113.67,48062.09,38048.79,37000,null,37779.61]
["3800-Administrative and General Expenses","5620-Office Supplies and Expenses","PL",46600,{"$f":"5000+22082+4500+500+2900+1800+2500+500","v":39782},{"$f":"19737.67+8000+8000","v":35737.67},28492.87,20992.41,17000,null,16462.580000000002]
["3800-Administrative and General Expenses","5625-Administrative Expense Transferred Credit","PL"]
["3800-Administrative and General Expenses","5630-Outside Services Employed","PL",{"$f":"53200+5600","v":58800},{"$f":"33200+63000","v":96200},87916.27,91994.01,72862.710000000006,{"$f":"62850+19500","v":82350},null,20337.2]
["3800-Administrative and General Expenses","5635-Property Insurance","PL",3000,2500,4960,5396,5455.08,5400,null,5451.84]
["3800-Administrative and General Expenses","5640-Injuries and Damages","PL",2800,1700,1571.4,1662,1194.48,1500,null,2027]
["3800-Administrative and General Expenses","5645-OMERS Pensions and Benefits","PL"]
["3800-Administrative and General Expenses","5646-Employee Pensions and OPEB","PL"]
["3800-Administrative and General Expenses","5647-Employee Sick Leave","PL",null,null,0]
["3800-Administrative and General Expenses","5650-Franchise Requirements","PL"]
["3800-Administrative and General Expenses","5655-Regulatory Expenses","PL",{"$f":"6500+4100","v":10600},{"$f":"68724-63000","v":5724},5452.4,4952.2700000000004,6229.43,{"$f":"68300-62850","v":5450},null,6112.78]
["3800-Administrative and General Expenses","5660-General Advertising Expenses","PL"]
["3800-Administrative and General Expenses","5665-Miscellaneous General Expenses","PL"]
["3800-Administrative and General Expenses","5670-Rent","PL",15600,13200,13200,12000,12400,12000,null,12270]
["3800-Administrative and General Expenses","5672-Lease Payment Expense","PL"]
["3800-Administrative and General Expenses","5675-Maintenance of General Plant","PL"]
["3800-Administrative and General Expenses","5680-Electrical Safety Authority Fees","PL",2100,1900,1836.14,1783.34,1778.28,1795,null,1772.94]
["3800-Administrative and General Expenses","5681-Special Purpose Charge Expense","PL"]
["3800-Administrative and General Expenses","5685-Independent Market Operator Fees and Penalties","PL"]
["3800-Administrative and General Expenses","5695-Smart Meters OM&A Contra","PL"]
[null,"Subtotal",null,{"$f":"SUM(D445:D466)","v":318905},318278.16000000003,315533.57000000007,306264.12000000005,261127.68000000002,265695,null,{"$f":"SUM(K445:K466)","v":202791.19}]
["3850-Amortization Expense","5705-Depreciation Expense - Property, Plant, and Equipment","PL",{"$f":"'App.2-B_FixAsset 2014-CGAAP'!K58","v":-132429.08000000002},{"$f":"'App 2-B FixAsset 2013-CGAAP'!K58","v":-111536.49},129550.06,127442.95,124967.5,131572,null,109266.31]
["3850-Amortization Expense","5710-Amortization of Limited Term Electric Plant","PL"]
["3850-Amortization Expense","5715-Amortization of Intangibles Asset","PL"]
["3850-Amortization Expense","5720-Amortization of Electric Plant Acquisition Adjustments","PL",null,null,null,13197.63,15835,15835,null,15835]
["3850-Amortization Expense","5725-Miscellaneous Depreciation","PL"]
["3850-Amortization Expense","5730-Amortization of Unrecovered Plant and Regulatory Study Costs","PL"]
["3850-Amortization Expense","5740-Amortization of Deferred Charges","PL"]
[null,"Subtotal",null,{"$f":"SUM(D468:D474)","v":-132429.08000000002},-111536.49,129550.06,140640.57999999999,140802.5,147407,null,{"$f":"SUM(K468:K474)","v":125101.31}]
["3900-Interest Expense","6005-Interest on Long Term Debt","PL"]
["3900-Interest Expense","6010-Amortization of Debt Discount and Expense","PL"]
["3900-Interest Expense","6015-Amortization of Premium on Debt Credit","PL"]
["3900-Interest Expense","6020-Amortization of Loss on Reacquired Debt","PL"]
["3900-Interest Expense","6025-Amortization of Gain on Reacquired Debt--Credit","PL"]
["3900-Interest Expense","6030-Interest on Debt to Associated Companies","PL"]
["3900-Interest Expense","6035-Other Interest Expense","PL",null,null,953,1922.69,518.58000000000004,1334,null,1481.61]
["3900-Interest Expense","6040-Allowance for Borrowing Costs Applied to CWIP-Credit","PL"]
["3900-Interest Expense","6042-Allowance For Other Borrowing Costs Applied to CWIP-Credit","PL"]
["3900-Interest Expense","6045-Interest Expense on Finance Lease Obligations","PL"]
[null,"Subtotal",null,{"$f":"SUM(D476:D485)","v":0},0,953,1922.69,518.58000000000004,1334,null,{"$f":"SUM(K476:K485)","v":1481.61}]
["3950-Taxes Other Than Income Taxes","6105-Taxes Other Than Income Taxes","PL"]
["4000-Income Taxes","6110-Income Taxes","PL",null,null,40691,23202,20868,20632]
["4000-Income Taxes","6115-Provision for Deferred Taxes- Income Statement","PL",null,null,null,null,-5012,null,null,5012]
[null,"Subtotal",null,{"$f":"SUM(D487:D489)","v":0},0,40691,23202,15856,20632,null,{"$f":"SUM(K487:K489)","v":5012}]
["4100-Unusual & Other Items","6205-Donations, Sub-account LEAP Funding","PL",2000,2000,{"$f":"7659-5659","v":2000},{"$f":"6055-4055","v":2000},{"$f":"2350-350","v":2000},2000,null,1650]
["4100-Unusual & Other Items","6210-Life Insurance","PL"]
["4100-Unusual & Other Items","6215-Penalties","PL",null,null,1723.96,2547.83]
["4100-Unusual & Other Items","6225-Other Deductions","PL"]
["4100-Unusual & Other Items","6305-Unusual Income","PL"]
["4100-Unusual & Other Items","6310-Unusual Deductions","PL"]
["4100-Unusual & Other Items","6315-Income Taxes, Unusual Items","PL"]
["4100-Unusual & Other Items","6405-Discontinues Operations - Income/ Gains","PL"]
["4100-Unusual & Other Items","6410-Discontinued Operations - Deductions/ Losses","PL"]
["4100-Unusual & Other Items","6415-Income Taxes, Discontinued Operations","PL"]
[null,"Subtotal",null,{"$f":"SUM(D491:D500)","v":2000},2000,3723.96,4547.83,2000,2000,null,{"$f":"SUM(K491:K500)","v":1650}]
["Pension","7005-Pension Actuarial Gains or Losses or Remeasurement Adjustment - Other Comprehensive Income","PL"]
["Pension","7020-Current Taxes - Other Comprehensive Income","PL"]
["Pension","7025-Deferred Taxes-Other Comprehensive Income","PL"]
["Pension","7030-Miscellaneaous - Other Comprehensive Income","PL"]
[null,"Total",null,{"$f":"D36+D41+D58+D102+D183+D189+D212+D234+D263+D280+D285+D297+D319+D323+D355+D421+D434+D444+D467+D475+D486+D490+D501","v":2464023.4560000002},2250971.2260000003,-177273.24999999956,-345981.62000000046,-275461.13000000018,-158823,null,{"$f":"K36+K41+K58+K102+K183+K189+K212+K234+K263+K280+K285+K297+K319+K323+K355+K421+K434+K444+K467+K475+K486+K490+K501","v":-87982.229999998803}]

{"sheet":"App.2-A_Capital Projects","index":3,"n_rows":183,"n_cols":8,"rows_kept":183,"cut":false,"hidden":false,"merged":[[8,0,8,7],[9,0,9,7]]}
[null,null,null,null,null,null,"File Number:",{"$f":"'LDC Info'!$E$18","v":"EB-2013-0122"}]
[null,null,null,null,null,null,"Exhibit:",2]
[null,null,null,null,null,null,"Tab:",2]
[null,null,null,null,null,null,"Schedule:",2]
[null,null,null,null,null,null,"Page:"]
[]
[null,null,null,null,null,null,"Date:"]
[]
["Appendix 2-A"]
["Capital Projects Table"]
[]
["Projects",2008,2009,2010,2011,2012,"2013 Bridge Year","2014 Test Year"]
["Reporting Basis"]
["1820-install new transformer  "]
["feeding hydro metering unit",null,null,22389.75]
[]
["1820-new service at substation to"]
["supply power to fans and heaters"]
["in cubicle components",null,null,2576]
[]
["1820-groundy study substation",null,null,null,null,null,10000]
[]
["1820-add new switching cabinet 4th feeder",null,null,null,null,null,52400]
[]
["Sub-Total",{"$f":"SUM(B13:B24)","v":0},0,24965.75,0,0,62400,{"$f":"SUM(H13:H24)","v":0}]
[]
["1830-pole replacement different location",18322.5]
[]
["1830-pole replacement different location",null,43906.5]
[]
[]
["1830-pole replacement on brisson,"]
["bourassa , lapalme & centenaire"]
["street",null,null,62255.5]
[]
["1830-poles replacement on st-jacques"]
["bourdeau,notre-dame & ste-marie",null,null,null,18096.52]
[]
["1830-pole replacement",null,null,null,null,3098.1]
[]
["1830-pole replacement at different"]
["location",null,null,null,null,null,29050]
[]
["1830-pole at ste-therese street",null,null,null,null,null,54800]
[]
["1830-pole replacement on",0]
["st-jacques and forget",null,null,null,null,null,null,20750]
[]
["1830-pole replacement on cloutier "]
["street",null,null,null,null,null,null,39470]
[]
["Sub-Total",{"$f":"SUM(B26:B51)","v":18322.5},43906.5,62255.5,18096.52,3098.1,83850,{"$f":"SUM(H26:H51)","v":60220}]
[]
["1835-overhead conductor device",73491.56]
[]
["1835-overhead conductor device",null,5232]
[]
["1835-overhead conductor device",null,null,856]
[]
["1835-overhead conductor device",null,null,null,4224.2359999999999]
[]
["1835-4th feeder ste-therese "]
["street",null,null,null,null,null,58750]
[]
["1835-4th feeder on cloutier"]
["street",null,null,null,null,null,null,19375]
[]
["Sub-Total",{"$f":"SUM(B53:B67)","v":73491.56},5232,856,4224.2359999999999,0,58750,{"$f":"SUM(H53:H67)","v":19375}]
[]
["1845-underground conductor",12204]
[]
["1845-underground conductor",null,875]
[]
[]
["1845-underground conductor"]
["hydro vac duck",null,null,null,null,5841]
[]
["1845-underground cable "]
["substation to ste-therese",null,null,null,null,null,52400]
[]
["1845-new subdivision",null,null,null,null,null,null,398000]
[]
[]
[]
["Sub-Total",{"$f":"SUM(B70:B84)","v":12204},875,0,0,5841,52400,{"$f":"SUM(H70:H84)","v":398000}]
[]
["1850-padmount & polemount "]
["transformers new & old",26501]
[]
["1850-padmount & polemount "]
["transformers new & old",null,73966.100000000006]
[]
["1850-padmount & polemount "]
["transformers new & old",null,null,28327.65]
[]
["1850-padmount & polemount "]
["transformers new & old",null,null,null,21553.5]
[]
["1850-replacement  of old"]
["transformers",null,null,null,null,36088]
[]
["1850-replacement of transformers"]
["& new services",null,null,null,null,null,12000]
[]
["1850-transformers for proposed"]
["subdivision & ldc need",null,null,null,null,null,null,87500]
[]
["Sub-Total",{"$f":"SUM(B86:B107)","v":26501},73966.100000000006,28327.65,21553.5,36088,12000,{"$f":"SUM(H86:H107)","v":87500}]
[]
["1855-new o.h. & u.g. services ",18548.25]
["material & labour"]
[]
["1855-new o.h. & u.g. services ",null,11372.75]
["material & labour"]
[]
["1855-new o.h. & u.g. services "]
["material & labour",null,null,12636.5]
[]
["1855-new o.h. & u.g. services "]
["material & labour",null,null,null,4036.25]
[]
["1855-new o.h. & u.g. services "]
["material & labour",null,null,null,null,5074]
[]
["1855-new o.h. & u.g. services "]
["material & labour",null,null,null,null,null,5000]
[]
["1855-new o.h. & u.g. services "]
["material & labour",null,null,null,null,null,null,4000]
[]
["Sub-Total",{"$f":"SUM(B109:B130)","v":18548.25},11372.75,12636.5,4036.25,5074,5000,{"$f":"SUM(H109:H130)","v":4000}]
[]
["1860-smart meters",null,null,null,null,310212,null,30500]
["1860-smart meters - stranded",null,null,null,null,-79072]
["Sub-Total",{"$f":"SUM(B132:B134)","v":0},0,0,0,231140,0,{"$f":"SUM(H132:H134)","v":30500}]
[]
["1915-office furniture & equipment"]
["bell system 2009",null,2732.86]
[]
["1915-audio materials",null,null,3012.54]
[]
["1915-folder, inserter, mailing machine",null,null,null,14694]
[]
["1915-cell phone & equipment",null,null,null,null,null,1500]
[]
["Sub-Total",{"$f":"SUM(B136:B145)","v":0},2732.86,3012.54,14694,0,1500,{"$f":"SUM(H136:H145)","v":0}]
[]
["1920-computer hardware",2194.5500000000002]
[]
["1920-computer hardware"]
[]
["1920-new computer",null,null,3080.49]
[]
["1920-addition new printer",null,null,null,2319.9]
[]
["1920-new computer",null,null,null,null,2745.57]
[]
["1920-computer equipment and hardware"]
["battery back-up",null,null,null,null,null,1500]
[]
["Sub-Total",{"$f":"SUM(B147:B160)","v":2194.5500000000002},0,3080.49,2319.9,2745.57,1500,{"$f":"SUM(H147:H160)","v":0}]
[]
["1925-computer software equipment",null,6442.47]
[]
["1925-implementation new cis system-harris",null,null,61341.39]
[]
["1925-north star training cis system",null,null,null,1500]
[]
["1925-harris software moe standard bil print",null,null,null,null,null,25000]
[]
["1925-antivirus protection",null,null,null,null,null,1500]
[]
["1925-harris version 6.4 upgrade",null,null,null,null,null,null,20000]
[]
["1925-harris customer connect",null,null,null,null,null,null,15000]
["1940 - Tools related to Smart Metering",null,null,null,null,4205]
["Sub-total",null,{"$f":"SUM(C162:C176)","v":6442.47},61341.39,1500,4205,26500,35000]
[]
["1995 Capital Contribution",null,null,-11423,-7774,-1600,-8000,-160000]
[]
["Total",{"$f":"B25+B52+B68+B85+B108+B131+B135+B146+B161+B177+B179","v":151261.85999999999},144527.67999999999,185052.82,58650.406000000003,{"$f":"F25+F52+F68+F85+F108+F131+F135+F146+F161+F177+F179","v":286591.67},295900,{"$f":"H25+H52+H68+H85+H108+H131+H135+H146+H161+H177+H179","v":474595}]
[]
[null,null,null,null,null," "]

{"sheet":"App 2-B FixAsset2010-CGAAP","index":4,"n_rows":71,"n_cols":14,"rows_kept":71,"cut":false,"hidden":false,"merged":[[68,1,68,13],[8,0,8,13],[9,0,9,13],[13,4,13,7],[62,1,63,13],[65,1,66,13]]}
[null,null,null,null,null,null,null,null,null,null,null,null,"File Number:",{"$f":"'LDC Info'!$E$18","v":"EB-2013-0122"}]
[null,null,null,null,null,null,null,null,null,null,null,null,"Exhibit:",2]
[null,null,null,null,null,null,null,null,null,null,null,null,"Tab:",1]
[null,null,null,null,null,null,null,null,null,null,null,null,"Schedule:",4]
[null,null,null,null,null,null,null,null,null,null,null,null,"Page:",1]
[]
[null,null,null,null,null,null,null,null,null,null,null,null,"Date:"]
[]
["Appendix 2-B"]
["Fixed Asset Continuity Schedule"]
[]
[null,null,null,null,null,"Year ",2010]
[]
[null,null,null,null,"Cost",null,null,null,null,null,"Accumulated Depreciation"]
["CCA Class","OEB","Description","Depreciation Rate","Opening Balance","Additions","Disposals","Closing Balance",null,"Opening Balance","Additions","Disposals","Closing Balance","Net Book Value"]
[12,1611,"Computer Software (Formally known as Account 1925)",null,22085.77,61341,null,{"$f":"E16+F16+G16","v":83426.77},null,-15801.54,-12612.74,null,{"$f":"J16+K16+L16","v":-28414.28},{"$f":"H16+M16","v":55012.490000000005}]
["CEC",1612,"Land Rights (Formally known as Account 1906)",null,null,null,null,{"$f":"E17+F17+G17","v":0},null,null,null,null,{"$f":"J17+K17+L17","v":0},{"$f":"H17+M17","v":0}]
["N/A",1805,"Land",null,50000,null,null,{"$f":"E18+F18+G18","v":50000},null,null,null,null,{"$f":"J18+K18+L18","v":0},{"$f":"H18+M18","v":50000}]
[47,1808,"Buildings",null,null,null,null,{"$f":"E19+F19+G19","v":0},null,null,null,null,{"$f":"J19+K19+L19","v":0},{"$f":"H19+M19","v":0}]
[13,1810,"Leasehold Improvements",null,null,null,null,0,null,null,null,null,0,0]
[47,1815,"Transformer Station Equipment >50 kV",null,null,null,null,0,null,null,null,null,0,0]
[47,1820,"Distribution Station Equipment <50 kV",null,197552,24966,null,222518,null,-59609,-7000.166666666667,null,-66609.166666666672,155908.83333333331]
[47,1825,"Storage Battery Equipment",null,null,null,null,0,null,null,null,null,0,0]
[47,1830,"Poles, Towers & Fixtures",null,480083,62256,null,542339,null,-143915,-20448.439999999999,null,-164363.44,377975.56]
[47,1835,"Overhead Conductors & Devices",null,541906,856,null,542762,null,-162199,-21693.360000000001,null,-183892.36,358869.64]
[47,1840,"Underground Conduit",null,null,null,null,0,null,null,null,null,0,0]
[47,1845,"Underground Conductors & Devices",null,952146,null,null,952146,null,-293632,-38085.839999999997,null,-331717.83999999997,620428.16]
[47,1850,"Line Transformers",null,661053,28328,null,689381,null,-183967,-27008.68,null,-210975.68,478405.32]
[47,1855,"Services (Overhead & Underground)",null,{"$f":"150414+11051","v":161465},{"$f":"12144+493","v":12637},null,174102,null,-32541,-6711.34,null,-39252.339999999997,134849.66]
[47,1860,"Meters",null,79072,null,null,79072,null,-26659,-3162.88,null,-29821.88,49250.119999999995]
[47,1860,"Meters (Smart Meters)",null,null,null,null,0,null,null,null,null,0,0]
["N/A",1905,"Land",null,null,null,null,0,null,null,null,null,0,0]
[47,1908,"Buildings & Fixtures",null,null,null,null,0,null,null,null,null,0,0]
[13,1910,"Leasehold Improvements",null,null,null,null,0,null,null,null,null,0,0]
[8,1915,"Office Furniture & Equipment (10 years)",null,31696,3013,null,34709,null,-14472,-3320.25,null,-17792.25,16916.75]
[8,1915,"Office Furniture & Equipment (5 years)",null,null,null,null,0,null,null,null,null,0,0]
[10,1920,"Computer Equipment - Hardware",null,16392,3080,null,19472,null,-13940,-1466,null,-15406,4066]
[45,1920,"Computer Equip.-Hardware(Post Mar. 22/04)",null,null,null,null,0,null,null,null,null,0,0]
[45.1,1920,"Computer Equip.-Hardware(Post Mar. 19/07)",null,null,null,null,0,null,null,null,null,0,0]
[10,1930,"Transportation Equipment",null,null,null,null,0,null,null,null,null,0,0]
[8,1935,"Stores Equipment",null,4320,null,null,4320,null,-2290,-432,null,-2722,1598]
[8,1940,"Tools, Shop & Garage Equipment",null,null,null,null,0,null,null,null,null,0,0]
[8,1945,"Measurement & Testing Equipment",null,4281,null,null,4281,null,-3266,-383.1,null,-3649.1,631.90000000000009]
[8,1950,"Power Operated Equipment",null,null,null,null,0,null,null,null,null,0,0]
[8,1955,"Communications Equipment",null,null,null,null,0,null,null,null,null,0,0]
[8,1955,"Communication Equipment (Smart Meters)",null,null,null,null,0,null,null,null,null,0,0]
[8,1960,"Miscellaneous Equipment ",null,null,null,null,0,null,null,null,null,0,0]
[47,1975,"Load Management Controls Utility Premises",null,null,null,null,0,null,null,null,null,0,0]
[47,1980,"System Supervisor Equipment",null,null,null,null,0,null,null,null,null,0,0]
[47,1985,"Miscellaneous Fixed Assets",null,null,null,null,0,null,null,null,null,0,0]
[47,1995,"Contributions & Grants",null,-532166,-11423,null,-543589,null,109833,21515.1,null,135796,-407793]
[null,"etc.",null,null,null,null,null,0,null,null,null,null,0,0]
[]
[null,null,"Total",null,{"$f":"SUM(E16:E53)","v":2669885.77},{"$f":"SUM(F16:F53)","v":185054},{"$f":"SUM(G16:G53)","v":0},{"$f":"SUM(H16:H53)","v":2854939.77},null,{"$f":"SUM(J16:J53)","v":-842458.54},{"$f":"SUM(K16:K53)","v":-120809.69666666666},{"$f":"SUM(L16:L53)","v":0},{"$f":"SUM(M16:M53)","v":-958820.33666666667},{"$f":"SUM(N16:N53)","v":1896119.4333333336}]
[]
[null,null,null,null,null,null,null,null,null,"Less: Fully Allocated Depreciation"]
[10,null,"Transportation",null,null,null,null,null,null,"Transportation"]
[8,null,"Stores Equipment",null,null,null,null,null,null,"Stores Equipment"]
[null,null,null,null,null,null,null,null,null,"Net Depreciation",null,{"$f":"L54-L57-L58","v":0}]
[]
["Notes:"]
[]
[1,"Tables in the format outlined above covering all fixed asset accounts should be submitted for the Test Year, Bridge Year and all relevant historical years.  At a minimum , the applicant must provide data for the earlier of: 1) all historical years back to its last rebasing; or 2) at least three years of historical actuals, in addition to Bridge Year and Test Year forecasts."]
[]
[]
[2,"The \"CCA Class\" for fixed assets should agree with the CCA Class used for tax purposes in Tax Returns. Fixed Assets sub-components may be used where the underlying asset components are classified under multiple CCA Classes for tax purposes. If an applicant uses any different classes from those shown in the table, an explanation should be provided. (also see note 3 below)."]
[]
[]
[3,"The table may need to be customized for a utility's asset categories or for any new asset accounts announced or authorized by the Board."]
[]
[4,"The depreciation column (D) is not required as the relevant information will be provided in the following 2-C series of appendices."]

{"sheet":"App 2-B FixAsset 2011-CGAAP","index":5,"n_rows":71,"n_cols":14,"rows_kept":71,"cut":false,"hidden":false,"merged":[[68,1,68,13],[8,0,8,13],[9,0,9,13],[13,4,13,7],[62,1,63,13],[65,1,66,13]]}
[null,null,null,null,null,null,null,null,null,null,null,null,"File Number:",{"$f":"'LDC Info'!$E$18","v":"EB-2013-0122"}]
[null,null,null,null,null,null,null,null,null,null,null,null,"Exhibit:",2]
[null,null,null,null,null,null,null,null,null,null,null,null,"Tab:",1]
[null,null,null,null,null,null,null,null,null,null,null,null,"Schedule:",4]
[null,null,null,null,null,null,null,null,null,null,null,null,"Page:",2]
[]
[null,null,null,null,null,null,null,null,null,null,null,null,"Date:"]
[]
["Appendix 2-B"]
["Fixed Asset Continuity Schedule"]
[]
[null,null,null,null,null,"Year ",2011]
[]
[null,null,null,null,"Cost",null,null,null,null,null,"Accumulated Depreciation"]
["CCA Class","OEB","Description","Depreciation Rate","Opening Balance","Additions","Disposals","Closing Balance",null,"Opening Balance","Additions","Disposals","Closing Balance","Net Book Value"]
[12,1611,"Computer Software (Formally known as Account 1925)",null,83427,1500,null,{"$f":"E16+F16+G16","v":84927},null,{"$f":"'App 2-B FixAsset2010-CGAAP'!M16","v":-28414.28},-13706.74,null,{"$f":"J16+K16+L16","v":-42121.02},{"$f":"H16+M16","v":42805.98}]
["CEC",1612,"Land Rights (Formally known as Account 1906)",null,0,null,null,{"$f":"E17+F17+G17","v":0},null,{"$f":"'App 2-B FixAsset2010-CGAAP'!M17","v":0},null,null,{"$f":"J17+K17+L17","v":0},{"$f":"H17+M17","v":0}]
["N/A",1805,"Land",null,50000,null,null,{"$f":"E18+F18+G18","v":50000},null,{"$f":"'App 2-B FixAsset2010-CGAAP'!M18","v":0},null,null,{"$f":"J18+K18+L18","v":0},{"$f":"H18+M18","v":50000}]
[47,1808,"Buildings",null,0,null,null,{"$f":"E19+F19+G19","v":0},null,{"$f":"'App 2-B FixAsset2010-CGAAP'!M19","v":0},null,null,{"$f":"J19+K19+L19","v":0},{"$f":"H19+M19","v":0}]
[13,1810,"Leasehold Improvements",null,0,null,null,0,null,{"$f":"'App 2-B FixAsset2010-CGAAP'!M20","v":0},null,null,0,0]
[47,1815,"Transformer Station Equipment >50 kV",null,0,null,null,0,null,{"$f":"'App 2-B FixAsset2010-CGAAP'!M21","v":0},null,null,0,0]
[47,1820,"Distribution Station Equipment <50 kV",null,222488,null,null,222488,null,{"$f":"'App 2-B FixAsset2010-CGAAP'!M22","v":-66609.166666666672},-7416.2666666666664,null,-74025.433333333334,148462.56666666665]
[47,1825,"Storage Battery Equipment",null,0,null,null,0,null,{"$f":"'App 2-B FixAsset2010-CGAAP'!M23","v":0},null,null,0,0]
[47,1830,"Poles, Towers & Fixtures",null,542339,18097,null,560436,null,{"$f":"'App 2-B FixAsset2010-CGAAP'!M24","v":-164363.44},-22055.5,null,-186418.94,374017.06]
[47,1835,"Overhead Conductors & Devices",null,542762,4224,null,546986,null,{"$f":"'App 2-B FixAsset2010-CGAAP'!M25","v":-183892.36},-21794.959999999999,null,-205687.31999999998,341298.68000000005]
[47,1840,"Underground Conduit",null,0,null,null,0,null,{"$f":"'App 2-B FixAsset2010-CGAAP'!M26","v":0},null,null,0,0]
[47,1845,"Underground Conductors & Devices",null,952146,null,null,952146,null,{"$f":"'App 2-B FixAsset2010-CGAAP'!M27","v":-331717.83999999997},-38085.839999999997,null,-369803.67999999993,582342.32000000007]
[47,1850,"Line Transformers",null,689381,21554,null,710935,null,{"$f":"'App 2-B FixAsset2010-CGAAP'!M28","v":-210975.68},-28006.320000000003,null,-238982,471953]
[47,1855,"Services (Overhead & Underground)",null,174102,4036,null,178138,null,{"$f":"'App 2-B FixAsset2010-CGAAP'!M29","v":-39252.339999999997},-7044.8,null,-46297.14,131840.85999999999]
[47,1860,"Meters",null,79072,null,null,79072,null,{"$f":"'App 2-B FixAsset2010-CGAAP'!M30","v":-29821.88},-3162.88,null,-32984.76,46087.24]
[47,1860,"Meters (Smart Meters)",null,0,null,null,0,null,{"$f":"'App 2-B FixAsset2010-CGAAP'!M31","v":0},null,null,0,0]
["N/A",1905,"Land",null,0,null,null,0,null,{"$f":"'App 2-B FixAsset2010-CGAAP'!M32","v":0},null,null,0,0]
[47,1908,"Buildings & Fixtures",null,0,null,null,0,null,{"$f":"'App 2-B FixAsset2010-CGAAP'!M33","v":0},null,null,0,0]
[13,1910,"Leasehold Improvements",null,0,null,null,0,null,{"$f":"'App 2-B FixAsset2010-CGAAP'!M34","v":0},null,null,0,0]
[8,1915,"Office Furniture & Equipment (10 years)",null,34709,14694,null,49403,null,{"$f":"'App 2-B FixAsset2010-CGAAP'!M35","v":-17792.25},-3855.6000000000004,null,-21647.85,27755.15]
[8,1915,"Office Furniture & Equipment (5 years)",null,0,null,null,0,null,{"$f":"'App 2-B FixAsset2010-CGAAP'!M36","v":0},null,null,0,0]
[10,1920,"Computer Equipment - Hardware",null,19472,2319,null,21791,null,{"$f":"'App 2-B FixAsset2010-CGAAP'!M37","v":-15406},-1703.3820000000001,null,-17109.382000000001,4681.6179999999986]
[45,1920,"Computer Equip.-Hardware(Post Mar. 22/04)",null,0,null,null,0,null,{"$f":"'App 2-B FixAsset2010-CGAAP'!M38","v":0},null,null,0,0]
[45.1,1920,"Computer Equip.-Hardware(Post Mar. 19/07)",null,0,null,null,0,null,{"$f":"'App 2-B FixAsset2010-CGAAP'!M39","v":0},null,null,0,0]
[10,1930,"Transportation Equipment",null,0,null,null,0,null,{"$f":"'App 2-B FixAsset2010-CGAAP'!M40","v":0},null,null,0,0]
[8,1935,"Stores Equipment",null,4320,null,null,4320,null,{"$f":"'App 2-B FixAsset2010-CGAAP'!M41","v":-2722},-432,null,-3154,1166]
[8,1940,"Tools, Shop & Garage Equipment",null,0,null,null,0,null,{"$f":"'App 2-B FixAsset2010-CGAAP'!M42","v":0},null,null,0,0]
[8,1945,"Measurement & Testing Equipment",null,4281,null,null,4281,null,{"$f":"'App 2-B FixAsset2010-CGAAP'!M43","v":-3649.1},-158.1,null,-3807.2,473.80000000000018]
[8,1950,"Power Operated Equipment",null,0,null,null,0,null,{"$f":"'App 2-B FixAsset2010-CGAAP'!M44","v":0},null,null,0,0]
[8,1955,"Communications Equipment",null,0,null,null,0,null,{"$f":"'App 2-B FixAsset2010-CGAAP'!M45","v":0},null,null,0,0]
[8,1955,"Communication Equipment (Smart Meters)",null,0,null,null,0,null,{"$f":"'App 2-B FixAsset2010-CGAAP'!M46","v":0},null,null,0,0]
[8,1960,"Miscellaneous Equipment ",null,0,null,null,0,null,{"$f":"'App 2-B FixAsset2010-CGAAP'!M47","v":0},null,null,0,0]
[47,1975,"Load Management Controls Utility Premises",null,0,null,null,0,null,{"$f":"'App 2-B FixAsset2010-CGAAP'!M48","v":0},null,null,0,0]
[47,1980,"System Supervisor Equipment",null,0,null,null,0,null,{"$f":"'App 2-B FixAsset2010-CGAAP'!M49","v":0},null,null,0,0]
[47,1985,"Miscellaneous Fixed Assets",null,0,null,null,0,null,{"$f":"'App 2-B FixAsset2010-CGAAP'!M50","v":0},null,null,0,0]
[47,1995,"Contributions & Grants",null,-543589,-7774,null,-551363,null,{"$f":"'App 2-B FixAsset2010-CGAAP'!M51","v":135796},21899.040000000001,null,157695.04000000001,-393667.95999999996]
[null,1610,"Intagible Asset (H1)",null,0,null,null,0,null,{"$f":"'App 2-B FixAsset2010-CGAAP'!M52","v":0},null,null,0,0]
[null,null,null,null,null,null,null,null,null,{"$f":"'App 2-B FixAsset2010-CGAAP'!M53","v":0}]
[null,null,"Total",null,{"$f":"SUM(E16:E53)","v":2854910},{"$f":"SUM(F16:F53)","v":58650},{"$f":"SUM(G16:G53)","v":0},{"$f":"SUM(H16:H53)","v":2913560},null,{"$f":"SUM(J16:J53)","v":-958820.33666666667},{"$f":"SUM(K16:K53)","v":-125523.34866666669},{"$f":"SUM(L16:L53)","v":0},{"$f":"SUM(M16:M53)","v":-1084343.685333333},{"$f":"SUM(N16:N53)","v":1829216.3146666666}]
[]
[null,null,null,null,null,null,null,null,null,"Less: Fully Allocated Depreciation"]
[10,null,"Transportation",null,null,null,null,null,null,"Transportation"]
[8,null,"Stores Equipment",null,null,null,null,null,null,"Stores Equipment"]
[null,null,null,null,null,null,null,null," ","Net Depreciation",null,{"$f":"L54-L57-L58","v":0}]
[]
["Notes:"]
[]
[1,"Tables in the format outlined above covering all fixed asset accounts should be submitted for the Test Year, Bridge Year and all relevant historical years.  At a minimum , the applicant must provide data for the earlier of: 1) all historical years back to its last rebasing; or 2) at least three years of historical actuals, in addition to Bridge Year and Test Year forecasts."]
[]
[]
[2,"The \"CCA Class\" for fixed assets should agree with the CCA Class used for tax purposes in Tax Returns. Fixed Assets sub-components may be used where the underlying asset components are classified under multiple CCA Classes for tax purposes. If an applicant uses any different classes from those shown in the table, an explanation should be provided. (also see note 3 below)."]
[]
[]
[3,"The table may need to be customized for a utility's asset categories or for any new asset accounts announced or authorized by the Board."]
[]
[4,"The depreciation column (D) is not required as the relevant information will be provided in the following 2-C series of appendices."]

{"sheet":"App 2-B FixAsset 2012-CGAAP","index":6,"n_rows":75,"n_cols":14,"rows_kept":75,"cut":false,"hidden":false,"merged":[[72,1,72,13],[8,0,8,13],[9,0,9,13],[13,4,13,7],[66,1,67,13],[69,1,70,13]]}
[null,null,null,null,null,null,null,null,null,null,null,null,"File Number:",{"$f":"'LDC Info'!$E$18","v":"EB-2013-0122"}]
[null,null,null,null,null,null,null,null,null,null,null,null,"Exhibit:",2]
[null,null,null,null,null,null,null,null,null,null,null,null,"Tab:",1]
[null,null,null,null,null,null,null,null,null,null,null,null,"Schedule:",4]
[null,null,null,null,null,null,null,null,null,null,null,null,"Page:",3]
[]
[null,null,null,null,null,null,null,null,null,null,null,null,"Date:"]
[]
["Appendix 2-B"]
["Fixed Asset Continuity Schedule"]
[]
[null,null,null,null,null,"Year ",2012]
[]
[null,null,null,null,"Cost",null,null,null,null,null,"Accumulated Depreciation"]
["CCA Class","OEB","Description","Depreciation Rate","Opening Balance","Additions","Disposals","Closing Balance",null,"Opening Balance","Additions","Disposals","Closing Balance","Net Book Value"]
[12,1611,"Computer Software (Formally known as Account 1925)",null,84927,null,null,{"$f":"E16+F16+G16","v":84927},null,{"$f":"'App 2-B FixAsset 2011-CGAAP'!M16","v":-42121.02},{"$f":"-'App.2-CE_CGAAP_DepExp_2012'!K16","v":-13856.74},null,{"$f":"J16+K16+L16","v":-55977.759999999995},{"$f":"H16+M16","v":28949.240000000005}]
["CEC",1612,"Land Rights (Formally known as Account 1906)",null,0,null,null,{"$f":"E17+F17+G17","v":0},null,{"$f":"'App 2-B FixAsset 2011-CGAAP'!M17","v":0},{"$f":"-'App.2-CE_CGAAP_DepExp_2012'!K17","v":0},null,{"$f":"J17+K17+L17","v":0},{"$f":"H17+M17","v":0}]
["N/A",1805,"Land",null,50000,null,null,{"$f":"E18+F18+G18","v":50000},null,{"$f":"'App 2-B FixAsset 2011-CGAAP'!M18","v":0},{"$f":"-'App.2-CE_CGAAP_DepExp_2012'!K18","v":0},null,{"$f":"J18+K18+L18","v":0},{"$f":"H18+M18","v":50000}]
[47,1808,"Buildings",null,0,null,null,{"$f":"E19+F19+G19","v":0},null,{"$f":"'App 2-B FixAsset 2011-CGAAP'!M19","v":0},{"$f":"-'App.2-CE_CGAAP_DepExp_2012'!K19","v":0},null,{"$f":"J19+K19+L19","v":0},{"$f":"H19+M19","v":0}]
[13,1810,"Leasehold Improvements",null,0,null,null,0,null,{"$f":"'App 2-B FixAsset 2011-CGAAP'!M20","v":0},{"$f":"-'App.2-CE_CGAAP_DepExp_2012'!K20","v":0},null,0,0]
[47,1815,"Transformer Station Equipment >50 kV",null,0,null,null,0,null,{"$f":"'App 2-B FixAsset 2011-CGAAP'!M21","v":0},{"$f":"-'App.2-CE_CGAAP_DepExp_2012'!K21","v":0},null,0,0]
[47,1820,"Distribution Station Equipment <50 kV",null,222488,null,null,222488,null,{"$f":"'App 2-B FixAsset 2011-CGAAP'!M22","v":-74025.433333333334},{"$f":"-'App.2-CE_CGAAP_DepExp_2012'!K22","v":-7416.2666666666664},null,-81441.7,141046.29999999999]
[47,1825,"Storage Battery Equipment",null,0,null,null,0,null,{"$f":"'App 2-B FixAsset 2011-CGAAP'!M23","v":0},{"$f":"-'App.2-CE_CGAAP_DepExp_2012'!K23","v":0},null,0,0]
[47,1830,"Poles, Towers & Fixtures",null,560436,3098,null,563534,null,{"$f":"'App 2-B FixAsset 2011-CGAAP'!M24","v":-186418.94},{"$f":"-'App.2-CE_CGAAP_DepExp_2012'!K24","v":-22479.399999999998},null,-208898.34,354635.66000000003]
[47,1835,"Overhead Conductors & Devices",null,546986,null,null,546986,null,{"$f":"'App 2-B FixAsset 2011-CGAAP'!M25","v":-205687.31999999998},{"$f":"-'App.2-CE_CGAAP_DepExp_2012'!K25","v":-21879.439999999999},null,-227566.75999999998,319419.24]
[47,1840,"Underground Conduit",null,0,null,null,0,null,{"$f":"'App 2-B FixAsset 2011-CGAAP'!M26","v":0},{"$f":"-'App.2-CE_CGAAP_DepExp_2012'!K26","v":0},null,0,0]
[47,1845,"Underground Conductors & Devices",null,952146,5841,null,957987,null,{"$f":"'App 2-B FixAsset 2011-CGAAP'!M27","v":-369803.67999999993},{"$f":"-'App.2-CE_CGAAP_DepExp_2012'!K27","v":-38202.659999999996},null,-408006.33999999991,549980.66000000015]
[47,1850,"Line Transformers",null,710935,36088,null,747023,null,{"$f":"'App 2-B FixAsset 2011-CGAAP'!M28","v":-238982},{"$f":"-'App.2-CE_CGAAP_DepExp_2012'!K28","v":-29159.16},null,-268141.15999999997,478881.84]
[47,1855,"Services (Overhead & Underground)",null,178138,5074,null,183212,null,{"$f":"'App 2-B FixAsset 2011-CGAAP'!M29","v":-46297.14},{"$f":"-'App.2-CE_CGAAP_DepExp_2012'!K29","v":-7227},null,-53524.14,129687.86]
[47,1860,"Meters",null,79072,null,-79072,0,null,{"$f":"'App 2-B FixAsset 2011-CGAAP'!M30","v":-32984.76},{"$f":"-'App.2-CE_CGAAP_DepExp_2012'!K30","v":0},32985,0.23999999999796273,0.23999999999796273]
[47,1860,"Meters (Smart Meters)",null,0,310212,null,310212,null,{"$f":"'App 2-B FixAsset 2011-CGAAP'!M31","v":0},{"$f":"-'App.2-CE_CGAAP_DepExp_2012'!K31","v":-6204.24},null,-6204.24,304007.76]
["N/A",1905,"Land",null,0,null,null,0,null,{"$f":"'App 2-B FixAsset 2011-CGAAP'!M32","v":0},{"$f":"-'App.2-CE_CGAAP_DepExp_2012'!K32","v":0},null,0,0]
[47,1908,"Buildings & Fixtures",null,0,null,null,0,null,{"$f":"'App 2-B FixAsset 2011-CGAAP'!M33","v":0},{"$f":"-'App.2-CE_CGAAP_DepExp_2012'!K33","v":0},null,0,0]
[13,1910,"Leasehold Improvements",null,0,null,null,0,null,{"$f":"'App 2-B FixAsset 2011-CGAAP'!M34","v":0},{"$f":"-'App.2-CE_CGAAP_DepExp_2012'!K34","v":0},null,0,0]
[8,1915,"Office Furniture & Equipment (10 years)",null,49403,null,null,49403,null,{"$f":"'App 2-B FixAsset 2011-CGAAP'!M35","v":-21647.85},{"$f":"-'App.2-CE_CGAAP_DepExp_2012'!K35","v":-4624.7},null,-26272.55,23130.45]
[8,1915,"Office Furniture & Equipment (5 years)",null,0,null,null,0,null,{"$f":"'App 2-B FixAsset 2011-CGAAP'!M36","v":0},{"$f":"-'App.2-CE_CGAAP_DepExp_2012'!K36","v":0},null,0,0]
[10,1920,"Computer Equipment - Hardware",null,21791,2746,null,24537,null,{"$f":"'App 2-B FixAsset 2011-CGAAP'!M37","v":-17109.382000000001},{"$f":"-'App.2-CE_CGAAP_DepExp_2012'!K37","v":-1793.2220000000002},null,-18902.604000000003,5634.395999999997]
[45,1920,"Computer Equip.-Hardware(Post Mar. 22/04)",null,0,null,null,0,null,{"$f":"'App 2-B FixAsset 2011-CGAAP'!M38","v":0},{"$f":"-'App.2-CE_CGAAP_DepExp_2012'!K38","v":0},null,0,0]
[45.1,1920,"Computer Equip.-Hardware(Post Mar. 19/07)",null,0,null,null,0,null,{"$f":"'App 2-B FixAsset 2011-CGAAP'!M39","v":0},{"$f":"-'App.2-CE_CGAAP_DepExp_2012'!K39","v":0},null,0,0]
[10,1930,"Transportation Equipment",null,0,null,null,0,null,{"$f":"'App 2-B FixAsset 2011-CGAAP'!M40","v":0},{"$f":"-'App.2-CE_CGAAP_DepExp_2012'!K40","v":0},null,0,0]
[8,1935,"Stores Equipment",null,4320,null,null,4320,null,{"$f":"'App 2-B FixAsset 2011-CGAAP'!M41","v":-3154},{"$f":"-'App.2-CE_CGAAP_DepExp_2012'!K41","v":-432},null,-3586,734]
[8,1940,"Tools, Shop & Garage Equipment",null,0,4205,null,4205,null,{"$f":"'App 2-B FixAsset 2011-CGAAP'!M42","v":0},{"$f":"-'App.2-CE_CGAAP_DepExp_2012'!K42","v":-210.25},null,-210.25,3994.75]
[8,1945,"Measurement & Testing Equipment",null,4281,null,null,4281,null,{"$f":"'App 2-B FixAsset 2011-CGAAP'!M43","v":-3807.2},{"$f":"-'App.2-CE_CGAAP_DepExp_2012'!K43","v":-158.1},null,-3965.2999999999997,315.70000000000027]
[8,1950,"Power Operated Equipment",null,0,null,null,0,null,{"$f":"'App 2-B FixAsset 2011-CGAAP'!M44","v":0},{"$f":"-'App.2-CE_CGAAP_DepExp_2012'!K44","v":0},null,0,0]
[8,1955,"Communications Equipment",null,0,null,null,0,null,{"$f":"'App 2-B FixAsset 2011-CGAAP'!M45","v":0},{"$f":"-'App.2-CE_CGAAP_DepExp_2012'!K45","v":0},null,0,0]
[8,1955,"Communication Equipment (Smart Meters)",null,0,null,null,0,null,{"$f":"'App 2-B FixAsset 2011-CGAAP'!M46","v":0},{"$f":"-'App.2-CE_CGAAP_DepExp_2012'!K46","v":0},null,0,0]
[8,1960,"Miscellaneous Equipment ",null,0,null,null,0,null,{"$f":"'App 2-B FixAsset 2011-CGAAP'!M47","v":0},{"$f":"-'App.2-CE_CGAAP_DepExp_2012'!K47","v":0},null,0,0]
[47,1975,"Load Management Controls Utility Premises",null,0,null,null,0,null,{"$f":"'App 2-B FixAsset 2011-CGAAP'!M48","v":0},{"$f":"-'App.2-CE_CGAAP_DepExp_2012'!K48","v":0},null,0,0]
[47,1980,"System Supervisor Equipment",null,0,null,null,0,null,{"$f":"'App 2-B FixAsset 2011-CGAAP'!M49","v":0},{"$f":"-'App.2-CE_CGAAP_DepExp_2012'!K49","v":0},null,0,0]
[47,1985,"Miscellaneous Fixed Assets",null,0,null,null,0,null,{"$f":"'App 2-B FixAsset 2011-CGAAP'!M50","v":0},{"$f":"-'App.2-CE_CGAAP_DepExp_2012'!K50","v":0},null,0,0]
[47,1995,"Contributions & Grants",null,-551363,-1600,null,-552963,null,{"$f":"'App 2-B FixAsset 2011-CGAAP'!M51","v":157695.04000000001},{"$f":"-'App.2-CE_CGAAP_DepExp_2012'!K51","v":22086.52},null,179781.56,-373181.44]
[null,null,null,null,null,null,null,null,null,{"$f":"'App 2-B FixAsset 2011-CGAAP'!M52","v":0}]
[null,null,null,null,null,null,null,null,null,{"$f":"'App 2-B FixAsset 2011-CGAAP'!M53","v":0}]
[]
[]
[null,"etc.",null,null,null,null,null,0,null,null,null,null,0,0]
[]
[null,null,"Total",null,{"$f":"SUM(E16:E57)","v":2913560},{"$f":"SUM(F16:F57)","v":365664},{"$f":"SUM(G16:G57)","v":-79072},{"$f":"SUM(H16:H57)","v":3200152},null,{"$f":"SUM(J16:J57)","v":-1084343.685333333},{"$f":"SUM(K16:K57)","v":-131556.65866666668},{"$f":"SUM(L16:L57)","v":32985},{"$f":"SUM(M16:M57)","v":-1182915.3439999998},{"$f":"SUM(N16:N57)","v":2017236.6560000009}]
[]
[null,null,null,null,null,null,null,null,null,"Less: Fully Allocated Depreciation"]
[10,null,"Transportation",null,null,null,null,null,null,"Transportation"]
[8,null,"Stores Equipment",null,null,null,null,null,null,"Stores Equipment"]
[null,null,null,null,null,null,null,null,null,"Net Depreciation",null,{"$f":"L58-L61-L62","v":32985}]
[]
["Notes:"]
[]
[1,"Tables in the format outlined above covering all fixed asset accounts should be submitted for the Test Year, Bridge Year and all relevant historical years.  At a minimum , the applicant must provide data for the earlier of: 1) all historical years back to its last rebasing; or 2) at least three years of historical actuals, in addition to Bridge Year and Test Year forecasts."]
[]
[]
[2,"The \"CCA Class\" for fixed assets should agree with the CCA Class used for tax purposes in Tax Returns. Fixed Assets sub-components may be used where the underlying asset components are classified under multiple CCA Classes for tax purposes. If an applicant uses any different classes from those shown in the table, an explanation should be provided. (also see note 3 below)."]
[]
[]
[3,"The table may need to be customized for a utility's asset categories or for any new asset accounts announced or authorized by the Board."]
[]
[4,"The depreciation column (D) is not required as the relevant information will be provided in the following 2-C series of appendices."]

{"sheet":"App 2-B FixAsset 2013-CGAAP","index":7,"n_rows":75,"n_cols":14,"rows_kept":75,"cut":false,"hidden":false,"merged":[[72,1,72,13],[8,0,8,13],[9,0,9,13],[13,4,13,7],[66,1,67,13],[69,1,70,13]]}
[null,null,null,null,null,null,null,null,null,null,null,null,"File Number:",{"$f":"'LDC Info'!$E$18","v":"EB-2013-0122"}]
[null,null,null,null,null,null,null,null,null,null,null,null,"Exhibit:",2]
[null,null,null,null,null,null,null,null,null,null,null,null,"Tab:",1]
[null,null,null,null,null,null,null,null,null,null,null,null,"Schedule:",4]
[null,null,null,null,null,null,null,null,null,null,null,null,"Page:",4]
[]
[null,null,null,null,null,null,null,null,null,null,null,null,"Date:"]
[]
["Appendix 2-B"]
["Fixed Asset Continuity Schedule"]
[]
[null,null,null,null,null,"Year ",2013]
[]
[null,null,null,null,"Cost",null,null,null,null,null,"Accumulated Depreciation"]
["CCA Class","OEB","Description","Depreciation Rate","Opening Balance","Additions","Disposals","Closing Balance",null,"Opening Balance","Additions","Disposals","Closing Balance","Net Book Value"]
[12,1611,"Computer Software (Formally known as Account 1925)",null,84927,26500,null,{"$f":"E16+F16+G16","v":111427},null,{"$f":"'App 2-B FixAsset 2012-CGAAP'!M16","v":-55977.759999999995},{"$f":"-'App.2-CF_CGAAP_DepExp_2013'!K16","v":-16506.79},null,{"$f":"J16+K16+L16","v":-72484.549999999988},{"$f":"H16+M16","v":38942.450000000012}]
["CEC",1612,"Land Rights (Formally known as Account 1906)",null,0,null,null,{"$f":"E17+F17+G17","v":0},null,{"$f":"'App 2-B FixAsset 2012-CGAAP'!M17","v":0},{"$f":"-'App.2-CF_CGAAP_DepExp_2013'!K17","v":0},null,{"$f":"J17+K17+L17","v":0},{"$f":"H17+M17","v":0}]
["N/A",1805,"Land",null,50000,null,null,{"$f":"E18+F18+G18","v":50000},null,{"$f":"'App 2-B FixAsset 2012-CGAAP'!M18","v":0},{"$f":"-'App.2-CF_CGAAP_DepExp_2013'!K18","v":0},null,{"$f":"J18+K18+L18","v":0},{"$f":"H18+M18","v":50000}]
[47,1808,"Buildings",null,0,null,null,{"$f":"E19+F19+G19","v":0},null,{"$f":"'App 2-B FixAsset 2012-CGAAP'!M19","v":0},{"$f":"-'App.2-CF_CGAAP_DepExp_2013'!K19","v":0},null,{"$f":"J19+K19+L19","v":0},{"$f":"H19+M19","v":0}]
[13,1810,"Leasehold Improvements",null,0,null,null,0,null,{"$f":"'App 2-B FixAsset 2012-CGAAP'!M20","v":0},{"$f":"-'App.2-CF_CGAAP_DepExp_2013'!K20","v":0},null,0,0]
[47,1815,"Transformer Station Equipment >50 kV",null,0,null,null,0,null,{"$f":"'App 2-B FixAsset 2012-CGAAP'!M21","v":0},{"$f":"-'App.2-CF_CGAAP_DepExp_2013'!K21","v":0},null,0,0]
[47,1820,"Distribution Station Equipment <50 kV",null,222488,62400,null,284888,null,{"$f":"'App 2-B FixAsset 2012-CGAAP'!M22","v":-81441.7},{"$f":"-'App.2-CF_CGAAP_DepExp_2013'!K22","v":-4612.5},null,-86054.2,198833.8]
[47,1825,"Storage Battery Equipment",null,0,null,null,0,null,{"$f":"'App 2-B FixAsset 2012-CGAAP'!M23","v":0},{"$f":"-'App.2-CF_CGAAP_DepExp_2013'!K23","v":0},null,0,0]
[47,1830,"Poles, Towers & Fixtures",null,563534,83850,null,647384,null,{"$f":"'App 2-B FixAsset 2012-CGAAP'!M24","v":-208898.34},{"$f":"-'App.2-CF_CGAAP_DepExp_2013'!K24","v":-15136.46},null,-224034.8,423349.2]
[47,1835,"Overhead Conductors & Devices",null,546986,58750,null,605736,null,{"$f":"'App 2-B FixAsset 2012-CGAAP'!M25","v":-227566.75999999998},{"$f":"-'App.2-CF_CGAAP_DepExp_2013'!K25","v":-9606.0300000000007},null,-237172.78999999998,368563.21]
[47,1840,"Underground Conduit",null,0,null,null,0,null,{"$f":"'App 2-B FixAsset 2012-CGAAP'!M26","v":0},{"$f":"-'App.2-CF_CGAAP_DepExp_2013'!K26","v":0},null,0,0]
[47,1845,"Underground Conductors & Devices",null,957987,52400,null,1010387,null,{"$f":"'App 2-B FixAsset 2012-CGAAP'!M27","v":-408006.33999999991},{"$f":"-'App.2-CF_CGAAP_DepExp_2013'!K27","v":-28119.62},null,-436125.9599999999,574261.04]
[47,1850,"Line Transformers",null,747023,12000,null,759023,null,{"$f":"'App 2-B FixAsset 2012-CGAAP'!M28","v":-268141.15999999997},{"$f":"-'App.2-CF_CGAAP_DepExp_2013'!K28","v":-18825.55},null,-286966.70999999996,472056.29000000004]
[47,1855,"Services (Overhead & Underground)",null,183212,5000,null,188212,null,{"$f":"'App 2-B FixAsset 2012-CGAAP'!M29","v":-53524.14},{"$f":"-'App.2-CF_CGAAP_DepExp_2013'!K29","v":-4642.76},null,-58166.9,130045.1]
[47,1860,"Meters",null,0,null,null,0,null,{"$f":"'App 2-B FixAsset 2012-CGAAP'!M30","v":0.23999999999796273},{"$f":"-'App.2-CF_CGAAP_DepExp_2013'!K30","v":0},null,0.23999999999796273,0.23999999999796273]
[47,1860,"Meters (Smart Meters)",null,310212,null,null,310212,null,{"$f":"'App 2-B FixAsset 2012-CGAAP'!M31","v":-6204.24},{"$f":"-'App.2-CF_CGAAP_DepExp_2013'!K31","v":-20680.8},null,-26885.040000000001,283326.96000000002]
["N/A",1905,"Land",null,0,null,null,0,null,{"$f":"'App 2-B FixAsset 2012-CGAAP'!M32","v":0},{"$f":"-'App.2-CF_CGAAP_DepExp_2013'!K32","v":0},null,0,0]
[47,1908,"Buildings & Fixtures",null,0,null,null,0,null,{"$f":"'App 2-B FixAsset 2012-CGAAP'!M33","v":0},{"$f":"-'App.2-CF_CGAAP_DepExp_2013'!K33","v":0},null,0,0]
[13,1910,"Leasehold Improvements",null,0,null,null,0,null,{"$f":"'App 2-B FixAsset 2012-CGAAP'!M34","v":0},{"$f":"-'App.2-CF_CGAAP_DepExp_2013'!K34","v":0},null,0,0]
[8,1915,"Office Furniture & Equipment (10 years)",null,49403,1500,null,50903,null,{"$f":"'App 2-B FixAsset 2012-CGAAP'!M35","v":-26272.55},{"$f":"-'App.2-CF_CGAAP_DepExp_2013'!K35","v":-4540.2700000000004},null,-30812.82,20090.18]
[8,1915,"Office Furniture & Equipment (5 years)",null,0,null,null,0,null,{"$f":"'App 2-B FixAsset 2012-CGAAP'!M36","v":0},{"$f":"-'App.2-CF_CGAAP_DepExp_2013'!K36","v":0},null,0,0]
[10,1920,"Computer Equipment - Hardware",null,24537,1500,null,26037,null,{"$f":"'App 2-B FixAsset 2012-CGAAP'!M37","v":-18902.604000000003},{"$f":"-'App.2-CF_CGAAP_DepExp_2013'!K37","v":-1779.19},null,-20681.794000000002,5355.2059999999983]
[45,1920,"Computer Equip.-Hardware(Post Mar. 22/04)",null,0,null,null,0,null,{"$f":"'App 2-B FixAsset 2012-CGAAP'!M38","v":0},{"$f":"-'App.2-CF_CGAAP_DepExp_2013'!K38","v":0},null,0,0]
[45.1,1920,"Computer Equip.-Hardware(Post Mar. 19/07)",null,0,null,null,0,null,{"$f":"'App 2-B FixAsset 2012-CGAAP'!M39","v":0},{"$f":"-'App.2-CF_CGAAP_DepExp_2013'!K39","v":0},null,0,0]
[10,1930,"Transportation Equipment",null,0,null,null,0,null,{"$f":"'App 2-B FixAsset 2012-CGAAP'!M40","v":0},{"$f":"-'App.2-CF_CGAAP_DepExp_2013'!K40","v":0},null,0,0]
[8,1935,"Stores Equipment",null,4320,null,null,4320,null,{"$f":"'App 2-B FixAsset 2012-CGAAP'!M41","v":-3586},{"$f":"-'App.2-CF_CGAAP_DepExp_2013'!K41","v":-432},null,-4018,302]
[8,1940,"Tools, Shop & Garage Equipment",null,4205,null,null,4205,null,{"$f":"'App 2-B FixAsset 2012-CGAAP'!M42","v":-210.25},{"$f":"-'App.2-CF_CGAAP_DepExp_2013'!K42","v":-420.5},null,-630.75,3574.25]
[8,1945,"Measurement & Testing Equipment",null,4281,null,null,4281,null,{"$f":"'App 2-B FixAsset 2012-CGAAP'!M43","v":-3965.2999999999997},{"$f":"-'App.2-CF_CGAAP_DepExp_2013'!K43","v":-158.1},null,-4123.3999999999996,157.60000000000036]
[8,1950,"Power Operated Equipment",null,0,null,null,0,null,{"$f":"'App 2-B FixAsset 2012-CGAAP'!M44","v":0},{"$f":"-'App.2-CF_CGAAP_DepExp_2013'!K44","v":0},null,0,0]
[8,1955,"Communications Equipment",null,0,null,null,0,null,{"$f":"'App 2-B FixAsset 2012-CGAAP'!M45","v":0},{"$f":"-'App.2-CF_CGAAP_DepExp_2013'!K45","v":0},null,0,0]
[8,1955,"Communication Equipment (Smart Meters)",null,0,null,null,0,null,{"$f":"'App 2-B FixAsset 2012-CGAAP'!M46","v":0},{"$f":"-'App.2-CF_CGAAP_DepExp_2013'!K46","v":0},null,0,0]
[8,1960,"Miscellaneous Equipment ",null,0,null,null,0,null,{"$f":"'App 2-B FixAsset 2012-CGAAP'!M47","v":0},{"$f":"-'App.2-CF_CGAAP_DepExp_2013'!K47","v":0},null,0,0]
[47,1975,"Load Management Controls Utility Premises",null,0,null,null,0,null,{"$f":"'App 2-B FixAsset 2012-CGAAP'!M48","v":0},{"$f":"-'App.2-CF_CGAAP_DepExp_2013'!K48","v":0},null,0,0]
[47,1980,"System Supervisor Equipment",null,0,null,null,0,null,{"$f":"'App 2-B FixAsset 2012-CGAAP'!M49","v":0},{"$f":"-'App.2-CF_CGAAP_DepExp_2013'!K49","v":0},null,0,0]
[47,1985,"Miscellaneous Fixed Assets",null,0,null,null,0,null,{"$f":"'App 2-B FixAsset 2012-CGAAP'!M50","v":0},{"$f":"-'App.2-CF_CGAAP_DepExp_2013'!K50","v":0},null,0,0]
[47,1995,"Contributions & Grants",null,-552963,-8000,null,-560963,null,{"$f":"'App 2-B FixAsset 2012-CGAAP'!M51","v":179781.56},{"$f":"-'App.2-CF_CGAAP_DepExp_2013'!K51","v":13924.08},null,193705.63999999998,-367257.36]
[]
[]
[]
[]
[null,"etc.",null,null,null,null,null,0,null,null,null,null,0,0]
[]
[null,null,"Total",null,{"$f":"SUM(E16:E57)","v":3200152},{"$f":"SUM(F16:F57)","v":295900},{"$f":"SUM(G16:G57)","v":0},{"$f":"SUM(H16:H57)","v":3496052},null,{"$f":"SUM(J16:J57)","v":-1182915.3439999998},{"$f":"SUM(K16:K57)","v":-111536.49},{"$f":"SUM(L16:L57)","v":0},{"$f":"SUM(M16:M57)","v":-1294451.8339999998},{"$f":"SUM(N16:N57)","v":2201600.1660000007}]
[]
[null,null,null,null,null,null,null,null,null,"Less: Fully Allocated Depreciation"]
[10,null,"Transportation",null,null,null,null,null,null,"Transportation"]
[8,null,"Stores Equipment",null,null,null,null,null,null,"Stores Equipment"]
[null,null,null,null,null,null,null,null,null,"Net Depreciation",null,{"$f":"L58-L61-L62","v":0}]
[]
["Notes:"]
[]
[1,"Tables in the format outlined above covering all fixed asset accounts should be submitted for the Test Year, Bridge Year and all relevant historical years.  At a minimum , the applicant must provide data for the earlier of: 1) all historical years back to its last rebasing; or 2) at least three years of historical actuals, in addition to Bridge Year and Test Year forecasts."]
[]
[]
[2,"The \"CCA Class\" for fixed assets should agree with the CCA Class used for tax purposes in Tax Returns. Fixed Assets sub-components may be used where the underlying asset components are classified under multiple CCA Classes for tax purposes. If an applicant uses any different classes from those shown in the table, an explanation should be provided. (also see note 3 below)."]
[]
[]
[3,"The table may need to be customized for a utility's asset categories or for any new asset accounts announced or authorized by the Board."]
[]
[4,"The depreciation column (D) is not required as the relevant information will be provided in the following 2-C series of appendices."]

{"sheet":"App.2-B_FixAsset 2013-MIFRS","index":8,"n_rows":75,"n_cols":14,"rows_kept":75,"cut":false,"hidden":true,"merged":[[72,1,72,13],[8,0,8,13],[9,0,9,13],[13,4,13,7],[66,1,67,13],[69,1,70,13]]}
[null,null,null,null,null,null,null,null,null,null,null,null,"File Number:",{"$f":"'LDC Info'!$E$18","v":"EB-2013-0122"}]
[null,null,null,null,null,null,null,null,null,null,null,null,"Exhibit:"]
[null,null,null,null,null,null,null,null,null,null,null,null,"Tab:"]
[null,null,null,null,null,null,null,null,null,null,null,null,"Schedule:"]
[null,null,null,null,null,null,null,null,null,null,null,null,"Page:"]
[]
[null,null,null,null,null,null,null,null,null,null,null,null,"Date:"]
[]
["Appendix 2-B"]
["Fixed Asset Continuity Schedule"]
[]
[null,null,null,null,null,"Year ",2014]
[]
[null,null,null,null,"Cost",null,null,null,null,null,"Accumulated Depreciation"]
["CCA Class","OEB","Description","Depreciation Rate","Opening Balance","Additions","Disposals","Closing Balance",null,"Opening Balance","Additions","Disposals","Closing Balance","Net Book Value"]
[12,1611,"Computer Software (Formally known as Account 1925)",null,null,null,null,{"$f":"E16+F16+G16","v":0},null,null,null,null,{"$f":"J16+K16+L16","v":0},{"$f":"H16+M16","v":0}]
["CEC",1612,"Land Rights (Formally known as Account 1906)",null,null,null,null,{"$f":"E17+F17+G17","v":0},null,null,null,null,{"$f":"J17+K17+L17","v":0},{"$f":"H17+M17","v":0}]
["N/A",1805,"Land",null,null,null,null,{"$f":"E18+F18+G18","v":0},null,null,null,null,{"$f":"J18+K18+L18","v":0},{"$f":"H18+M18","v":0}]
[47,1808,"Buildings",null,null,null,null,{"$f":"E19+F19+G19","v":0},null,null,null,null,{"$f":"J19+K19+L19","v":0},{"$f":"H19+M19","v":0}]
[13,1810,"Leasehold Improvements",null,null,null,null,0,null,null,null,null,0,0]
[47,1815,"Transformer Station Equipment >50 kV",null,null,null,null,0,null,null,null,null,0,0]
[47,1820,"Distribution Station Equipment <50 kV",null,null,null,null,0,null,null,null,null,0,0]
[47,1825,"Storage Battery Equipment",null,null,null,null,0,null,null,null,null,0,0]
[47,1830,"Poles, Towers & Fixtures",null,null,null,null,0,null,null,null,null,0,0]
[47,1835,"Overhead Conductors & Devices",null,null,null,null,0,null,null,null,null,0,0]
[47,1840,"Underground Conduit",null,null,null,null,0,null,null,null,null,0,0]
[47,1845,"Underground Conductors & Devices",null,null,null,null,0,null,null,null,null,0,0]
[47,1850,"Line Transformers",null,null,null,null,0,null,null,null,null,0,0]
[47,1855,"Services (Overhead & Underground)",null,null,null,null,0,null,null,null,null,0,0]
[47,1860,"Meters",null,null,null,null,0,null,null,null,null,0,0]
[47,1860,"Meters (Smart Meters)",null,null,null,null,0,null,null,null,null,0,0]
["N/A",1905,"Land",null,null,null,null,0,null,null,null,null,0,0]
[47,1908,"Buildings & Fixtures",null,null,null,null,0,null,null,null,null,0,0]
[13,1910,"Leasehold Improvements",null,null,null,null,0,null,null,null,null,0,0]
[8,1915,"Office Furniture & Equipment (10 years)",null,null,null,null,0,null,null,null,null,0,0]
[8,1915,"Office Furniture & Equipment (5 years)",null,null,null,null,0,null,null,null,null,0,0]
[10,1920,"Computer Equipment - Hardware",null,null,null,null,0,null,null,null,null,0,0]
[45,1920,"Computer Equip.-Hardware(Post Mar. 22/04)",null,null,null,null,0,null,null,null,null,0,0]
[45.1,1920,"Computer Equip.-Hardware(Post Mar. 19/07)",null,null,null,null,0,null,null,null,null,0,0]
[10,1930,"Transportation Equipment",null,null,null,null,0,null,null,null,null,0,0]
[8,1935,"Stores Equipment",null,null,null,null,0,null,null,null,null,0,0]
[8,1940,"Tools, Shop & Garage Equipment",null,null,null,null,0,null,null,null,null,0,0]
[8,1945,"Measurement & Testing Equipment",null,null,null,null,0,null,null,null,null,0,0]
[8,1950,"Power Operated Equipment",null,null,null,null,0,null,null,null,null,0,0]
[8,1955,"Communications Equipment",null,null,null,null,0,null,null,null,null,0,0]
[8,1955,"Communication Equipment (Smart Meters)",null,null,null,null,0,null,null,null,null,0,0]
[8,1960,"Miscellaneous Equipment ",null,null,null,null,0,null,null,null,null,0,0]
[47,1975,"Load Management Controls Utility Premises",null,null,null,null,0,null,null,null,null,0,0]
[47,1980,"System Supervisor Equipment",null,null,null,null,0,null,null,null,null,0,0]
[47,1985,"Miscellaneous Fixed Assets",null,null,null,null,0,null,null,null,null,0,0]
[47,1995,"Contributions & Grants",null,null,null,null,0,null,null,null,null,0,0]
[]
[]
[]
[]
[null,"etc.",null,null,null,null,null,0,null,null,null,null,0,0]
[]
[null,null,"Total",null,{"$f":"SUM(E16:E57)","v":0},{"$f":"SUM(F16:F57)","v":0},{"$f":"SUM(G16:G57)","v":0},{"$f":"SUM(H16:H57)","v":0},null,{"$f":"SUM(J16:J57)","v":0},{"$f":"SUM(K16:K57)","v":0},{"$f":"SUM(L16:L57)","v":0},{"$f":"SUM(M16:M57)","v":0},{"$f":"SUM(N16:N57)","v":0}]
[]
[null,null,null,null,null,null,null,null,null,"Less: Fully Allocated Depreciation"]
[10,null,"Transportation",null,null,null,null,null,null,"Transportation"]
[8,null,"Stores Equipment",null,null,null,null,null,null,"Stores Equipment"]
[null,null,null,null,null,null,null,null,null,"Net Depreciation",null,{"$f":"L58-L61-L62","v":0}]
[]
["Notes:"]
[]
[1,"Tables in the format outlined above covering all fixed asset accounts should be submitted for the Test Year, Bridge Year and all relevant historical years.  At a minimum , the applicant must provide data for the earlier of: 1) all historical years back to its last rebasing; or 2) at least three years of historical actuals, in addition to Bridge Year and Test Year forecasts."]
[]
[]
[2,"The \"CCA Class\" for fixed assets should agree with the CCA Class used for tax purposes in Tax Returns. Fixed Assets sub-components may be used where the underlying asset components are classified under multiple CCA Classes for tax purposes. If an applicant uses any different classes from those shown in the table, an explanation should be provided. (also see note 3 below)."]
[]
[]
[3,"The table may need to be customized for a utility's asset categories or for any new asset accounts announced or authorized by the Board."]
[]
[4,"The depreciation column (D) is not required as the relevant information will be provided in the following 2-C series of appendices."]

{"sheet":"App.2-B_FixAsset 2014-CGAAP","index":9,"n_rows":75,"n_cols":17,"rows_kept":75,"cut":false,"hidden":false,"merged":[[13,15,13,16],[9,0,9,13],[8,0,8,13],[66,1,67,13],[72,1,72,13],[13,4,13,7],[69,1,70,13]]}
[null,null,null,null,null,null,null,null,null,null,null,null,"File Number:",{"$f":"'LDC Info'!$E$18","v":"EB-2013-0122"}]
[null,null,null,null,null,null,null,null,null,null,null,null,"Exhibit:",2]
[null,null,null,null,null,null,null,null,null,null,null,null,"Tab:",1]
[null,null,null,null,null,null,null,null,null,null,null,null,"Schedule:",4]
[null,null,null,null,null,null,null,null,null,null,null,null,"Page:",5]
[]
[null,null,null,null,null,null,null,null,null,null,null,null,"Date:"]
[]
["Appendix 2-B"]
["Fixed Asset Continuity Schedule"]
[]
[null,null,null,null,null,"Year ",2014]
[]
[null,null,null,null,"Cost",null,null,null,null,null,"Accumulated Depreciation",null,null,null,null,"Input to Cost Allocation Model"]
["CCA Class","OEB","Description","Depreciation Rate","Opening Balance","Additions","Disposals","Closing Balance",null,"Opening Balance","Additions","Disposals","Closing Balance","Net Book Value",null,"AVGGrossCloBal","AVG AccDep"]
[12,1611,"Computer Software (Formally known as Account 1925)",null,111427,35000,null,{"$f":"E16+F16+G16","v":146427},null,{"$f":"'App 2-B FixAsset 2013-CGAAP'!M16","v":-72484.549999999988},{"$f":"-'App.2-CF_CGAAP_DepExp_2014'!K16","v":-22013},null,{"$f":"J16+K16+L16","v":-94497.549999999988},{"$f":"H16+M16","v":51929.450000000012}," ",{"$f":"(H16+'App 2-B FixAsset 2013-CGAAP'!H16)/2","v":128927},{"$f":"(M16+'App 2-B FixAsset 2013-CGAAP'!M16)/2","v":-83491.049999999988}]
["CEC",1612,"Land Rights (Formally known as Account 1906)",null,0,null,null,{"$f":"E17+F17+G17","v":0},null,{"$f":"'App 2-B FixAsset 2013-CGAAP'!M17","v":0},{"$f":"-'App.2-CF_CGAAP_DepExp_2014'!K17","v":0},null,{"$f":"J17+K17+L17","v":0},{"$f":"H17+M17","v":0},null,{"$f":"(H17+'App 2-B FixAsset 2013-CGAAP'!H17)/2","v":0},{"$f":"(M17+'App 2-B FixAsset 2013-CGAAP'!M17)/2","v":0}]
["N/A",1805,"Land",null,50000,null,null,{"$f":"E18+F18+G18","v":50000},null,{"$f":"'App 2-B FixAsset 2013-CGAAP'!M18","v":0},{"$f":"-'App.2-CF_CGAAP_DepExp_2014'!K18","v":0},null,{"$f":"J18+K18+L18","v":0},{"$f":"H18+M18","v":50000},null,{"$f":"(H18+'App 2-B FixAsset 2013-CGAAP'!H18)/2","v":50000},{"$f":"(M18+'App 2-B FixAsset 2013-CGAAP'!M18)/2","v":0}]
[47,1808,"Buildings",null,0,null,null,{"$f":"E19+F19+G19","v":0},null,{"$f":"'App 2-B FixAsset 2013-CGAAP'!M19","v":0},{"$f":"-'App.2-CF_CGAAP_DepExp_2014'!K19","v":0},null,{"$f":"J19+K19+L19","v":0},{"$f":"H19+M19","v":0},null,{"$f":"(H19+'App 2-B FixAsset 2013-CGAAP'!H19)/2","v":0},{"$f":"(M19+'App 2-B FixAsset 2013-CGAAP'!M19)/2","v":0}]
[13,1810,"Leasehold Improvements",null,0,null,null,0,null,{"$f":"'App 2-B FixAsset 2013-CGAAP'!M20","v":0},{"$f":"-'App.2-CF_CGAAP_DepExp_2014'!K20","v":0},null,0,0,null,{"$f":"(H20+'App 2-B FixAsset 2013-CGAAP'!H20)/2","v":0},{"$f":"(M20+'App 2-B FixAsset 2013-CGAAP'!M20)/2","v":0}]
[47,1815,"Transformer Station Equipment >50 kV",null,0,null,null,0,null,{"$f":"'App 2-B FixAsset 2013-CGAAP'!M21","v":0},{"$f":"-'App.2-CF_CGAAP_DepExp_2014'!K21","v":0},null,0,0,null,{"$f":"(H21+'App 2-B FixAsset 2013-CGAAP'!H21)/2","v":0},{"$f":"(M21+'App 2-B FixAsset 2013-CGAAP'!M21)/2","v":0}]
[47,1820,"Distribution Station Equipment <50 kV",null,284888,null,null,284888,null,{"$f":"'App 2-B FixAsset 2013-CGAAP'!M22","v":-86054.2},{"$f":"-'App.2-CF_CGAAP_DepExp_2014'!K22","v":-5179.7700000000004},null,-91233.97,193654.03,null,{"$f":"(H22+'App 2-B FixAsset 2013-CGAAP'!H22)/2","v":284888},{"$f":"(M22+'App 2-B FixAsset 2013-CGAAP'!M22)/2","v":-88644.084999999992}]
[47,1825,"Storage Battery Equipment",null,0,null,null,0,null,{"$f":"'App 2-B FixAsset 2013-CGAAP'!M23","v":0},{"$f":"-'App.2-CF_CGAAP_DepExp_2014'!K23","v":0},null,0,0,null,{"$f":"(H23+'App 2-B FixAsset 2013-CGAAP'!H23)/2","v":0},{"$f":"(M23+'App 2-B FixAsset 2013-CGAAP'!M23)/2","v":0}]
[47,1830,"Poles, Towers & Fixtures",null,647384,{"$f":"60220","v":60220},null,707604,null,{"$f":"'App 2-B FixAsset 2013-CGAAP'!M24","v":-224034.8},{"$f":"-'App.2-CF_CGAAP_DepExp_2014'!K24","v":-16937.349999999999},null,-240972.15,466631.85,null,{"$f":"(H24+'App 2-B FixAsset 2013-CGAAP'!H24)/2","v":677494},{"$f":"(M24+'App 2-B FixAsset 2013-CGAAP'!M24)/2","v":-232503.47499999998}]
[47,1835,"Overhead Conductors & Devices",null,605736,19375,null,625111,null,{"$f":"'App 2-B FixAsset 2013-CGAAP'!M25","v":-237172.78999999998},{"$f":"-'App.2-CF_CGAAP_DepExp_2014'!K25","v":-10257.06},null,-247429.84999999998,377681.15,null,{"$f":"(H25+'App 2-B FixAsset 2013-CGAAP'!H25)/2","v":615423.5},{"$f":"(M25+'App 2-B FixAsset 2013-CGAAP'!M25)/2","v":-242301.31999999998}]
[47,1840,"Underground Conduit",null,0,null,null,0,null,{"$f":"'App 2-B FixAsset 2013-CGAAP'!M26","v":0},{"$f":"-'App.2-CF_CGAAP_DepExp_2014'!K26","v":0},null,0,0,null,{"$f":"(H26+'App 2-B FixAsset 2013-CGAAP'!H26)/2","v":0},{"$f":"(M26+'App 2-B FixAsset 2013-CGAAP'!M26)/2","v":0}]
[47,1845,"Underground Conductors & Devices",null,1010387,398000,null,1408387,null,{"$f":"'App 2-B FixAsset 2013-CGAAP'!M27","v":-436125.9599999999},{"$f":"-'App.2-CF_CGAAP_DepExp_2014'!K27","v":-34553.910000000003},null,-470679.86999999988,937707.13000000012,null,{"$f":"(H27+'App 2-B FixAsset 2013-CGAAP'!H27)/2","v":1209387},{"$f":"(M27+'App 2-B FixAsset 2013-CGAAP'!M27)/2","v":-453402.91499999992}]
[47,1850,"Line Transformers",null,759023,87500,null,846523,null,{"$f":"'App 2-B FixAsset 2013-CGAAP'!M28","v":-286966.70999999996},{"$f":"-'App.2-CF_CGAAP_DepExp_2014'!K28","v":-20069.3},null,-307036.00999999995,539486.99,null,{"$f":"(H28+'App 2-B FixAsset 2013-CGAAP'!H28)/2","v":802773},{"$f":"(M28+'App 2-B FixAsset 2013-CGAAP'!M28)/2","v":-297001.36}]
[47,1855,"Services (Overhead & Underground)",null,188212,4000,null,192212,null,{"$f":"'App 2-B FixAsset 2013-CGAAP'!M29","v":-58166.9},{"$f":"-'App.2-CF_CGAAP_DepExp_2014'!K29","v":-4755.26},null,-62922.16,129289.84,null,{"$f":"(H29+'App 2-B FixAsset 2013-CGAAP'!H29)/2","v":190212},{"$f":"(M29+'App 2-B FixAsset 2013-CGAAP'!M29)/2","v":-60544.53}]
[47,1860,"Meters",null,0,null,null,0,null,{"$f":"'App 2-B FixAsset 2013-CGAAP'!M30","v":0.23999999999796273},{"$f":"-'App.2-CF_CGAAP_DepExp_2014'!K30","v":0},null,0.23999999999796273,0.23999999999796273,null,{"$f":"(H30+'App 2-B FixAsset 2013-CGAAP'!H30)/2","v":0},{"$f":"(M30+'App 2-B FixAsset 2013-CGAAP'!M30)/2","v":0.23999999999796273}]
[47,1860,"Meters (Smart Meters)",null,310212,30500,null,340712,null,{"$f":"'App 2-B FixAsset 2013-CGAAP'!M31","v":-26885.040000000001},{"$f":"-'App.2-CF_CGAAP_DepExp_2014'!K31","v":-21697.47},null,-48582.51,292129.49,null,{"$f":"(H31+'App 2-B FixAsset 2013-CGAAP'!H31)/2","v":325462},{"$f":"(M31+'App 2-B FixAsset 2013-CGAAP'!M31)/2","v":-37733.775000000001}]
["N/A",1905,"Land",null,0,null,null,0,null,{"$f":"'App 2-B FixAsset 2013-CGAAP'!M32","v":0},{"$f":"-'App.2-CF_CGAAP_DepExp_2014'!K32","v":0},null,0,0,null,{"$f":"(H32+'App 2-B FixAsset 2013-CGAAP'!H32)/2","v":0},{"$f":"(M32+'App 2-B FixAsset 2013-CGAAP'!M32)/2","v":0}]
[47,1908,"Buildings & Fixtures",null,0,null,null,0,null,{"$f":"'App 2-B FixAsset 2013-CGAAP'!M33","v":0},{"$f":"-'App.2-CF_CGAAP_DepExp_2014'!K33","v":0},null,0,0,null,{"$f":"(H33+'App 2-B FixAsset 2013-CGAAP'!H33)/2","v":0},{"$f":"(M33+'App 2-B FixAsset 2013-CGAAP'!M33)/2","v":0}]
[13,1910,"Leasehold Improvements",null,0,null,null,0,null,{"$f":"'App 2-B FixAsset 2013-CGAAP'!M34","v":0},{"$f":"-'App.2-CF_CGAAP_DepExp_2014'!K34","v":0},null,0,0,null,{"$f":"(H34+'App 2-B FixAsset 2013-CGAAP'!H34)/2","v":0},{"$f":"(M34+'App 2-B FixAsset 2013-CGAAP'!M34)/2","v":0}]
[8,1915,"Office Furniture & Equipment (10 years)",null,50903,null,null,50903,null,{"$f":"'App 2-B FixAsset 2013-CGAAP'!M35","v":-30812.82},{"$f":"-'App.2-CF_CGAAP_DepExp_2014'!K35","v":-4331.05},null,-35143.870000000003,15759.129999999997,null,{"$f":"(H35+'App 2-B FixAsset 2013-CGAAP'!H35)/2","v":50903},{"$f":"(M35+'App 2-B FixAsset 2013-CGAAP'!M35)/2","v":-32978.345000000001}]
[8,1915,"Office Furniture & Equipment (5 years)",null,0,null,null,0,null,{"$f":"'App 2-B FixAsset 2013-CGAAP'!M36","v":0},{"$f":"-'App.2-CF_CGAAP_DepExp_2014'!K36","v":0},null,0,0,null,{"$f":"(H36+'App 2-B FixAsset 2013-CGAAP'!H36)/2","v":0},{"$f":"(M36+'App 2-B FixAsset 2013-CGAAP'!M36)/2","v":0}]
[10,1920,"Computer Equipment - Hardware",null,26037,null,null,26037,null,{"$f":"'App 2-B FixAsset 2013-CGAAP'!M37","v":-20681.794000000002},{"$f":"-'App.2-CF_CGAAP_DepExp_2014'!K37","v":-1929.19},null,-22610.984,3426.0159999999996,null,{"$f":"(H37+'App 2-B FixAsset 2013-CGAAP'!H37)/2","v":26037},{"$f":"(M37+'App 2-B FixAsset 2013-CGAAP'!M37)/2","v":-21646.389000000003}]
[45,1920,"Computer Equip.-Hardware(Post Mar. 22/04)",null,0,null,null,0,null,{"$f":"'App 2-B FixAsset 2013-CGAAP'!M38","v":0},{"$f":"-'App.2-CF_CGAAP_DepExp_2014'!K38","v":0},null,0,0,null,{"$f":"(H38+'App 2-B FixAsset 2013-CGAAP'!H38)/2","v":0},{"$f":"(M38+'App 2-B FixAsset 2013-CGAAP'!M38)/2","v":0}]
[45.1,1920,"Computer Equip.-Hardware(Post Mar. 19/07)",null,0,null,null,0,null,{"$f":"'App 2-B FixAsset 2013-CGAAP'!M39","v":0},{"$f":"-'App.2-CF_CGAAP_DepExp_2014'!K39","v":0},null,0,0,null,{"$f":"(H39+'App 2-B FixAsset 2013-CGAAP'!H39)/2","v":0},{"$f":"(M39+'App 2-B FixAsset 2013-CGAAP'!M39)/2","v":0}]
[10,1930,"Transportation Equipment",null,0,null,null,0,null,{"$f":"'App 2-B FixAsset 2013-CGAAP'!M40","v":0},{"$f":"-'App.2-CF_CGAAP_DepExp_2014'!K40","v":0},null,0,0,null,{"$f":"(H40+'App 2-B FixAsset 2013-CGAAP'!H40)/2","v":0},{"$f":"(M40+'App 2-B FixAsset 2013-CGAAP'!M40)/2","v":0}]
[8,1935,"Stores Equipment",null,4320,null,null,4320,null,{"$f":"'App 2-B FixAsset 2013-CGAAP'!M41","v":-4018},{"$f":"-'App.2-CF_CGAAP_DepExp_2014'!K41","v":-151.19999999999999},null,-4169.2,150.80000000000018,null,{"$f":"(H41+'App 2-B FixAsset 2013-CGAAP'!H41)/2","v":4320},{"$f":"(M41+'App 2-B FixAsset 2013-CGAAP'!M41)/2","v":-4093.6}]
[8,1940,"Tools, Shop & Garage Equipment",null,4205,null,null,4205,null,{"$f":"'App 2-B FixAsset 2013-CGAAP'!M42","v":-630.75},{"$f":"-'App.2-CF_CGAAP_DepExp_2014'!K42","v":-420.5},null,-1051.25,3153.75,null,{"$f":"(H42+'App 2-B FixAsset 2013-CGAAP'!H42)/2","v":4205},{"$f":"(M42+'App 2-B FixAsset 2013-CGAAP'!M42)/2","v":-841}]
[8,1945,"Measurement & Testing Equipment",null,4281,null,null,4281,null,{"$f":"'App 2-B FixAsset 2013-CGAAP'!M43","v":-4123.3999999999996},{"$f":"-'App.2-CF_CGAAP_DepExp_2014'!K43","v":-158.1},null,-4281.5,-0.5,null,{"$f":"(H43+'App 2-B FixAsset 2013-CGAAP'!H43)/2","v":4281},{"$f":"(M43+'App 2-B FixAsset 2013-CGAAP'!M43)/2","v":-4202.45}]
[8,1950,"Power Operated Equipment",null,0,null,null,0,null,{"$f":"'App 2-B FixAsset 2013-CGAAP'!M44","v":0},{"$f":"-'App.2-CF_CGAAP_DepExp_2014'!K44","v":0},null,0,0,null,{"$f":"(H44+'App 2-B FixAsset 2013-CGAAP'!H44)/2","v":0},{"$f":"(M44+'App 2-B FixAsset 2013-CGAAP'!M44)/2","v":0}]
[8,1955,"Communications Equipment",null,0,null,null,0,null,{"$f":"'App 2-B FixAsset 2013-CGAAP'!M45","v":0},{"$f":"-'App.2-CF_CGAAP_DepExp_2014'!K45","v":0},null,0,0,null,{"$f":"(H45+'App 2-B FixAsset 2013-CGAAP'!H45)/2","v":0},{"$f":"(M45+'App 2-B FixAsset 2013-CGAAP'!M45)/2","v":0}]
[8,1955,"Communication Equipment (Smart Meters)",null,0,null,null,0,null,{"$f":"'App 2-B FixAsset 2013-CGAAP'!M46","v":0},{"$f":"-'App.2-CF_CGAAP_DepExp_2014'!K46","v":0},null,0,0,null,{"$f":"(H46+'App 2-B FixAsset 2013-CGAAP'!H46)/2","v":0},{"$f":"(M46+'App 2-B FixAsset 2013-CGAAP'!M46)/2","v":0}]
[8,1960,"Miscellaneous Equipment ",null,0,null,null,0,null,{"$f":"'App 2-B FixAsset 2013-CGAAP'!M47","v":0},{"$f":"-'App.2-CF_CGAAP_DepExp_2014'!K47","v":0},null,0,0,null,{"$f":"(H47+'App 2-B FixAsset 2013-CGAAP'!H47)/2","v":0},{"$f":"(M47+'App 2-B FixAsset 2013-CGAAP'!M47)/2","v":0}]
[47,1975,"Load Management Controls Utility Premises",null,0,null,null,0,null,{"$f":"'App 2-B FixAsset 2013-CGAAP'!M48","v":0},{"$f":"-'App.2-CF_CGAAP_DepExp_2014'!K48","v":0},null,0,0,null,{"$f":"(H48+'App 2-B FixAsset 2013-CGAAP'!H48)/2","v":0},{"$f":"(M48+'App 2-B FixAsset 2013-CGAAP'!M48)/2","v":0}]
[47,1980,"System Supervisor Equipment",null,0,null,null,0,null,{"$f":"'App 2-B FixAsset 2013-CGAAP'!M49","v":0},{"$f":"-'App.2-CF_CGAAP_DepExp_2014'!K49","v":0},null,0,0,null,{"$f":"(H49+'App 2-B FixAsset 2013-CGAAP'!H49)/2","v":0},{"$f":"(M49+'App 2-B FixAsset 2013-CGAAP'!M49)/2","v":0}]
[47,1985,"Miscellaneous Fixed Assets",null,0,null,null,0,null,{"$f":"'App 2-B FixAsset 2013-CGAAP'!M50","v":0},{"$f":"-'App.2-CF_CGAAP_DepExp_2014'!K50","v":0},null,0,0,null,{"$f":"(H50+'App 2-B FixAsset 2013-CGAAP'!H50)/2","v":0},{"$f":"(M50+'App 2-B FixAsset 2013-CGAAP'!M50)/2","v":0}]
[47,1995,"Contributions & Grants",null,-560963,-160000,null,-720963,null,{"$f":"'App 2-B FixAsset 2013-CGAAP'!M51","v":193705.63999999998},{"$f":"-'App.2-CF_CGAAP_DepExp_2014'!K51","v":10024.08},null,203729.71999999997,-517233.28,null,{"$f":"(H51+'App 2-B FixAsset 2013-CGAAP'!H51)/2","v":-640963},{"$f":"(M51+'App 2-B FixAsset 2013-CGAAP'!M51)/2","v":198717.68}]
[null,null,"Smart Meter Additions (from 1555)",null,0,null,null,0,null,{"$f":"'App 2-B FixAsset 2013-CGAAP'!M52","v":0},{"$f":"-'App.2-CF_CGAAP_DepExp_2014'!K52","v":0},null,{"$f":"J52+K52+L52","v":0},{"$f":"H52+M52","v":0},null,{"$f":"(H52+'App 2-B FixAsset 2013-CGAAP'!H52)/2","v":0},{"$f":"(M52+'App 2-B FixAsset 2013-CGAAP'!M52)/2","v":0}]
[8,1860,"Meters (Smart Meters)",null,null,null,null,null,null,null,null,null,null,null,null,{"$f":"(H53+'App 2-B FixAsset 2013-CGAAP'!H53)/2","v":0},{"$f":"(M53+'App 2-B FixAsset 2013-CGAAP'!M53)/2","v":0}]
[45.1,1920,"Computer Hardware (Smart Meters)",null,null,null,null,null,null,null,null,null,null,null,null,{"$f":"(H54+'App 2-B FixAsset 2013-CGAAP'!H54)/2","v":0},{"$f":"(M54+'App 2-B FixAsset 2013-CGAAP'!M54)/2","v":0}]
[12,1925,"Computer Software (Smart Meters)",null,null,null,null,null,null,null,null,null,null,null,null,{"$f":"(H55+'App 2-B FixAsset 2013-CGAAP'!H55)/2","v":0},{"$f":"(M55+'App 2-B FixAsset 2013-CGAAP'!M55)/2","v":0}]
[null,"etc.",null,null,null,null,null,null,null,{"$f":"'App 2-B FixAsset 2013-CGAAP'!M56","v":0},{"$f":"-'App.2-CF_CGAAP_DepExp_2014'!K56","v":0}]
[null,null,null,null,null,null,null,null,null,{"$f":"'App 2-B FixAsset 2013-CGAAP'!M57","v":0},{"$f":"-'App.2-CF_CGAAP_DepExp_2014'!K57","v":0}]
[null,null,"Total",null,{"$f":"SUM(E16:E57)","v":3496052},{"$f":"SUM(F16:F57)","v":474595},{"$f":"SUM(G16:G57)","v":0},{"$f":"SUM(H16:H57)","v":3970647},null,{"$f":"SUM(J16:J57)","v":-1294451.8339999998},{"$f":"SUM(K16:K57)","v":-132429.08000000002},{"$f":"SUM(L16:L57)","v":0},{"$f":"SUM(M16:M57)","v":-1426880.9139999999},{"$f":"SUM(N16:N57)","v":2543766.0859999992},null,{"$f":"SUM(P16:P57)","v":3733349.5},{"$f":"SUM(Q16:Q57)","v":-1360666.3739999996}]
[null,null,null,null,null,null,null," ",null,null,null,null,{"$f":"SUM(M17:M50)","v":-1536113.0839999998}]
[null,null,null,null,null,null,null," ",null,"Less: Fully Allocated Depreciation"]
[10,null,"Transportation",null,null,null,null,null,null,"Transportation",null,null,null," "]
[8,null,"Stores Equipment",null,null,null,null,null,null,"Stores Equipment",null,null,null," "]
[null,null,null,null,null,null,null,null,null,"Net Depreciation",null,{"$f":"L58-L61-L62","v":0}]
[]
["Notes:"]
[]
[1,"Tables in the format outlined above covering all fixed asset accounts should be submitted for the Test Year, Bridge Year and all relevant historical years.  At a minimum , the applicant must provide data for the earlier of: 1) all historical years back to its last rebasing; or 2) at least three years of historical actuals, in addition to Bridge Year and Test Year forecasts."]
[]
[]
[2,"The \"CCA Class\" for fixed assets should agree with the CCA Class used for tax purposes in Tax Returns. Fixed Assets sub-components may be used where the underlying asset components are classified under multiple CCA Classes for tax purposes. If an applicant uses any different classes from those shown in the table, an explanation should be provided. (also see note 3 below)."]
[]
[]
[3,"The table may need to be customized for a utility's asset categories or for any new asset accounts announced or authorized by the Board."]
[]
[4,"The depreciation column (D) is not required as the relevant information will be provided in the following 2-C series of appendices."]

{"sheet":"App.2-B_FixAsset 2014-MIFRS","index":10,"n_rows":75,"n_cols":14,"rows_kept":75,"cut":false,"hidden":true,"merged":[[72,1,72,13],[8,0,8,13],[9,0,9,13],[13,4,13,7],[66,1,67,13],[69,1,70,13]]}
[null,null,null,null,null,null,null,null,null,null,null,null,"File Number:",{"$f":"'LDC Info'!$E$18","v":"EB-2013-0122"}]
[null,null,null,null,null,null,null,null,null,null,null,null,"Exhibit:"]
[null,null,null,null,null,null,null,null,null,null,null,null,"Tab:"]
[null,null,null,null,null,null,null,null,null,null,null,null,"Schedule:"]
[null,null,null,null,null,null,null,null,null,null,null,null,"Page:"]
[]
[null,null,null,null,null,null,null,null,null,null,null,null,"Date:"]
[]
["Appendix 2-B"]
["Fixed Asset Continuity Schedule"]
[]
[null,null,null,null,null,"Year ",2014]
[]
[null,null,null,null,"Cost",null,null,null,null,null,"Accumulated Depreciation"]
["CCA Class","OEB","Description","Depreciation Rate","Opening Balance","Additions","Disposals","Closing Balance",null,"Opening Balance","Additions","Disposals","Closing Balance","Net Book Value"]
[12,1611,"Computer Software (Formally known as Account 1925)",null,null,null,null,{"$f":"E16+F16+G16","v":0},null,null,null,null,{"$f":"J16+K16+L16","v":0},{"$f":"H16+M16","v":0}]
["CEC",1612,"Land Rights (Formally known as Account 1906)",null,null,null,null,{"$f":"E17+F17+G17","v":0},null,null,null,null,{"$f":"J17+K17+L17","v":0},{"$f":"H17+M17","v":0}]
["N/A",1805,"Land",null,null,null,null,{"$f":"E18+F18+G18","v":0},null,null,null,null,{"$f":"J18+K18+L18","v":0},{"$f":"H18+M18","v":0}]
[47,1808,"Buildings",null,null,null,null,{"$f":"E19+F19+G19","v":0},null,null,null,null,{"$f":"J19+K19+L19","v":0},{"$f":"H19+M19","v":0}]
[13,1810,"Leasehold Improvements",null,null,null,null,0,null,null,null,null,0,0]
[47,1815,"Transformer Station Equipment >50 kV",null,null,null,null,0,null,null,null,null,0,0]
[47,1820,"Distribution Station Equipment <50 kV",null,null,null,null,0,null,null,null,null,0,0]
[47,1825,"Storage Battery Equipment",null,null,null,null,0,null,null,null,null,0,0]
[47,1830,"Poles, Towers & Fixtures",null,null,null,null,0,null,null,null,null,0,0]
[47,1835,"Overhead Conductors & Devices",null,null,null,null,0,null,null,null,null,0,0]
[47,1840,"Underground Conduit",null,null,null,null,0,null,null,null,null,0,0]
[47,1845,"Underground Conductors & Devices",null,null,null,null,0,null,null,null,null,0,0]
[47,1850,"Line Transformers",null,null,null,null,0,null,null,null,null,0,0]
[47,1855,"Services (Overhead & Underground)",null,null,null,null,0,null,null,null,null,0,0]
[47,1860,"Meters",null,null,null,null,0,null,null,null,null,0,0]
[47,1860,"Meters (Smart Meters)",null,null,null,null,0,null,null,null,null,0,0]
["N/A",1905,"Land",null,null,null,null,0,null,null,null,null,0,0]
[47,1908,"Buildings & Fixtures",null,null,null,null,0,null,null,null,null,0,0]
[13,1910,"Leasehold Improvements",null,null,null,null,0,null,null,null,null,0,0]
[8,1915,"Office Furniture & Equipment (10 years)",null,null,null,null,0,null,null,null,null,0,0]
[8,1915,"Office Furniture & Equipment (5 years)",null,null,null,null,0,null,null,null,null,0,0]
[10,1920,"Computer Equipment - Hardware",null,null,null,null,0,null,null,null,null,0,0]
[45,1920,"Computer Equip.-Hardware(Post Mar. 22/04)",null,null,null,null,0,null,null,null,null,0,0]
[45.1,1920,"Computer Equip.-Hardware(Post Mar. 19/07)",null,null,null,null,0,null,null,null,null,0,0]
[10,1930,"Transportation Equipment",null,null,null,null,0,null,null,null,null,0,0]
[8,1935,"Stores Equipment",null,null,null,null,0,null,null,null,null,0,0]
[8,1940,"Tools, Shop & Garage Equipment",null,null,null,null,0,null,null,null,null,0,0]
[8,1945,"Measurement & Testing Equipment",null,null,null,null,0,null,null,null,null,0,0]
[8,1950,"Power Operated Equipment",null,null,null,null,0,null,null,null,null,0,0]
[8,1955,"Communications Equipment",null,null,null,null,0,null,null,null,null,0,0]
[8,1955,"Communication Equipment (Smart Meters)",null,null,null,null,0,null,null,null,null,0,0]
[8,1960,"Miscellaneous Equipment ",null,null,null,null,0,null,null,null,null,0,0]
[47,1975,"Load Management Controls Utility Premises",null,null,null,null,0,null,null,null,null,0,0]
[47,1980,"System Supervisor Equipment",null,null,null,null,0,null,null,null,null,0,0]
[47,1985,"Miscellaneous Fixed Assets",null,null,null,null,0,null,null,null,null,0,0]
[47,1995,"Contributions & Grants",null,null,null,null,0,null,null,null,null,0,0]
[null,null,"Smart Meter Additions (from 1555)",null,null,null,null,0,null,null,null,null,{"$f":"J52+K52+L52","v":0},{"$f":"H52+M52","v":0}]
[8,1860,"Meters (Smart Meters)",null,null,null,null,0,null,null,null,null,{"$f":"J53+K53+L53","v":0},{"$f":"H53+M53","v":0}]
[45.1,1920,"Computer Hardware (Smart Meters)",null,null,null,null,0,null,null,null,null,{"$f":"J54+K54+L54","v":0},{"$f":"H54+M54","v":0}]
[12,1925,"Computer Software (Smart Meters)",null,null,null,null,0,null,null,null,null,{"$f":"J55+K55+L55","v":0},{"$f":"H55+M55","v":0}]
[]
[]
[null,null,"Total",null,{"$f":"SUM(E16:E57)","v":0},{"$f":"SUM(F16:F57)","v":0},{"$f":"SUM(G16:G57)","v":0},{"$f":"SUM(H16:H57)","v":0},null,{"$f":"SUM(J16:J57)","v":0},{"$f":"SUM(K16:K57)","v":0},{"$f":"SUM(L16:L57)","v":0},{"$f":"SUM(M16:M57)","v":0},{"$f":"SUM(N16:N57)","v":0}]
[]
[null,null,null,null,null,null,null,null,null,"Less: Fully Allocated Depreciation"]
[10,null,"Transportation",null,null,null,null,null,null,"Transportation"]
[8,null,"Stores Equipment",null,null,null,null,null,null,"Stores Equipment"]
[null,null,null,null,null,null,null,null,null,"Net Depreciation",null,{"$f":"L58-L61-L62","v":0}]
[]
["Notes:"]
[]
[1,"Tables in the format outlined above covering all fixed asset accounts should be submitted for the Test Year, Bridge Year and all relevant historical years.  At a minimum , the applicant must provide data for the earlier of: 1) all historical years back to its last rebasing; or 2) at least three years of historical actuals, in addition to Bridge Year and Test Year forecasts."]
[]
[]
[2,"The \"CCA Class\" for fixed assets should agree with the CCA Class used for tax purposes in Tax Returns. Fixed Assets sub-components may be used where the underlying asset components are classified under multiple CCA Classes for tax purposes. If an applicant uses any different classes from those shown in the table, an explanation should be provided. (also see note 3 below)."]
[]
[]
[3,"The table may need to be customized for a utility's asset categories or for any new asset accounts announced or authorized by the Board."]
[]
[4,"The depreciation column (D) is not required as the relevant information will be provided in the following 2-C series of appendices."]

{"sheet":"App.2-CA_CGAAP_DepExp_2012","index":11,"n_rows":61,"n_cols":12,"rows_kept":61,"cut":false,"hidden":true,"merged":[[10,0,10,11],[8,0,8,11],[9,0,9,11],[57,1,57,11],[60,1,61,11],[58,1,59,9],[13,0,14,0],[13,1,14,1],[13,10,14,10]]}
[null,null,null,null,null,null,null,null,null,null,"File Number:",{"$f":"'LDC Info'!$E$18","v":"EB-2013-0122"}]
[null,null,null,null,null,null,null,null,null,null,"Exhibit:"]
[null,null,null,null,null,null,null,null,null,null,"Tab:"]
[null,null,null,null,null,null,null,null,null,null,"Schedule:"]
[null,null,null,null,null,null,null,null,null,null,"Page:"]
[]
[null,null,null,null,null,null,null,null,null,null,"Date:"]
[]
["Appendix 2-CA"]
["Depreciation and Amortization Expense"]
["Assumes the applicant adopted IFRS for financial reporting purposes January 1, 2012"]
[null,null,"Year",2011,"CGAAP"]
[]
["Account","Description","Opening Regulatory Gross PP&E as at Jan 1, 2011 ","Less Fully Depreciated","Net for Depreciation","Additions","Total for Depreciation","Years","Depreciation Rate","Depreciation Expense","2011 Depreciation Expense per Appendix 2-B Fixed Assets, Column K \n (l)","Variance 2"]
[null,null,"(a)","(b)","(c)","(d)","(e) = (c) + ½ x (d) 1","(f)","(g) = 1 / (f)","(h) = (e) / (f)",null,"(m) = (h) - (l)"]
[1611,"Computer Software (Formally known as Account 1925)",null,null,{"$f":"C16-D16","v":0},null,{"$f":"E16+0.5*F16","v":0},null,{"$f":"IF(H16=0,0,1/H16)","v":0},{"$f":"IF(H16=0,0,G16/H16)","v":0},null,{"$f":"IF(ISERROR(+J16-K16), 0, +J16-K16)","v":0}]
[1612,"Land Rights (Formally known as Account 1906)",null,null,{"$f":"C17-D17","v":0},null,{"$f":"E17+0.5*F17","v":0},null,0,0,null,0]
[1805,"Land",null,null,0,null,0,null,0,0,null,0]
[1808,"Buildings",null,null,0,null,0,null,0,0,null,0]
[1810,"Leasehold Improvements",null,null,0,null,0,null,0,0,null,0]
[1815,"Transformer Station Equipment >50 kV",null,null,0,null,0,null,0,0,null,0]
[1820,"Distribution Station Equipment <50 kV",null,null,0,null,0,null,0,0,null,0]
[1825,"Storage Battery Equipment",null,null,0,null,0,null,0,0,null,0]
[1830,"Poles, Towers & Fixtures",null,null,0,null,0,null,0,0,null,0]
[1835,"Overhead Conductors & Devices",null,null,0,null,0,null,0,0,null,0]
[1840,"Underground Conduit",null,null,0,null,0,null,0,0,null,0]
[1845,"Underground Conductors & Devices",null,null,0,null,0,null,0,0,null,0]
[1850,"Line Transformers",null,null,0,null,0,null,0,0,null,0]
[1855,"Services (Overhead & Underground)",null,null,0,null,0,null,0,0,null,0]
[1860,"Meters",null,null,0,null,0,null,0,0,null,0]
[1860,"Meters (Smart Meters)",null,null,0,null,0,null,0,0,null,0]
[1905,"Land",null,null,0,null,0,null,0,0,null,0]
[1908,"Buildings & Fixtures",null,null,0,null,0,null,0,0,null,0]
[1910,"Leasehold Improvements",null,null,0,null,0,null,0,0,null,0]
[1915,"Office Furniture & Equipment (10 years)",null,null,0,null,0,null,0,0,null,0]
[1915,"Office Furniture & Equipment (5 years)",null,null,0,null,0,null,0,0,null,0]
[1920,"Computer Equipment - Hardware",null,null,0,null,0,null,0,0,null,0]
[1920,"Computer Equip.-Hardware(Post Mar. 22/04)",null,null,0,null,0,null,0,0,null,0]
[1920,"Computer Equip.-Hardware(Post Mar. 19/07)",null,null,0,null,0,null,0,0,null,0]
[1930,"Transportation Equipment",null,null,0,null,0,null,0,0,null,0]
[1935,"Stores Equipment",null,null,0,null,0,null,0,0,null,0]
[1940,"Tools, Shop & Garage Equipment",null,null,0,null,0,null,0,0,null,0]
[1945,"Measurement & Testing Equipment",null,null,0,null,0,null,0,0,null,0]
[1950,"Power Operated Equipment",null,null,0,null,0,null,0,0,null,0]
[1955,"Communications Equipment",null,null,0,null,0,null,0,0,null,0]
[1955,"Communication Equipment (Smart Meters)",null,null,0,null,0,null,0,0,null,0]
[1960,"Miscellaneous Equipment ",null,null,0,null,0,null,0,0,null,0]
[1975,"Load Management Controls Utility Premises",null,null,0,null,0,null,0,0,null,0]
[1980,"System Supervisor Equipment",null,null,0,null,0,null,0,0,null,0]
[1985,"Miscellaneous Fixed Assets",null,null,0,null,0,null,0,0,null,0]
[1995,"Contributions & Grants",null,null,0,null,0,null,0,0,null,0]
["etc.",null,null,null,0,null,0,null,0,0,null,0]
[null,null,null,null,0,null,0,null,0,0,null,0]
[null,"Total",{"$f":"SUM(C16:C53)","v":0},{"$f":"SUM(D16:D53)","v":0},{"$f":"SUM(E16:E53)","v":0},{"$f":"SUM(F16:F53)","v":0},{"$f":"SUM(G16:G53)","v":0},null,null,{"$f":"SUM(J16:J53)","v":0},{"$f":"SUM(K16:K53)","v":0},{"$f":"SUM(L16:L53)","v":0}]
[]
["Notes:"]
[]
[1,"Board policy of the \"half-year\" rule - the applicant must ensure that additions in the year attract a half-year depreciation expense in the first year.  Deviations from this standard practice must be supported in the application."]
[2,"The applicant must provide an explanation of material variances in evidence"]
[]
["General","Applicants must provide a breakdown of depreciation and amortization expense in the above format for all relevant accounts.  Asset Retirement Obligations (AROs), depreciation and accretion expense should be disclosed separately consistent with the Notes of historical Audited Financial Statements."]

{"sheet":"App.2-CB_MIFRS_DepExp_2012","index":12,"n_rows":65,"n_cols":15,"rows_kept":65,"cut":false,"hidden":true,"merged":[[8,0,8,14],[9,0,9,14],[10,0,10,14],[61,1,61,14],[64,1,65,14],[57,1,57,14],[58,1,58,14],[59,1,59,14],[60,1,60,14],[13,0,14,0],[13,1,14,1],[13,10,14,10],[13,13,14,13],[62,1,62,14]]}
[null,null,null,null,null,null,null,null,null,null,null,null,null,"File Number:",{"$f":"'LDC Info'!$E$18","v":"EB-2013-0122"}]
[null,null,null,null,null,null,null,null,null,null,null,null,null,"Exhibit:"]
[null,null,null,null,null,null,null,null,null,null,null,null,null,"Tab:"]
[null,null,null,null,null,null,null,null,null,null,null,null,null,"Schedule:"]
[null,null,null,null,null,null,null,null,null,null,null,null,null,"Page:"]
[]
[null,null,null,null,null,null,null,null,null,null,null,null,null,"Date:"]
[]
["Appendix 2-CB"]
["Depreciation and Amortization Expense"]
["Assumes the applicant adopted IFRS for financial reporting purposes January 1, 2012"]
[null,null,"Year",2011,"MIFRS"]
[]
["Account","Description","Opening NBV as at Jan 1, 2011 5","Additions","Average Remaining Life of Opening NBV 4","Years (new additions only) 3","Depreciation Rate on New Additions","Depreciation Expense on Opening NBV","Depreciation Expense on Additions 1","2011 Depreciation Expense","2011 Depreciation Expense per Appendix 2-B Fixed Assets, Column K \n (l)","Variance 2","Depreciation Expense on 2011 Full Year Additions","Less Depreciation Expense on Assets Fully Depreciated during the year\n(o)","2011 Full Year Depreciation 6"]
[null,null,"(a)","(d)","(i)","(f)","(g) = 1 / (f)","(j) = (a) / (i)","(h)=((d)*0.5)/(f) ","(k) = (j) + (h)",null,"(m) = (k) - (l)","(n) = (d)/(f) ",null,"(p) = (j) + (n) - (o)"]
[1611,"Computer Software (Formally known as Account 1925)",null,null,null,null,{"$f":"IF(F16=0,0,1/F16)","v":0},{"$f":"IF(E16=0,0,+C16/E16)","v":0},{"$f":"IF(F16=0,0,+(D16*0.5)/F16)","v":0},{"$f":"IF(ISERROR(+H16+I16), 0, +H16+I16)","v":0},null,{"$f":"IF(ISERROR(+J16-K16), 0, +J16-K16)","v":0},{"$f":"IF(F16=0,0,+(D16)/F16)","v":0},null,{"$f":"IF(ISERROR(+M16+H16-N16), 0, +M16+H16-N16)","v":0}]
[1612,"Land Rights (Formally known as Account 1906)",null,null,null,null,0,0,0,0,null,0,0,null,{"$f":"IF(ISERROR(+M17+H17-N17), 0, +M17+H17-N17)","v":0}]
[1805,"Land",null,null,null,null,0,0,0,0,null,0,0,null,0]
[1808,"Buildings",null,null,null,null,0,0,0,0,null,0,0,null,0]
[1810,"Leasehold Improvements",null,null,null,null,0,0,0,0,null,0,0,null,0]
[1815,"Transformer Station Equipment >50 kV",null,null,null,null,0,0,0,0,null,0,0,null,0]
[1820,"Distribution Station Equipment <50 kV",null,null,null,null,0,0,0,0,null,0,0,null,0]
[1825,"Storage Battery Equipment",null,null,null,null,0,0,0,0,null,0,0,null,0]
[1830,"Poles, Towers & Fixtures",null,null,null,null,0,0,0,0,null,0,0,null,0]
[1835,"Overhead Conductors & Devices",null,null,null,null,0,0,0,0,null,0,0,null,0]
[1840,"Underground Conduit",null,null,null,null,0,0,0,0,null,0,0,null,0]
[1845,"Underground Conductors & Devices",null,null,null,null,0,0,0,0,null,0,0,null,0]
[1850,"Line Transformers",null,null,null,null,0,0,0,0,null,0,0,null,0]
[1855,"Services (Overhead & Underground)",null,null,null,null,0,0,0,0,null,0,0,null,0]
[1860,"Meters",null,null,null,null,0,0,0,0,null,0,0,null,0]
[1860,"Meters (Smart Meters)",null,null,null,null,0,0,0,0,null,0,0,null,0]
[1905,"Land",null,null,null,null,0,0,0,0,null,0,0,null,0]
[1908,"Buildings & Fixtures",null,null,null,null,0,0,0,0,null,0,0,null,0]
[1910,"Leasehold Improvements",null,null,null,null,0,0,0,0,null,0,0,null,0]
[1915,"Office Furniture & Equipment (10 years)",null,null,null,null,0,0,0,0,null,0,0,null,0]
[1915,"Office Furniture & Equipment (5 years)",null,null,null,null,0,0,0,0,null,0,0,null,0]
[1920,"Computer Equipment - Hardware",null,null,null,null,0,0,0,0,null,0,0,null,0]
[1920,"Computer Equip.-Hardware(Post Mar. 22/04)",null,null,null,null,0,0,0,0,null,0,0,null,0]
[1920,"Computer Equip.-Hardware(Post Mar. 19/07)",null,null,null,null,0,0,0,0,null,0,0,null,0]
[1930,"Transportation Equipment",null,null,null,null,0,0,0,0,null,0,0,null,0]
[1935,"Stores Equipment",null,null,null,null,0,0,0,0,null,0,0,null,0]
[1940,"Tools, Shop & Garage Equipment",null,null,null,null,0,0,0,0,null,0,0,null,0]
[1945,"Measurement & Testing Equipment",null,null,null,null,0,0,0,0,null,0,0,null,0]
[1950,"Power Operated Equipment",null,null,null,null,0,0,0,0,null,0,0,null,0]
[1955,"Communications Equipment",null,null,null,null,0,0,0,0,null,0,0,null,0]
[1955,"Communication Equipment (Smart Meters)",null,null,null,null,0,0,0,0,null,0,0,null,0]
[1960,"Miscellaneous Equipment ",null,null,null,null,0,0,0,0,null,0,0,null,0]
[1975,"Load Management Controls Utility Premises",null,null,null,null,0,0,0,0,null,0,0,null,0]
[1980,"System Supervisor Equipment",null,null,null,null,0,0,0,0,null,0,0,null,0]
[1985,"Miscellaneous Fixed Assets",null,null,null,null,0,0,0,0,null,0,0,null,0]
[1995,"Contributions & Grants",null,null,null,null,0,0,0,0,null,0,0,null,0]
["etc.",null,null,null,null,null,0,0,0,0,null,0,0,null,0]
[null,null,null,null,null,null,0,0,0,0,null,0,0,null,0]
[null,"Total",{"$f":"SUM(C16:C53)","v":0},{"$f":"SUM(D16:D53)","v":0},null,null,null,{"$f":"SUM(H16:H53)","v":0},0,0,0,0,0,{"$f":"SUM(N16:N53)","v":0},0]
[]
["Notes:"]
[]
[1,"Board policy of the \"half-year\" rule - the applicant must ensure that additions in the year attract a half-year depreciation expense in the first year.  Deviations from this standard practice must be supported in the application."]
[2,"The applicant must provide an explanation of material variances in evidence"]
[3,"The applicant should ensure that the years for new additions of assets are the asset useful lives determined by management in accordance with IFRS. "]
[4,"A recalculation should be performed to determine the average remaining life of opening balance of assets (i.e. excluding 2011 additions) under IFRS.  For example, Asset A had a useful life of 20 years under CGAAP.  On January 1, 2011, the date of transition, Asset A was 3 years depreciated. As a result, Asset A would have a remaining service life of 17 years (20 years less 3 years) under CGAAP as of January 1, 2011.  Due to the transition to IFRS, management re-assessed the asset useful lives under IFRS principles and concluded that the revised useful life of Asset A is now 30 years. Therefore, the average remaining useful life of opening balance of Asset A is determined to be 27 years (30 years less 3 years) under IFRS as of January 1, 2011."]
[5," NBV must exclude assets still on the books but which have been fully amortized or depreciated."]
[6,"This column refers to the calculated full year depreciation but excludes the depreciation expense on assets fully depreciated during the year.  This column is used for the purpose of calculating depreciation expense in the following year on the next worksheet."]
[]
["General:","Applicants must provide a breakdown of depreciation and amortization expense in the above format for all relevant accounts.  Asset Retirement Obligations (AROs), depreciation and accretion expense should be disclosed separately consistent with the Notes of historical Audited Financial Statements."]

{"sheet":"App.2-CC_MIFRS_DepExp_2013","index":13,"n_rows":61,"n_cols":11,"rows_kept":61,"cut":false,"hidden":true,"merged":[[60,1,61,10],[13,0,14,0],[13,1,14,1],[13,6,14,6],[10,0,10,10],[13,9,14,9],[8,0,8,10],[56,1,56,10],[57,1,57,10],[58,1,58,10],[9,0,9,10]]}
[null,null,null,null,null,null,null,null,null,"File Number:",{"$f":"'LDC Info'!$E$18","v":"EB-2013-0122"}]
[null,null,null,null,null,null,null,null,null,"Exhibit:"]
[null,null,null,null,null,null,null,null,null,"Tab:"]
[null,null,null,null,null,null,null,null,null,"Schedule:"]
[null,null,null,null,null,null,null,null,null,"Page:"]
[]
[null,null,null,null,null,null,null,null,null,"Date:"]
[]
["Appendix 2-CC"]
["Depreciation and Amortization Expense"]
["Assumes the applicant adopted IFRS for financial reporting purposes January 1, 2012"]
[null,null,2012,"MIFRS"]
[]
["Account","Description","Additions","Years (new additions only)","Depreciation Rate on New Additions","2012 Depreciation Expense 1","2012 Depreciation Expense per Apppendix 2-B Fixed Assets, Column K\n (l)","Variance 2","Depreciation Expense on 2012 Full Year Additions","Less Depreciation Expense on Assets Fully Depreciated during the year\n(o)","2012 Full Year Depreciation 3"]
[null,null,"(d)","(f)","(g) = 1 / (f)","(h)=2011 Full Year Deprecation + ((d)*0.5)/(f) ",null,"(m) = (h) - (l)","(n)=((d))/(f) ",null,"(o) = 2011 Full Year Depreciation  + (n) - (o)"]
[1611,"Computer Software (Formally known as Account 1925)",null,null,{"$f":"IF(D16=0,0,1/D16)","v":0},{"$f":"IF(D16=0,+'App.2-CB_MIFRS_DepExp_2012'!O16,+'App.2-CB_MIFRS_DepExp_2012'!O16+((C16*0.5)/D16))","v":0},null,{"$f":"IF(ISERROR(+F16-G16), 0, +F16-G16)","v":0},{"$f":"IF(D16=0,0,+(C16)/D16)","v":0},null,{"$f":"IF(ISERROR(+I16+'App.2-CB_MIFRS_DepExp_2012'!O16-J16), 0, +I16+'App.2-CB_MIFRS_DepExp_2012'!O16-J16)","v":0}]
[1612,"Land Rights (Formally known as Account 1906)",null,null,0,{"$f":"IF(D17=0,+'App.2-CB_MIFRS_DepExp_2012'!O17,+'App.2-CB_MIFRS_DepExp_2012'!O17+((C17*0.5)/D17))","v":0},null,0,0,null,{"$f":"IF(ISERROR(+I17+'App.2-CB_MIFRS_DepExp_2012'!O17-J17), 0, +I17+'App.2-CB_MIFRS_DepExp_2012'!O17-J17)","v":0}]
[1805,"Land",null,null,0,{"$f":"IF(D18=0,+'App.2-CB_MIFRS_DepExp_2012'!O18,+'App.2-CB_MIFRS_DepExp_2012'!O18+((C18*0.5)/D18))","v":0},null,0,0,null,{"$f":"IF(ISERROR(+I18+'App.2-CB_MIFRS_DepExp_2012'!O18-J18), 0, +I18+'App.2-CB_MIFRS_DepExp_2012'!O18-J18)","v":0}]
[1808,"Buildings",null,null,0,{"$f":"IF(D19=0,+'App.2-CB_MIFRS_DepExp_2012'!O19,+'App.2-CB_MIFRS_DepExp_2012'!O19+((C19*0.5)/D19))","v":0},null,0,0,null,{"$f":"IF(ISERROR(+I19+'App.2-CB_MIFRS_DepExp_2012'!O19-J19), 0, +I19+'App.2-CB_MIFRS_DepExp_2012'!O19-J19)","v":0}]
[1810,"Leasehold Improvements",null,null,0,{"$f":"IF(D20=0,+'App.2-CB_MIFRS_DepExp_2012'!O20,+'App.2-CB_MIFRS_DepExp_2012'!O20+((C20*0.5)/D20))","v":0},null,0,0,null,{"$f":"IF(ISERROR(+I20+'App.2-CB_MIFRS_DepExp_2012'!O20-J20), 0, +I20+'App.2-CB_MIFRS_DepExp_2012'!O20-J20)","v":0}]
[1815,"Transformer Station Equipment >50 kV",null,null,0,{"$f":"IF(D21=0,+'App.2-CB_MIFRS_DepExp_2012'!O21,+'App.2-CB_MIFRS_DepExp_2012'!O21+((C21*0.5)/D21))","v":0},null,0,0,null,{"$f":"IF(ISERROR(+I21+'App.2-CB_MIFRS_DepExp_2012'!O21-J21), 0, +I21+'App.2-CB_MIFRS_DepExp_2012'!O21-J21)","v":0}]
[1820,"Distribution Station Equipment <50 kV",null,null,0,{"$f":"IF(D22=0,+'App.2-CB_MIFRS_DepExp_2012'!O22,+'App.2-CB_MIFRS_DepExp_2012'!O22+((C22*0.5)/D22))","v":0},null,0,0,null,{"$f":"IF(ISERROR(+I22+'App.2-CB_MIFRS_DepExp_2012'!O22-J22), 0, +I22+'App.2-CB_MIFRS_DepExp_2012'!O22-J22)","v":0}]
[1825,"Storage Battery Equipment",null,null,0,{"$f":"IF(D23=0,+'App.2-CB_MIFRS_DepExp_2012'!O23,+'App.2-CB_MIFRS_DepExp_2012'!O23+((C23*0.5)/D23))","v":0},null,0,0,null,{"$f":"IF(ISERROR(+I23+'App.2-CB_MIFRS_DepExp_2012'!O23-J23), 0, +I23+'App.2-CB_MIFRS_DepExp_2012'!O23-J23)","v":0}]
[1830,"Poles, Towers & Fixtures",null,null,0,{"$f":"IF(D24=0,+'App.2-CB_MIFRS_DepExp_2012'!O24,+'App.2-CB_MIFRS_DepExp_2012'!O24+((C24*0.5)/D24))","v":0},null,0,0,null,{"$f":"IF(ISERROR(+I24+'App.2-CB_MIFRS_DepExp_2012'!O24-J24), 0, +I24+'App.2-CB_MIFRS_DepExp_2012'!O24-J24)","v":0}]
[1835,"Overhead Conductors & Devices",null,null,0,{"$f":"IF(D25=0,+'App.2-CB_MIFRS_DepExp_2012'!O25,+'App.2-CB_MIFRS_DepExp_2012'!O25+((C25*0.5)/D25))","v":0},null,0,0,null,{"$f":"IF(ISERROR(+I25+'App.2-CB_MIFRS_DepExp_2012'!O25-J25), 0, +I25+'App.2-CB_MIFRS_DepExp_2012'!O25-J25)","v":0}]
[1840,"Underground Conduit",null,null,0,{"$f":"IF(D26=0,+'App.2-CB_MIFRS_DepExp_2012'!O26,+'App.2-CB_MIFRS_DepExp_2012'!O26+((C26*0.5)/D26))","v":0},null,0,0,null,{"$f":"IF(ISERROR(+I26+'App.2-CB_MIFRS_DepExp_2012'!O26-J26), 0, +I26+'App.2-CB_MIFRS_DepExp_2012'!O26-J26)","v":0}]
[1845,"Underground Conductors & Devices",null,null,0,{"$f":"IF(D27=0,+'App.2-CB_MIFRS_DepExp_2012'!O27,+'App.2-CB_MIFRS_DepExp_2012'!O27+((C27*0.5)/D27))","v":0},null,0,0,null,{"$f":"IF(ISERROR(+I27+'App.2-CB_MIFRS_DepExp_2012'!O27-J27), 0, +I27+'App.2-CB_MIFRS_DepExp_2012'!O27-J27)","v":0}]
[1850,"Line Transformers",null,null,0,{"$f":"IF(D28=0,+'App.2-CB_MIFRS_DepExp_2012'!O28,+'App.2-CB_MIFRS_DepExp_2012'!O28+((C28*0.5)/D28))","v":0},null,0,0,null,{"$f":"IF(ISERROR(+I28+'App.2-CB_MIFRS_DepExp_2012'!O28-J28), 0, +I28+'App.2-CB_MIFRS_DepExp_2012'!O28-J28)","v":0}]
[1855,"Services (Overhead & Underground)",null,null,0,{"$f":"IF(D29=0,+'App.2-CB_MIFRS_DepExp_2012'!O29,+'App.2-CB_MIFRS_DepExp_2012'!O29+((C29*0.5)/D29))","v":0},null,0,0,null,{"$f":"IF(ISERROR(+I29+'App.2-CB_MIFRS_DepExp_2012'!O29-J29), 0, +I29+'App.2-CB_MIFRS_DepExp_2012'!O29-J29)","v":0}]
[1860,"Meters",null,null,0,{"$f":"IF(D30=0,+'App.2-CB_MIFRS_DepExp_2012'!O30,+'App.2-CB_MIFRS_DepExp_2012'!O30+((C30*0.5)/D30))","v":0},null,0,0,null,{"$f":"IF(ISERROR(+I30+'App.2-CB_MIFRS_DepExp_2012'!O30-J30), 0, +I30+'App.2-CB_MIFRS_DepExp_2012'!O30-J30)","v":0}]
[1860,"Meters (Smart Meters)",null,null,0,{"$f":"IF(D31=0,+'App.2-CB_MIFRS_DepExp_2012'!O31,+'App.2-CB_MIFRS_DepExp_2012'!O31+((C31*0.5)/D31))","v":0},null,0,0,null,{"$f":"IF(ISERROR(+I31+'App.2-CB_MIFRS_DepExp_2012'!O31-J31), 0, +I31+'App.2-CB_MIFRS_DepExp_2012'!O31-J31)","v":0}]
[1905,"Land",null,null,0,{"$f":"IF(D32=0,+'App.2-CB_MIFRS_DepExp_2012'!O32,+'App.2-CB_MIFRS_DepExp_2012'!O32+((C32*0.5)/D32))","v":0},null,0,0,null,{"$f":"IF(ISERROR(+I32+'App.2-CB_MIFRS_DepExp_2012'!O32-J32), 0, +I32+'App.2-CB_MIFRS_DepExp_2012'!O32-J32)","v":0}]
[1908,"Buildings & Fixtures",null,null,0,{"$f":"IF(D33=0,+'App.2-CB_MIFRS_DepExp_2012'!O33,+'App.2-CB_MIFRS_DepExp_2012'!O33+((C33*0.5)/D33))","v":0},null,0,0,null,{"$f":"IF(ISERROR(+I33+'App.2-CB_MIFRS_DepExp_2012'!O33-J33), 0, +I33+'App.2-CB_MIFRS_DepExp_2012'!O33-J33)","v":0}]
[1910,"Leasehold Improvements",null,null,0,{"$f":"IF(D34=0,+'App.2-CB_MIFRS_DepExp_2012'!O34,+'App.2-CB_MIFRS_DepExp_2012'!O34+((C34*0.5)/D34))","v":0},null,0,0,null,{"$f":"IF(ISERROR(+I34+'App.2-CB_MIFRS_DepExp_2012'!O34-J34), 0, +I34+'App.2-CB_MIFRS_DepExp_2012'!O34-J34)","v":0}]
[1915,"Office Furniture & Equipment (10 years)",null,null,0,{"$f":"IF(D35=0,+'App.2-CB_MIFRS_DepExp_2012'!O35,+'App.2-CB_MIFRS_DepExp_2012'!O35+((C35*0.5)/D35))","v":0},null,0,0,null,{"$f":"IF(ISERROR(+I35+'App.2-CB_MIFRS_DepExp_2012'!O35-J35), 0, +I35+'App.2-CB_MIFRS_DepExp_2012'!O35-J35)","v":0}]
[1915,"Office Furniture & Equipment (5 years)",null,null,0,{"$f":"IF(D36=0,+'App.2-CB_MIFRS_DepExp_2012'!O36,+'App.2-CB_MIFRS_DepExp_2012'!O36+((C36*0.5)/D36))","v":0},null,0,0,null,{"$f":"IF(ISERROR(+I36+'App.2-CB_MIFRS_DepExp_2012'!O36-J36), 0, +I36+'App.2-CB_MIFRS_DepExp_2012'!O36-J36)","v":0}]
[1920,"Computer Equipment - Hardware",null,null,0,{"$f":"IF(D37=0,+'App.2-CB_MIFRS_DepExp_2012'!O37,+'App.2-CB_MIFRS_DepExp_2012'!O37+((C37*0.5)/D37))","v":0},null,0,0,null,{"$f":"IF(ISERROR(+I37+'App.2-CB_MIFRS_DepExp_2012'!O37-J37), 0, +I37+'App.2-CB_MIFRS_DepExp_2012'!O37-J37)","v":0}]
[1920,"Computer Equip.-Hardware(Post Mar. 22/04)",null,null,0,{"$f":"IF(D38=0,+'App.2-CB_MIFRS_DepExp_2012'!O38,+'App.2-CB_MIFRS_DepExp_2012'!O38+((C38*0.5)/D38))","v":0},null,0,0,null,{"$f":"IF(ISERROR(+I38+'App.2-CB_MIFRS_DepExp_2012'!O38-J38), 0, +I38+'App.2-CB_MIFRS_DepExp_2012'!O38-J38)","v":0}]
[1920,"Computer Equip.-Hardware(Post Mar. 19/07)",null,null,0,{"$f":"IF(D39=0,+'App.2-CB_MIFRS_DepExp_2012'!O39,+'App.2-CB_MIFRS_DepExp_2012'!O39+((C39*0.5)/D39))","v":0},null,0,0,null,{"$f":"IF(ISERROR(+I39+'App.2-CB_MIFRS_DepExp_2012'!O39-J39), 0, +I39+'App.2-CB_MIFRS_DepExp_2012'!O39-J39)","v":0}]
[1930,"Transportation Equipment",null,null,0,{"$f":"IF(D40=0,+'App.2-CB_MIFRS_DepExp_2012'!O40,+'App.2-CB_MIFRS_DepExp_2012'!O40+((C40*0.5)/D40))","v":0},null,0,0,null,{"$f":"IF(ISERROR(+I40+'App.2-CB_MIFRS_DepExp_2012'!O40-J40), 0, +I40+'App.2-CB_MIFRS_DepExp_2012'!O40-J40)","v":0}]
[1935,"Stores Equipment",null,null,0,{"$f":"IF(D41=0,+'App.2-CB_MIFRS_DepExp_2012'!O41,+'App.2-CB_MIFRS_DepExp_2012'!O41+((C41*0.5)/D41))","v":0},null,0,0,null,{"$f":"IF(ISERROR(+I41+'App.2-CB_MIFRS_DepExp_2012'!O41-J41), 0, +I41+'App.2-CB_MIFRS_DepExp_2012'!O41-J41)","v":0}]
[1940,"Tools, Shop & Garage Equipment",null,null,0,{"$f":"IF(D42=0,+'App.2-CB_MIFRS_DepExp_2012'!O42,+'App.2-CB_MIFRS_DepExp_2012'!O42+((C42*0.5)/D42))","v":0},null,0,0,null,{"$f":"IF(ISERROR(+I42+'App.2-CB_MIFRS_DepExp_2012'!O42-J42), 0, +I42+'App.2-CB_MIFRS_DepExp_2012'!O42-J42)","v":0}]
[1945,"Measurement & Testing Equipment",null,null,0,{"$f":"IF(D43=0,+'App.2-CB_MIFRS_DepExp_2012'!O43,+'App.2-CB_MIFRS_DepExp_2012'!O43+((C43*0.5)/D43))","v":0},null,0,0,null,{"$f":"IF(ISERROR(+I43+'App.2-CB_MIFRS_DepExp_2012'!O43-J43), 0, +I43+'App.2-CB_MIFRS_DepExp_2012'!O43-J43)","v":0}]
[1950,"Power Operated Equipment",null,null,0,{"$f":"IF(D44=0,+'App.2-CB_MIFRS_DepExp_2012'!O44,+'App.2-CB_MIFRS_DepExp_2012'!O44+((C44*0.5)/D44))","v":0},null,0,0,null,{"$f":"IF(ISERROR(+I44+'App.2-CB_MIFRS_DepExp_2012'!O44-J44), 0, +I44+'App.2-CB_MIFRS_DepExp_2012'!O44-J44)","v":0}]
[1955,"Communications Equipment",null,null,0,{"$f":"IF(D45=0,+'App.2-CB_MIFRS_DepExp_2012'!O45,+'App.2-CB_MIFRS_DepExp_2012'!O45+((C45*0.5)/D45))","v":0},null,0,0,null,{"$f":"IF(ISERROR(+I45+'App.2-CB_MIFRS_DepExp_2012'!O45-J45), 0, +I45+'App.2-CB_MIFRS_DepExp_2012'!O45-J45)","v":0}]
[1955,"Communication Equipment (Smart Meters)",null,null,0,{"$f":"IF(D46=0,+'App.2-CB_MIFRS_DepExp_2012'!O46,+'App.2-CB_MIFRS_DepExp_2012'!O46+((C46*0.5)/D46))","v":0},null,0,0,null,{"$f":"IF(ISERROR(+I46+'App.2-CB_MIFRS_DepExp_2012'!O46-J46), 0, +I46+'App.2-CB_MIFRS_DepExp_2012'!O46-J46)","v":0}]
[1960,"Miscellaneous Equipment ",null,null,0,{"$f":"IF(D47=0,+'App.2-CB_MIFRS_DepExp_2012'!O47,+'App.2-CB_MIFRS_DepExp_2012'!O47+((C47*0.5)/D47))","v":0},null,0,0,null,{"$f":"IF(ISERROR(+I47+'App.2-CB_MIFRS_DepExp_2012'!O47-J47), 0, +I47+'App.2-CB_MIFRS_DepExp_2012'!O47-J47)","v":0}]
[1975,"Load Management Controls Utility Premises",null,null,0,{"$f":"IF(D48=0,+'App.2-CB_MIFRS_DepExp_2012'!O48,+'App.2-CB_MIFRS_DepExp_2012'!O48+((C48*0.5)/D48))","v":0},null,0,0,null,{"$f":"IF(ISERROR(+I48+'App.2-CB_MIFRS_DepExp_2012'!O48-J48), 0, +I48+'App.2-CB_MIFRS_DepExp_2012'!O48-J48)","v":0}]
[1980,"System Supervisor Equipment",null,null,0,{"$f":"IF(D49=0,+'App.2-CB_MIFRS_DepExp_2012'!O49,+'App.2-CB_MIFRS_DepExp_2012'!O49+((C49*0.5)/D49))","v":0},null,0,0,null,{"$f":"IF(ISERROR(+I49+'App.2-CB_MIFRS_DepExp_2012'!O49-J49), 0, +I49+'App.2-CB_MIFRS_DepExp_2012'!O49-J49)","v":0}]
[1985,"Miscellaneous Fixed Assets",null,null,0,{"$f":"IF(D50=0,+'App.2-CB_MIFRS_DepExp_2012'!O50,+'App.2-CB_MIFRS_DepExp_2012'!O50+((C50*0.5)/D50))","v":0},null,0,0,null,{"$f":"IF(ISERROR(+I50+'App.2-CB_MIFRS_DepExp_2012'!O50-J50), 0, +I50+'App.2-CB_MIFRS_DepExp_2012'!O50-J50)","v":0}]
[1995,"Contributions & Grants",null,null,0,{"$f":"IF(D51=0,+'App.2-CB_MIFRS_DepExp_2012'!O51,+'App.2-CB_MIFRS_DepExp_2012'!O51+((C51*0.5)/D51))","v":0},null,0,0,null,{"$f":"IF(ISERROR(+I51+'App.2-CB_MIFRS_DepExp_2012'!O51-J51), 0, +I51+'App.2-CB_MIFRS_DepExp_2012'!O51-J51)","v":0}]
["etc.",null,null,null,0,{"$f":"IF(D52=0,+'App.2-CB_MIFRS_DepExp_2012'!O52,+'App.2-CB_MIFRS_DepExp_2012'!O52+((C52*0.5)/D52))","v":0},null,0,0,null,{"$f":"IF(ISERROR(+I52+'App.2-CB_MIFRS_DepExp_2012'!O52-J52), 0, +I52+'App.2-CB_MIFRS_DepExp_2012'!O52-J52)","v":0}]
[null,null,null,null,0,{"$f":"IF(D53=0,+'App.2-CB_MIFRS_DepExp_2012'!O53,+'App.2-CB_MIFRS_DepExp_2012'!O53+((C53*0.5)/D53))","v":0},null,0,0,null,{"$f":"IF(ISERROR(+I53+'App.2-CB_MIFRS_DepExp_2012'!O53-J53), 0, +I53+'App.2-CB_MIFRS_DepExp_2012'!O53-J53)","v":0}]
[null,"Total",{"$f":"SUM(C16:C53)","v":0},null,null,{"$f":"SUM(F16:F53)","v":0},0,0,0,0,0]
[]
["Notes:"]
[1,"Board policy of the \"half-year\" rule - the applicant must ensure that additions in the year attract a half-year depreciation expense in the first year.  Deviations from this standard practice must be supported in the application."]
[2,"The applicant must provide an explanation of material variances in evidence"]
[3,"This column refers to the calculated full year depreciation but excludes the depreciation expense on assets fully depreciated during the year.  This column is used for the purpose of calculating depreciation expense in the following year on the next worksheet."]
[]
["General:","Applicants must provide a breakdown of depreciation and amortization expense in the above format for all relevant accounts.  Asset Retirement Obligations (AROs), depreciation and accretion expense should be disclosed separately consistent with the Notes of historical Audited Financial Statements."]

{"sheet":"App.2-CD_MIFRS_DepExp_2014","index":14,"n_rows":61,"n_cols":8,"rows_kept":61,"cut":false,"hidden":true,"merged":[[54,1,54,4],[13,1,14,1],[13,6,14,6],[8,0,8,9],[9,0,9,9],[10,0,10,9],[59,1,59,9],[58,1,58,9],[55,1,55,4],[57,1,57,7],[60,1,61,7]]}
[null,null,null,null,null,null,"File Number:",{"$f":"'LDC Info'!$E$18","v":"EB-2013-0122"}]
[null,null,null,null,null,null,"Exhibit:"]
[null,null,null,null,null,null,"Tab:"]
[null,null,null,null,null,null,"Schedule:"]
[null,null,null,null,null,null,"Page:"]
[]
[null,null,null,null,null,null,"Date:"]
[]
["Appendix 2-CD"]
["Depreciation and Amortization Expense"]
["Assumes the applicant adopted IFRS for financial reporting purposes January 1, 2012"]
[null,null,2013,"MIFRS"]
[]
["Account","Description","Additions","Years (new additions only)","Depreciation Rate on New Additions","2013 Depreciation Expense 1","2013 Depreciation Expense per Appendix 2-B Fixed Assets, Column K\n (l)","Variance 2"]
[null,null,"(d)","(f)","(g) = 1 / (f)","(h)=2012 Full Year Depreciation + ((d)*0.5)/(f) ",null,"(m) = (h) - (l)"]
[1611,"Computer Software (Formally known as Account 1925)",null,null,{"$f":"IF(D16=0,0,1/D16)","v":0},{"$f":"IF(D16=0,'App.2-CC_MIFRS_DepExp_2013'!K16,+'App.2-CC_MIFRS_DepExp_2013'!K16+((C16*0.5)/D16))","v":0},null,{"$f":"IF(ISERROR(+F16-G16), 0, +F16-G16)","v":0}]
[1612,"Land Rights (Formally known as Account 1906)",null,null,0,{"$f":"IF(D17=0,'App.2-CC_MIFRS_DepExp_2013'!K17,+'App.2-CC_MIFRS_DepExp_2013'!K17+((C17*0.5)/D17))","v":0},null,0]
[1805,"Land",null,null,0,{"$f":"IF(D18=0,'App.2-CC_MIFRS_DepExp_2013'!K18,+'App.2-CC_MIFRS_DepExp_2013'!K18+((C18*0.5)/D18))","v":0},null,0]
[1808,"Buildings",null,null,0,{"$f":"IF(D19=0,'App.2-CC_MIFRS_DepExp_2013'!K19,+'App.2-CC_MIFRS_DepExp_2013'!K19+((C19*0.5)/D19))","v":0},null,0]
[1810,"Leasehold Improvements",null,null,0,{"$f":"IF(D20=0,'App.2-CC_MIFRS_DepExp_2013'!K20,+'App.2-CC_MIFRS_DepExp_2013'!K20+((C20*0.5)/D20))","v":0},null,0]
[1815,"Transformer Station Equipment >50 kV",null,null,0,{"$f":"IF(D21=0,'App.2-CC_MIFRS_DepExp_2013'!K21,+'App.2-CC_MIFRS_DepExp_2013'!K21+((C21*0.5)/D21))","v":0},null,0]
[1820,"Distribution Station Equipment <50 kV",null,null,0,{"$f":"IF(D22=0,'App.2-CC_MIFRS_DepExp_2013'!K22,+'App.2-CC_MIFRS_DepExp_2013'!K22+((C22*0.5)/D22))","v":0},null,0]
[1825,"Storage Battery Equipment",null,null,0,{"$f":"IF(D23=0,'App.2-CC_MIFRS_DepExp_2013'!K23,+'App.2-CC_MIFRS_DepExp_2013'!K23+((C23*0.5)/D23))","v":0},null,0]
[1830,"Poles, Towers & Fixtures",null,null,0,{"$f":"IF(D24=0,'App.2-CC_MIFRS_DepExp_2013'!K24,+'App.2-CC_MIFRS_DepExp_2013'!K24+((C24*0.5)/D24))","v":0},null,0]
[1835,"Overhead Conductors & Devices",null,null,0,{"$f":"IF(D25=0,'App.2-CC_MIFRS_DepExp_2013'!K25,+'App.2-CC_MIFRS_DepExp_2013'!K25+((C25*0.5)/D25))","v":0},null,0]
[1840,"Underground Conduit",null,null,0,{"$f":"IF(D26=0,'App.2-CC_MIFRS_DepExp_2013'!K26,+'App.2-CC_MIFRS_DepExp_2013'!K26+((C26*0.5)/D26))","v":0},null,0]
[1845,"Underground Conductors & Devices",null,null,0,{"$f":"IF(D27=0,'App.2-CC_MIFRS_DepExp_2013'!K27,+'App.2-CC_MIFRS_DepExp_2013'!K27+((C27*0.5)/D27))","v":0},null,0]
[1850,"Line Transformers",null,null,0,{"$f":"IF(D28=0,'App.2-CC_MIFRS_DepExp_2013'!K28,+'App.2-CC_MIFRS_DepExp_2013'!K28+((C28*0.5)/D28))","v":0},null,0]
[1855,"Services (Overhead & Underground)",null,null,0,{"$f":"IF(D29=0,'App.2-CC_MIFRS_DepExp_2013'!K29,+'App.2-CC_MIFRS_DepExp_2013'!K29+((C29*0.5)/D29))","v":0},null,0]
[1860,"Meters",null,null,0,{"$f":"IF(D30=0,'App.2-CC_MIFRS_DepExp_2013'!K30,+'App.2-CC_MIFRS_DepExp_2013'!K30+((C30*0.5)/D30))","v":0},null,0]
[1860,"Meters (Smart Meters)",null,null,0,{"$f":"IF(D31=0,'App.2-CC_MIFRS_DepExp_2013'!K31,+'App.2-CC_MIFRS_DepExp_2013'!K31+((C31*0.5)/D31))","v":0},null,0]
[1905,"Land",null,null,0,{"$f":"IF(D32=0,'App.2-CC_MIFRS_DepExp_2013'!K32,+'App.2-CC_MIFRS_DepExp_2013'!K32+((C32*0.5)/D32))","v":0},null,0]
[1908,"Buildings & Fixtures",null,null,0,{"$f":"IF(D33=0,'App.2-CC_MIFRS_DepExp_2013'!K33,+'App.2-CC_MIFRS_DepExp_2013'!K33+((C33*0.5)/D33))","v":0},null,0]
[1910,"Leasehold Improvements",null,null,0,{"$f":"IF(D34=0,'App.2-CC_MIFRS_DepExp_2013'!K34,+'App.2-CC_MIFRS_DepExp_2013'!K34+((C34*0.5)/D34))","v":0},null,0]
[1915,"Office Furniture & Equipment (10 years)",null,null,0,{"$f":"IF(D35=0,'App.2-CC_MIFRS_DepExp_2013'!K35,+'App.2-CC_MIFRS_DepExp_2013'!K35+((C35*0.5)/D35))","v":0},null,0]
[1915,"Office Furniture & Equipment (5 years)",null,null,0,{"$f":"IF(D36=0,'App.2-CC_MIFRS_DepExp_2013'!K36,+'App.2-CC_MIFRS_DepExp_2013'!K36+((C36*0.5)/D36))","v":0},null,0]
[1920,"Computer Equipment - Hardware",null,null,0,{"$f":"IF(D37=0,'App.2-CC_MIFRS_DepExp_2013'!K37,+'App.2-CC_MIFRS_DepExp_2013'!K37+((C37*0.5)/D37))","v":0},null,0]
[1920,"Computer Equip.-Hardware(Post Mar. 22/04)",null,null,0,{"$f":"IF(D38=0,'App.2-CC_MIFRS_DepExp_2013'!K38,+'App.2-CC_MIFRS_DepExp_2013'!K38+((C38*0.5)/D38))","v":0},null,0]
[1920,"Computer Equip.-Hardware(Post Mar. 19/07)",null,null,0,{"$f":"IF(D39=0,'App.2-CC_MIFRS_DepExp_2013'!K39,+'App.2-CC_MIFRS_DepExp_2013'!K39+((C39*0.5)/D39))","v":0},null,0]
[1930,"Transportation Equipment",null,null,0,{"$f":"IF(D40=0,'App.2-CC_MIFRS_DepExp_2013'!K40,+'App.2-CC_MIFRS_DepExp_2013'!K40+((C40*0.5)/D40))","v":0},null,0]
[1935,"Stores Equipment",null,null,0,{"$f":"IF(D41=0,'App.2-CC_MIFRS_DepExp_2013'!K41,+'App.2-CC_MIFRS_DepExp_2013'!K41+((C41*0.5)/D41))","v":0},null,0]
[1940,"Tools, Shop & Garage Equipment",null,null,0,{"$f":"IF(D42=0,'App.2-CC_MIFRS_DepExp_2013'!K42,+'App.2-CC_MIFRS_DepExp_2013'!K42+((C42*0.5)/D42))","v":0},null,0]
[1945,"Measurement & Testing Equipment",null,null,0,{"$f":"IF(D43=0,'App.2-CC_MIFRS_DepExp_2013'!K43,+'App.2-CC_MIFRS_DepExp_2013'!K43+((C43*0.5)/D43))","v":0},null,0]
[1950,"Power Operated Equipment",null,null,0,{"$f":"IF(D44=0,'App.2-CC_MIFRS_DepExp_2013'!K44,+'App.2-CC_MIFRS_DepExp_2013'!K44+((C44*0.5)/D44))","v":0},null,0]
[1955,"Communications Equipment",null,null,0,{"$f":"IF(D45=0,'App.2-CC_MIFRS_DepExp_2013'!K45,+'App.2-CC_MIFRS_DepExp_2013'!K45+((C45*0.5)/D45))","v":0},null,0]
[1955,"Communication Equipment (Smart Meters)",null,null,0,{"$f":"IF(D46=0,'App.2-CC_MIFRS_DepExp_2013'!K46,+'App.2-CC_MIFRS_DepExp_2013'!K46+((C46*0.5)/D46))","v":0},null,0]
[1960,"Miscellaneous Equipment ",null,null,0,{"$f":"IF(D47=0,'App.2-CC_MIFRS_DepExp_2013'!K47,+'App.2-CC_MIFRS_DepExp_2013'!K47+((C47*0.5)/D47))","v":0},null,0]
[1975,"Load Management Controls Utility Premises",null,null,0,{"$f":"IF(D48=0,'App.2-CC_MIFRS_DepExp_2013'!K48,+'App.2-CC_MIFRS_DepExp_2013'!K48+((C48*0.5)/D48))","v":0},null,0]
[1980,"System Supervisor Equipment",null,null,0,{"$f":"IF(D49=0,'App.2-CC_MIFRS_DepExp_2013'!K49,+'App.2-CC_MIFRS_DepExp_2013'!K49+((C49*0.5)/D49))","v":0},null,0]
[1985,"Miscellaneous Fixed Assets",null,null,0,{"$f":"IF(D50=0,'App.2-CC_MIFRS_DepExp_2013'!K50,+'App.2-CC_MIFRS_DepExp_2013'!K50+((C50*0.5)/D50))","v":0},null,0]
[1995,"Contributions & Grants",null,null,0,{"$f":"IF(D51=0,'App.2-CC_MIFRS_DepExp_2013'!K51,+'App.2-CC_MIFRS_DepExp_2013'!K51+((C51*0.5)/D51))","v":0},null,0]
["etc.",null,null,null,0,{"$f":"IF(D52=0,'App.2-CC_MIFRS_DepExp_2013'!K52,+'App.2-CC_MIFRS_DepExp_2013'!K52+((C52*0.5)/D52))","v":0},null,0]
[null,null,null,null,0,{"$f":"IF(D53=0,'App.2-CC_MIFRS_DepExp_2013'!K53,+'App.2-CC_MIFRS_DepExp_2013'!K53+((C53*0.5)/D53))","v":0},null,0]
[null,"Total",{"$f":"SUM(C16:C53)","v":0},null,null,{"$f":"SUM(F16:F53)","v":0},{"$f":"SUM(G16:G53)","v":0},{"$f":"SUM(H16:H53)","v":0}]
[null,"Depreciation expense adjustment resulting from  amortization of Account 1575",null,null,null,0]
[null,"Total Depreciation expense to be included in the test year revenue requirement",null,null,null,{"$f":"+F54+F55","v":0}]
["Notes:"]
[1,"Board policy of the \"half-year\" rule - the applicant must ensure that additions in the year attract a half-year depreciation expense in the first year.  Deviations from this standard practice must be supported in the application."]
[2,"The applicant must provide an explanation of material variances in evidence"]
[]
["General:","Applicants must provide a breakdown of depreciation and amortization expense in the above format for all relevant accounts.  Asset Retirement Obligations (AROs), depreciation and accretion expense should be disclosed separately consistent with the Notes of historical Audited Financial Statements."]

{"sheet":"App.2-CE_CGAAP_DepExp_2010","index":15,"n_rows":59,"n_cols":12,"rows_kept":59,"cut":false,"hidden":false,"merged":[[56,1,56,11],[57,1,57,11],[58,1,60,11],[8,0,8,11],[9,0,9,11],[10,0,10,11],[13,0,14,0],[13,1,14,1],[13,10,14,10]]}
[null,null,null,null,null,null,null,null,null,null,"File Number:","EB-20130122"]
[null,null,null,null,null,null,null,null,null,null,"Exhibit:",2]
[null,null,null,null,null,null,null,null,null,null,"Tab:",1]
[null,null,null,null,null,null,null,null,null,null,"Schedule:",5]
[null,null,null,null,null,null,null,null,null,null,"Page:",1]
[]
[null,null,null,null,null,null,null,null,null,null,"Date:"]
[]
["Appendix 2-CE"]
["Depreciation and Amortization Expense"]
["Assumes the applicant adopted IFRS for financial reporting purposes January 1, 2015"]
[null,null,"Year",2010,"CGAAP"]
[]
["Account","Description","Opening Regulatory Gross PP&E as at Jan 1, 2010","Less Fully Depreciated","Net for Depreciation","Additions","Total for Depreciation","Years","Depreciation Rate","2010 Depreciation Expense","2010 Depreciation Expense per Appendix 2-B Fixed Assets, Column K\n (l)","Variance 2"]
[null,null,"(a)","(b)","(c)","(d)","(e) = (c) + ½ x (d) 1","(f)","(g) = 1 / (f)","(h) = (e) / (f)",null,"(m) = (h) - (l)"]
[1611,"Computer Software (Formally known as Account 1925)",22086,null,22086,61341,52756.5,5,0.2,10551.3,12612.74,-2061.4400000000005]
[1612,"Land Rights (Formally known as Account 1906)",null,null,0,null,0,null,"",0,null,0]
[1805,"Land",50000,null,50000,null,50000,0,"",0,null,0]
[1808,"Buildings",null,null,0,null,0,null,"",0,null,0]
[1810,"Leasehold Improvements",null,null,0,null,0,null,"",0,null,0]
[1815,"Transformer Station Equipment >50 kV",null,null,0,null,0,null,"",0,null,0]
[1820,"Distribution Station Equipment <50 kV",197522,null,197522,24966,210005,30,3.3333333333333333E-2,7000.166666666667,7000.17,-3.333333333102928E-3]
[1825,"Storage Battery Equipment",null,null,0,null,0,null,"",0,null,0]
[1830,"Poles, Towers & Fixtures",480083,null,480083,62256,511211,25,0.04,20448.439999999999,20448.439999999999,0]
[1835,"Overhead Conductors & Devices",541906,null,541906,856,542334,25,0.04,21693.360000000001,21693.360000000001,0]
[1840,"Underground Conduit",null,null,0,null,0,null,"",0,null,0]
[1845,"Underground Conductors & Devices",952146,null,952146,null,952146,25,0.04,38085.839999999997,38085.839999999997,0]
[1850,"Line Transformers",661053,null,661053,28328,675217,25,0.04,27008.68,27008.68,0]
[1855,"Services (Overhead & Underground)",161465,null,161465,12637,167783.5,25,0.04,6711.34,6711.34,0]
[1860,"Meters",79072,null,79072,null,79072,25,0.04,3162.88,3162.88,0]
[1860,"Meters (Smart Meters)",null,null,0,null,0,25,0.04,0,null,0]
[1905,"Land",null,null,0,null,0,null,"",0,null,0]
[1908,"Buildings & Fixtures",null,null,0,null,0,null,"",0,null,0]
[1910,"Leasehold Improvements",null,null,0,null,0,null,"",0,null,0]
[1915,"Office Furniture & Equipment (10 years)",31696,null,31696,3013,33202.5,10,0.1,3320.25,3320.25,0]
[1915,"Office Furniture & Equipment (5 years)",null,null,0,null,0,null,"",0,null,0]
[1920,"Computer Equipment - Hardware",16392,null,16392,3080,17932,5,0.2,3586.4,1466,2120.4]
[1920,"Computer Equip.-Hardware(Post Mar. 22/04)",null,null,0,null,0,null,"",0,null,0]
[1920,"Computer Equip.-Hardware(Post Mar. 19/07)",null,null,0,null,0,null,"",0,null,0]
[1930,"Transportation Equipment",null,null,0,null,0,null,"",0,null,0]
[1935,"Stores Equipment",4320,null,4320,null,4320,10,0.1,432,432,0]
[1940,"Tools, Shop & Garage Equipment",null,null,0,null,0,10,0.1,0,null,0]
[1945,"Measurement & Testing Equipment",4281,null,4281,null,4281,10,0.1,428.1,383.1,45]
[1950,"Power Operated Equipment",null,null,0,null,0,null,"",0,null,0]
[1955,"Communications Equipment",null,null,0,null,0,null,"",0,null,0]
[1955,"Communication Equipment (Smart Meters)",null,null,0,null,0,null,"",0,null,0]
[1960,"Miscellaneous Equipment ",null,null,0,null,0,null,"",0,null,0]
[1975,"Load Management Controls Utility Premises",null,null,0,null,0,null,"",0,null,0]
[1980,"System Supervisor Equipment",null,null,0,null,0,null,"",0,null,0]
[1985,"Miscellaneous Fixed Assets",null,null,0,null,0,null,"",0,null,0]
[1995,"Contributions & Grants",-532166,11423,-543589,null,-543589,25,0.04,-21743.56,-21515.1,-228.46000000000276]
["etc.",null,null,null,0,null,0,null,"",0,null,0]
[null,null,null,null,0,null,0,null,"",0,null,0]
[null,"Total",2669856,11423,2658433,196477,2756671.5,null,null,120685.19666666666,120809.69999999998,-124.50333333333629]
[]
["Notes:"]
[1,"Board policy of the \"half-year\" rule - the applicant must ensure that additions in the year attract a half-year depreciation expense in the first year.  Deviations from this standard practice must be supported in the application."]
[2,"The applicant must provide an explanation of material variances in evidence"]
["General:","Applicants must provide a breakdown of depreciation and amortization expense in the above format for all relevant accounts.  Asset Retirement Obligations (AROs), depreciation and accretion expense should be disclosed separately consistent with the Notes of historical Audited Financial Statements."]

{"sheet":"App.2-CE_CGAAP_DepExp_2011","index":16,"n_rows":59,"n_cols":12,"rows_kept":59,"cut":false,"hidden":false,"merged":[[56,1,56,11],[57,1,57,11],[58,1,60,11],[8,0,8,11],[9,0,9,11],[10,0,10,11],[13,0,14,0],[13,1,14,1],[13,10,14,10]]}
[null,null,null,null,null,null,null,null,null,null,"File Number:","EB-20130122"]
[null,null,null,null,null,null,null,null,null,null,"Exhibit:",2]
[null,null,null,null,null,null,null,null,null,null,"Tab:",1]
[null,null,null,null,null,null,null,null,null,null,"Schedule:",5]
[null,null,null,null,null,null,null,null,null,null,"Page:",1]
[]
[null,null,null,null,null,null,null,null,null,null,"Date:"]
[]
["Appendix 2-CE"]
["Depreciation and Amortization Expense"]
["Assumes the applicant adopted IFRS for financial reporting purposes January 1, 2015"]
[null,null,"Year",2011,"CGAAP"]
[]
["Account","Description","Opening Regulatory Gross PP&E as at Jan 1, 2011","Less Fully Depreciated","Net for Depreciation","Additions","Total for Depreciation","Years","Depreciation Rate","2011 Depreciation Expense","2011 Depreciation Expense per Appendix 2-B Fixed Assets, Column K\n (l)","Variance 2"]
[null,null,"(a)","(b)","(c)","(d)","(e) = (c) + ½ x (d) 1","(f)","(g) = 1 / (f)","(h) = (e) / (f)",null,"(m) = (h) - (l)"]
[1611,"Computer Software (Formally known as Account 1925)",83427,null,83427,1500,84177,5,0.2,16835.400000000001,13706.74,3128.6600000000017]
[1612,"Land Rights (Formally known as Account 1906)",0,null,0,null,0,null,"",0,null,0]
[1805,"Land",50000,null,50000,null,50000,0,"",0,null,0]
[1808,"Buildings",0,null,0,null,0,null,"",0,null,0]
[1810,"Leasehold Improvements",0,null,0,null,0,null,"",0,null,0]
[1815,"Transformer Station Equipment >50 kV",0,null,0,null,0,null,"",0,null,0]
[1820,"Distribution Station Equipment <50 kV",222488,null,222488,null,222488,30,3.3333333333333333E-2,7416.2666666666664,7416.27,-3.3333333340124227E-3]
[1825,"Storage Battery Equipment",0,null,0,null,0,null,"",0,null,0]
[1830,"Poles, Towers & Fixtures",542339,null,542339,18097,551387.5,25,0.04,22055.5,22055.5,0]
[1835,"Overhead Conductors & Devices",542762,null,542762,4224,544874,25,0.04,21794.959999999999,21794.959999999999,0]
[1840,"Underground Conduit",0,null,0,null,0,null,"",0,null,0]
[1845,"Underground Conductors & Devices",952146,null,952146,null,952146,25,0.04,38085.839999999997,38085.839999999997,0]
[1850,"Line Transformers",689381,null,689381,21553,700157.5,25,0.04,28006.3,28006.32,-2.0000000000436557E-2]
[1855,"Services (Overhead & Underground)",174102,null,174102,4036,176120,25,0.04,7044.8,7044.8,0]
[1860,"Meters",79072,null,79072,null,79072,25,0.04,3162.88,3162.88,0]
[1860,"Meters (Smart Meters)",0,null,0,null,0,25,0.04,0,null,0]
[1905,"Land",0,null,0,null,0,null,"",0,null,0]
[1908,"Buildings & Fixtures",0,null,0,null,0,null,"",0,null,0]
[1910,"Leasehold Improvements",0,null,0,null,0,null,"",0,null,0]
[1915,"Office Furniture & Equipment (10 years)",34709,null,34709,14694,42056,10,0.1,4205.6000000000004,3855.6,350.00000000000045]
[1915,"Office Furniture & Equipment (5 years)",0,null,0,null,0,null,"",0,null,0]
[1920,"Computer Equipment - Hardware",19472,null,19472,2320,20632,5,0.2,4126.3999999999996,1703.38,2423.0199999999995]
[1920,"Computer Equip.-Hardware(Post Mar. 22/04)",0,null,0,null,0,null,"",0,null,0]
[1920,"Computer Equip.-Hardware(Post Mar. 19/07)",0,null,0,null,0,null,"",0,null,0]
[1930,"Transportation Equipment",0,null,0,null,0,null,"",0,null,0]
[1935,"Stores Equipment",4320,null,4320,null,4320,10,0.1,432,432,0]
[1940,"Tools, Shop & Garage Equipment",0,null,0,null,0,10,0.1,0,null,0]
[1945,"Measurement & Testing Equipment",4281,null,4281,null,4281,10,0.1,428.1,158.1,270]
[1950,"Power Operated Equipment",0,null,0,null,0,null,"",0,null,0]
[1955,"Communications Equipment",0,null,0,null,0,null,"",0,null,0]
[1955,"Communication Equipment (Smart Meters)",0,null,0,null,0,null,"",0,null,0]
[1960,"Miscellaneous Equipment ",0,null,0,null,0,null,"",0,null,0]
[1975,"Load Management Controls Utility Premises",0,null,0,null,0,null,"",0,null,0]
[1980,"System Supervisor Equipment",0,null,0,null,0,null,"",0,null,0]
[1985,"Miscellaneous Fixed Assets",0,null,0,null,0,null,"",0,null,0]
[1995,"Contributions & Grants",-543589,null,-543589,-7774,-547476,25,0.04,-21899.040000000001,-21889.040000000001,-10]
["etc.",null,null,null,0,null,0,null,"",0,null,0]
[null,null,null,null,0,null,0,null,"",0,null,0]
[null,"Total",2854910,0,2854910,58650,2884235,null,null,131695.00666666665,125533.35,6161.6566666666677]
[]
["Notes:"]
[1,"Board policy of the \"half-year\" rule - the applicant must ensure that additions in the year attract a half-year depreciation expense in the first year.  Deviations from this standard practice must be supported in the application."]
[2,"The applicant must provide an explanation of material variances in evidence"]
["General:","Applicants must provide a breakdown of depreciation and amortization expense in the above format for all relevant accounts.  Asset Retirement Obligations (AROs), depreciation and accretion expense should be disclosed separately consistent with the Notes of historical Audited Financial Statements."]

{"sheet":"App.2-CE_CGAAP_DepExp_2012","index":17,"n_rows":59,"n_cols":12,"rows_kept":59,"cut":false,"hidden":false,"merged":[[58,1,60,11],[9,0,9,11],[8,0,8,11],[57,1,57,11],[56,1,56,11],[13,0,14,0],[13,1,14,1],[13,10,14,10],[10,0,10,11]]}
[null,null,null,null,null,null,null,null,null,null,"File Number:",{"$f":"'LDC Info'!$E$18","v":"EB-2013-0122"}]
[null,null,null,null,null,null,null,null,null,null,"Exhibit:",2]
[null,null,null,null,null,null,null,null,null,null,"Tab:",1]
[null,null,null,null,null,null,null,null,null,null,"Schedule:",5]
[null,null,null,null,null,null,null,null,null,null,"Page:",1]
[]
[null,null,null,null,null,null,null,null,null,null,"Date:"]
[]
["Appendix 2-CE"]
["Depreciation and Amortization Expense"]
["Assumes the applicant adopted IFRS for financial reporting purposes January 1, 2015"]
[null,null,"Year",2012,"CGAAP"]
[]
["Account","Description","Opening Regulatory Gross PP&E as at Jan 1, 2012","Less Fully Depreciated","Net for Depreciation","Additions","Total for Depreciation","Years","Depreciation Rate","2011 Depreciation Expense","2011 Depreciation Expense per Appendix 2-B Fixed Assets, Column K\n (l)","Variance 2"]
[null,null,"(a)","(b)","(c)","(d)","(e) = (c) + ½ x (d) 1","(f)","(g) = 1 / (f)","(h) = (e) / (f)",null,"(m) = (h) - (l)"]
[1611,"Computer Software (Formally known as Account 1925)",84927,15643.3,{"$f":"C16-D16","v":69283.7},0,{"$f":"E16+0.5*F16","v":69283.7},5,{"$f":"IF(H16=0,\"\",1/H16)","v":0.2},{"$f":"IF(H16=0,0,G16/H16)","v":13856.74},13856.74,{"$f":"IF(ISERROR(+J16-K16), \"\", +J16-K16)","v":0}]
[1612,"Land Rights (Formally known as Account 1906)",0,null,{"$f":"C17-D17","v":0},0,{"$f":"E17+0.5*F17","v":0},null,"",0,0,{"$f":"IF(ISERROR(+J17-K17), \"\", +J17-K17)","v":0}]
[1805,"Land",50000,null,50000,0,50000,0,"",0,0,0]
[1808,"Buildings",0,null,0,0,0,null,"",0,0,0]
[1810,"Leasehold Improvements",0,null,0,0,0,null,"",0,0,0]
[1815,"Transformer Station Equipment >50 kV",0,null,0,0,0,null,"",0,0,0]
[1820,"Distribution Station Equipment <50 kV",222488,null,222488,0,222488,30,3.3333333333333333E-2,7416.2666666666664,7416.2666666666664,0]
[1825,"Storage Battery Equipment",0,null,0,0,0,null,"",0,0,0]
[1830,"Poles, Towers & Fixtures",560436,null,560436,3098,561985,25,0.04,22479.4,22479.399999999998,3.637978807091713E-12]
[1835,"Overhead Conductors & Devices",546986,null,546986,0,546986,25,0.04,21879.439999999999,21879.439999999999,0]
[1840,"Underground Conduit",0,null,0,0,0,null,"",0,0,0]
[1845,"Underground Conductors & Devices",952146,null,952146,5841,955066.5,25,0.04,38202.660000000003,38202.659999999996,7.2759576141834259E-12]
[1850,"Line Transformers",710935,null,710935,36088,728979,25,0.04,29159.16,29159.16,0]
[1855,"Services (Overhead & Underground)",178138,null,178138,5074,180675,25,0.04,7227,7227,0]
[1860,"Meters",79072,79072,0,0,0,25,0.04,0,null,0]
[1860,"Meters (Smart Meters)",0,null,0,310212,155106,25,0.04,6204.24,6204.24,0]
[1905,"Land",0,null,0,0,0,null,"",0,0,0]
[1908,"Buildings & Fixtures",0,null,0,0,0,null,"",0,0,0]
[1910,"Leasehold Improvements",0,null,0,0,0,null,"",0,0,0]
[1915,"Office Furniture & Equipment (10 years)",49403,3155.55,46247.45,0,46247.45,10,0.1,4624.7449999999999,4624.7,4.500000000007276E-2]
[1915,"Office Furniture & Equipment (5 years)",0,null,0,0,0,null,"",0,0,0]
[1920,"Computer Equipment - Hardware",21791,14197.89,7593.1100000000006,2746,8966.11,5,0.2,1793.2220000000002,1793.2220000000002,0]
[1920,"Computer Equip.-Hardware(Post Mar. 22/04)",0,null,0,0,0,null,"",0,0,0]
[1920,"Computer Equip.-Hardware(Post Mar. 19/07)",0,null,0,0,0,null,"",0,0,0]
[1930,"Transportation Equipment",0,null,0,0,0,null,"",0,0,0]
[1935,"Stores Equipment",4320,null,4320,0,4320,10,0.1,432,432,0]
[1940,"Tools, Shop & Garage Equipment",0,null,0,4205,2102.5,10,0.1,210.25,210.25,0]
[1945,"Measurement & Testing Equipment",4281,2700,1581,0,1581,10,0.1,158.1,158.1,0]
[1950,"Power Operated Equipment",0,null,0,0,0,null,"",0,0,0]
[1955,"Communications Equipment",0,null,0,0,0,null,"",0,0,0]
[1955,"Communication Equipment (Smart Meters)",0,null,0,0,0,null,"",0,0,0]
[1960,"Miscellaneous Equipment ",0,null,0,0,0,null,"",0,0,0]
[1975,"Load Management Controls Utility Premises",0,null,0,0,0,null,"",0,0,0]
[1980,"System Supervisor Equipment",0,null,0,0,0,null,"",0,0,0]
[1985,"Miscellaneous Fixed Assets",0,null,0,0,0,null,"",0,0,0]
[1995,"Contributions & Grants",-551363,null,-551363,-1600,-552163,25,0.04,-22086.52,-22086.52,0]
["etc.",null,0,null,0,0,0,null,"",0,null,0]
[null,null,null,null,0,null,0,null,"",0,null,0]
[null,"Total",{"$f":"SUM(C16:C53)","v":2913560},{"$f":"SUM(D16:D53)","v":114768.74},{"$f":"SUM(E16:E53)","v":2798791.2600000002},{"$f":"SUM(F16:F53)","v":365664},{"$f":"SUM(G16:G53)","v":2981623.2600000002},null,null,{"$f":"SUM(J16:J53)","v":131556.70366666667},{"$f":"SUM(K16:K53)","v":131556.65866666668},{"$f":"SUM(L16:L53)","v":4.5000000010986696E-2}]
[]
["Notes:"]
[1,"Board policy of the \"half-year\" rule - the applicant must ensure that additions in the year attract a half-year depreciation expense in the first year.  Deviations from this standard practice must be supported in the application."]
[2,"The applicant must provide an explanation of material variances in evidence"]
["General:","Applicants must provide a breakdown of depreciation and amortization expense in the above format for all relevant accounts.  Asset Retirement Obligations (AROs), depreciation and accretion expense should be disclosed separately consistent with the Notes of historical Audited Financial Statements."]

{"sheet":"App.2-CF_CGAAP_DepExp_2013","index":18,"n_rows":60,"n_cols":12,"rows_kept":60,"cut":false,"hidden":false,"merged":[[9,0,9,11],[8,0,8,11],[56,1,56,11],[57,1,57,11],[59,1,60,11],[13,0,14,0],[13,1,14,1],[13,10,14,10],[10,0,10,11]]}
[null,null,null,null,null,null,null,null,null,null,"File Number:",{"$f":"'LDC Info'!$E$18","v":"EB-2013-0122"}]
[null,null,null,null,null,null,null,null,null,null,"Exhibit:",2]
[null,null,null,null,null,null,null,null,null,null,"Tab:",1]
[null,null,null,null,null,null,null,null,null,null,"Schedule:",5]
[null,null,null,null,null,null,null,null,null,null,"Page:",2]
[]
[null,null,null,null,null,null,null,null,null,null,"Date:"]
[]
["Appendix 2-CF"]
["Depreciation and Amortization Expense"]
["Assumes the applicant adopted IFRS for financial reporting purposes January 1, 2015"]
[null,null,"Year",2013,"CGAAP"]
[]
["Account","Description","Opening Regulatory Gross PP&E as at Jan 1, 2013","Less Fully Depreciated","Net for Depreciation","Additions","Total for Depreciation","Years","Depreciation Rate","2013 Depreciation Expense","2013 Depreciation Expense per Appendix 2-B Fixed Assets, Column K\n (l)","Variance 2"]
[null,null,"(a)","(b)","(c)","(d)","(e) = (c) + ½ x (d) 1","(f)","(g) = 1 / (f)","(h) = (e) / (f)",null,"(m) = (h) - (l)"]
[1611,"Computer Software (Formally known as Account 1925)",{"$f":"'App 2-B FixAsset 2013-CGAAP'!E16","v":84927},15643.3,{"$f":"C16-D16","v":69283.7},26500,{"$f":"E16+0.5*F16","v":82533.7},5,{"$f":"IF(H16=0,0,1/H16)","v":0.2},{"$f":"IF(H16=0,0,G16/H16)","v":16506.739999999998},16506.79,{"$f":"IF(ISERROR(+J16-K16), 0, +J16-K16)","v":-5.0000000002910383E-2}]
[1612,"Land Rights (Formally known as Account 1906)",{"$f":"'App 2-B FixAsset 2013-CGAAP'!E17","v":0},null,{"$f":"C17-D17","v":0},null,{"$f":"E17+0.5*F17","v":0},null,0,0,0,0]
[1805,"Land",{"$f":"'App 2-B FixAsset 2013-CGAAP'!E18","v":50000},null,50000,null,50000,null,0,0,0,0]
[1808,"Buildings",{"$f":"'App 2-B FixAsset 2013-CGAAP'!E19","v":0},null,0,null,0,null,0,0,0,0]
[1810,"Leasehold Improvements",{"$f":"'App 2-B FixAsset 2013-CGAAP'!E20","v":0},null,0,null,0,null,0,0,0,0]
[1815,"Transformer Station Equipment >50 kV",{"$f":"'App 2-B FixAsset 2013-CGAAP'!E21","v":0},null,0,null,0,null,0,0,0,0]
[1820,"Distribution Station Equipment <50 kV",{"$f":"'App 2-B FixAsset 2013-CGAAP'!E22","v":222488},null,222488,62400,253688,55,1.8181818181818181E-2,4612.5090909090914,4612.5,9.0909090913555701E-3]
[1825,"Storage Battery Equipment",{"$f":"'App 2-B FixAsset 2013-CGAAP'!E23","v":0},null,0,null,0,null,0,0,0,0]
[1830,"Poles, Towers & Fixtures",{"$f":"'App 2-B FixAsset 2013-CGAAP'!E24","v":563534},null,563534,83850,605459,40,2.5000000000000001E-2,15136.475,15136.46,1.5000000001236913E-2]
[1835,"Overhead Conductors & Devices",{"$f":"'App 2-B FixAsset 2013-CGAAP'!E25","v":546986},null,546986,58750,576361,60,1.6666666666666666E-2,9606.0166666666664,9606.0300000000007,-1.3333333334230701E-2]
[1840,"Underground Conduit",{"$f":"'App 2-B FixAsset 2013-CGAAP'!E26","v":0},null,0,null,0,null,0,0,0,0]
[1845,"Underground Conductors & Devices",{"$f":"'App 2-B FixAsset 2013-CGAAP'!E27","v":957987},null,957987,52400,984187,35,2.8571428571428571E-2,28119.628571428573,28119.62,8.5714285742142238E-3]
[1850,"Line Transformers",{"$f":"'App 2-B FixAsset 2013-CGAAP'!E28","v":747023},null,747023,12000,753023,40,2.5000000000000001E-2,18825.575000000001,18825.55,2.5000000001455192E-2]
[1855,"Services (Overhead & Underground)",{"$f":"'App 2-B FixAsset 2013-CGAAP'!E29","v":183212},null,183212,5000,185712,40,2.5000000000000001E-2,4642.8,4642.76,3.999999999996362E-2]
[1860,"Meters",{"$f":"'App 2-B FixAsset 2013-CGAAP'!E30","v":0},null,0,null,0,25,0.04,0,null,0]
[1860,"Meters (Smart Meters)",{"$f":"'App 2-B FixAsset 2013-CGAAP'!E31","v":310212},null,310212,null,310212,15,6.6666666666666666E-2,20680.8,20680.8,0]
[1905,"Land",{"$f":"'App 2-B FixAsset 2013-CGAAP'!E32","v":0},null,0,null,0,null,0,0,0,0]
[1908,"Buildings & Fixtures",{"$f":"'App 2-B FixAsset 2013-CGAAP'!E33","v":0},null,0,null,0,null,0,0,0,0]
[1910,"Leasehold Improvements",{"$f":"'App 2-B FixAsset 2013-CGAAP'!E34","v":0},null,0,null,0,null,0,0,0,0]
[1915,"Office Furniture & Equipment (10 years)",{"$f":"'App 2-B FixAsset 2013-CGAAP'!E35","v":49403},4750.24,44652.76,1500,45402.76,10,0.1,4540.2759999999998,4540.2700000000004,5.9999999994033715E-3]
[1915,"Office Furniture & Equipment (5 years)",{"$f":"'App 2-B FixAsset 2013-CGAAP'!E36","v":0},null,0,null,0,null,0,0,0,0]
[1920,"Computer Equipment - Hardware",{"$f":"'App 2-B FixAsset 2013-CGAAP'!E37","v":24537},16392.439999999999,8144.5600000000013,1500,8894.5600000000013,5,0.2,1778.9120000000003,1779.19,-0.27799999999979264]
[1920,"Computer Equip.-Hardware(Post Mar. 22/04)",{"$f":"'App 2-B FixAsset 2013-CGAAP'!E38","v":0},null,0,null,0,null,0,0,0,0]
[1920,"Computer Equip.-Hardware(Post Mar. 19/07)",{"$f":"'App 2-B FixAsset 2013-CGAAP'!E39","v":0},null,0,null,0,null,0,0,0,0]
[1930,"Transportation Equipment",{"$f":"'App 2-B FixAsset 2013-CGAAP'!E40","v":0},null,0,null,0,null,0,0,0,0]
[1935,"Stores Equipment",{"$f":"'App 2-B FixAsset 2013-CGAAP'!E41","v":4320},null,4320,null,4320,10,0.1,432,432,0]
[1940,"Tools, Shop & Garage Equipment",{"$f":"'App 2-B FixAsset 2013-CGAAP'!E42","v":4205},null,4205,null,4205,10,0.1,420.5,420.5,0]
[1945,"Measurement & Testing Equipment",{"$f":"'App 2-B FixAsset 2013-CGAAP'!E43","v":4281},2700,1581,null,1581,10,0.1,158.1,158.1,0]
[1950,"Power Operated Equipment",{"$f":"'App 2-B FixAsset 2013-CGAAP'!E44","v":0},null,0,null,0,null,0,0,0,0]
[1955,"Communications Equipment",{"$f":"'App 2-B FixAsset 2013-CGAAP'!E45","v":0},null,0,null,0,null,0,0,0,0]
[1955,"Communication Equipment (Smart Meters)",{"$f":"'App 2-B FixAsset 2013-CGAAP'!E46","v":0},null,0,null,0,null,0,0,0,0]
[1960,"Miscellaneous Equipment ",{"$f":"'App 2-B FixAsset 2013-CGAAP'!E47","v":0},null,0,null,0,null,0,0,0,0]
[1975,"Load Management Controls Utility Premises",{"$f":"'App 2-B FixAsset 2013-CGAAP'!E48","v":0},null,0,null,0,null,0,0,0,0]
[1980,"System Supervisor Equipment",{"$f":"'App 2-B FixAsset 2013-CGAAP'!E49","v":0},null,0,null,0,null,0,0,0,0]
[1985,"Miscellaneous Fixed Assets",{"$f":"'App 2-B FixAsset 2013-CGAAP'!E50","v":0},null,0,null,0,null,0,0,0,0]
[1995,"Contributions & Grants",{"$f":"'App 2-B FixAsset 2013-CGAAP'!E51","v":-552963},null,-552963,-8000,-556963,40,2.5000000000000001E-2,-13924.075000000001,-13924.08,4.9999999991996447E-3]
["etc.",null,null,null,0,null,0,null,0,0,null,0]
[null,null,null,null,0,null,0,null,0,0,null,0]
[null,"Total",{"$f":"SUM(C16:C53)","v":3200152},{"$f":"SUM(D16:D53)","v":39485.979999999996},{"$f":"SUM(E16:E53)","v":3160666.02},{"$f":"SUM(F16:F53)","v":295900},{"$f":"SUM(G16:G53)","v":3308616.02},null,null,{"$f":"SUM(J16:J53)","v":111536.25732900434},{"$f":"SUM(K16:K53)","v":111536.49},{"$f":"SUM(L16:L53)","v":-0.23267099567010519}]
[]
["Notes:"]
[1,"Board policy of the \"half-year\" rule - the applicant must ensure that additions in the year attract a half-year depreciation expense in the first year.  Deviations from this standard practice must be supported in the application."]
[2,"The applicant must provide an explanation of material variances in evidence"]
[]
["General:","Applicants must provide a breakdown of depreciation and amortization expense in the above format for all relevant accounts.  Asset Retirement Obligations (AROs), depreciation and accretion expense should be disclosed separately consistent with the Notes of historical Audited Financial Statements."]

{"sheet":"App.2-CF_CGAAP_DepExp_2014","index":19,"n_rows":60,"n_cols":12,"rows_kept":60,"cut":false,"hidden":false,"merged":[[56,1,56,11],[57,1,57,11],[59,1,60,11],[8,0,8,11],[9,0,9,11],[10,0,10,11],[13,0,14,0],[13,1,14,1],[13,10,14,10]]}
[null,null,null,null,null,null,null,null,null,null,"File Number:",{"$f":"'LDC Info'!$E$18","v":"EB-2013-0122"}]
[null,null,null,null,null,null,null,null,null,null,"Exhibit:",2]
[null,null,null,null,null,null,null,null,null,null,"Tab:",1]
[null,null,null,null,null,null,null,null,null,null,"Schedule:",5]
[null,null,null,null,null,null,null,null,null,null,"Page:",3]
[]
[null,null,null,null,null,null,null,null,null,null,"Date:"]
[]
["Appendix 2-CF"]
["Depreciation and Amortization Expense"]
["Assumes the applicant adopted IFRS for financial reporting purposes January 1, 2015"]
[null,null,"Year",2014,"CGAAP"]
[]
["Account","Description","Opening Regulatory Gross PP&E as at Jan 1, 2013","Less Fully Depreciated","Net for Depreciation","Additions","Total for Depreciation","Years","Depreciation Rate","2014 Depreciation Expense","2014 Depreciation Expense per Appendix 2-B Fixed Assets, Column K\n (l)","Variance 2"]
[null,null,"(a)","(b)","(c)","(d)","(e) = (c) + ½ x (d) 1","(f)","(g) = 1 / (f)","(h) = (e) / (f)",null,"(m) = (h) - (l)"]
[1611,"Computer Software (Formally known as Account 1925)",{"$f":"'App.2-B_FixAsset 2014-CGAAP'!E16","v":111427},18864.54,{"$f":"C16-D16","v":92562.459999999992},35000,{"$f":"E16+0.5*F16","v":110062.45999999999},5,{"$f":"IF(H16=0,0,1/H16)","v":0.2},{"$f":"IF(H16=0,0,G16/H16)","v":22012.491999999998},22013,{"$f":"IF(ISERROR(+J16-K16), 0, +J16-K16)","v":-0.50800000000162981}]
[1612,"Land Rights (Formally known as Account 1906)",{"$f":"'App.2-B_FixAsset 2014-CGAAP'!E17","v":0},null,{"$f":"C17-D17","v":0},null,{"$f":"E17+0.5*F17","v":0},null,0,0,0,0]
[1805,"Land",{"$f":"'App.2-B_FixAsset 2014-CGAAP'!E18","v":50000},null,50000,null,50000,null,0,0,0,0]
[1808,"Buildings",{"$f":"'App.2-B_FixAsset 2014-CGAAP'!E19","v":0},null,0,null,0,null,0,0,0,0]
[1810,"Leasehold Improvements",{"$f":"'App.2-B_FixAsset 2014-CGAAP'!E20","v":0},null,0,null,0,null,0,0,0,0]
[1815,"Transformer Station Equipment >50 kV",{"$f":"'App.2-B_FixAsset 2014-CGAAP'!E21","v":0},null,0,null,0,null,0,0,0,0]
[1820,"Distribution Station Equipment <50 kV",{"$f":"'App.2-B_FixAsset 2014-CGAAP'!E22","v":284888},null,284888,null,284888,55,1.8181818181818181E-2,5179.7818181818184,5179.7700000000004,1.1818181817943696E-2]
[1825,"Storage Battery Equipment",{"$f":"'App.2-B_FixAsset 2014-CGAAP'!E23","v":0},null,0,null,0,null,0,0,0,0]
[1830,"Poles, Towers & Fixtures",{"$f":"'App.2-B_FixAsset 2014-CGAAP'!E24","v":647384},null,647384,60220,677494,40,2.5000000000000001E-2,16937.349999999999,16937.349999999999,0]
[1835,"Overhead Conductors & Devices",{"$f":"'App.2-B_FixAsset 2014-CGAAP'!E25","v":605736},null,605736,19375,615423.5,60,1.6666666666666666E-2,10257.058333333332,10257.06,-1.6666666670062114E-3]
[1840,"Underground Conduit",{"$f":"'App.2-B_FixAsset 2014-CGAAP'!E26","v":0},null,0,null,0,null,0,0,0,0]
[1845,"Underground Conductors & Devices",{"$f":"'App.2-B_FixAsset 2014-CGAAP'!E27","v":1010387},null,1010387,398000,1209387,35,2.8571428571428571E-2,34553.914285714287,34553.910000000003,4.2857142834691331E-3]
[1850,"Line Transformers",{"$f":"'App.2-B_FixAsset 2014-CGAAP'!E28","v":759023},null,759023,87500,802773,40,2.5000000000000001E-2,20069.325000000001,20069.3,2.5000000001455192E-2]
[1855,"Services (Overhead & Underground)",{"$f":"'App.2-B_FixAsset 2014-CGAAP'!E29","v":188212},null,188212,4000,190212,40,2.5000000000000001E-2,4755.3,4755.26,3.999999999996362E-2]
[1860,"Meters",{"$f":"'App.2-B_FixAsset 2014-CGAAP'!E30","v":0},null,0,null,0,25,0.04,0,null,0]
[1860,"Meters (Smart Meters)",{"$f":"'App.2-B_FixAsset 2014-CGAAP'!E31","v":310212},null,310212,30500,325462,15,6.6666666666666666E-2,21697.466666666667,21697.47,-3.3333333340124227E-3]
[1905,"Land",{"$f":"'App.2-B_FixAsset 2014-CGAAP'!E32","v":0},null,0,null,0,null,0,0,0,0]
[1908,"Buildings & Fixtures",{"$f":"'App.2-B_FixAsset 2014-CGAAP'!E33","v":0},null,0,null,0,null,0,0,0,0]
[1910,"Leasehold Improvements",{"$f":"'App.2-B_FixAsset 2014-CGAAP'!E34","v":0},null,0,null,0,null,0,0,0,0]
[1915,"Office Furniture & Equipment (10 years)",{"$f":"'App.2-B_FixAsset 2014-CGAAP'!E35","v":50903},7592.64,43310.36,null,43310.36,10,0.1,4331.0360000000001,4331.05,-1.4000000000123691E-2]
[1915,"Office Furniture & Equipment (5 years)",{"$f":"'App.2-B_FixAsset 2014-CGAAP'!E36","v":0},null,0,null,0,null,0,0,0,0]
[1920,"Computer Equipment - Hardware",{"$f":"'App.2-B_FixAsset 2014-CGAAP'!E37","v":26037},16392.439999999999,9644.5600000000013,null,9644.5600000000013,5,0.2,1928.9120000000003,1929.19,-0.27799999999979264]
[1920,"Computer Equip.-Hardware(Post Mar. 22/04)",{"$f":"'App.2-B_FixAsset 2014-CGAAP'!E38","v":0},null,0,null,0,null,0,0,0,0]
[1920,"Computer Equip.-Hardware(Post Mar. 19/07)",{"$f":"'App.2-B_FixAsset 2014-CGAAP'!E39","v":0},null,0,null,0,null,0,0,0,0]
[1930,"Transportation Equipment",{"$f":"'App.2-B_FixAsset 2014-CGAAP'!E40","v":0},null,0,null,0,null,0,0,0,0]
[1935,"Stores Equipment",{"$f":"'App.2-B_FixAsset 2014-CGAAP'!E41","v":4320},2808,1512,null,1512,10,0.1,151.19999999999999,151.19999999999999,0]
[1940,"Tools, Shop & Garage Equipment",{"$f":"'App.2-B_FixAsset 2014-CGAAP'!E42","v":4205},null,4205,null,4205,10,0.1,420.5,420.5,0]
[1945,"Measurement & Testing Equipment",{"$f":"'App.2-B_FixAsset 2014-CGAAP'!E43","v":4281},2700,1581,null,1581,10,0.1,158.1,158.1,0]
[1950,"Power Operated Equipment",{"$f":"'App.2-B_FixAsset 2014-CGAAP'!E44","v":0},null,0,null,0,null,0,0,0,0]
[1955,"Communications Equipment",{"$f":"'App.2-B_FixAsset 2014-CGAAP'!E45","v":0},null,0,null,0,null,0,0,0,0]
[1955,"Communication Equipment (Smart Meters)",{"$f":"'App.2-B_FixAsset 2014-CGAAP'!E46","v":0},null,0,null,0,null,0,0,0,0]
[1960,"Miscellaneous Equipment ",{"$f":"'App.2-B_FixAsset 2014-CGAAP'!E47","v":0},null,0,null,0,null,0,0,0,0]
[1975,"Load Management Controls Utility Premises",{"$f":"'App.2-B_FixAsset 2014-CGAAP'!E48","v":0},null,0,null,0,null,0,0,0,0]
[1980,"System Supervisor Equipment",{"$f":"'App.2-B_FixAsset 2014-CGAAP'!E49","v":0},null,0,null,0,null,0,0,0,0]
[1985,"Miscellaneous Fixed Assets",{"$f":"'App.2-B_FixAsset 2014-CGAAP'!E50","v":0},null,0,null,0,null,0,0,0,0]
[1995,"Contributions & Grants",{"$f":"'App.2-B_FixAsset 2014-CGAAP'!E51","v":-560963},-160000,-400963,null,-400963,40,2.5000000000000001E-2,-10024.075000000001,-10024.08,4.9999999991996447E-3]
["etc.",null,null,null,0,null,0,null,0,0,0,0]
[null,null,null,null,0,null,0,null,0,0,null,0]
[null,"Total",{"$f":"SUM(C16:C53)","v":3496052},{"$f":"SUM(D16:D53)","v":-111642.38},{"$f":"SUM(E16:E53)","v":3607694.38},{"$f":"SUM(F16:F53)","v":634595},{"$f":"SUM(G16:G53)","v":3924991.88},null,null,{"$f":"SUM(J16:J53)","v":132428.36110389611},{"$f":"SUM(K16:K53)","v":132429.08000000002},{"$f":"SUM(L16:L53)","v":-0.71889610390053349}]
[]
["Notes:"]
[1,"Board policy of the \"half-year\" rule - the applicant must ensure that additions in the year attract a half-year depreciation expense in the first year.  Deviations from this standard practice must be supported in the application."]
[2,"The applicant must provide an explanation of material variances in evidence"]
[]
["General:","Applicants must provide a breakdown of depreciation and amortization expense in the above format for all relevant accounts.  Asset Retirement Obligations (AROs), depreciation and accretion expense should be disclosed separately consistent with the Notes of historical Audited Financial Statements."]

{"sheet":"App.2-CG_MIFRS_DepExp_2013","index":20,"n_rows":65,"n_cols":15,"rows_kept":65,"cut":false,"hidden":true,"merged":[[64,1,66,11],[9,0,9,14],[8,0,8,14],[10,0,10,14],[61,1,61,14],[60,1,60,14],[59,1,59,14],[58,1,58,14],[57,1,57,14],[13,0,14,0],[13,1,14,1],[13,10,14,10],[13,13,14,13],[62,1,62,14]]}
[null,null,null,null,null,null,null,null,null,null,null,null,null,"File Number:",{"$f":"'LDC Info'!$E$18","v":"EB-2013-0122"}]
[null,null,null,null,null,null,null,null,null,null,null,null,null,"Exhibit:"]
[null,null,null,null,null,null,null,null,null,null,null,null,null,"Tab:"]
[null,null,null,null,null,null,null,null,null,null,null,null,null,"Schedule:"]
[null,null,null,null,null,null,null,null,null,null,null,null,null,"Page:"]
[]
[null,null,null,null,null,null,null,null,null,null,null,null,null,"Date:"]
[]
["Appendix 2-CG"]
["Depreciation and Amortization Expense"]
["Assumes the applicant adopted IFRS for financial reporting purposes January 1, 2014"]
[null,null,"Year",2013,"MIFRS"]
[]
["Account","Description","Opening NBV as at Jan 1, 2013 5","Additions","Average Remaining Life of Opening NBV 4","Years (new additions only) 3","Depreciation Rate on New Additions","Depreciation Expense on Opening NBV","Depreciation Expense on Additions 1","2013 Depreciation Expense","2013 Depreciation Expense per Appendix 2-B Fixed Assets, Column K\n (l)","Variance 2","Depreciation Expense on 2013 Full Year Additions","Less Depreciation Expense on Assets Fully Depreciated during the year\n(o)","2013 Full Year Depreciation 6"]
[null,null,"(a)","(d)","(i)","(f)","(g) = 1 / (f)","(j) = (a) / (i)","(h)=((d)*0.5)/(f) ","(k) = (j) + (h)",null,"(m) = (k) - (l)","(n)=((d))/(f) ",null,"(p) = (j) + (n) - (o)"]
[1611,"Computer Software (Formally known as Account 1925)",null,null,null,null,{"$f":"IF(F16=0,0,1/F16)","v":0},{"$f":"IF(E16=0,0,+C16/E16)","v":0},{"$f":"IF(F16=0,0,+(D16*0.5)/F16)","v":0},{"$f":"IF(ISERROR(+H16+I16), 0, +H16+I16)","v":0},null,{"$f":"IF(ISERROR(+J16-K16), 0, +J16-K16)","v":0},{"$f":"IF(F16=0,0,+(D16)/F16)","v":0},null,{"$f":"IF(ISERROR(+M16+H16-N16), 0, +M16+H16-N16)","v":0}]
[1612,"Land Rights (Formally known as Account 1906)",null,null,null,null,0,0,0,0,null,0,0,null,{"$f":"IF(ISERROR(+M17+H17-N17), 0, +M17+H17-N17)","v":0}]
[1805,"Land",null,null,null,null,0,0,0,0,null,0,0,null,0]
[1808,"Buildings",null,null,null,null,0,0,0,0,null,0,0,null,0]
[1810,"Leasehold Improvements",null,null,null,null,0,0,0,0,null,0,0,null,0]
[1815,"Transformer Station Equipment >50 kV",null,null,null,null,0,0,0,0,null,0,0,null,0]
[1820,"Distribution Station Equipment <50 kV",null,null,null,null,0,0,0,0,null,0,0,null,0]
[1825,"Storage Battery Equipment",null,null,null,null,0,0,0,0,null,0,0,null,0]
[1830,"Poles, Towers & Fixtures",null,null,null,null,0,0,0,0,null,0,0,null,0]
[1835,"Overhead Conductors & Devices",null,null,null,null,0,0,0,0,null,0,0,null,0]
[1840,"Underground Conduit",null,null,null,null,0,0,0,0,null,0,0,null,0]
[1845,"Underground Conductors & Devices",null,null,null,null,0,0,0,0,null,0,0,null,0]
[1850,"Line Transformers",null,null,null,null,0,0,0,0,null,0,0,null,0]
[1855,"Services (Overhead & Underground)",null,null,null,null,0,0,0,0,null,0,0,null,0]
[1860,"Meters",null,null,null,null,0,0,0,0,null,0,0,null,0]
[1860,"Meters (Smart Meters)",null,null,null,null,0,0,0,0,null,0,0,null,0]
[1905,"Land",null,null,null,null,0,0,0,0,null,0,0,null,0]
[1908,"Buildings & Fixtures",null,null,null,null,0,0,0,0,null,0,0,null,0]
[1910,"Leasehold Improvements",null,null,null,null,0,0,0,0,null,0,0,null,0]
[1915,"Office Furniture & Equipment (10 years)",null,null,null,null,0,0,0,0,null,0,0,null,0]
[1915,"Office Furniture & Equipment (5 years)",null,null,null,null,0,0,0,0,null,0,0,null,0]
[1920,"Computer Equipment - Hardware",null,null,null,null,0,0,0,0,null,0,0,null,0]
[1920,"Computer Equip.-Hardware(Post Mar. 22/04)",null,null,null,null,0,0,0,0,null,0,0,null,0]
[1920,"Computer Equip.-Hardware(Post Mar. 19/07)",null,null,null,null,0,0,0,0,null,0,0,null,0]
[1930,"Transportation Equipment",null,null,null,null,0,0,0,0,null,0,0,null,0]
[1935,"Stores Equipment",null,null,null,null,0,0,0,0,null,0,0,null,0]
[1940,"Tools, Shop & Garage Equipment",null,null,null,null,0,0,0,0,null,0,0,null,0]
[1945,"Measurement & Testing Equipment",null,null,null,null,0,0,0,0,null,0,0,null,0]
[1950,"Power Operated Equipment",null,null,null,null,0,0,0,0,null,0,0,null,0]
[1955,"Communications Equipment",null,null,null,null,0,0,0,0,null,0,0,null,0]
[1955,"Communication Equipment (Smart Meters)",null,null,null,null,0,0,0,0,null,0,0,null,0]
[1960,"Miscellaneous Equipment ",null,null,null,null,0,0,0,0,null,0,0,null,0]
[1975,"Load Management Controls Utility Premises",null,null,null,null,0,0,0,0,null,0,0,null,0]
[1980,"System Supervisor Equipment",null,null,null,null,0,0,0,0,null,0,0,null,0]
[1985,"Miscellaneous Fixed Assets",null,null,null,null,0,0,0,0,null,0,0,null,0]
[1995,"Contributions & Grants",null,null,null,null,0,0,0,0,null,0,0,null,0]
["etc.",null,null,null,null,null,0,0,0,0,null,0,0,null,0]
[null,null,null,null,null,null,0,0,0,0,null,0,0,null,0]
[null,"Total",{"$f":"SUM(C16:C53)","v":0},{"$f":"SUM(D16:D53)","v":0},null,null,null,{"$f":"SUM(H16:H53)","v":0},0,0,0,0,0,{"$f":"SUM(N16:N53)","v":0},0]
[]
["Notes:"]
[]
[1,"Board policy of the \"half-year\" rule - the applicant must ensure that additions in the year attract a half-year depreciation expense in the first year.  Deviations from this standard practice must be supported in the application."]
[2,"The applicant must provide an explanation of material variances in evidence"]
[3,"The applicant should ensure that the years for new additions of assets are the asset useful lives determined by management in accordance with IFRS. "]
[4,"A recalculation should be performed to determine the average remaining life of opening balance of assets (i.e. excluding 2012 additions) under IFRS.  For example, Asset A had a useful life of 20 years under CGAAP.  On January 1, 2012, the date of transition, Asset A was 3 years depreciated. As a result, Asset A would have a remaining service life of 17 years (20 years less 3 years) under CGAAP as of January 1, 2012.  Due to the transition to IFRS, management re-assessed the asset useful lives under IFRS principles and concluded that the revised useful life of Asset A is now 30 years. Therefore, the average remaining useful life of opening balance of Asset A is determined to be 27 years (30 years less 3 years) under IFRS as of January 1, 2012."]
[5,"NBV must exclude assets still on the books but which have been fully amortized or depreciated."]
[6,"This column refers to the calculated full year depreciation but excludes the depreciation expense on assets fully depreciated during the year.  This column is used for the purpose of calculating depreciation expense in the following year on the next worksheet."]
[]
["General:","Applicants must provide a breakdown of depreciation and amortization expense in the above format for all relevant accounts.  Asset Retirement Obligations (AROs), depreciation and accretion expense should be disclosed separately consistent with the Notes of historical Audited Financial Statements."]

{"sheet":"App.2-CH_MIFRS_DepExp_2014","index":21,"n_rows":63,"n_cols":10,"rows_kept":63,"cut":false,"hidden":true,"merged":[[8,0,8,9],[55,1,55,4],[62,1,63,9],[59,1,59,9],[58,1,58,9],[13,0,14,0],[13,1,14,1],[13,6,14,6],[10,0,10,9],[9,0,9,9]]}
[null,null,null,null,null,null,null,null,"File Number:",{"$f":"'LDC Info'!$E$18","v":"EB-2013-0122"}]
[null,null,null,null,null,null,null,null,"Exhibit:"]
[null,null,null,null,null,null,null,null,"Tab:"]
[null,null,null,null,null,null,null,null,"Schedule:"]
[null,null,null,null,null,null,null,null,"Page:"]
[]
[null,null,null,null,null,null,null,null,"Date:"]
[]
["Appendix 2-CH"]
["Depreciation and Amortization Expense"]
["Assumes the applicant adopted IFRS for financial reporting purposes January 1, 2014"]
[null,null,"Year",2014,"MIFRS"]
[]
["Account","Description","Additions","Years (new additions only)","Depreciation Rate on New Additions","2014 Depreciation Expense 1","2014 Depreciation Expense per Appendix 2-B Fixed Assets, Column K\n (l)","Variance 2"]
[null,null,"(d)","(f)","(g) = 1 / (f)","(h)=2012 Full Year Depreciation + ((d)*0.5)/(f) ",null,"(m) = (h) - (l)"]
[1611,"Computer Software (Formally known as Account 1925)",null,null,{"$f":"IF(D16=0,0,1/D16)","v":0},{"$f":"IF(D16=0,'App.2-CG_MIFRS_DepExp_2013'!O16,+'App.2-CG_MIFRS_DepExp_2013'!O16+((C16*0.5)/D16))","v":0},null,{"$f":"IF(ISERROR(+F16-G16), 0, +F16-G16)","v":0}]
[1612,"Land Rights (Formally known as Account 1906)",null,null,0,{"$f":"IF(D17=0,'App.2-CG_MIFRS_DepExp_2013'!O17,+'App.2-CG_MIFRS_DepExp_2013'!O17+((C17*0.5)/D17))","v":0},null,0]
[1805,"Land",null,null,0,{"$f":"IF(D18=0,'App.2-CG_MIFRS_DepExp_2013'!O18,+'App.2-CG_MIFRS_DepExp_2013'!O18+((C18*0.5)/D18))","v":0},null,0]
[1808,"Buildings",null,null,0,{"$f":"IF(D19=0,'App.2-CG_MIFRS_DepExp_2013'!O19,+'App.2-CG_MIFRS_DepExp_2013'!O19+((C19*0.5)/D19))","v":0},null,0]
[1810,"Leasehold Improvements",null,null,0,{"$f":"IF(D20=0,'App.2-CG_MIFRS_DepExp_2013'!O20,+'App.2-CG_MIFRS_DepExp_2013'!O20+((C20*0.5)/D20))","v":0},null,0]
[1815,"Transformer Station Equipment >50 kV",null,null,0,{"$f":"IF(D21=0,'App.2-CG_MIFRS_DepExp_2013'!O21,+'App.2-CG_MIFRS_DepExp_2013'!O21+((C21*0.5)/D21))","v":0},null,0]
[1820,"Distribution Station Equipment <50 kV",null,null,0,{"$f":"IF(D22=0,'App.2-CG_MIFRS_DepExp_2013'!O22,+'App.2-CG_MIFRS_DepExp_2013'!O22+((C22*0.5)/D22))","v":0},null,0]
[1825,"Storage Battery Equipment",null,null,0,{"$f":"IF(D23=0,'App.2-CG_MIFRS_DepExp_2013'!O23,+'App.2-CG_MIFRS_DepExp_2013'!O23+((C23*0.5)/D23))","v":0},null,0]
[1830,"Poles, Towers & Fixtures",null,null,0,{"$f":"IF(D24=0,'App.2-CG_MIFRS_DepExp_2013'!O24,+'App.2-CG_MIFRS_DepExp_2013'!O24+((C24*0.5)/D24))","v":0},null,0]
[1835,"Overhead Conductors & Devices",null,null,0,{"$f":"IF(D25=0,'App.2-CG_MIFRS_DepExp_2013'!O25,+'App.2-CG_MIFRS_DepExp_2013'!O25+((C25*0.5)/D25))","v":0},null,0]
[1840,"Underground Conduit",null,null,0,{"$f":"IF(D26=0,'App.2-CG_MIFRS_DepExp_2013'!O26,+'App.2-CG_MIFRS_DepExp_2013'!O26+((C26*0.5)/D26))","v":0},null,0]
[1845,"Underground Conductors & Devices",null,null,0,{"$f":"IF(D27=0,'App.2-CG_MIFRS_DepExp_2013'!O27,+'App.2-CG_MIFRS_DepExp_2013'!O27+((C27*0.5)/D27))","v":0},null,0]
[1850,"Line Transformers",null,null,0,{"$f":"IF(D28=0,'App.2-CG_MIFRS_DepExp_2013'!O28,+'App.2-CG_MIFRS_DepExp_2013'!O28+((C28*0.5)/D28))","v":0},null,0]
[1855,"Services (Overhead & Underground)",null,null,0,{"$f":"IF(D29=0,'App.2-CG_MIFRS_DepExp_2013'!O29,+'App.2-CG_MIFRS_DepExp_2013'!O29+((C29*0.5)/D29))","v":0},null,0]
[1860,"Meters",null,null,0,{"$f":"IF(D30=0,'App.2-CG_MIFRS_DepExp_2013'!O30,+'App.2-CG_MIFRS_DepExp_2013'!O30+((C30*0.5)/D30))","v":0},null,0]
[1860,"Meters (Smart Meters)",null,null,0,{"$f":"IF(D31=0,'App.2-CG_MIFRS_DepExp_2013'!O31,+'App.2-CG_MIFRS_DepExp_2013'!O31+((C31*0.5)/D31))","v":0},null,0]
[1905,"Land",null,null,0,{"$f":"IF(D32=0,'App.2-CG_MIFRS_DepExp_2013'!O32,+'App.2-CG_MIFRS_DepExp_2013'!O32+((C32*0.5)/D32))","v":0},null,0]
[1908,"Buildings & Fixtures",null,null,0,{"$f":"IF(D33=0,'App.2-CG_MIFRS_DepExp_2013'!O33,+'App.2-CG_MIFRS_DepExp_2013'!O33+((C33*0.5)/D33))","v":0},null,0]
[1910,"Leasehold Improvements",null,null,0,{"$f":"IF(D34=0,'App.2-CG_MIFRS_DepExp_2013'!O34,+'App.2-CG_MIFRS_DepExp_2013'!O34+((C34*0.5)/D34))","v":0},null,0]
[1915,"Office Furniture & Equipment (10 years)",null,null,0,{"$f":"IF(D35=0,'App.2-CG_MIFRS_DepExp_2013'!O35,+'App.2-CG_MIFRS_DepExp_2013'!O35+((C35*0.5)/D35))","v":0},null,0]
[1915,"Office Furniture & Equipment (5 years)",null,null,0,{"$f":"IF(D36=0,'App.2-CG_MIFRS_DepExp_2013'!O36,+'App.2-CG_MIFRS_DepExp_2013'!O36+((C36*0.5)/D36))","v":0},null,0]
[1920,"Computer Equipment - Hardware",null,null,0,{"$f":"IF(D37=0,'App.2-CG_MIFRS_DepExp_2013'!O37,+'App.2-CG_MIFRS_DepExp_2013'!O37+((C37*0.5)/D37))","v":0},null,0]
[1920,"Computer Equip.-Hardware(Post Mar. 22/04)",null,null,0,{"$f":"IF(D38=0,'App.2-CG_MIFRS_DepExp_2013'!O38,+'App.2-CG_MIFRS_DepExp_2013'!O38+((C38*0.5)/D38))","v":0},null,0]
[1920,"Computer Equip.-Hardware(Post Mar. 19/07)",null,null,0,{"$f":"IF(D39=0,'App.2-CG_MIFRS_DepExp_2013'!O39,+'App.2-CG_MIFRS_DepExp_2013'!O39+((C39*0.5)/D39))","v":0},null,0]
[1930,"Transportation Equipment",null,null,0,{"$f":"IF(D40=0,'App.2-CG_MIFRS_DepExp_2013'!O40,+'App.2-CG_MIFRS_DepExp_2013'!O40+((C40*0.5)/D40))","v":0},null,0]
[1935,"Stores Equipment",null,null,0,{"$f":"IF(D41=0,'App.2-CG_MIFRS_DepExp_2013'!O41,+'App.2-CG_MIFRS_DepExp_2013'!O41+((C41*0.5)/D41))","v":0},null,0]
[1940,"Tools, Shop & Garage Equipment",null,null,0,{"$f":"IF(D42=0,'App.2-CG_MIFRS_DepExp_2013'!O42,+'App.2-CG_MIFRS_DepExp_2013'!O42+((C42*0.5)/D42))","v":0},null,0]
[1945,"Measurement & Testing Equipment",null,null,0,{"$f":"IF(D43=0,'App.2-CG_MIFRS_DepExp_2013'!O43,+'App.2-CG_MIFRS_DepExp_2013'!O43+((C43*0.5)/D43))","v":0},null,0]
[1950,"Power Operated Equipment",null,null,0,{"$f":"IF(D44=0,'App.2-CG_MIFRS_DepExp_2013'!O44,+'App.2-CG_MIFRS_DepExp_2013'!O44+((C44*0.5)/D44))","v":0},null,0]
[1955,"Communications Equipment",null,null,0,{"$f":"IF(D45=0,'App.2-CG_MIFRS_DepExp_2013'!O45,+'App.2-CG_MIFRS_DepExp_2013'!O45+((C45*0.5)/D45))","v":0},null,0]
[1955,"Communication Equipment (Smart Meters)",null,null,0,{"$f":"IF(D46=0,'App.2-CG_MIFRS_DepExp_2013'!O46,+'App.2-CG_MIFRS_DepExp_2013'!O46+((C46*0.5)/D46))","v":0},null,0]
[1960,"Miscellaneous Equipment ",null,null,0,{"$f":"IF(D47=0,'App.2-CG_MIFRS_DepExp_2013'!O47,+'App.2-CG_MIFRS_DepExp_2013'!O47+((C47*0.5)/D47))","v":0},null,0]
[1975,"Load Management Controls Utility Premises",null,null,0,{"$f":"IF(D48=0,'App.2-CG_MIFRS_DepExp_2013'!O48,+'App.2-CG_MIFRS_DepExp_2013'!O48+((C48*0.5)/D48))","v":0},null,0]
[1980,"System Supervisor Equipment",null,null,0,{"$f":"IF(D49=0,'App.2-CG_MIFRS_DepExp_2013'!O49,+'App.2-CG_MIFRS_DepExp_2013'!O49+((C49*0.5)/D49))","v":0},null,0]
[1985,"Miscellaneous Fixed Assets",null,null,0,{"$f":"IF(D50=0,'App.2-CG_MIFRS_DepExp_2013'!O50,+'App.2-CG_MIFRS_DepExp_2013'!O50+((C50*0.5)/D50))","v":0},null,0]
[1995,"Contributions & Grants",null,null,0,{"$f":"IF(D51=0,'App.2-CG_MIFRS_DepExp_2013'!O51,+'App.2-CG_MIFRS_DepExp_2013'!O51+((C51*0.5)/D51))","v":0},null,0]
["etc.",null,null,null,0,{"$f":"IF(D52=0,'App.2-CG_MIFRS_DepExp_2013'!O52,+'App.2-CG_MIFRS_DepExp_2013'!O52+((C52*0.5)/D52))","v":0},null,0]
[null,null,null,null,0,{"$f":"IF(D53=0,'App.2-CG_MIFRS_DepExp_2013'!O53,+'App.2-CG_MIFRS_DepExp_2013'!O53+((C53*0.5)/D53))","v":0},null,0]
[null,"Total",{"$f":"SUM(C16:C53)","v":0},null,null,{"$f":"SUM(F16:F53)","v":0},{"$f":"SUM(G16:G53)","v":0},{"$f":"SUM(H16:H53)","v":0}]
[null,"Depreciation expense adjustment resulting from  amortization of Account 1575",null,null,null,0]
[null,"Total Depreciation expense to be included in the test year revenue requirement",null,null,null,{"$f":"+F55+F54","v":0}]
[]
["Notes:"]
[1,"Board policy of the \"half-year\" rule - the applicant must ensure that additions in the year attract a half-year depreciation expense in the first year.  Deviations from this standard practice must be supported in the application."]
[2,"The applicant must provide an explanation of material variances in evidence"]
[]
[]
["General:","Applicants must provide a breakdown of depreciation and amortization expense in the above format for all relevant accounts.  Asset Retirement Obligations (AROs), depreciation and accretion expense should be disclosed separately consistent with the Notes of historical Audited Financial Statements."]

{"sheet":"App.2-CI_AltAccStd_DepExp","index":22,"n_rows":62,"n_cols":12,"rows_kept":62,"cut":false,"hidden":true,"merged":[[8,0,8,11],[11,4,11,5],[13,0,14,0],[13,1,14,1],[13,10,14,10],[58,1,58,11],[57,1,57,11],[61,1,62,11],[10,0,10,11],[9,0,9,11]]}
[null,null,null,null,null,null,null,null,null,null,"File Number:",{"$f":"'LDC Info'!$E$18","v":"EB-2013-0122"}]
[null,null,null,null,null,null,null,null,null,null,"Exhibit:"]
[null,null,null,null,null,null,null,null,null,null,"Tab:"]
[null,null,null,null,null,null,null,null,null,null,"Schedule:"]
[null,null,null,null,null,null,null,null,null,null,"Page:"]
[]
[null,null,null,null,null,null,null,null,null,null,"Date:"]
[]
["Appendix 2-CI"]
["Depreciation and Amortization Expense"]
["Assumes the applicant adopted an alternate accounting standard other than IFRS for financial reporting purposes.  For applicants adopting an Alternate Accounting Standard for financial reporting purposes January 1, 2012, applicants must complete 4 versions of the table below (2011 CGAAP, 2011 Alternate Accounting Standard, 2012 Alternate Accounting Standard and 2013 Alternate Accounting Standard).  For applicants adopting an Alternate Accounting Standard for financial reporting purposes January 1, 2013, applicants must complete 4 versions of the table below (2011 CGAAP, 2012 CGAAP, 2012 Alternate Accounting Standard and 2013 Alternate Accounting Standard)."]
[null,"Year",null,null,"Accounting Standard"]
[]
["Account","Description","Opening\nRegulatory Gross PP&E","Less Fully Depreciated","Net for Depreciation","Additions","Total for Depreciation","Years","Depreciation Rate","Depreciation Expense","Depreciation Expense per Appendix 2-B Fixed Assets, Column K\n (l)","Variance 2"]
[null,null,"(a)","(b)","(c)","(d)","(e) = (c) + ½ x (d) 1","(f)","(g) = 1 / (f)","(h) = (e) / (f)",null,"(m) = (h) - (l)"]
[1611,"Computer Software (Formally known as Account 1925)",null,null,{"$f":"C16-D16","v":0},null,{"$f":"E16+0.5*F16","v":0},null,{"$f":"IF(H16=0,0,1/H16)","v":0},{"$f":"IF(H16=0,0,G16/H16)","v":0},null,{"$f":"IF(ISERROR(+J16-K16), 0, +J16-K16)","v":0}]
[1612,"Land Rights (Formally known as Account 1906)",null,null,{"$f":"C17-D17","v":0},null,{"$f":"E17+0.5*F17","v":0},null,0,0,null,0]
[1805,"Land",null,null,0,null,0,null,0,0,null,0]
[1808,"Buildings",null,null,0,null,0,null,0,0,null,0]
[1810,"Leasehold Improvements",null,null,0,null,0,null,0,0,null,0]
[1815,"Transformer Station Equipment >50 kV",null,null,0,null,0,null,0,0,null,0]
[1820,"Distribution Station Equipment <50 kV",null,null,0,null,0,null,0,0,null,0]
[1825,"Storage Battery Equipment",null,null,0,null,0,null,0,0,null,0]
[1830,"Poles, Towers & Fixtures",null,null,0,null,0,null,0,0,null,0]
[1835,"Overhead Conductors & Devices",null,null,0,null,0,null,0,0,null,0]
[1840,"Underground Conduit",null,null,0,null,0,null,0,0,null,0]
[1845,"Underground Conductors & Devices",null,null,0,null,0,null,0,0,null,0]
[1850,"Line Transformers",null,null,0,null,0,null,0,0,null,0]
[1855,"Services (Overhead & Underground)",null,null,0,null,0,null,0,0,null,0]
[1860,"Meters",null,null,0,null,0,null,0,0,null,0]
[1860,"Meters (Smart Meters)",null,null,0,null,0,null,0,0,null,0]
[1905,"Land",null,null,0,null,0,null,0,0,null,0]
[1908,"Buildings & Fixtures",null,null,0,null,0,null,0,0,null,0]
[1910,"Leasehold Improvements",null,null,0,null,0,null,0,0,null,0]
[1915,"Office Furniture & Equipment (10 years)",null,null,0,null,0,null,0,0,null,0]
[1915,"Office Furniture & Equipment (5 years)",null,null,0,null,0,null,0,0,null,0]
[1920,"Computer Equipment - Hardware",null,null,0,null,0,null,0,0,null,0]
[1920,"Computer Equip.-Hardware(Post Mar. 22/04)",null,null,0,null,0,null,0,0,null,0]
[1920,"Computer Equip.-Hardware(Post Mar. 19/07)",null,null,0,null,0,null,0,0,null,0]
[1930,"Transportation Equipment",null,null,0,null,0,null,0,0,null,0]
[1935,"Stores Equipment",null,null,0,null,0,null,0,0,null,0]
[1940,"Tools, Shop & Garage Equipment",null,null,0,null,0,null,0,0,null,0]
[1945,"Measurement & Testing Equipment",null,null,0,null,0,null,0,0,null,0]
[1950,"Power Operated Equipment",null,null,0,null,0,null,0,0,null,0]
[1955,"Communications Equipment",null,null,0,null,0,null,0,0,null,0]
[1955,"Communication Equipment (Smart Meters)",null,null,0,null,0,null,0,0,null,0]
[1960,"Miscellaneous Equipment ",null,null,0,null,0,null,0,0,null,0]
[1975,"Load Management Controls Utility Premises",null,null,0,null,0,null,0,0,null,0]
[1980,"System Supervisor Equipment",null,null,0,null,0,null,0,0,null,0]
[1985,"Miscellaneous Fixed Assets",null,null,0,null,0,null,0,0,null,0]
[1995,"Contributions & Grants",null,null,0,null,0,null,0,0,null,0]
["etc.",null,null,null,0,null,0,null,0,0,null,0]
[null,null,null,null,0,null,0,null,0,0,null,0]
[null,"Total",{"$f":"SUM(C16:C53)","v":0},{"$f":"SUM(D16:D53)","v":0},{"$f":"SUM(E16:E53)","v":0},{"$f":"SUM(F16:F53)","v":0},{"$f":"SUM(G16:G53)","v":0},null,null,{"$f":"SUM(J16:J53)","v":0},{"$f":"SUM(K16:K53)","v":0},{"$f":"SUM(L16:L53)","v":0}]
[]
["Notes:"]
[]
[1,"Board policy of the \"half-year\" rule - the applicant must ensure that additions in the year attract a half-year depreciation expense in the first year.  Deviations from this standard practice must be supported in the application."]
[2,"The applicant must provide an explanation of material variances in evidence"]
[]
[]
["General:","Applicants must provide a breakdown of depreciation and amortization expense in the above format for all relevant accounts.  Asset Retirement Obligations (AROs), depreciation and accretion expense should be disclosed separately consistent with the Notes of historical Audited Financial Statements."]

{"sheet":"App.2-D_Overhead","index":23,"n_rows":56,"n_cols":13,"rows_kept":56,"cut":false,"hidden":false,"merged":[[8,0,8,12],[9,0,9,12],[11,0,11,12],[13,0,15,2],[13,10,13,12],[14,10,14,12],[15,10,15,12],[22,0,22,2],[22,10,22,12],[16,0,16,2],[16,10,16,12],[17,0,17,2],[17,10,17,12],[18,0,18,2],[18,10,18,12],[19,0,19,2],[19,10,19,12],[20,0,20,2],[20,10,20,12],[21,10,21,12],[23,0,23,2],[23,10,23,12],[24,0,24,2],[24,10,24,12],[25,0,25,2],[25,10,25,12],[35,0,37,2],[35,10,35,12],[36,10,36,12],[37,10,37,12],[26,0,26,2],[26,10,26,12],[27,0,27,2],[27,10,27,12],[28,0,28,2],[28,10,28,12],[29,0,29,2],[29,10,29,12],[30,0,30,2],[30,10,30,12],[33,0,33,12],[44,0,44,2],[44,10,44,12],[38,0,38,2],[38,10,38,12],[39,0,39,2],[39,10,39,12],[40,0,40,2],[40,10,40,12],[41,0,41,2],[41,10,41,12],[42,0,42,2],[42,10,42,12],[43,10,43,12],[45,0,45,2],[45,10,45,12],[46,0,46,2],[46,10,46,12],[47,0,47,2],[47,10,47,12],[48,0,48,2],[48,10,48,12],[49,0,49,2],[49,10,49,12],[50,0,50,2],[50,10,50,12],[51,0,51,2],[51,10,51,12],[52,0,52,2],[52,10,52,12],[57,0,58,0],[57,1,58,4],[55,1,56,12],[68,0,71,0],[73,0,74,0],[60,0,61,0],[60,1,60,4],[62,0,63,0],[65,0,66,0]]}
[null,null,null,null,null,null,null,null,null,null,null,"File Number:",{"$f":"'LDC Info'!$E$18","v":"EB-2013-0122"}]
[null,null,null,null,null,null,null,null,null,null,null,"Exhibit:"]
[null,null,null,null,null,null,null,null,null,null,null,"Tab:"]
[null,null,null,null,null,null,null,null,null,null,null,"Schedule:"]
[null,null,null,null,null,null,null,null,null,null,null,"Page:"]
[]
[null,null,null,null,null,null,null,null,null,null,null,"Date:"]
[]
["Appendix 2-D"]
["Overhead Expense"]
[]
["The following table should be completed based on the information requested below. An explanation should be provided for any blank entries.  The entries should include overhead costs that are currently capitalized on self-constructed assets under MIFRS or an alternate accounting standard."]
[null,null,null,null,"(A) 1","(B)","(C)","(D)","(E) 1","(F)","(G)"]
["Nature of the Overhead Costs",null,null,null,"Dollar","Dollar","Dollar","Dollar Impact - ","Dollar Impact - ","Directly","Reasons why the overhead costs are allowed to be"]
[null,null,null,null,"Impact on PP&E","Impact on PP&E","Impact on PP&E","PP&E Variance","PP&E Variance","Attributable?","capitalized under MIFRS or an alternate accounting"]
[null,null,null,null,"Historic Year","Bridge Year","Test Year","Test versus Bridge","Test versus Historic","(Y/N)","standard given limitations on capitalized overhead"]
["employee benefits",null,null,null,null,null,null,{"$f":"+G17-F17","v":0},{"$f":"+G17-E17","v":0}]
["costs of site preparation",null,null,null,null,null,null,0,0]
["initial delivery and handling costs",null,null,null,null,null,null,0,0]
["costs of testing whether the asset is functioning properly",null,null,null,null,null,null,0,0]
["professional fees",null,null,null,null,null,null,0,0]
[null,null,null,null,null,null,null,0,0]
["costs of opening a new facility",null,null,null,null,null,null,0,0]
["costs of introducing a new product or service (including costs of advertising and promotional activities)",null,null,null,null,null,null,0,0]
["costs of conducting business in a new location or with a new class of customer (including costs of staff training)",null,null,null,null,null,null,0,0]
["administration and other general overhead costs",null,null,null,null,null,null,0,0]
[null,null,null,null,null,null,null,0,0]
[null,null,null,null,null,null,null,0,0]
[null,null,null,null,null,null,null,0,0]
["Insert description of additional item(s) and new rows if needed.",null,null,null,null,null,null,0,0]
["Total",null,null,null,{"$f":"SUM(E17:E30)","v":0},{"$f":"SUM(F17:F30)","v":0},{"$f":"SUM(G17:G30)","v":0},{"$f":"SUM(H17:H30)","v":0},{"$f":"SUM(I17:I30)","v":0}]
[]
[]
["The following table should be completed based on the information requested below. An explanation should be provided for any blank entries.  The entries should include overhead costs that were capitalized on self-constructed assets under CGAAP but are no longer capitalized under MIFRS or an alternate accounting standard and are included in OM&A."]
[null,null,null,null,"(A) 1","(B)","(C)","(D)","(E) 1","(F)","(G)"]
["Nature of the Overhead Costs",null,null,null,"Dollar","Dollar","Dollar","Dollar Impact - ","Dollar Impact - ","Directly","Reasons why the overhead costs are not allowed to be"]
[null,null,null,null,"Impact on OM&A","Impact on OM&A","Impact on OM&A","OM&A Variance","OM&A Variance","Attributable?","capitalized under MIFRS or an alternate accounting"]
[null,null,null,null,"Historic Year","Bridge Year","Test Year","Test versus Bridge","Test versus Historic","(Y/N)","standard given limitations on capitalized overhead"]
["employee benefits",null,null,null,null,null,null,{"$f":"+G39-F39","v":0},{"$f":"+G39-E39","v":0}]
["costs of site preparation",null,null,null,null,null,null,{"$f":"+G40-F40","v":0},{"$f":"+G40-E40","v":0}]
["initial delivery and handling costs",null,null,null,null,null,null,{"$f":"+G41-F41","v":0},{"$f":"+G41-E41","v":0}]
["costs of testing whether the asset is functioning properly",null,null,null,null,null,null,{"$f":"+G42-F42","v":0},{"$f":"+G42-E42","v":0}]
["professional fees",null,null,null,null,null,null,{"$f":"+G43-F43","v":0},{"$f":"+G43-E43","v":0}]
[]
["costs of opening a new facility",null,null,null,null,null,null,{"$f":"+G45-F45","v":0},{"$f":"+G45-E45","v":0}]
["costs of introducing a new product or service (including costs of advertising and promotional activities)",null,null,null,null,null,null,0,0]
["costs of conducting business in a new location or with a new class of customer (including costs of staff training)",null,null,null,null,null,null,0,0]
["administration and other general overhead costs",null,null,null,null,null,null,0,0]
[null,null,null,null,null,null,null,0,0]
[null,null,null,null,null,null,null,0,0]
[null,null,null,null,null,null,null,0,0]
["Insert description of additional item(s) and new rows if needed.",null,null,null,null,null,null,0,0]
["Total",null,null,null,{"$f":"SUM(E39:E52)","v":0},{"$f":"SUM(F39:F52)","v":0},{"$f":"SUM(G39:G52)","v":0},{"$f":"SUM(H39:H52)","v":0},{"$f":"SUM(I39:I52)","v":0}]
[]
["Notes:"]
[1,"If the applicant chooses to adopt IFRS or an alternate accounting standard for financial reporting purposes in 2013, the applicant does not need to complete Columns A, E.  If the applicant adopts IFRS or an alternate accounting standard for financial reporting purposes in 2012, the applicant must complete all columns."]

{"sheet":"App.2-EA_PP&E Deferral Account","index":24,"n_rows":55,"n_cols":10,"rows_kept":55,"cut":false,"hidden":true,"merged":[[54,0,55,8],[33,1,34,2],[25,1,26,2],[20,1,20,8],[19,1,19,2],[19,5,19,8],[25,5,26,8],[31,5,31,8],[31,1,31,2],[8,0,8,8],[9,0,9,8],[10,0,10,8],[14,0,14,8],[12,0,12,8]]}
[null,null,null,null,null,null,null,"File Number:",{"$f":"'LDC Info'!$E$18","v":"EB-2013-0122"}]
[null,null,null,null,null,null,null,"Exhibit:"]
[null,null,null,null,null,null,null,"Tab:"]
[null,null,null,null,null,null,null,"Schedule:"]
[null,null,null,null,null,null,null,"Page:"]
[]
[null,null,null,null,null,null,null,"Date:"]
[]
["Appendix 2-EA"]
["IFRS-CGAAP Transitional PP&E Amounts"]
["2012 Adopters of IFRS for Financial Reporting Purposes"]
[]
["For applicants that adopt IFRS on January 1, 2014 for financial reporting purposes"]
[]
["Note: this sheet should be filled out if the applicant adopts IFRS for its financial reporting purpose as of January 1, 2014. "]
[]
[null,"2010 Rebasing Year",2011,2012,2013,"2014 Rebasing Year",2015,2016,2017]
["Reporting Basis","CGAAP","IRM","IRM","IRM","MIFRS","IRM","IRM","IRM"]
["Forecast vs. Actual Used in Rebasing Year","Forecast","Actual","Actual","Forecast","Forecast"]
[null,null,null,"$","$"]
["PP&E Values under CGAAP"]
["            Opening net PP&E - Note 1"]
["            Additions"]
["            Depreciation (amounts should be negative)"]
["            Closing net PP&E (1)",null,null,{"$f":"D22+D23+D24","v":0},{"$f":"E22+E23+E24","v":0}]
[]
["PP&E Values under MIFRS (Starts from 2013, the transition year)"]
["            Opening net PP&E  - Note 1"]
["            Additions"]
["            Depreciation (amounts should be negative)"]
["            Closing net PP&E (2)",null,null,{"$f":"SUM(D28:D30)","v":0},{"$f":"SUM(E28:E30)","v":0}]
[]
["Difference in Closing net PP&E, CGAAP vs. MIFRS (Shown as adjustment to rate base on rebasing)",null,null,{"$f":"D25-D31","v":0},{"$f":"E25-E31","v":0}]
[]
["Account 1575 - IFRS-CGAAP Transitional PP&E Amounts"]
["Opening balance ",null,null,0,{"$f":"D40","v":0},{"$f":"E40","v":0},{"$f":"F40","v":0},{"$f":"G40","v":0},{"$f":"H40","v":0}]
["Amounts added in the year",null,null,{"$f":"D33","v":0},{"$f":"E33-D33","v":0}]
["Sub-total",null,null,{"$f":"D36+D37","v":0},0,0,0,0,0]
["Amount of amortization, included in  depreciation expense  - Note 2",null,null,null,null,{"$f":"IF(ISERROR(-E33/I44), 0, -E33/I44)","v":0},{"$f":"+F39","v":0},{"$f":"+F39","v":0},{"$f":"+F39","v":0}]
["          Closing balance in deferral account",null,null,{"$f":"D38+D39","v":0},0,{"$f":"IF(ISERROR(F38+F39), 0, F38+F39)","v":0},0,0,0]
[]
["Effect on Revenue Requirement"]
["Amortization of deferred balance as above - Note 2",null,null,null,null,{"$f":"IF(ISERROR(E33/I44), 0, E33/I44)","v":0},null,"WACC"]
["Return on Rate Base Associated with deferred PP&E balance at WACC  - Note 3 ",null,null,null,null,{"$f":"E33*I43","v":0},null,"Disposition Period - Note 4",4,"Years"]
["     Amount included in Revenue Requirement on rebasing",null,null,null,null,{"$f":"F43+F44","v":0}]
[]
["Notes:"]
["1  For an applicant that adopts IFRS on January 1, 2014, the PP&E values as of January 1, 2013 under both CGAAP and MIFRS should be the same. "]
["2  Amortization of the deferred balance in Account 1575 will start from the rebasing year. "]
["    Assume the utility requests for a certain disposition period, the amortization that should be included in the depreciation expense is calculated as:"]
["   the opening balance of Account 1575 / the approved disposition period"]
["3  Return on rate base associated with deferred balance is calculated as:"]
["     the deferred account opening balance as of 2013 rebasing year x WACC"]
["     * Please note that the calculation should be adjusted once WACC is updated and finalized in the rate application."]
["4  Consistent with the 4 year normal rate cycle, the model is using a 4 year amortization period as a default selection to \"clear\" the PP&E deferral account through a one-time adjustment to ratebase to capture and remove the impact of the accounting policy changes as caused by the transition from CGAAP to MIFRS."]

{"sheet":"App.2-EB_PP&E Deferral Account","index":25,"n_rows":55,"n_cols":10,"rows_kept":55,"cut":false,"hidden":true,"merged":[[54,0,55,8],[20,1,20,8],[8,0,8,8],[9,0,9,8],[10,0,10,8],[14,0,14,8],[12,0,12,8]]}
[null,null,null,null,null,null,null,"File Number:",{"$f":"'LDC Info'!$E$18","v":"EB-2013-0122"}]
[null,null,null,null,null,null,null,"Exhibit:"]
[null,null,null,null,null,null,null,"Tab:"]
[null,null,null,null,null,null,null,"Schedule:"]
[null,null,null,null,null,null,null,"Page:"]
[]
[null,null,null,null,null,null,null,"Date:"]
[]
["Appendix 2-EB"]
["IFRS-CGAAP Transitional PP&E Amounts"]
["2013 Adopters of IFRS for Financial Reporting Purposes"]
[]
["For applicants that adopt IFRS on January 1, 2014 for financial reporting purposes"]
[]
["Note: this sheet should be filled out if the applicant adopts IFRS for its financial reporting purpose as of January 1, 2014. "]
[]
[null,"2009 Rebasing Year",2010,2011,2012,"2013 Rebasing Year",2015,2016,2017]
["Reporting Basis","CGAAP","IRM","IRM","IRM","MIFRS","IRM","IRM","IRM"]
["Forecast vs. Actual Used in Rebasing Year","Forecast","Actual","Actual","Forecast","Forecast"]
[null,null,null,"$","$","$","$","$","$"]
["PP&E Values under CGAAP"]
["            Opening net PP&E - Note 1"]
["            Additions"]
["            Depreciation (amounts should be negative)"]
["            Closing net PP&E (1)",null,null,null,{"$f":"SUM(E22:E24)","v":0}]
[]
["PP&E Values under MIFRS (Starts from 2012, the transition year)"]
["            Opening net PP&E  - Note 1"]
["            Additions"]
["            Depreciation (amounts should be negative)"]
["            Closing net PP&E (2)",null,null,null,{"$f":"SUM(E28:E30)","v":0}]
[]
["Difference in Closing net PP&E, CGAAP vs. MIFRS (Shown as adjustment to rate base on rebasing)",null,null,null,{"$f":"E25-E31","v":0}]
[]
["Account 1575 - IFRS-CGAAP Transitional PP&E Amounts"]
["          Opening balance ",null,null,null,{"$f":"D40","v":0},{"$f":"E40","v":0},{"$f":"F40","v":0},{"$f":"G40","v":0},{"$f":"H40","v":0}]
["          Amounts added in the year",null,null,null,{"$f":"E33-D33","v":0}]
["Sub-total",null,null,null,{"$f":"E36+E37","v":0},{"$f":"F36+F37","v":0},{"$f":"G36+G37","v":0},{"$f":"H36+H37","v":0},{"$f":"I36+I37","v":0}]
["Amount of amortization, included in  depreciation expense  - Note 2",null,null,null,null,{"$f":"IF(ISERROR(-E33/I44), 0, -E33/I44)","v":0},{"$f":"+F39","v":0},{"$f":"+F39","v":0},{"$f":"+F39","v":0}]
["          Closing balance in deferral account",null,null,null,{"$f":"E38+E39","v":0},{"$f":"IF(ISERROR(F38+F39), 0, F38+F39)","v":0},{"$f":"G38+G39","v":0},{"$f":"H38+H39","v":0},{"$f":"I38+I39","v":0}]
[]
["Effect on Revenue Requirement"]
["        Amortization of deferred balance as above - Note 2",null,null,null,null,{"$f":"IF(ISERROR(E33/I44), 0, E33/I44)","v":0},null,"WACC",6.9699999999999998E-2]
["Return on Rate Base Associated with deferred PP&E balance at WACC  - Note 3 ",null,null,null,null,{"$f":"E33*I43","v":0},null,"Disposition Period - Note 4",4,"Years"]
["     Amount included in Revenue Requirement on rebasing",null,null,null,null,{"$f":"F43+F44","v":0}]
[]
["Notes:"]
["1  For an applicant that adopts IFRS on January 1, 2013, the PP&E values as of January 1, 2012 under both CGAAP and MIFRS should be the same. "]
["2  Amortization of the deferred balance in Account 1575 will start from the rebasing year. "]
["    Assume the utility requests for a certain disposition period, the amortization that should be included in the depreciation expense is calculated as:"]
["   the opening balance of Account 1575 / the approved disposition period"]
["3  Return on rate base associated with deferred balance is calculated as:"]
["     the deferred account opening balance as of 2013 rebasing year x WACC "]
["     * Please note that the calculation should be adjusted once WACC is updated and finalized in the rate application."]
["4  Consistent with the 4 year normal rate cycle, the model is using a 4 year amortization period as a default selection to \"clear\" the PP&E deferral account through a one-time adjustment to ratebase to capture and remove the impact of the accounting policy changes as caused by the transition from CGAAP to MIFRS."]

{"sheet":"App.2-G_Detailed_OM&A_Expenses","index":26,"n_rows":126,"n_cols":11,"rows_kept":126,"cut":false,"hidden":false,"merged":[[118,0,118,1],[85,0,85,8],[60,0,60,1],[124,1,124,8],[125,1,125,8],[123,1,123,8],[112,0,112,1],[73,0,73,8],[111,0,111,1],[41,0,41,8],[62,0,62,8],[71,0,71,1],[8,0,8,8],[9,0,9,8],[10,0,10,8],[39,0,39,1],[15,0,15,8],[12,5,12,6]]}
[null,null,null,null,null,null,"File Number:",null,{"$f":"'LDC Info'!$E$18","v":"EB-2013-0122"}]
[null,null,null,null,null,null,"Exhibit:"]
[null,null,null,null,null,null,"Tab:"]
[null,null,null,null,null,null,"Schedule:"]
[null,null,null,null,null,null,"Page:"]
[]
[null,null,null,null,null,null,"Date:"]
[]
["Appendix 2-G"]
["Detailed, Account by Account, OM&A Expense Table"]
["(excluding Depreciation and Amortization)"]
[]
[]
["Account","Description",{"$f":"\"Last Rebasing Year (\" & 'LDC Info'!E30 & \" Actuals)\"","v":"Last Rebasing Year (2010 Actuals)"},{"$f":"'LDC Info'!E26-2 & \" Actual\"","v":"2011 Actual"},{"$f":"'LDC Info'!E26-1 & \" Actual\"& CHAR(178)","v":"2012 Actual²"},{"$f":"\"Bridge Year \" & 'LDC Info'!E26& CHAR(179)","v":"Bridge Year 2013³"},{"$f":"\"Bridge Year \" & 'LDC Info'!E26& CHAR(179)","v":"Bridge Year 2013³"},{"$f":"\"Test Year \" & 'LDC Info'!E28","v":"Test Year 2014"},{"$f":"\"Test Year \" & 'LDC Info'!E28","v":"Test Year 2014"}]
["Reporting Basis",null,"CGAAP","CGAAP","CGAAP","CGAAP","MIFRS","CGAAP","MIFRS"]
["Operations"]
[5005,"Operation Supervision and Engineering",{"$f":"HistoricalBalances!H376","v":0},{"$f":"HistoricalBalances!G376","v":0},{"$f":"HistoricalBalances!F376","v":0},{"$f":"HistoricalBalances!E376","v":0},null,{"$f":"HistoricalBalances!D376","v":0}]
[5010,"Load Dispatching",{"$f":"HistoricalBalances!H377","v":0},{"$f":"HistoricalBalances!G377","v":0},{"$f":"HistoricalBalances!F377","v":0},{"$f":"HistoricalBalances!E377","v":0},null,{"$f":"HistoricalBalances!D377","v":0}]
[5012,"Station Buildings and Fixtures Expense",{"$f":"HistoricalBalances!H378","v":1647.42},{"$f":"HistoricalBalances!G378","v":1521.27},{"$f":"HistoricalBalances!F378","v":1451.35},{"$f":"HistoricalBalances!E378","v":1600},null,{"$f":"HistoricalBalances!D378","v":1900}]
[5014,"Transformer Station Equipment - Operation Labour",{"$f":"HistoricalBalances!H379","v":0},{"$f":"HistoricalBalances!G379","v":0},{"$f":"HistoricalBalances!F379","v":0},{"$f":"HistoricalBalances!E379","v":0},null,{"$f":"HistoricalBalances!D379","v":0}]
[5015,"Transformer Station Equipment - Operation Supplies and Expenses",{"$f":"HistoricalBalances!H380","v":0},{"$f":"HistoricalBalances!G380","v":0},{"$f":"HistoricalBalances!F380","v":0},{"$f":"HistoricalBalances!E380","v":0},null,{"$f":"HistoricalBalances!D380","v":0}]
[5016,"Distribution Station Equipment - Operation Labour",{"$f":"HistoricalBalances!H381","v":0},{"$f":"HistoricalBalances!G381","v":0},{"$f":"HistoricalBalances!F381","v":0},{"$f":"HistoricalBalances!E381","v":0},null,{"$f":"HistoricalBalances!D381","v":0}]
[5017,"Distribution Station Equipment - Operation Supplies and Expenses",{"$f":"HistoricalBalances!H382","v":0},{"$f":"HistoricalBalances!G382","v":0},{"$f":"HistoricalBalances!F382","v":0},{"$f":"HistoricalBalances!E382","v":0},null,{"$f":"HistoricalBalances!D382","v":0}]
[5020,"Overhead Distribution Lines and Feeders - Operation Labour",{"$f":"HistoricalBalances!H383","v":0},{"$f":"HistoricalBalances!G383","v":0},{"$f":"HistoricalBalances!F383","v":0},{"$f":"HistoricalBalances!E383","v":0},null,{"$f":"HistoricalBalances!D383","v":0}]
[5025,"Overhead Distribution Lines and Feeders - Operation Supplies and Expenses",{"$f":"HistoricalBalances!H384","v":0},{"$f":"HistoricalBalances!G384","v":0},{"$f":"HistoricalBalances!F384","v":0},{"$f":"HistoricalBalances!E384","v":0},null,{"$f":"HistoricalBalances!D384","v":0}]
[5030,"Overhead Sub-transmission Feeders - Operation",{"$f":"HistoricalBalances!H385","v":0},{"$f":"HistoricalBalances!G385","v":0},{"$f":"HistoricalBalances!F385","v":0},{"$f":"HistoricalBalances!E385","v":0},null,{"$f":"HistoricalBalances!D385","v":0}]
[5035,"Overhead Distribution Transformers - Operation",{"$f":"HistoricalBalances!H386","v":5812.37},{"$f":"HistoricalBalances!G386","v":1508.5},{"$f":"HistoricalBalances!F386","v":605},{"$f":"HistoricalBalances!E386","v":3000},null,{"$f":"HistoricalBalances!D386","v":6000}]
[5040,"Underground Distribution Lines and Feeders - Operation Labour",{"$f":"HistoricalBalances!H387","v":0},{"$f":"HistoricalBalances!G387","v":0},{"$f":"HistoricalBalances!F387","v":0},{"$f":"HistoricalBalances!E387","v":0},null,{"$f":"HistoricalBalances!D387","v":0}]
[5045,"Underground Distribution Lines and Feeders - Operation Supplies and Expenses",{"$f":"HistoricalBalances!H388","v":0},{"$f":"HistoricalBalances!G388","v":0},{"$f":"HistoricalBalances!F388","v":0},{"$f":"HistoricalBalances!E388","v":0},null,{"$f":"HistoricalBalances!D388","v":0}]
[5050,"Underground Sub-transmission Feeders - Operation",{"$f":"HistoricalBalances!H389","v":0},{"$f":"HistoricalBalances!G389","v":0},{"$f":"HistoricalBalances!F389","v":0},{"$f":"HistoricalBalances!E389","v":0},null,{"$f":"HistoricalBalances!D389","v":0}]
[5055,"Underground Distribution Transformers - Operation",{"$f":"HistoricalBalances!H390","v":0},{"$f":"HistoricalBalances!G390","v":0},{"$f":"HistoricalBalances!F390","v":0},{"$f":"HistoricalBalances!E390","v":0},null,{"$f":"HistoricalBalances!D390","v":0}]
[5060,"Street Lighting and Signal System Expense",{"$f":"HistoricalBalances!H391","v":0},{"$f":"HistoricalBalances!G391","v":0},{"$f":"HistoricalBalances!F391","v":0},{"$f":"HistoricalBalances!E391","v":0},null,{"$f":"HistoricalBalances!D391","v":0}]
[5065,"Meter Expense",{"$f":"HistoricalBalances!H392","v":0},{"$f":"HistoricalBalances!G392","v":2650},{"$f":"HistoricalBalances!F392","v":0},{"$f":"HistoricalBalances!E392","v":1500},null,{"$f":"HistoricalBalances!D392","v":2000}]
[5070,"Customer Premises - Operation Labour",{"$f":"HistoricalBalances!H393","v":0},{"$f":"HistoricalBalances!G393","v":0},{"$f":"HistoricalBalances!F393","v":0},{"$f":"HistoricalBalances!E393","v":0},null,{"$f":"HistoricalBalances!D393","v":0}]
[5075,"Customer Premises - Operation Materials and Expenses",{"$f":"HistoricalBalances!H394","v":7767.5},{"$f":"HistoricalBalances!G394","v":8736.25},{"$f":"HistoricalBalances!F394","v":7031},{"$f":"HistoricalBalances!E394","v":6000},null,{"$f":"HistoricalBalances!D394","v":6000}]
[5085,"Miscellaneous Distribution Expenses",{"$f":"HistoricalBalances!H395","v":5599.55},{"$f":"HistoricalBalances!G395","v":6548.93},{"$f":"HistoricalBalances!F395","v":7210.87},{"$f":"HistoricalBalances!E395","v":3450},null,{"$f":"HistoricalBalances!D395","v":5000}]
[5090,"Underground Distribution Lines and Feeders - Rental Paid",{"$f":"HistoricalBalances!H396","v":0},{"$f":"HistoricalBalances!G396","v":0},{"$f":"HistoricalBalances!F396","v":0},{"$f":"HistoricalBalances!E396","v":0},null,{"$f":"HistoricalBalances!D396","v":0}]
[5095,"Overhead Distribution Lines and Feeders - Rental Paid",{"$f":"HistoricalBalances!H397","v":0},{"$f":"HistoricalBalances!G397","v":0},{"$f":"HistoricalBalances!F397","v":0},{"$f":"HistoricalBalances!E397","v":0},null,{"$f":"HistoricalBalances!D397","v":0}]
[5096,"Other Rent",{"$f":"HistoricalBalances!H398","v":0},{"$f":"HistoricalBalances!G398","v":0},null,{"$f":"HistoricalBalances!E398","v":0},null,{"$f":"HistoricalBalances!D398","v":0}]
["Total - Operations",null,{"$f":"SUM(C17:C39)","v":20826.84},20964.95,16298.220000000001,15550,0,20900,0]
["Account","Description",{"$f":"C14","v":"Last Rebasing Year (2010 Actuals)"},"2011 Actual","2012 Actual²","Bridge Year 2013³","Bridge Year 2013³","Test Year 2014","Test Year 2014"]
["Maintenance"]
[5105,"Maintenance Supervision and Engineering",{"$f":"HistoricalBalances!H399","v":0},{"$f":"HistoricalBalances!G399","v":0},{"$f":"HistoricalBalances!F399","v":0},{"$f":"HistoricalBalances!E399","v":0}," ",{"$f":"HistoricalBalances!D399","v":0}," "]
[5110,"Maintenance of Buildings and Fixtures - Distribution Stations",{"$f":"HistoricalBalances!H400","v":8753.5400000000009},{"$f":"HistoricalBalances!G400","v":8236.9599999999991},{"$f":"HistoricalBalances!F400","v":8538},{"$f":"HistoricalBalances!E400","v":8600},null,{"$f":"HistoricalBalances!D400","v":9600}]
[5112,"Maintenance of Transformer Station Equipment",{"$f":"HistoricalBalances!H401","v":0},{"$f":"HistoricalBalances!G401","v":0},{"$f":"HistoricalBalances!F401","v":0},{"$f":"HistoricalBalances!E401","v":0},null,{"$f":"HistoricalBalances!D401","v":0}]
[5114,"Maintenance of Distribution Station Equipment",{"$f":"HistoricalBalances!H402","v":4310.55},{"$f":"HistoricalBalances!G402","v":2706.84},{"$f":"HistoricalBalances!F402","v":19003},{"$f":"HistoricalBalances!E402","v":10200},null,{"$f":"HistoricalBalances!D402","v":5200}]
[5120,"Maintenance of Poles, Towers and Fixtures",{"$f":"HistoricalBalances!H403","v":550},{"$f":"HistoricalBalances!G403","v":3053.75},{"$f":"HistoricalBalances!F403","v":2523.5},{"$f":"HistoricalBalances!E403","v":5000},null,{"$f":"HistoricalBalances!D403","v":6000}]
[5125,"Maintenance of Overhead Conductors and Devices",{"$f":"HistoricalBalances!H404","v":2278.5},{"$f":"HistoricalBalances!G404","v":10283.9},{"$f":"HistoricalBalances!F404","v":6033.3},{"$f":"HistoricalBalances!E404","v":5000},null,{"$f":"HistoricalBalances!D404","v":6000}]
[5130,"Maintenance of Overhead Services",{"$f":"HistoricalBalances!H405","v":0},{"$f":"HistoricalBalances!G405","v":0},{"$f":"HistoricalBalances!F405","v":0},{"$f":"HistoricalBalances!E405","v":0},null,{"$f":"HistoricalBalances!D405","v":0}]
[5135,"Overhead Distribution Lines and Feeders - Right of Way",{"$f":"HistoricalBalances!H406","v":7772.5},{"$f":"HistoricalBalances!G406","v":5090},{"$f":"HistoricalBalances!F406","v":4302.5},{"$f":"HistoricalBalances!E406","v":6000},null,{"$f":"HistoricalBalances!D406","v":7500}]
[5145,"Maintenance of Underground Conduit",{"$f":"HistoricalBalances!H407","v":487.5},{"$f":"HistoricalBalances!G407","v":1346},{"$f":"HistoricalBalances!F407","v":5775.25},{"$f":"HistoricalBalances!E407","v":0},null,{"$f":"HistoricalBalances!D407","v":0}]
[5150,"Maintenance of Underground Conductors and Devices",{"$f":"HistoricalBalances!H408","v":0},{"$f":"HistoricalBalances!G408","v":0},{"$f":"HistoricalBalances!F408","v":0},{"$f":"HistoricalBalances!E408","v":0},null,{"$f":"HistoricalBalances!D408","v":0}]
[5155,"Maintenance of Underground Services",{"$f":"HistoricalBalances!H409","v":0},{"$f":"HistoricalBalances!G409","v":0},{"$f":"HistoricalBalances!F409","v":0},{"$f":"HistoricalBalances!E409","v":0},null,{"$f":"HistoricalBalances!D409","v":0}]
[5160,"Maintenance of Line Transformers",{"$f":"HistoricalBalances!H410","v":12480.75},{"$f":"HistoricalBalances!G410","v":8601.43},{"$f":"HistoricalBalances!F410","v":2453},{"$f":"HistoricalBalances!E410","v":5000},null,{"$f":"HistoricalBalances!D410","v":6000}]
[5165,"Maintenance of Street Lighting and Signal Systems",{"$f":"HistoricalBalances!H411","v":0},{"$f":"HistoricalBalances!G411","v":0},{"$f":"HistoricalBalances!F411","v":0},{"$f":"HistoricalBalances!E411","v":0},null,{"$f":"HistoricalBalances!D411","v":0}]
[5170,"Sentinel Lights - Labour",{"$f":"HistoricalBalances!H412","v":0},{"$f":"HistoricalBalances!G412","v":0},{"$f":"HistoricalBalances!F412","v":0},{"$f":"HistoricalBalances!E412","v":0},null,{"$f":"HistoricalBalances!D412","v":0}]
[5172,"Sentinel Lights - Materials and Expenses",{"$f":"HistoricalBalances!H413","v":0},{"$f":"HistoricalBalances!G413","v":0},{"$f":"HistoricalBalances!F413","v":0},{"$f":"HistoricalBalances!E413","v":0},null,{"$f":"HistoricalBalances!D413","v":0}]
[5175,"Maintenance of Meters",{"$f":"HistoricalBalances!H414","v":0},{"$f":"HistoricalBalances!G414","v":0},{"$f":"HistoricalBalances!F414","v":0},{"$f":"HistoricalBalances!E414","v":0},null,{"$f":"HistoricalBalances!D414","v":0}]
[5178,"Customer Installations Expenses - Leased Property",{"$f":"HistoricalBalances!H415","v":0},{"$f":"HistoricalBalances!G415","v":0},{"$f":"HistoricalBalances!F415","v":0},{"$f":"HistoricalBalances!E415","v":0},null,{"$f":"HistoricalBalances!D415","v":0}]
[5195,"Maintenance of Other Installations on Customer Premises",{"$f":"HistoricalBalances!H416","v":0},{"$f":"HistoricalBalances!G416","v":0},{"$f":"HistoricalBalances!F416","v":0},{"$f":"HistoricalBalances!E416","v":0},null,{"$f":"HistoricalBalances!D416","v":0}]
["Total - Maintenance",null,{"$f":"SUM(C43:C60)","v":36633.339999999997},39318.879999999997,48628.55,39800,0,40300,0]
["Account","Description",{"$f":"C41","v":"Last Rebasing Year (2010 Actuals)"},{"$f":"D41","v":"2011 Actual"},{"$f":"E41","v":"2012 Actual²"},{"$f":"F41","v":"Bridge Year 2013³"},{"$f":"G41","v":"Bridge Year 2013³"},{"$f":"H14","v":"Test Year 2014"},{"$f":"I41","v":"Test Year 2014"}]
["Billing and Collecting"]
[5305,"Supervision",{"$f":"HistoricalBalances!H426","v":0},{"$f":"HistoricalBalances!G426","v":0},{"$f":"HistoricalBalances!F426","v":0},{"$f":"HistoricalBalances!E426","v":0},null,{"$f":"HistoricalBalances!D426","v":0}]
[5310,"Meter Reading Expense",{"$f":"HistoricalBalances!H427","v":0},{"$f":"HistoricalBalances!G427","v":0},{"$f":"HistoricalBalances!F427","v":0},{"$f":"HistoricalBalances!E427","v":0},null,{"$f":"HistoricalBalances!D427","v":0}]
[5315,"Customer Billing",{"$f":"HistoricalBalances!H428","v":144118.9},{"$f":"HistoricalBalances!G428","v":161098.56},{"$f":"HistoricalBalances!F428","v":132059.91},{"$f":"HistoricalBalances!E428","v":125857.15000000001},null,{"$f":"HistoricalBalances!D428","v":161174},null,null," "]
[5320,"Collecting",{"$f":"HistoricalBalances!H429","v":0},{"$f":"HistoricalBalances!G429","v":0},{"$f":"HistoricalBalances!F429","v":0},{"$f":"HistoricalBalances!E429","v":0},null,{"$f":"HistoricalBalances!D429","v":0}]
[5325,"Collecting - Cash Over and Short",{"$f":"HistoricalBalances!H430","v":0},{"$f":"HistoricalBalances!G430","v":0},{"$f":"HistoricalBalances!F430","v":0},{"$f":"HistoricalBalances!E430","v":0},null,{"$f":"HistoricalBalances!D430","v":0}]
[5330,"Collection Charges",{"$f":"HistoricalBalances!H431","v":2310},{"$f":"HistoricalBalances!G431","v":2040},{"$f":"HistoricalBalances!F431","v":3366.36},{"$f":"HistoricalBalances!E431","v":3200},null,{"$f":"HistoricalBalances!D431","v":4000}]
[5335,"Bad Debt Expense",{"$f":"HistoricalBalances!H432","v":0},{"$f":"HistoricalBalances!G432","v":0},{"$f":"HistoricalBalances!F432","v":0},{"$f":"HistoricalBalances!E432","v":5000},null,{"$f":"HistoricalBalances!D432","v":5000}]
[5340,"Miscellaneous Customer Accounts Expenses",{"$f":"HistoricalBalances!H433","v":0},{"$f":"HistoricalBalances!G433","v":0},{"$f":"HistoricalBalances!F433","v":0},{"$f":"HistoricalBalances!E433","v":0},null,{"$f":"HistoricalBalances!D433","v":0}]
["Total - Billing and Collecting",null,{"$f":"SUM(C64:C71)","v":146428.9},163138.56,135426.26999999999,134057.15000000002,0,170174,0]
["Account","Description",{"$f":"C62","v":"Last Rebasing Year (2010 Actuals)"},{"$f":"D62","v":"2011 Actual"},{"$f":"E62","v":"2012 Actual²"},{"$f":"F62","v":"Bridge Year 2013³"},{"$f":"G62","v":"Bridge Year 2013³"},{"$f":"H14","v":"Test Year 2014"},{"$f":"I62","v":"Test Year 2014"}]
["Community Relations"]
[5405,"Supervision",{"$f":"HistoricalBalances!H435","v":0},{"$f":"HistoricalBalances!G435","v":0},{"$f":"HistoricalBalances!F435","v":0},{"$f":"HistoricalBalances!E435","v":0},null,{"$f":"HistoricalBalances!D435","v":0}]
[5410,"Community Relations - Sundry",{"$f":"HistoricalBalances!H436","v":2182.16},{"$f":"HistoricalBalances!G436","v":1316.25},{"$f":"HistoricalBalances!F436","v":6709.95},{"$f":"HistoricalBalances!E436","v":3100},null,{"$f":"HistoricalBalances!D436","v":4000}]
[5415,"Energy Conservation",{"$f":"HistoricalBalances!H437","v":0},{"$f":"HistoricalBalances!G437","v":0},{"$f":"HistoricalBalances!F437","v":0},{"$f":"HistoricalBalances!E437","v":0},null,{"$f":"HistoricalBalances!D437","v":0}]
[5420,"Community Safety Program",{"$f":"HistoricalBalances!H438","v":0},{"$f":"HistoricalBalances!G438","v":0},{"$f":"HistoricalBalances!F438","v":0},{"$f":"HistoricalBalances!E438","v":0},null,{"$f":"HistoricalBalances!D438","v":0}]
[5425,"Miscellaneous Customer Service and Informational Expenses",{"$f":"HistoricalBalances!H439","v":0},{"$f":"HistoricalBalances!G439","v":0},{"$f":"HistoricalBalances!F439","v":0},{"$f":"HistoricalBalances!E439","v":0},null,{"$f":"HistoricalBalances!D439","v":0}]
[5505,"Supervision",{"$f":"HistoricalBalances!H440","v":0},{"$f":"HistoricalBalances!G440","v":0},{"$f":"HistoricalBalances!F440","v":0},{"$f":"HistoricalBalances!E440","v":0},null,{"$f":"HistoricalBalances!D440","v":0}]
[5510,"Demonstrating and Selling Expense",{"$f":"HistoricalBalances!H441","v":0},{"$f":"HistoricalBalances!G441","v":0},{"$f":"HistoricalBalances!F441","v":0},{"$f":"HistoricalBalances!E441","v":0},null,{"$f":"HistoricalBalances!D441","v":0}]
[5515,"Advertising Expenses",{"$f":"HistoricalBalances!H442","v":0},{"$f":"HistoricalBalances!G442","v":0},{"$f":"HistoricalBalances!F442","v":0},{"$f":"HistoricalBalances!E442","v":0},null,{"$f":"HistoricalBalances!D442","v":0}]
[5520,"Miscellaneous Sales Expense",{"$f":"HistoricalBalances!H443","v":0},{"$f":"HistoricalBalances!G443","v":0},{"$f":"HistoricalBalances!F443","v":0},{"$f":"HistoricalBalances!E443","v":0},null,{"$f":"HistoricalBalances!D443","v":0}]
["Total - Community Relations",null,{"$f":"SUM(C75:C83)","v":2182.16},1316.25,6709.95,3100,0,4000,0]
["Account","Description",{"$f":"C73","v":"Last Rebasing Year (2010 Actuals)"},{"$f":"D73","v":"2011 Actual"},{"$f":"E73","v":"2012 Actual²"},{"$f":"F73","v":"Bridge Year 2013³"},{"$f":"G73","v":"Bridge Year 2013³"},{"$f":"H14","v":"Test Year 2014"},{"$f":"I73","v":"Test Year 2014"}]
["Administrative and General Expenses"]
[5605,"Executive Salaries and Expenses",{"$f":"HistoricalBalances!H445","v":19021.560000000001},{"$f":"HistoricalBalances!G445","v":24911.68},{"$f":"HistoricalBalances!F445","v":25148.44},{"$f":"HistoricalBalances!E445","v":25000},null,{"$f":"HistoricalBalances!D445","v":28000}]
[5610,"Management Salaries and Expenses",{"$f":"HistoricalBalances!H446","v":83144.94},{"$f":"HistoricalBalances!G446","v":87009.86},{"$f":"HistoricalBalances!F446","v":77597.58},{"$f":"HistoricalBalances!E446","v":77983.16},null,{"$f":"HistoricalBalances!D446","v":84000}]
[5615,"General Administrative Salaries and Expenses",{"$f":"HistoricalBalances!H447","v":38048.79},{"$f":"HistoricalBalances!G447","v":48062.09},{"$f":"HistoricalBalances!F447","v":62113.67},{"$f":"HistoricalBalances!E447","v":54289},null,{"$f":"HistoricalBalances!D447","v":67405}]
[5620,"Office Supplies and Expenses",{"$f":"HistoricalBalances!H448","v":20992.41},{"$f":"HistoricalBalances!G448","v":28492.87},{"$f":"HistoricalBalances!F448","v":35737.67},{"$f":"HistoricalBalances!E448","v":39782},null,{"$f":"HistoricalBalances!D448","v":46600}]
[5625,"Administrative Expense Transferred - Credit",{"$f":"HistoricalBalances!H449","v":0},{"$f":"HistoricalBalances!G449","v":0},{"$f":"HistoricalBalances!F449","v":0},{"$f":"HistoricalBalances!E449","v":0},null,{"$f":"HistoricalBalances!D449","v":0}]
[5630,"Outside Services Employed",{"$f":"HistoricalBalances!H450","v":72862.710000000006},{"$f":"HistoricalBalances!G450","v":91994.01},{"$f":"HistoricalBalances!F450","v":87916.27},{"$f":"HistoricalBalances!E450","v":96200},null,{"$f":"HistoricalBalances!D450","v":58800}]
[5635,"Property Insurance",{"$f":"HistoricalBalances!H451","v":5455.08},{"$f":"HistoricalBalances!G451","v":5396},{"$f":"HistoricalBalances!F451","v":4960},{"$f":"HistoricalBalances!E451","v":2500},null,{"$f":"HistoricalBalances!D451","v":3000}]
[5640,"Injuries and Damages",{"$f":"HistoricalBalances!H452","v":1194.48},{"$f":"HistoricalBalances!G452","v":1662},{"$f":"HistoricalBalances!F452","v":1571.4},{"$f":"HistoricalBalances!E452","v":1700},null,{"$f":"HistoricalBalances!D452","v":2800}]
[5645,"OMERS Pensions and Benefits",{"$f":"HistoricalBalances!H453","v":0},{"$f":"HistoricalBalances!G453","v":0},{"$f":"HistoricalBalances!F453","v":0},{"$f":"HistoricalBalances!E453","v":0},null,{"$f":"HistoricalBalances!D453","v":0}]
[5646,"Employee Pensions and OPEB",{"$f":"HistoricalBalances!H454","v":0},{"$f":"HistoricalBalances!G454","v":0},{"$f":"HistoricalBalances!F454","v":0},{"$f":"HistoricalBalances!E454","v":0},null,{"$f":"HistoricalBalances!D454","v":0}]
[5647,"Employee Sick Leave",{"$f":"HistoricalBalances!H455","v":0},{"$f":"HistoricalBalances!G455","v":0},{"$f":"HistoricalBalances!F455","v":0},{"$f":"HistoricalBalances!E455","v":0},null,{"$f":"HistoricalBalances!D455","v":0}]
[5650,"Franchise Requirements",{"$f":"HistoricalBalances!H456","v":0},{"$f":"HistoricalBalances!G456","v":0},{"$f":"HistoricalBalances!F456","v":0},{"$f":"HistoricalBalances!E456","v":0},null,{"$f":"HistoricalBalances!D456","v":0}]
[5655,"Regulatory Expenses",{"$f":"HistoricalBalances!H457","v":6229.43},{"$f":"HistoricalBalances!G457","v":4952.2700000000004},{"$f":"HistoricalBalances!F457","v":5452.4},{"$f":"HistoricalBalances!E457","v":5724},null,{"$f":"HistoricalBalances!D457","v":10600}]
[5660,"General Advertising Expenses",{"$f":"HistoricalBalances!H458","v":0},{"$f":"HistoricalBalances!G458","v":0},{"$f":"HistoricalBalances!F458","v":0},{"$f":"HistoricalBalances!E458","v":0},null,{"$f":"HistoricalBalances!D458","v":0}]
[5665,"Miscellaneous General Expenses",{"$f":"HistoricalBalances!H459","v":0},{"$f":"HistoricalBalances!G459","v":0},{"$f":"HistoricalBalances!F459","v":0},{"$f":"HistoricalBalances!E459","v":0},null,{"$f":"HistoricalBalances!D459","v":0}]
[5670,"Rent",{"$f":"HistoricalBalances!H460","v":12400},{"$f":"HistoricalBalances!G460","v":12000},{"$f":"HistoricalBalances!F460","v":13200},{"$f":"HistoricalBalances!E460","v":13200},null,{"$f":"HistoricalBalances!D460","v":15600}]
[5672,"Lease Payment Charge",{"$f":"HistoricalBalances!H461","v":0},{"$f":"HistoricalBalances!G461","v":0},{"$f":"HistoricalBalances!F461","v":0},{"$f":"HistoricalBalances!E461","v":0},null,{"$f":"HistoricalBalances!D461","v":0}]
[5675,"Maintenance of General Plant",{"$f":"HistoricalBalances!H462","v":0},{"$f":"HistoricalBalances!G462","v":0},{"$f":"HistoricalBalances!F462","v":0},{"$f":"HistoricalBalances!E462","v":0},null,{"$f":"HistoricalBalances!D462","v":0}]
[5680,"Electrical Safety Authority Fees",{"$f":"HistoricalBalances!H463","v":1778.28},{"$f":"HistoricalBalances!G463","v":1783.34},{"$f":"HistoricalBalances!F463","v":1836.14},{"$f":"HistoricalBalances!E463","v":1900},null,{"$f":"HistoricalBalances!D463","v":2100}]
[5681,"Special Purpose Charge Expense",null,null,{"$f":"HistoricalBalances!F464","v":0},{"$f":"HistoricalBalances!E464","v":0},null,{"$f":"HistoricalBalances!D464","v":0}]
[5685,"Independent Electricity System Operator Fees and Penalties",{"$f":"HistoricalBalances!H465","v":0},{"$f":"HistoricalBalances!G465","v":0},{"$f":"HistoricalBalances!F465","v":0},{"$f":"HistoricalBalances!E465","v":0},null,{"$f":"HistoricalBalances!D465","v":0}]
[5695,"OM&A Contra Account",{"$f":"HistoricalBalances!H466","v":0},{"$f":"HistoricalBalances!G466","v":0},{"$f":"HistoricalBalances!F466","v":0},{"$f":"HistoricalBalances!E466","v":0},null,{"$f":"HistoricalBalances!D466","v":0}]
[6205,"Donations"]
[6205,"Donations, Sub-account LEAP Funding",{"$f":"HistoricalBalances!H491","v":2000},{"$f":"HistoricalBalances!G491","v":2000},{"$f":"HistoricalBalances!F491","v":2000},{"$f":"HistoricalBalances!E491","v":2000},null,{"$f":"HistoricalBalances!D491","v":2000}]
["Total - Administrative and General Expenses",null,{"$f":"SUM(C87:C110)","v":263127.68000000005},{"$f":"SUM(D87:D110)","v":308264.12000000005},317533.57000000007,320278.16000000003,0,{"$f":"SUM(H87:H110)","v":320905},0]
["Total OM&A",null,{"$f":"C40+C61+C72+C84+C111","v":469198.92000000004},533002.76,524596.56000000006,512785.31000000006,0,556279,0]
["Adjustments for non-recoverable items"]
[5681,"Special Purpose Charge Expense",null,null,{"$f":"HistoricalBalances!F464","v":0},{"$f":"HistoricalBalances!E464","v":0},null,{"$f":"HistoricalBalances!D464","v":0}]
[6205,"Donations1"]
[]
[]
[]
["Total Recoverable OM&A",null,{"$f":"C112-SUM(C114:C118)","v":469198.92000000004},533002.76,524596.56000000006,512785.31000000006,0,556279,0]
[]
["1 Account 6205 - Donations is generally non-recoverable.  However, the sub-account LEAP funding of account 6205 is generally recoverable."]
[]
["Note:"]
[1,"If it has been more than three years since the applicant last filed a cost of service application, additional years of historical actuals should be incorporated into the table, as necessary, to go back to the last cost of service application.  If the applicant last filed a cost of service application less than three years ago, a minimum of three years of actual information is required."]
[2,"If the applicant is adopting IFRS or an alternate accounting standard as of January 1, 2013 for financial reporting purposes, 2012 must be presented on both a CGAAP and MIFRS (or alternate accounting standard) basis."]
[3,"If the applicant is adopting IFRS or an alternate accounting standard as of January 1, 2014 for financial reporting purposes, 2013 must be presented on both a CGAAP and MIFRS (or alternate accounting standard) basis."]

{"sheet":"App.2-H_OM&A_Detailed_Analysis","index":27,"n_rows":128,"n_cols":9,"rows_kept":128,"cut":false,"hidden":false,"merged":[[41,1,41,8],[8,0,8,8],[9,0,9,8],[10,0,10,8],[40,0,40,1],[16,0,16,8],[13,0,14,0],[13,1,14,1],[13,2,14,2],[13,3,14,3],[13,4,14,4],[13,7,13,8],[13,5,13,6],[73,1,73,8],[85,1,85,8],[119,0,119,1],[113,0,113,1],[42,0,42,8],[63,0,63,8],[62,1,62,8],[72,0,72,1],[61,0,61,1],[126,1,126,8],[127,1,127,8],[112,0,112,1],[74,0,74,8],[86,0,86,8]]}
[null,null,null,null,null,null,null,"File Number:",{"$f":"'LDC Info'!$E$18","v":"EB-2013-0122"}]
[null,null,null,null,null,null,null,"Exhibit:",4]
[null,null,null,null,null,null,null,"Tab:",1]
[null,null,null,null,null,null,null,"Schedule:",3]
[null,null,null,null,null,null,null,"Page:"]
[]
[null,null,null,null,null,null,null,"Date:"]
[]
["Appendix 2-H"]
["OM&A Detailed Variance Analysis"]
["(excluding Depreciation and Amortization)"]
[]
[]
["Account","Description",{"$f":"\"Last Board-approved Rebasing Year (\"&'LDC Info'!E30&\" Year)\"","v":"Last Board-approved Rebasing Year (2010 Year)"},"Most Current Actuals               Year 2012",{"$f":"\"Test Year \" & 'LDC Info'!E28","v":"Test Year 2014"},"Test Year Versus Last Rebasing",null,"Test Year Versus Most Current Actuals"]
[null,null,null,null,null,"Variance ($)","Percentage Change (%)","Variance ($)","Percentage Change (%)"]
["Reporting Basis",null,"CGAAP","CGAAP","CGAAP"]
["Operations"]
[5005,"Operation Supervision and Engineering",{"$f":"HistoricalBalances!I376","v":0},{"$f":"'App.2-G_Detailed_OM&A_Expenses'!E17","v":0},{"$f":"'App.2-G_Detailed_OM&A_Expenses'!H17","v":0},{"$f":"E18-C18","v":0},{"$f":"IF(C18=0,\"\",(E18/C18)-1)","v":""},{"$f":"E18-D18","v":0},{"$f":"IF(D18=0,\"\",(E18/D18)-1)","v":""}]
[5010,"Load Dispatching",{"$f":"HistoricalBalances!I377","v":0},{"$f":"'App.2-G_Detailed_OM&A_Expenses'!E18","v":0},{"$f":"'App.2-G_Detailed_OM&A_Expenses'!H18","v":0},{"$f":"E19-C19","v":0},{"$f":"IF(C19=0,\"\",(E19/C19)-1)","v":""},{"$f":"E19-D19","v":0},{"$f":"IF(D19=0,\"\",(E19/D19)-1)","v":""}]
[5012,"Station Buildings and Fixtures Expense",{"$f":"HistoricalBalances!I378","v":1860},{"$f":"'App.2-G_Detailed_OM&A_Expenses'!E19","v":1451.35},{"$f":"'App.2-G_Detailed_OM&A_Expenses'!H19","v":1900},40,2.1505376344086002E-2,448.65000000000009,0.30912598615082509]
[5014,"Transformer Station Equipment - Operation Labour",{"$f":"HistoricalBalances!I379","v":0},{"$f":"'App.2-G_Detailed_OM&A_Expenses'!E20","v":0},{"$f":"'App.2-G_Detailed_OM&A_Expenses'!H20","v":0},0,"",0,""]
[5015,"Transformer Station Equipment - Operation Supplies and Expenses",{"$f":"HistoricalBalances!I380","v":0},{"$f":"'App.2-G_Detailed_OM&A_Expenses'!E21","v":0},{"$f":"'App.2-G_Detailed_OM&A_Expenses'!H21","v":0},0,"",0,""]
[5016,"Distribution Station Equipment - Operation Labour",{"$f":"HistoricalBalances!I381","v":0},{"$f":"'App.2-G_Detailed_OM&A_Expenses'!E22","v":0},{"$f":"'App.2-G_Detailed_OM&A_Expenses'!H22","v":0},0,"",0,""]
[5017,"Distribution Station Equipment - Operation Supplies and Expenses",{"$f":"HistoricalBalances!I382","v":0},{"$f":"'App.2-G_Detailed_OM&A_Expenses'!E23","v":0},{"$f":"'App.2-G_Detailed_OM&A_Expenses'!H23","v":0},0,"",0,""]
[5020,"Overhead Distribution Lines and Feeders - Operation Labour",{"$f":"HistoricalBalances!I383","v":0},{"$f":"'App.2-G_Detailed_OM&A_Expenses'!E24","v":0},{"$f":"'App.2-G_Detailed_OM&A_Expenses'!H24","v":0},0,"",0,""]
[5025,"Overhead Distribution Lines and Feeders - Operation Supplies and Expenses",{"$f":"HistoricalBalances!I384","v":0},{"$f":"'App.2-G_Detailed_OM&A_Expenses'!E25","v":0},{"$f":"'App.2-G_Detailed_OM&A_Expenses'!H25","v":0},0,"",0,""]
[5030,"Overhead Sub-transmission Feeders - Operation",{"$f":"HistoricalBalances!I385","v":0},{"$f":"'App.2-G_Detailed_OM&A_Expenses'!E26","v":0},{"$f":"'App.2-G_Detailed_OM&A_Expenses'!H26","v":0},0,"",0,""]
[5035,"Overhead Distribution Transformers - Operation",{"$f":"HistoricalBalances!I386","v":0},{"$f":"'App.2-G_Detailed_OM&A_Expenses'!E27","v":605},{"$f":"'App.2-G_Detailed_OM&A_Expenses'!H27","v":6000},6000,"",5395,8.9173553719008272]
[5040,"Underground Distribution Lines and Feeders - Operation Labour",{"$f":"HistoricalBalances!I387","v":0},{"$f":"'App.2-G_Detailed_OM&A_Expenses'!E28","v":0},{"$f":"'App.2-G_Detailed_OM&A_Expenses'!H28","v":0},0,"",0,""]
[5045,"Underground Distribution Lines and Feeders - Operation Supplies and Expenses",{"$f":"HistoricalBalances!I388","v":0},{"$f":"'App.2-G_Detailed_OM&A_Expenses'!E29","v":0},{"$f":"'App.2-G_Detailed_OM&A_Expenses'!H29","v":0},0,"",0,""]
[5050,"Underground Sub-transmission Feeders - Operation",{"$f":"HistoricalBalances!I389","v":0},{"$f":"'App.2-G_Detailed_OM&A_Expenses'!E30","v":0},{"$f":"'App.2-G_Detailed_OM&A_Expenses'!H30","v":0},0,"",0,""]
[5055,"Underground Distribution Transformers - Operation",{"$f":"HistoricalBalances!I390","v":12000},{"$f":"'App.2-G_Detailed_OM&A_Expenses'!E31","v":0},{"$f":"'App.2-G_Detailed_OM&A_Expenses'!H31","v":0},-12000,-1,0,""]
[5060,"Street Lighting and Signal System Expense",{"$f":"HistoricalBalances!I391","v":0},{"$f":"'App.2-G_Detailed_OM&A_Expenses'!E32","v":0},{"$f":"'App.2-G_Detailed_OM&A_Expenses'!H32","v":0},0,"",0,""]
[5065,"Meter Expense",{"$f":"HistoricalBalances!I392","v":2000},{"$f":"'App.2-G_Detailed_OM&A_Expenses'!E33","v":0},{"$f":"'App.2-G_Detailed_OM&A_Expenses'!H33","v":2000},0,0,2000,""]
[5070,"Customer Premises - Operation Labour",{"$f":"HistoricalBalances!I393","v":0},{"$f":"'App.2-G_Detailed_OM&A_Expenses'!E34","v":0},{"$f":"'App.2-G_Detailed_OM&A_Expenses'!H34","v":0},0,"",0,""]
[5075,"Customer Premises - Operation Materials and Expenses",{"$f":"HistoricalBalances!I394","v":6000},{"$f":"'App.2-G_Detailed_OM&A_Expenses'!E35","v":7031},{"$f":"'App.2-G_Detailed_OM&A_Expenses'!H35","v":6000},0,0,-1031,-0.14663632484710565]
[5085,"Miscellaneous Distribution Expenses",{"$f":"HistoricalBalances!I395","v":12000},{"$f":"'App.2-G_Detailed_OM&A_Expenses'!E36","v":7210.87},{"$f":"'App.2-G_Detailed_OM&A_Expenses'!H36","v":5000},-7000,-0.58333333333333326,-2210.87,-0.30660239333117911]
[5090,"Underground Distribution Lines and Feeders - Rental Paid",{"$f":"HistoricalBalances!I396","v":0},{"$f":"'App.2-G_Detailed_OM&A_Expenses'!E37","v":0},{"$f":"'App.2-G_Detailed_OM&A_Expenses'!H37","v":0},0,"",0,""]
[5095,"Overhead Distribution Lines and Feeders - Rental Paid",{"$f":"HistoricalBalances!I397","v":0},{"$f":"'App.2-G_Detailed_OM&A_Expenses'!E38","v":0},{"$f":"'App.2-G_Detailed_OM&A_Expenses'!H38","v":0},0,"",0,""]
[5096,"Other Rent",{"$f":"HistoricalBalances!I398","v":0},{"$f":"'App.2-G_Detailed_OM&A_Expenses'!E39","v":0},{"$f":"'App.2-G_Detailed_OM&A_Expenses'!H39","v":0},0,"",0,""]
["Total - Operations",null,{"$f":"SUM(C18:C40)","v":33860},{"$f":"SUM(D18:D40)","v":16298.220000000001},{"$f":"SUM(E18:E40)","v":20900},-12960,-0.38275251033668045,4601.7799999999988,0.28234862457372634]
["Account","Description"]
["Maintenance"]
[5105,"Maintenance Supervision and Engineering",{"$f":"HistoricalBalances!I399","v":2500},{"$f":"'App.2-G_Detailed_OM&A_Expenses'!E43","v":0},{"$f":"'App.2-G_Detailed_OM&A_Expenses'!H43","v":0},{"$f":"E44-C44","v":-2500},{"$f":"IF(C44=0,\"\",(E44/C44)-1)","v":-1},{"$f":"E44-D44","v":0},{"$f":"IF(D44=0,\"\",(E44/D44)-1)","v":""}]
[5110,"Maintenance of Buildings and Fixtures - Distribution Stations",{"$f":"HistoricalBalances!I400","v":2425},{"$f":"'App.2-G_Detailed_OM&A_Expenses'!E44","v":8538},{"$f":"'App.2-G_Detailed_OM&A_Expenses'!H44","v":9600},7175,2.9587628865979383,1062,0.12438510189739982]
[5112,"Maintenance of Transformer Station Equipment",{"$f":"HistoricalBalances!I401","v":0},{"$f":"'App.2-G_Detailed_OM&A_Expenses'!E45","v":0},{"$f":"'App.2-G_Detailed_OM&A_Expenses'!H45","v":0},0,"",0,""]
[5114,"Maintenance of Distribution Station Equipment",{"$f":"HistoricalBalances!I402","v":12000},{"$f":"'App.2-G_Detailed_OM&A_Expenses'!E46","v":19003},{"$f":"'App.2-G_Detailed_OM&A_Expenses'!H46","v":5200},-6800,-0.56666666666666665,-13803,-0.72635899594800823]
[5120,"Maintenance of Poles, Towers and Fixtures",{"$f":"HistoricalBalances!I403","v":2500},{"$f":"'App.2-G_Detailed_OM&A_Expenses'!E47","v":2523.5},{"$f":"'App.2-G_Detailed_OM&A_Expenses'!H47","v":6000},3500,1.4,3476.5,1.3776500891618784]
[5125,"Maintenance of Overhead Conductors and Devices",{"$f":"HistoricalBalances!I404","v":6000},{"$f":"'App.2-G_Detailed_OM&A_Expenses'!E48","v":6033.3},{"$f":"'App.2-G_Detailed_OM&A_Expenses'!H48","v":6000},0,0,-33.300000000000182,-5.5193675103177853E-3]
[5130,"Maintenance of Overhead Services",{"$f":"HistoricalBalances!I405","v":0},{"$f":"'App.2-G_Detailed_OM&A_Expenses'!E49","v":0},{"$f":"'App.2-G_Detailed_OM&A_Expenses'!H49","v":0},0,"",0,""]
[5135,"Overhead Distribution Lines and Feeders - Right of Way",{"$f":"HistoricalBalances!I406","v":7000},{"$f":"'App.2-G_Detailed_OM&A_Expenses'!E50","v":4302.5},{"$f":"'App.2-G_Detailed_OM&A_Expenses'!H50","v":7500},500,7.1428571428571397E-2,3197.5,0.7431725740848345]
[5145,"Maintenance of Underground Conduit",{"$f":"HistoricalBalances!I407","v":0},{"$f":"'App.2-G_Detailed_OM&A_Expenses'!E51","v":5775.25},{"$f":"'App.2-G_Detailed_OM&A_Expenses'!H51","v":0},0,"",-5775.25,-1]
[5150,"Maintenance of Underground Conductors and Devices",{"$f":"HistoricalBalances!I408","v":0},{"$f":"'App.2-G_Detailed_OM&A_Expenses'!E52","v":0},{"$f":"'App.2-G_Detailed_OM&A_Expenses'!H52","v":0},0,"",0,""]
[5155,"Maintenance of Underground Services",{"$f":"HistoricalBalances!I409","v":0},{"$f":"'App.2-G_Detailed_OM&A_Expenses'!E53","v":0},{"$f":"'App.2-G_Detailed_OM&A_Expenses'!H53","v":0},0,"",0,""]
[5160,"Maintenance of Line Transformers",{"$f":"HistoricalBalances!I410","v":5000},{"$f":"'App.2-G_Detailed_OM&A_Expenses'!E54","v":2453},{"$f":"'App.2-G_Detailed_OM&A_Expenses'!H54","v":6000},1000,0.19999999999999996,3547,1.445984508764778]
[5165,"Maintenance of Street Lighting and Signal Systems",{"$f":"HistoricalBalances!I411","v":0},{"$f":"'App.2-G_Detailed_OM&A_Expenses'!E55","v":0},{"$f":"'App.2-G_Detailed_OM&A_Expenses'!H55","v":0},0,"",0,""]
[5170,"Sentinel Lights - Labour",{"$f":"HistoricalBalances!I412","v":0},{"$f":"'App.2-G_Detailed_OM&A_Expenses'!E56","v":0},{"$f":"'App.2-G_Detailed_OM&A_Expenses'!H56","v":0},0,"",0,""]
[5172,"Sentinel Lights - Materials and Expenses",{"$f":"HistoricalBalances!I413","v":0},{"$f":"'App.2-G_Detailed_OM&A_Expenses'!E57","v":0},{"$f":"'App.2-G_Detailed_OM&A_Expenses'!H57","v":0},0,"",0,""]
[5175,"Maintenance of Meters",{"$f":"HistoricalBalances!I414","v":0},{"$f":"'App.2-G_Detailed_OM&A_Expenses'!E58","v":0},{"$f":"'App.2-G_Detailed_OM&A_Expenses'!H58","v":0},0,"",0,""]
[5178,"Customer Installations Expenses - Leased Property",{"$f":"HistoricalBalances!I415","v":0},{"$f":"'App.2-G_Detailed_OM&A_Expenses'!E59","v":0},{"$f":"'App.2-G_Detailed_OM&A_Expenses'!H59","v":0},0,"",0,""]
[5195,"Maintenance of Other Installations on Customer Premises",{"$f":"HistoricalBalances!I416","v":0},{"$f":"'App.2-G_Detailed_OM&A_Expenses'!E60","v":0},{"$f":"'App.2-G_Detailed_OM&A_Expenses'!H60","v":0},0,"",0,""]
["Total - Maintenance",null,{"$f":"SUM(C44:C61)","v":37425},{"$f":"SUM(D44:D61)","v":48628.55},{"$f":"SUM(E44:E61)","v":40300},2875,7.6820307281229017E-2,-8328.5500000000029,-0.17126872999503384]
["Account","Description"]
["Billing and Collecting"]
[5305,"Supervision",{"$f":"HistoricalBalances!I426","v":0},{"$f":"'App.2-G_Detailed_OM&A_Expenses'!E64","v":0},{"$f":"'App.2-G_Detailed_OM&A_Expenses'!H64","v":0},{"$f":"E65-C65","v":0},{"$f":"IF(C65=0,\"\",(E65/C65)-1)","v":""},{"$f":"E65-D65","v":0},{"$f":"IF(D65=0,\"\",(E65/D65)-1)","v":""}]
[5310,"Meter Reading Expense",{"$f":"HistoricalBalances!I427","v":11600},{"$f":"'App.2-G_Detailed_OM&A_Expenses'!E65","v":0},{"$f":"'App.2-G_Detailed_OM&A_Expenses'!H65","v":0},-11600,-1,0,""]
[5315,"Customer Billing",{"$f":"HistoricalBalances!I428","v":141547},{"$f":"'App.2-G_Detailed_OM&A_Expenses'!E66","v":132059.91},{"$f":"'App.2-G_Detailed_OM&A_Expenses'!H66","v":161174},19627,0.13866065688428586,29114.089999999997,0.2204612285439238]
[5320,"Collecting",{"$f":"HistoricalBalances!I429","v":0},{"$f":"'App.2-G_Detailed_OM&A_Expenses'!E67","v":0},{"$f":"'App.2-G_Detailed_OM&A_Expenses'!H67","v":0},0,"",0,""]
[5325,"Collecting - Cash Over and Short",{"$f":"HistoricalBalances!I430","v":0},{"$f":"'App.2-G_Detailed_OM&A_Expenses'!E68","v":0},{"$f":"'App.2-G_Detailed_OM&A_Expenses'!H68","v":0},0,"",0,""]
[5330,"Collection Charges",{"$f":"HistoricalBalances!I431","v":1500},{"$f":"'App.2-G_Detailed_OM&A_Expenses'!E69","v":3366.36},{"$f":"'App.2-G_Detailed_OM&A_Expenses'!H69","v":4000},2500,1.6666666666666665,633.63999999999987,0.18822704642403076]
[5335,"Bad Debt Expense",{"$f":"HistoricalBalances!I432","v":600},{"$f":"'App.2-G_Detailed_OM&A_Expenses'!E70","v":0},{"$f":"'App.2-G_Detailed_OM&A_Expenses'!H70","v":5000},4400,7.3333333333333339,5000,""]
[5340,"Miscellaneous Customer Accounts Expenses",null,{"$f":"'App.2-G_Detailed_OM&A_Expenses'!E71","v":0},{"$f":"'App.2-G_Detailed_OM&A_Expenses'!H71","v":0},0,"",0,""]
["Total - Billing and Collecting",null,{"$f":"SUM(C65:C72)","v":155247},{"$f":"SUM(D65:D72)","v":135426.26999999999},{"$f":"SUM(E65:E72)","v":170174},14927,9.6150006119280818E-2,34747.73000000001,0.25658042564415329]
["Account","Description"]
["Community Relations"]
[5405,"Supervision",{"$f":"HistoricalBalances!I435","v":0},{"$f":"'App.2-G_Detailed_OM&A_Expenses'!E75","v":0},{"$f":"'App.2-G_Detailed_OM&A_Expenses'!H75","v":0},{"$f":"E76-C76","v":0},{"$f":"IF(C76=0,\"\",(E76/C76)-1)","v":""},{"$f":"E76-D76","v":0},{"$f":"IF(D76=0,\"\",(E76/D76)-1)","v":""}]
[5410,"Community Relations - Sundry",{"$f":"HistoricalBalances!I436","v":3000},{"$f":"'App.2-G_Detailed_OM&A_Expenses'!E76","v":6709.95},{"$f":"'App.2-G_Detailed_OM&A_Expenses'!H76","v":4000},1000,0.33333333333333326,-2709.95,-0.4038703716123071]
[5415,"Energy Conservation",{"$f":"HistoricalBalances!I437","v":0},{"$f":"'App.2-G_Detailed_OM&A_Expenses'!E77","v":0},{"$f":"'App.2-G_Detailed_OM&A_Expenses'!H77","v":0},0,"",0,""]
[5420,"Community Safety Program",{"$f":"HistoricalBalances!I438","v":0},{"$f":"'App.2-G_Detailed_OM&A_Expenses'!E78","v":0},{"$f":"'App.2-G_Detailed_OM&A_Expenses'!H78","v":0},0,"",0,""]
[5425,"Miscellaneous Customer Service and Informational Expenses",{"$f":"HistoricalBalances!I439","v":0},{"$f":"'App.2-G_Detailed_OM&A_Expenses'!E79","v":0},{"$f":"'App.2-G_Detailed_OM&A_Expenses'!H79","v":0},0,"",0,""]
[5505,"Supervision",{"$f":"HistoricalBalances!I440","v":0},{"$f":"'App.2-G_Detailed_OM&A_Expenses'!E80","v":0},{"$f":"'App.2-G_Detailed_OM&A_Expenses'!H80","v":0},0,"",0,""]
[5510,"Demonstrating and Selling Expense",{"$f":"HistoricalBalances!I441","v":0},{"$f":"'App.2-G_Detailed_OM&A_Expenses'!E81","v":0},{"$f":"'App.2-G_Detailed_OM&A_Expenses'!H81","v":0},0,"",0,""]
[5515,"Advertising Expenses",{"$f":"HistoricalBalances!I442","v":0},{"$f":"'App.2-G_Detailed_OM&A_Expenses'!E82","v":0},{"$f":"'App.2-G_Detailed_OM&A_Expenses'!H82","v":0},0,"",0,""]
[5520,"Miscellaneous Sales Expense",{"$f":"HistoricalBalances!I443","v":0},{"$f":"'App.2-G_Detailed_OM&A_Expenses'!E83","v":0},{"$f":"'App.2-G_Detailed_OM&A_Expenses'!H83","v":0},0,"",0,""]
["Total - Community Relations",null,{"$f":"SUM(C76:C84)","v":3000},{"$f":"SUM(D76:D84)","v":6709.95},{"$f":"SUM(E76:E84)","v":4000},1000,0.33333333333333326,-2709.95,-0.4038703716123071]
["Account","Description"]
["Administrative and General Expenses"]
[5605,"Executive Salaries and Expenses",{"$f":"HistoricalBalances!I445","v":21200},{"$f":"'App.2-G_Detailed_OM&A_Expenses'!E87","v":25148.44},{"$f":"'App.2-G_Detailed_OM&A_Expenses'!H87","v":28000},{"$f":"E88-C88","v":6800},{"$f":"IF(C88=0,\"\",(E88/C88)-1)","v":0.320754716981132},{"$f":"E88-D88","v":2851.5600000000013},{"$f":"IF(D88=0,\"\",(E88/D88)-1)","v":0.11338914063854455}]
[5610,"Management Salaries and Expenses",{"$f":"HistoricalBalances!I446","v":82000},{"$f":"'App.2-G_Detailed_OM&A_Expenses'!E88","v":77597.58},{"$f":"'App.2-G_Detailed_OM&A_Expenses'!H88","v":84000},2000,2.4390243902439046E-2,6402.4199999999983,8.2507985429442599E-2]
[5615,"General Administrative Salaries and Expenses",{"$f":"HistoricalBalances!I447","v":37000},{"$f":"'App.2-G_Detailed_OM&A_Expenses'!E89","v":62113.67},{"$f":"'App.2-G_Detailed_OM&A_Expenses'!H89","v":67405},30405,0.82175675675675675,5291.3300000000017,8.5187849953158423E-2]
[5620,"Office Supplies and Expenses",{"$f":"HistoricalBalances!I448","v":17000},{"$f":"'App.2-G_Detailed_OM&A_Expenses'!E90","v":35737.67},{"$f":"'App.2-G_Detailed_OM&A_Expenses'!H90","v":46600},29600,1.7411764705882353,10862.330000000002,0.30394622816764505]
[5625,"Administrative Expense Transferred - Credit",{"$f":"HistoricalBalances!I449","v":0},{"$f":"'App.2-G_Detailed_OM&A_Expenses'!E91","v":0},{"$f":"'App.2-G_Detailed_OM&A_Expenses'!H91","v":0},0,"",0,""]
[5630,"Outside Services Employed",{"$f":"HistoricalBalances!I450","v":82350},{"$f":"'App.2-G_Detailed_OM&A_Expenses'!E92","v":87916.27},{"$f":"'App.2-G_Detailed_OM&A_Expenses'!H92","v":58800},-23550,-0.28597449908925321,-29116.270000000004,-0.33118181651701106]
[5635,"Property Insurance",{"$f":"HistoricalBalances!I451","v":5400},{"$f":"'App.2-G_Detailed_OM&A_Expenses'!E93","v":4960},{"$f":"'App.2-G_Detailed_OM&A_Expenses'!H93","v":3000},-2400,-0.44444444444444442,-1960,-0.39516129032258063]
[5640,"Injuries and Damages",{"$f":"HistoricalBalances!I452","v":1500},{"$f":"'App.2-G_Detailed_OM&A_Expenses'!E94","v":1571.4},{"$f":"'App.2-G_Detailed_OM&A_Expenses'!H94","v":2800},1300,0.8666666666666667,1228.5999999999999,0.78185057910143807]
[5645,"OMERS Pensions and Benefits",{"$f":"HistoricalBalances!I453","v":0},{"$f":"'App.2-G_Detailed_OM&A_Expenses'!E95","v":0},{"$f":"'App.2-G_Detailed_OM&A_Expenses'!H95","v":0},0,"",0,""]
[5646,"Employee Pensions and OPEB",{"$f":"HistoricalBalances!I454","v":0},{"$f":"'App.2-G_Detailed_OM&A_Expenses'!E96","v":0},{"$f":"'App.2-G_Detailed_OM&A_Expenses'!H96","v":0},{"$f":"E97-C97","v":0},{"$f":"IF(C97=0,\"\",(E97/C97)-1)","v":""},{"$f":"E97-D97","v":0},{"$f":"IF(D97=0,\"\",(E97/D97)-1)","v":""}]
[5647,"Employee Sick Leave",{"$f":"HistoricalBalances!I455","v":0},{"$f":"'App.2-G_Detailed_OM&A_Expenses'!E97","v":0},{"$f":"'App.2-G_Detailed_OM&A_Expenses'!H97","v":0},{"$f":"E98-C98","v":0},{"$f":"IF(C98=0,\"\",(E98/C98)-1)","v":""},{"$f":"E98-D98","v":0},{"$f":"IF(D98=0,\"\",(E98/D98)-1)","v":""}]
[5650,"Franchise Requirements",{"$f":"HistoricalBalances!I456","v":0},{"$f":"'App.2-G_Detailed_OM&A_Expenses'!E98","v":0},{"$f":"'App.2-G_Detailed_OM&A_Expenses'!H98","v":0},0,"",0,""]
[5655,"Regulatory Expenses",{"$f":"HistoricalBalances!I457","v":5450},{"$f":"'App.2-G_Detailed_OM&A_Expenses'!E99","v":5452.4},{"$f":"'App.2-G_Detailed_OM&A_Expenses'!H99","v":10600},5150,0.94495412844036708,5147.6000000000004,0.94409801188467468]
[5660,"General Advertising Expenses",{"$f":"HistoricalBalances!I458","v":0},{"$f":"'App.2-G_Detailed_OM&A_Expenses'!E100","v":0},{"$f":"'App.2-G_Detailed_OM&A_Expenses'!H100","v":0},0,"",0,""]
[5665,"Miscellaneous General Expenses",{"$f":"HistoricalBalances!I459","v":0},{"$f":"'App.2-G_Detailed_OM&A_Expenses'!E101","v":0},{"$f":"'App.2-G_Detailed_OM&A_Expenses'!H101","v":0},0,"",0,""]
[5670,"Rent",{"$f":"HistoricalBalances!I460","v":12000},{"$f":"'App.2-G_Detailed_OM&A_Expenses'!E102","v":13200},{"$f":"'App.2-G_Detailed_OM&A_Expenses'!H102","v":15600},{"$f":"E103-C103","v":3600},{"$f":"IF(C103=0,\"\",(E103/C103)-1)","v":0.30000000000000004},{"$f":"E103-D103","v":2400},0.18181818181818188]
[5672,"Lease Payment Charge",{"$f":"HistoricalBalances!I461","v":0},{"$f":"'App.2-G_Detailed_OM&A_Expenses'!E103","v":0},{"$f":"'App.2-G_Detailed_OM&A_Expenses'!H103","v":0},0,"",0]
[5675,"Maintenance of General Plant",{"$f":"HistoricalBalances!I462","v":0},{"$f":"'App.2-G_Detailed_OM&A_Expenses'!E104","v":0},{"$f":"'App.2-G_Detailed_OM&A_Expenses'!H104","v":0},0,"",0,""]
[5680,"Electrical Safety Authority Fees",{"$f":"HistoricalBalances!I463","v":1795},{"$f":"'App.2-G_Detailed_OM&A_Expenses'!E105","v":1836.14},{"$f":"'App.2-G_Detailed_OM&A_Expenses'!H105","v":2100},305,0.16991643454039007,263.8599999999999,0.14370363915605555]
[5681,"Special Purpose Charge Expense",{"$f":"HistoricalBalances!I464","v":0},{"$f":"'App.2-G_Detailed_OM&A_Expenses'!E106","v":0},{"$f":"'App.2-G_Detailed_OM&A_Expenses'!H106","v":0},0,"",0]
[5685,"Independent Electricity System Operator Fees and Penalties",{"$f":"HistoricalBalances!I465","v":0},{"$f":"'App.2-G_Detailed_OM&A_Expenses'!E107","v":0},{"$f":"'App.2-G_Detailed_OM&A_Expenses'!H107","v":0},0,"",0,""]
[5695,"OM&A Contra Account",{"$f":"HistoricalBalances!I466","v":0},{"$f":"'App.2-G_Detailed_OM&A_Expenses'!E108","v":0},{"$f":"'App.2-G_Detailed_OM&A_Expenses'!H108","v":0},0,"",0,""]
[6205,"Donations",0,{"$f":"'App.2-G_Detailed_OM&A_Expenses'!E109","v":0},{"$f":"'App.2-G_Detailed_OM&A_Expenses'!H109","v":0},{"$f":"E110-C110","v":0},{"$f":"IF(C110=0,\"\",(E110/C110)-1)","v":""},{"$f":"E110-D110","v":0},{"$f":"IF(D110=0,\"\",(E110/D110)-1)","v":""}]
[6205,"Donations, Sub-account LEAP Funding",2000,{"$f":"'App.2-G_Detailed_OM&A_Expenses'!E110","v":2000},{"$f":"'App.2-G_Detailed_OM&A_Expenses'!H110","v":2000},0,0,0,0]
["Total - Administrative and General Expenses",null,{"$f":"SUM(C88:C111)","v":267695},{"$f":"SUM(D88:D111)","v":317533.57000000007},{"$f":"SUM(E88:E111)","v":320905},53210,0.19877098937223336,3371.4299999999348,1.0617554547067032E-2]
["Total OM&A",null,{"$f":"C112+C85+C73+C62+C41","v":497227},{"$f":"D112+D85+D73+D62+D41","v":524596.56000000006},{"$f":"E112+E85+E73+E62+E41","v":556279},59052,0.11876265769960193,31682.439999999944,6.0393914897192591E-2]
["Adjustments for non-recoverable items"]
[5681,"Special Purpose Charge Expense",null,{"$f":"'App.2-G_Detailed_OM&A_Expenses'!E106","v":0},{"$f":"'App.2-G_Detailed_OM&A_Expenses'!H106","v":0},{"$f":"E115-C115","v":0},{"$f":"IF(C115=0,\"\",(E115/C115)-1)","v":""},{"$f":"E115-D115","v":0},{"$f":"IF(D115=0,\"\",(E115/D115)-1)","v":""}]
[6205,"Donations1",null,null,null,{"$f":"E116-C116","v":0},"",{"$f":"E116-D116","v":0},""]
[null,null,null,null,null,{"$f":"E117-C117","v":0},"",{"$f":"E117-D117","v":0},""]
[null,null,null,null,null,{"$f":"E118-C118","v":0},"",{"$f":"E118-D118","v":0},""]
[null,null,null,null,null,{"$f":"E119-C119","v":0},"",{"$f":"E119-D119","v":0},""]
["Total Recoverable OM&A",null,{"$f":"C113-SUM(C115:C119)","v":497227},{"$f":"D113-SUM(D115:D119)","v":524596.56000000006},{"$f":"E113-SUM(E115:E119)","v":556279},{"$f":"F113-SUM(F115:F119)","v":59052},0.11876265769960193,{"$f":"H113-SUM(H115:H119)","v":31682.439999999944},6.0393914897192591E-2]
[]
["1 Account 6205 - Donations is generally non-recoverable.  However, the sub-account LEAP funding of account 6205 is generally recoverable."]
[]
[]
["Note:"]
[]
[1,"If the applicant is adopting IFRS or an alternate accounting standard as of January 1, 2013 for financial reporting purposes, Column D \"Most Current Actual Year\" must be provided on CGAAP."]
[2,"If the applicant is adopting IFRS or an alternate accounting standard as of January 1, 2012 for financial reporting purposes, Column D \"Most Current Actual Year\" must be provided on that standard."]

{"sheet":"App.2-I_OM&A_Summary_Analys","index":28,"n_rows":59,"n_cols":12,"rows_kept":59,"cut":false,"hidden":false,"merged":[[61,1,62,5],[56,0,57,11],[8,0,8,6],[9,0,9,6],[12,7,12,8]]}
[null,null,null,null,null,null,null,null,null,null,"File Number:",{"$f":"'LDC Info'!$E$18","v":"EB-2013-0122"}]
[null,null,null,null,null,null,null,null,null,null,"Exhibit:"]
[null,null,null,null,null,null,null,null,null,null,"Tab:"]
[null,null,null,null,null,null,null,null,null,null,"Schedule:"]
[null,null,null,null,null,null,null,null,null,null,"Page:"]
[]
[null,null,null,null,null,null,null,null,null,null,"Date:"]
[]
["Appendix 2-I"]
["Summary of Recoverable OM&A Expenses"]
[]
[]
[null,{"$f":"\"Last Rebasing Year (\" & 'LDC Info'!E30 & \" BA)\"","v":"Last Rebasing Year (2010 BA)"},{"$f":"\"Last Rebasing Year (\" & 'LDC Info'!E30 & \" Actuals)\"","v":"Last Rebasing Year (2010 Actuals)"},{"$f":"'LDC Info'!E26 -2 & \" Actuals\"","v":"2011 Actuals"},{"$f":"'LDC Info'!E26 -1 & \" Actuals\"","v":"2012 Actuals"},{"$f":"'LDC Info'!E26 & \" Bridge Year\"","v":"2013 Bridge Year"},{"$f":"'LDC Info'!E28 & \" Test Year\"","v":"2014 Test Year"}]
["Reporting Basis","CGAAP","CGAAP","CGAAP","CGAAP","CGAAP","CGAAP"]
["Operations",{"$f":"'App.2-H_OM&A_Detailed_Analysis'!C41","v":33860},{"$f":"'App.2-G_Detailed_OM&A_Expenses'!C40","v":20826.84},{"$f":"'App.2-G_Detailed_OM&A_Expenses'!D40","v":20964.95},{"$f":"'App.2-G_Detailed_OM&A_Expenses'!E40","v":16298.220000000001},{"$f":"'App.2-G_Detailed_OM&A_Expenses'!F40","v":15550},{"$f":"'App.2-G_Detailed_OM&A_Expenses'!H40","v":20900}]
["Maintenance",{"$f":"'App.2-H_OM&A_Detailed_Analysis'!C62","v":37425},{"$f":"'App.2-G_Detailed_OM&A_Expenses'!C61","v":36633.339999999997},{"$f":"'App.2-G_Detailed_OM&A_Expenses'!D61","v":39318.879999999997},{"$f":"'App.2-G_Detailed_OM&A_Expenses'!E61","v":48628.55},{"$f":"'App.2-G_Detailed_OM&A_Expenses'!F61","v":39800},{"$f":"'App.2-G_Detailed_OM&A_Expenses'!H61","v":40300}]
["SubTotal",{"$f":"SUM(B15:B16)","v":71285},57460.179999999993,60283.83,64926.770000000004,55350,61200]
["%Change (year over year)",null,null,{"$f":"IF(ISERROR((D17-C17)/C17), \"\", (D17-C17)/C17)","v":4.9140987724020514E-2},{"$f":"IF(ISERROR((E17-D17)/D17), \"\", (E17-D17)/D17)","v":7.7017999685819599E-2},{"$f":"IF(ISERROR((F17-E17)/E17), \"\", (F17-E17)/E17)","v":-0.14750110008552719},{"$f":"IF(ISERROR((G17-F17)/F17), \"\", (G17-F17)/F17)","v":0.10569105691056911}]
["%Change (Test Year vs \nLast Rebasing Year - Actual)",null,null,null,null,null,{"$f":"IF(ISERROR((G17-C17)/C17), \"\", (G17-C17)/C17)","v":6.5085420894957294E-2}]
["Billing and Collecting",{"$f":"'App.2-H_OM&A_Detailed_Analysis'!C73","v":155247},{"$f":"'App.2-G_Detailed_OM&A_Expenses'!C72","v":146428.9},{"$f":"'App.2-G_Detailed_OM&A_Expenses'!D72","v":163138.56},{"$f":"'App.2-G_Detailed_OM&A_Expenses'!E72","v":135426.26999999999},{"$f":"'App.2-G_Detailed_OM&A_Expenses'!F72","v":134057.15000000002},{"$f":"'App.2-G_Detailed_OM&A_Expenses'!H72","v":170174}]
["Community Relations",{"$f":"'App.2-H_OM&A_Detailed_Analysis'!C85","v":3000},{"$f":"'App.2-G_Detailed_OM&A_Expenses'!C84","v":2182.16},{"$f":"'App.2-G_Detailed_OM&A_Expenses'!D84","v":1316.25},{"$f":"'App.2-G_Detailed_OM&A_Expenses'!E84","v":6709.95},{"$f":"'App.2-G_Detailed_OM&A_Expenses'!F84","v":3100},{"$f":"'App.2-G_Detailed_OM&A_Expenses'!H84","v":4000}]
["Administrative and General",{"$f":"'App.2-H_OM&A_Detailed_Analysis'!C112","v":267695},{"$f":"'App.2-G_Detailed_OM&A_Expenses'!C111","v":263127.68000000005},{"$f":"'App.2-G_Detailed_OM&A_Expenses'!D111","v":308264.12000000005},{"$f":"'App.2-G_Detailed_OM&A_Expenses'!E111","v":317533.57000000007},{"$f":"'App.2-G_Detailed_OM&A_Expenses'!F111","v":320278.16000000003},{"$f":"'App.2-G_Detailed_OM&A_Expenses'!H111","v":320905}]
["SubTotal",{"$f":"SUM(B20:B22)","v":425942},411738.74000000005,472718.93000000005,459669.79000000004,457435.31000000006,495079]
["%Change (year over year)",null,null,{"$f":"IF(ISERROR((D23-C23)/C23), \"\", (D23-C23)/C23)","v":0.14810408658655727},{"$f":"IF(ISERROR((E23-D23)/D23), \"\", (E23-D23)/D23)","v":-2.7604437165230537E-2},{"$f":"IF(ISERROR((F23-E23)/E23), \"\", (F23-E23)/E23)","v":-4.8610547149508807E-3},{"$f":"IF(ISERROR((G23-F23)/F23), \"\", (G23-F23)/F23)","v":8.2292925747249238E-2},null," "]
["%Change (Test Year vs \nLast Rebasing Year - Actual)",null,null,null,null,null,{"$f":"IF(ISERROR((G23-C23)/C23), \"\", (G23-C23)/C23)","v":0.20241053829425898}]
["Total",{"$f":"SUM(B23,B17)","v":497227},469198.92000000004,533002.76,524596.56000000006,512785.31000000006,556279," "]
["%Change (year over year)",null,null,{"$f":"IF(ISERROR((D26-C26)/C26), \"\", (D26-C26)/C26)","v":0.13598462673358233},{"$f":"IF(ISERROR((E26-D26)/D26), \"\", (E26-D26)/D26)","v":-1.5771400508319981E-2},{"$f":"IF(ISERROR((F26-E26)/E26), \"\", (F26-E26)/E26)","v":-2.2514920799328153E-2},{"$f":"IF(ISERROR((G26-F26)/F26), \"\", (G26-F26)/F26)","v":8.481851790957104E-2}]
[]
[]
[null,{"$f":"B13","v":"Last Rebasing Year (2010 BA)"},"Last Rebasing Year (2010 Actuals)","2011 Actuals","2012 Actuals","2013 Bridge Year","2014 Test Year"]
["Operations",{"$f":"B15","v":33860},20826.84,20964.95,16298.220000000001,15550,20900]
["Maintenance",37425,36633.339999999997,39318.879999999997,48628.55,39800,40300]
["Billing and Collecting",{"$f":"B20","v":155247},146428.9,163138.56,135426.26999999999,134057.15000000002,170174]
["Community Relations",3000,2182.16,1316.25,6709.95,3100,4000]
["Administrative and General",267695,263127.68000000005,308264.12000000005,317533.57000000007,320278.16000000003,320905]
["Total",{"$f":"SUM(B31:B35)","v":497227},469198.92000000004,533002.76,524596.56000000006,512785.31000000006,556279]
["%Change (year over year)",null,null,{"$f":"IF(ISERROR((D36-C36)/C36), \"\", (D36-C36)/C36)","v":0.13598462673358233},{"$f":"IF(ISERROR((E36-D36)/D36), \"\", (E36-D36)/D36)","v":-1.5771400508319981E-2},{"$f":"IF(ISERROR((F36-E36)/E36), \"\", (F36-E36)/E36)","v":-2.2514920799328153E-2},{"$f":"IF(ISERROR((G36-F36)/F36), \"\", (G36-F36)/F36)","v":8.481851790957104E-2}]
[]
[]
[null,{"$f":"B13","v":"Last Rebasing Year (2010 BA)"},{"$f":"C13","v":"Last Rebasing Year (2010 Actuals)"},{"$f":"\"Variance \" & 'LDC Info'!E30 & \"  BA – \" & 'LDC Info'!E30 & \" Actuals\"","v":"Variance 2010  BA – 2010 Actuals"},{"$f":"D13","v":"2011 Actuals"},{"$f":"\"Variance \" & 'LDC Info'!E26 -2 & \" Actuals vs. \" &  'LDC Info'!E30 & \" Actuals\"","v":"Variance 2011 Actuals vs. 2010 Actuals"},{"$f":"E13","v":"2012 Actuals"},{"$f":"\"Variance \" & 'LDC Info'!E26 -1 & \" Actuals vs. \" &  'LDC Info'!E26-2 & \" Actuals\"","v":"Variance 2012 Actuals vs. 2011 Actuals"},{"$f":"F13","v":"2013 Bridge Year"},{"$f":"\"Variance \" & 'LDC Info'!E26 & \" Bridge vs. \" & 'LDC Info'!E26 -1 & \" Actuals\"","v":"Variance 2013 Bridge vs. 2012 Actuals"},{"$f":"G13","v":"2014 Test Year"},{"$f":"\"Variance \" & 'LDC Info'!E28 & \" Test vs. \" & 'LDC Info'!E26 & \" Bridge\"","v":"Variance 2014 Test vs. 2013 Bridge"}]
["Operations",{"$f":"B15","v":33860},{"$f":"C15","v":20826.84},{"$f":"B41-C41","v":13033.16},{"$f":"D15","v":20964.95},{"$f":"E41-C41","v":138.11000000000058},{"$f":"E15","v":16298.220000000001},{"$f":"G41-E41","v":-4666.7299999999996},{"$f":"F15","v":15550},{"$f":"I41-G41","v":-748.22000000000116},{"$f":"G15","v":20900},{"$f":"K41-I41","v":5350}]
["Maintenance ",{"$f":"B16","v":37425},{"$f":"C16","v":36633.339999999997},{"$f":"B42-C42","v":791.66000000000349},{"$f":"D16","v":39318.879999999997},{"$f":"E42-C42","v":2685.5400000000009},{"$f":"E16","v":48628.55},{"$f":"G42-E42","v":9309.6700000000055},{"$f":"F16","v":39800},-8828.5500000000029,{"$f":"G16","v":40300},500]
["Billing and Collecting ",{"$f":"B20","v":155247},146428.9,{"$f":"B43-C43","v":8818.1000000000058},{"$f":"D20","v":163138.56},{"$f":"E43-C43","v":16709.660000000003},{"$f":"E20","v":135426.26999999999},-27712.290000000008,{"$f":"F20","v":134057.15000000002},-1369.1199999999662,{"$f":"G20","v":170174},36116.849999999977]
["Community Relations ",3000,2182.16,{"$f":"B44-C44","v":817.84000000000015},{"$f":"D21","v":1316.25},{"$f":"E44-C44","v":-865.90999999999985},{"$f":"E21","v":6709.95},5393.7,{"$f":"F21","v":3100},-3609.95,{"$f":"G21","v":4000},900]
["Administrative and General ",267695,263127.68000000005,{"$f":"B45-C45","v":4567.3199999999488},{"$f":"D22","v":308264.12000000005},{"$f":"E45-C45","v":45136.44},{"$f":"E22","v":317533.57000000007},9269.4500000000116,{"$f":"F22","v":320278.16000000003},2744.5899999999674,{"$f":"G22","v":320905},626.8399999999674]
["Total OM&A Expenses ",{"$f":"SUM(B41:B45)","v":497227},{"$f":"SUM(C41:C45)","v":469198.92000000004},28028.079999999958,533002.76,63803.840000000011,524596.56000000006,-8406.1999999999898,512785.31000000006,-11811.250000000004,556279,43493.689999999944]
["Variance from previous year ",null,null,null,{"$f":"E46-C46","v":63803.839999999967},null,{"$f":"G46-E46","v":-8406.1999999999534},null,{"$f":"I46-G46","v":-11811.25},null,{"$f":"K46-I46","v":43493.689999999944}]
["Percent change (year over year) ",null,null,null,{"$f":"IF(ISERROR(E47/C46), \"\", E47/C46)","v":0.13598462673358233},null,{"$f":"IF(ISERROR(G47/E46), \"\", G47/E46)","v":-1.5771400508319981E-2},null,{"$f":"IF(ISERROR(I47/G46), \"\", I47/G46)","v":-2.2514920799328153E-2},null,{"$f":"IF(ISERROR(K47/I46), \"\", K47/I46)","v":8.481851790957104E-2}]
["Percent Change:                                                    Test year vs. Most Current Actual ",null,null,null,null,null,{"$f":"IF(ISERROR((K46-G46)/G46), \"\", (K46-G46)/G46)","v":6.0393914897192501E-2}]
["Simple average of % variance for all years",null,null,null,null,null,{"$f":"IF(ISERROR((K46-C46)/C46), \"\", (K46-C46)/C46)","v":0.18559309556808007},null,null,null,null,{"$f":"IF(ISERROR(AVERAGE(E48,G48,I48,K48)), \"\", AVERAGE(E48,G48,I48,K48))","v":4.5629205833876307E-2}]
["Compound Annual Growth Rate for all years",null,null,null,null,null,{"$f":"IF(ISERROR((K47-C47)/C47), \"\", (K47-C47)/C47)","v":""},null,null,null,null,{"$f":"(K46/C46)^(1/4)-1","v":4.3479485468030932E-2}]
[{"$f":"\"Compound Growth Rate                                                            (\" & E13 & \" vs. \" & 'LDC Info'!E30 & \" Actuals)\"","v":"Compound Growth Rate                                                            (2012 Actuals vs. 2010 Actuals)"},null,null,null,null,null,{"$f":"IF(ISERROR((G46/C46)^(1/(2010-2008)) - 1), \"\", (G46-C46)/C46)","v":0.11806855821407264}]
[]
["Note:"]
[]
["1     \"BA\" = Board-Approved"]
["2     If it has been more than three years since the applicant last filed a cost of service application, additional years of historical actuals should be incorporated into the table, as necessary, to go back to the last cost of service application.  If the applicant last filed a cost of service application less than three years ago, a minimum of three years of actual information is required."]
[]
["3     Recoverable OM&A that is included on these tables should be identical to the recoverable OM&A that is shown for the corresponding periods on Appendix 2-H."]

{"sheet":"App.2-J_OM&A_Cost _Drivers","index":29,"n_rows":35,"n_cols":7,"rows_kept":35,"cut":false,"hidden":false,"merged":[[9,0,9,6],[10,0,10,6],[30,1,33,6],[34,1,35,6]]}
[null,null,null,null,null,"File Number:",{"$f":"'LDC Info'!$E$18","v":"EB-2013-0122"}]
[null,null,null,null,null,"Exhibit:"]
[null,null,null,null,null,"Tab:"]
[null,null,null,null,null,"Schedule:"]
[null,null,null,null,null,"Page:"]
[]
[null,null,null,null,null,"Date:"]
[]
[]
["Appendix 2-J"]
["OM&A Cost Driver Table"]
[]
["OM&A",{"$f":"\"Last Rebasing Year (\" & 'LDC Info'!E30 & \" Actuals)\"","v":"Last Rebasing Year (2010 Actuals)"},{"$f":"'LDC Info'!E26 -2 & \" Actuals\"","v":"2011 Actuals"},{"$f":"'LDC Info'!E26 -1 & \" Actuals\"","v":"2012 Actuals"},{"$f":"'LDC Info'!E26 & \" Bridge Year\"","v":"2013 Bridge Year"},{"$f":"'LDC Info'!E28 & \" Test Year\"","v":"2014 Test Year"}]
["Reporting Basis","CGAAP","CGAAP","CGAAP","CGAAP","CGAAP"]
["Opening Balance",{"$f":"'App.2-I_OM&A_Summary_Analys'!B26","v":497227},{"$f":" IF(ISERROR(FIND(\"2008\", $B$13)), B24,#REF!)","v":469199},{"$f":" IF(ISERROR(FIND(\"2008\", $B$13)), C24,#REF!)","v":533003},{"$f":" IF(ISERROR(FIND(\"2008\", $B$13)), D24,#REF!)","v":524596},{"$f":" IF(ISERROR(FIND(\"2008\", $B$13)), E24,#REF!)","v":512784}]
["3500-Distribution Expenses - Operations",7580,2650,null,3895,4550]
["3500-Distribution Expenses - Maintenance",13809,10509,20725,6721,5500]
["3650-Billing and Collecting",2572,16980,1326,5000,35317]
["3700-Community Relations",null,null,5394]
["3800-Administrative and General Expenses",6186,46400,22496,12328,37327]
["other",3305,3249,1753,1060,3200]
[]
["Cost Reduction",-61480,-15984,-60101,-40816,-42400]
["Closing Balance",{"$f":"SUM(B15:B23)","v":469199},{"$f":"SUM(C15:C23)","v":533003},{"$f":"SUM(D15:D23)","v":524596},{"$f":"SUM(E15:E23)","v":512784},{"$f":"SUM(F15:F23)","v":556278}," "]
["Net Change",{"$f":"SUM(B16:B21)+B23","v":-28028},{"$f":"SUM(C16:C21)+C23","v":63804},{"$f":"SUM(D16:D21)+D23","v":-8407},{"$f":"SUM(E16:E21)+E23","v":-11812},{"$f":"SUM(F16:F21)+F23","v":43494}]
["Notes:"]
[]
[1,"For each year, a detailed explanation for each cost driver and associated amount is"]
[null,"required."]
[2,"The closing balance for each year becomes the opening balance for the next year."]
[3,"If it has been more than three years since the applicant last filed a cost of service application, additional years of historical actuals should be incorporated into the table, as necessary, to go back to the last cost of service application.  If the applicant last filed a cost of service application less than three years ago, a minimum of three years of actual information is required."]
[]
[]
[]
[4,"Opening Balance for \"Last Rebasing Year\" (cell B15) should be equal to the Board-Approved amount."]

{"sheet":"App.2-K_Employee Costs","index":30,"n_rows":92,"n_cols":7,"rows_kept":92,"cut":false,"hidden":false,"merged":[[37,0,37,6],[43,0,43,6],[9,0,9,6],[73,0,73,6],[79,0,79,6],[49,0,49,6],[55,0,55,6],[61,0,61,6],[67,0,67,6],[8,0,8,6],[13,0,13,6],[19,0,19,6],[25,0,25,6],[31,0,31,6]]}
[null,null,null,null,null,"File Number:",{"$f":"'LDC Info'!$E$18","v":"EB-2013-0122"}]
[null,null,null,null,null,"Exhibit:",4]
[null,null,null,null,null,"Tab:",2]
[null,null,null,null,null,"Schedule:",2]
[null,null,null,null,null,"Page:"]
[]
[null,null,null,null,null,"Date:"]
[]
["Appendix 2-K"]
["Employee Costs"]
[]
[null,{"$f":"\"Last Rebasing Year (\" & 'LDC Info'!E30 & \" Board-Approved)\"","v":"Last Rebasing Year (2010 Board-Approved)"},{"$f":"\"Last Rebasing Year (\" & 'LDC Info'!E30 & \" Actuals)\"","v":"Last Rebasing Year (2010 Actuals)"},{"$f":"'LDC Info'!E26 -2 & \" Actuals\"","v":"2011 Actuals"},{"$f":"'LDC Info'!E26 -1 & \" Actuals\"","v":"2012 Actuals"},{"$f":"'LDC Info'!E26 & \" Bridge Year\"","v":"2013 Bridge Year"},{"$f":"'LDC Info'!E28 & \" Test Year\"","v":"2014 Test Year"}]
["Reporting Basis"]
["Number of Employees (FTEs including Part-Time)1"]
["Executive"]
["Management",3,3,3,3,3,3]
["Non-Union"]
["Union"]
["Total",{"$f":"SUM(B15:B18)","v":3},3,3,3,3,3]
["Number of Part-Time Employees"]
["Executive"]
["Management"]
["Non-Union"]
["Union"]
["Total",{"$f":"SUM(B21:B24)","v":0},0,0,0,0,0]
["Total Salary and Wages"]
["Executive"]
["Management",171355,167536.57999999999,165616.57999999999,169303,166172.31,176106]
["Non-Union"]
["Union"]
["Total",{"$f":"SUM(B27:B30)","v":171355},167536.57999999999,165616.57999999999,169303,166172.31,176106]
["Current Benefits"]
["Executive"]
["Management",10000,12011.54,13441.22,15825.71,16000,18000]
["Non-Union"]
["Union"]
["Total",{"$f":"SUM(B33:B36)","v":10000},12011.54,13441.22,15825.71,16000,18000]
["Accrued Pension and Post-Retirement Benefits"]
["Executive"]
["Management",null,null,5565.7,13980.66,9089,9405]
["Non-Union"]
["Union"]
["Total",{"$f":"SUM(B39:B42)","v":0},0,5565.7,13980.66,9089,9405]
["Total Benefits (Current + Accrued)"]
["Executive",{"$f":"B33+B39","v":0},0,0,0,0,0]
["Management",10000,12011.54,19006.919999999998,29806.37,25089,27405]
["Non-Union",0,0,0,0,0,0]
["Union",0,0,0,0,0,0]
["Total",10000,12011.54,19006.919999999998,29806.37,25089,27405]
["Total Compensation (Salary, Wages, & Benefits)"]
["Executive",{"$f":"B27+B45","v":0},0,0,0,0,0]
["Management",181355,179548.12,184623.5,199109.37,191261.31,203511]
["Non-Union",0,0,0,0,0,0]
["Union",0,0,0,0,0,0]
["Total",181355,179548.12,184623.5,199109.37,191261.31,203511]
["Compensation - Average Yearly Base Wages"]
["Executive"]
["Management"]
["Non-Union"]
["Union"]
["Total"]
["Compensation - Average Yearly Overtime"]
["Executive"]
["Management"]
["Non-Union"]
["Union"]
["Total"]
["Compensation - Average Yearly Incentive Pay"]
["Executive"]
["Management",null,null,15957.42,19000]
["Non-Union"]
["Union"]
["Total"]
["Compensation - Average Yearly Benefits"]
["Executive"]
["Management"]
["Non-Union"]
["Union"]
["Total"]
[]
["Total Compensation",{"$f":"SUM(B51:B54)","v":181355},179548.12,184623.5,199109.37,191261.31,203511]
["Total Compensation Capitalized (CGAAP)"]
["Total Compensation Charged to OM&A (CGAAP)",{"$f":"B81-B82","v":181355},{"$f":"C81-C82","v":179548.12},{"$f":"D81-D82","v":184623.5},{"$f":"E81-E82","v":199109.37},{"$f":"F81-F82","v":191261.31}]
[]
["Total Compensation Capitalized (MIFRS)"]
["Total Compensation Charged to OM&A (MIFRS)",null,null,null,{"$f":"E81-E85","v":199109.37},{"$f":"F81-F85","v":191261.31},{"$f":"G81-G85","v":203511}]
[]
[]
["1 If an applicant wishes to use headcount, it must also file the same schedule on an FTE basis."]
[]
["Note:"]
["1   Please report compensation on a CGAAP and MIFRS basis for your transition year."]

{"sheet":"App.2-L_OM&A_per_Cust_FTEE","index":31,"n_rows":29,"n_cols":8,"rows_kept":29,"cut":false,"hidden":false,"merged":[[8,0,8,7],[9,0,9,7],[28,1,29,6],[22,1,25,6],[26,1,26,6],[27,1,27,6],[15,0,15,1],[16,0,16,1],[17,0,17,1],[18,0,18,1],[13,0,13,1],[14,0,14,1],[12,0,12,1]]}
[null,null,null,null,null,null,"File Number:",{"$f":"'LDC Info'!$E$18","v":"EB-2013-0122"}]
[null,null,null,null,null,null,"Exhibit:"]
[null,null,null,null,null,null,"Tab:"]
[null,null,null,null,null,null,"Schedule:"]
[null,null,null,null,null,null,"Page:"]
[]
[null,null,null,null,null,null,"Date:"]
[]
["Appendix 2-L"]
["Recoverable OM&A Cost per Customer and per FTEE"]
[]
[null,null,{"$f":"\"Last Rebasing Year (\" & 'LDC Info'!E30 & \" Board-Approved)\"","v":"Last Rebasing Year (2010 Board-Approved)"},{"$f":"\"Last Rebasing Year (\" & 'LDC Info'!E30 & \" Actuals)\"","v":"Last Rebasing Year (2010 Actuals)"},{"$f":"'LDC Info'!E26 -2 & \" Actuals\"","v":"2011 Actuals"},{"$f":"'LDC Info'!E26 -1 & \" Actuals\"","v":"2012 Actuals"},{"$f":"'LDC Info'!E26 & \" Bridge Year\"","v":"2013 Bridge Year"},{"$f":"'LDC Info'!E28 & \" Test Year\"","v":"2014 Test Year"}]
["Reporting Basis"]
["Number of Customers",null,2008,1777,1785,1788,1798,1998]
["Total Recoverable OM&A from Appendix 2-I",null,{"$f":"'App.2-I_OM&A_Summary_Analys'!B26","v":497227},{"$f":"'App.2-I_OM&A_Summary_Analys'!C26","v":469198.92000000004},{"$f":"'App.2-I_OM&A_Summary_Analys'!D26","v":533002.76},{"$f":"'App.2-I_OM&A_Summary_Analys'!E26","v":524596.56000000006},{"$f":"'App.2-I_OM&A_Summary_Analys'!F26","v":512785.31000000006},{"$f":"'App.2-I_OM&A_Summary_Analys'!G26","v":556279}]
["OM&A cost per customer",null,{"$f":"IF(C14=0,\"\",C15/C14)","v":247.6230079681275},264.03990996060782,298.60098599439777,293.39852348993293,285.19761401557287,278.41791791791792]
["Number of FTEEs",null,3,3,3,3,3,3]
["Customers/FTEEs",null,{"$f":"IF(C17=0,\"\",C14/C17)","v":669.33333333333337},592.33333333333337,595,596,599.33333333333337,666]
["OM&A Cost per FTEE",null,{"$f":"IF(C17=0,\"\",C15/C17)","v":165742.33333333334},156399.64000000001,177667.58666666667,174865.52000000002,170928.43666666668,185426.33333333334]
[null,null,null,null,null,null,null,{"$f":"(H16-G16)/G16","v":-2.3771924323619173E-2}]
["Notes:"]
[]
[1,"If it has been more than three years since the applicant last filed a cost of service application, additional years of historical actuals should be incorporated into the table, as necessary, to go back to the last cost of service application.  If the applicant last filed a cost of service application less than three years ago, a minimum of three years of actual information is required."]
[]
[]
[]
[2,"The method of calculating the number of customers must be identified."]
[3,"The method of calculating the number of FTEEs must be identified.  See also Appendix 2-K"]
[4,"The number of customers and the number of FTEEs should correspond to mid-year or average of January 1 and December 31 figures."]

{"sheet":"App.2-M_Regulatory_Costs","index":32,"n_rows":46,"n_cols":12,"rows_kept":46,"cut":false,"hidden":false,"merged":[[12,0,12,1],[13,0,13,1],[8,0,8,10],[9,0,9,10]]}
[null,null,null,null,null,null,null,null,null,"File Number:",{"$f":"'LDC Info'!$E$18","v":"EB-2013-0122"}]
[null,null,null,null,null,null,null,null,null,"Exhibit:"]
[null,null,null,null,null,null,null,null,null,"Tab:"]
[null,null,null,null,null,null,null,null,null,"Schedule:"]
[null,null,null,null,null,null,null,null,null,"Page:"]
[]
[null,null,null,null,null,null,null,null,null,"Date:"]
[]
["Appendix 2-M"]
["Regulatory Cost Schedule"]
[]
[]
["Regulatory Cost Category",null,"USoA Account","USoA Account Balance","Ongoing or One-time Cost? 2",{"$f":"\"Last Rebasing Year (\" & 'LDC Info'!E30 & \" Board Approved)\"","v":"Last Rebasing Year (2010 Board Approved)"},"Most Current Actuals               Year 2012",{"$f":"'LDC Info'!E26 & \" Bridge Year\"","v":"2013 Bridge Year"},"Annual % Change",{"$f":"'LDC Info'!E28 & \" Test Year\"","v":"2014 Test Year"},"Annual % Change"]
["(A)",null,"(B)","(C )","(D)","(E)","(F)","(G)","(H) = [(G)-(F)]/(F)","(I)","(J) = [(I)-(G)]/(G)"]
[1,"OEB Annual Assessment",5655,null,"On-Going",5000,5452,5724,{"$f":"IF(G15=0,\"\",(H15-G15)/G15)","v":4.9889948642699924E-2},6500,{"$f":"IF(H15=0,\"\",(J15-H15)/H15)","v":0.13556953179594688}]
[2,"OEB Section 30 Costs (Applicant-originated)",null,null,null,null,null,null,{"$f":"IF(G16=0,\"\",(H16-G16)/G16)","v":""},null,{"$f":"IF(H16=0,\"\",(J16-H16)/H16)","v":""}]
[3,"OEB Section 30 Costs (OEB-initiated)",null,null,null,null,null,null,"",null,""]
[4,"Expert Witness costs for regulatory matters",null,null,null,null,null,null,"",null,""]
[5,"Legal costs for regulatory matters",null,null,null,null,null,null,"",null,""]
[6,"Consultants' costs for regulatory matters",5630,null,"On-Going",61800,61800,68000,0.10032362459546926,30000,-0.55882352941176472]
[6,"Consultants' costs for regulatory matters (BDO)",5630,null,"On-Time",5000,5000,5000,{"$f":"IF(G21=0,\"\",(H21-G21)/G21)","v":0},{"$f":"28000/5","v":5600},{"$f":"IF(H21=0,\"\",(J21-H21)/H21)","v":0.12},"Note: $28000/5"]
[7,"Operating expenses associated with staff resources allocated to regulatory matters",null,null,null,null,null,null,"",null,""]
[8,"Operating expenses associated with other resources allocated to regulatory matters 1",null,null,null,null,null,null,"",null,""]
[9,"Other regulatory agency fees or assessments",null,null,null,null,null,null,"",null,""]
[10,"Any other costs for regulatory matters (please define)",null,null,null,null,null,null,"",null,""]
[11,"Intervenor costs",5655,null,"On-Time",5000,5000,5000,0,{"$f":"20500/5","v":4100},-0.18,"Note: $20500/5"]
[12,"Sub-total - Ongoing Costs 3",null,{"$f":"SUMIF($E15:$E26,$E11,D15:D26)","v":0},null,{"$f":"SUMIF($E15:$E26,$E11,F15:F26)","v":0},{"$f":"SUMIF($E15:$E26,$E11,G15:G26)","v":0},{"$f":"SUMIF($E15:$E26,$E11,H15:H26)","v":0},"",{"$f":"SUMIF($E15:$E26,$E11,J15:J26)","v":0},""]
[13,"Sub-total - One-time Costs 4",null,{"$f":"SUMIF($E15:$E26,$E12,D15:D26)","v":0},null,{"$f":"SUMIF($E15:$E26,$E12,F15:F26)","v":0},{"$f":"SUMIF($E15:$E26,$E12,G15:G26)","v":0},{"$f":"SUMIF($E15:$E26,$E12,H15:H26)","v":0},"",{"$f":"SUMIF($E15:$E26,$E12,J15:J26)","v":0},""]
[14,"Total",null,{"$f":"D27+D28","v":0},null,{"$f":"F27+F28","v":0},{"$f":"G27+G28","v":0},{"$f":"H27+H28","v":0},"",{"$f":"J27+J28","v":0},""]
[]
[]
["1","Please identify the resources involved."]
["2","Where a category's costs include both one-time and ongoing costs, the applicant should prove a separate breakdown between one-time and ongoing costs."]
["3","Sum of all ongoing costs identified in rows 1 to 11 inclusive."]
["4","Sum of all one-time costs identified in rows 1 to 11 inclusive."]
[]
[]
["Please fill out the following table for all one-time costs related to this cost of service application"]
[]
[null,null,"Historical Year(s)",{"$f":"H13","v":"2013 Bridge Year"},{"$f":"J13","v":"2014 Test Year"}]
[4,"Expert Witness costs for regulatory matters",null,{"$f":"H18","v":0},{"$f":"J18","v":0}]
[6,"Consultants' costs for regulatory matters",62850,{"$f":"H20","v":68000},{"$f":"SUM(J20:J21)","v":35600}]
[7,"Operating expenses associated with staff resources allocated to regulatory matters",null,{"$f":"H22","v":0},{"$f":"J22","v":0}]
[8,"Operating expenses associated with other resources allocated to regulatory matters 1",null,{"$f":"H23","v":0},{"$f":"J23","v":0}]
[11,"Intervenor costs",{"$f":"15000/4","v":3750},{"$f":"H26","v":5000},{"$f":"J26","v":4100}]
[null,null," ",null," "]

{"sheet":"App.2-N_Corp_Cost_Allocation","index":33,"n_rows":43,"n_cols":7,"rows_kept":43,"cut":false,"hidden":true,"merged":[[13,0,13,5],[8,0,8,5],[9,0,9,5],[42,1,43,5],[16,0,17,0],[16,1,17,1],[15,2,17,2],[15,3,17,3],[15,0,15,1],[15,4,16,4],[15,5,16,5],[15,6,16,6],[29,0,29,1],[29,2,31,2],[29,3,31,3],[29,5,30,5],[29,4,30,4],[30,0,31,0],[30,1,31,1],[27,0,27,5]]}
[null,null,null,null,null,"File Number:",{"$f":"'LDC Info'!$E$18","v":"EB-2013-0122"}]
[null,null,null,null,null,"Exhibit:"]
[null,null,null,null,null,"Tab:"]
[null,null,null,null,null,"Schedule:"]
[null,null,null,null,null,"Page:"]
[]
[null,null,null,null,null,"Date:"]
[]
["Appendix 2-N"]
["Shared Services and Corporate Cost Allocation"]
[]
[null,"Year:"]
[]
["Shared Services"]
[]
["Name of Company",null,"Service Offered","Pricing Methdology","Price for the Service","Cost for the Service"]
["From","To"]
[null,null,null,null,"$","$"]
[]
[]
[]
[]
[]
[]
[]
[]
[]
["Corporate Cost Allocation"]
[]
["Name of Company",null,"Service Offered","Pricing Methdology","% of Corporate Costs Allocated","Amount Allocated"]
["From","To"]
[null,null,null,null,"%","$"]
["eg: parent company","eg: regulated entity"]
[]
[]
[]
[]
[]
[]
[]
[]
["Note: "]
[1,"This appendix must be completed in relation to each service provided or received for the Historical (actuals), Bridge and Test years."]

{"sheet":"App.2-R_Loss Factors","index":34,"n_rows":73,"n_cols":8,"rows_kept":73,"cut":false,"hidden":false,"merged":[[8,0,8,7],[9,0,9,7],[11,0,11,7],[13,0,14,1],[13,2,13,6],[13,7,14,7],[15,1,15,7],[24,1,24,7],[26,1,26,7],[54,1,55,7],[36,1,39,7],[43,1,45,7],[47,1,50,7],[57,1,58,7],[60,1,61,7],[32,1,34,7],[71,1,71,7],[63,1,63,7],[65,1,65,7],[67,1,69,6],[52,1,52,7]]}
[null,null,null,null,null,null,"File Number:",{"$f":"'LDC Info'!$E$18","v":"EB-2013-0122"}]
[null,null,null,null,null,null,"Exhibit:",8]
[null,null,null,null,null,null,"Tab:",6]
[null,null,null,null,null,null,"Schedule:",1]
[null,null,null,null,null,null,"Page:"]
[]
[null,null,null,null,null,null,"Date:"]
[]
["Appendix 2-R"]
["Loss Factors"]
[]
[]
[]
[null,null,"Historical Years",null,null,null,null,"5-Year Average"]
[null,null,{"$f":"IF(ISBLANK('LDC Info'!E26-5), \"Year 5\", 'LDC Info'!E26-5)","v":2008},{"$f":"IF(ISBLANK('LDC Info'!E26-4), \"Year 5\", 'LDC Info'!E26-4)","v":2009},{"$f":"IF(ISBLANK('LDC Info'!E26-3), \"Year 5\", 'LDC Info'!E26-3)","v":2010},{"$f":"IF(ISBLANK('LDC Info'!E26-2), \"Year 5\", 'LDC Info'!E26-2)","v":2011},{"$f":"IF(ISBLANK('LDC Info'!E26-1), \"Year 5\", 'LDC Info'!E26-1)","v":2012}]
[null,"Losses Within Distributor's System"]
["A(1)","\"Wholesale\" kWh delivered to distributor (higher value)",null,null,null,null,null,{"$f":"IF(SUM(C17:G17)=0,0,AVERAGE(C17:G17))","v":0}]
["A(2)","\"Wholesale\" kWh delivered to distributor (lower value)",29993741,30079505,30067541,30249028,29716224,{"$f":"IF(SUM(C18:G18)=0,0,AVERAGE(C18:G18))","v":30021207.800000001}]
["B","Portion of \"Wholesale\" kWh delivered to distributor for its Large Use Customer(s)",null,null,null,null,null,{"$f":"IF(SUM(C19:G19)=0,0,AVERAGE(C19:G19))","v":0}]
["C","Net \"Wholesale\" kWh delivered to distributor  = A(2) - B",{"$f":"C18-C19","v":29993741},30079505,30067541,30249028,29716224,30021207.800000001]
["D","\"Retail\" kWh delivered by distributor",29483564,29448752,29135811,28883868,29188202,{"$f":"IF(SUM(C21:G21)=0,0,AVERAGE(C21:G21))","v":29228039.399999999}]
["E","Portion of \"Retail\" kWh delivered by distributor to its Large Use Customer(s)",null,null,null,null,null,{"$f":"IF(SUM(C22:G22)=0,0,AVERAGE(C22:G22))","v":0}]
["F","Net \"Retail\" kWh delivered by distributor = D - E",{"$f":"C21-C22","v":29483564},29448752,29135811,28883868,29188202,29228039.399999999]
["G","Loss Factor in Distributor's system = C / F",{"$f":"IF(C23=0,\"\",C20/C23)","v":1.0173037764362545},1.0214186665703184,1.0319788592807662,1.0472637529017927,1.018090254411697,1.0271372427395866]
[null,"Losses Upstream of Distributor's System"]
["H","Supply Facilities Loss Factor",1.034,1.034,1.034,1.0443,1.0443,{"$f":"IF(SUM(C26:G26)=0,0,AVERAGE(C26:G26))","v":1.0381199999999999}]
[null,"Total Losses"]
["I","Total Loss Factor = G x H",{"$f":"IF(C24=\"\",\"\",C24*C26)","v":1.0518921048350871},1.0561469012337092,1.0670661404963122,1.0936575371553421,1.0631916526821352,1.0662917144328197]
[]
["Notes"]
[]
[]
["A(1)","If directly connected to the IESO-controlled grid, kWh pertains to the virtual meter on the primary or high voltage side of the transformer at the interface with the transmission grid.  This corresponds to the \"With Losses\" kWh value provided by the IESO's MV-WEB.  It is the higher of the two values provided by MV-WEB."]
[]
[]
[]
[null,"If fully embedded within a host distributor, kWh pertains to the virtual meter on the primary or high voltage side of the transformer, at the interface between the host distributor and the transmission grid.  For example, if the host distributor is Hydro One Networks Inc., kWh from the Hydro One Networks' invoice corresponding to \"Total kWh w Losses\" should be reported.  This corresponds to the higher of the two kWh values provided in Hydro One Networks' invoice."]
[]
[]
[]
[]
[null,"If partially embedded, kWh pertains to the sum of the above."]
[]
["A(2)","If directly connected to the IESO-controlled grid, kWh pertains to a metering installation on the secondary or low voltage side of the transformer at the interface with the transmission grid.  This corresponds to the \"Without Losses\" kWh value provided by the IESO's MV-WEB.  It is the lower of the two kWh values provided by MV-WEB."]
[]
[]
[]
[null,"If fully embedded with the host distributor, kWh pertains to an actual or virtual meter at the interface between the embedded distributor and the host distributor.  For example, if the host distributor is Hydro One Networks Inc., kWh from the Hydro One Networks' invoice corresponding to \"Total kWh\" should be reported.  This corresponds to the lower of the two kWh values provided in Hydro One Networks' invoice."]
[]
[]
[]
[]
[null,"If partially embedded, kWh pertains to the sum of the above."]
[]
[null,"Additionally, kWh pertaining to distributed generation directly connected to the distributor's own distribution network should be included in A(2)."]
[]
[]
["B","If a Large Use Customer is metered on the secondary or low voltage side of the transformer, the default loss is 1%                         (i.e., B = 1.01 X E)."]
[]
[]
["D","kWh corresponding to D should equal metered or estimated kWh at the customer’s delivery point."]
[]
[]
["G and I","These loss factors pertain to secondary-metered customers with demand less than 5,000 kW."]
[]
["H","If directly connected to the IESO-controlled grid, SFLF = 1.0045."]
[]
[null,"If fully embedded within a host distributor, SFLF = loss factor re losses in transformer at grid interface X loss factor re losses in host distributor's system.  If the host distributor is Hydro One Networks Inc., SFLF = 1.0060 X 1.0278 = 1.0340. If partially embedded, SFLF should be calculated as the weighted average of above."]
[]
[]
[]
[null,"Distributors that wish to propose a different SFLF should provide appropriate justification for any such proposal including supporting"]
[null,"calculations and any other relevant material."]

{"sheet":"App.2-F_Other_Oper_Rev","index":35,"n_rows":64,"n_cols":9,"rows_kept":64,"cut":false,"hidden":false,"merged":[[41,0,42,8],[28,0,28,1],[29,0,29,1],[8,0,8,8],[9,0,9,8],[26,0,26,8],[27,0,27,1],[36,2,36,8],[37,2,38,8],[30,0,30,1],[31,0,31,1],[34,0,34,1],[35,0,35,1],[36,0,36,1],[37,0,37,1],[62,1,62,8],[63,1,63,8],[52,0,52,1],[46,0,47,8],[51,0,51,1],[57,0,57,1],[53,0,53,1],[54,0,54,1],[55,0,55,1],[56,0,56,1]]}
[null,null,null,null,null,null,null,"File Number:",{"$f":"'LDC Info'!$E$18","v":"EB-2013-0122"}]
[null,null,null,null,null,null,null,"Exhibit:",3]
[null,null,null,null,null,null,null,"Tab:",3]
[null,null,null,null,null,null,null,"Schedule:",4]
[null,null,null,null,null,null,null,"Page:"]
[]
[null,null,null,null,null,null,null,"Date:"]
[]
["Appendix 2-F"]
["Other Operating Revenue"]
[]
["USoA #","USoA Description",{"$f":"G13-3 & \" Actual\"","v":"2010 Actual"},{"$f":"G13-2 & \" Actual\"","v":"2011 Actual"},{"$f":"G13-1 & \" Actual\"& CHAR(178)","v":"2012 Actual²"},{"$f":"G13-1 & \" Actual\"& CHAR(178)","v":"2012 Actual²"},{"$f":"\"Bridge Year\" & CHAR(179)","v":"Bridge Year³"},{"$f":"\"Bridge Year\" & CHAR(179)","v":"Bridge Year³"},"Test Year"]
[null,null,null,null,null,null,{"$f":"'LDC Info'!E26","v":2013},{"$f":"'LDC Info'!E26","v":2013},{"$f":"'LDC Info'!E28","v":2014}]
[null,"Reporting Basis",null,null,null,null,"CGAAP","MIFRS","CGAAP"]
[4235,"Specific Service Charges",9280,12870,12605,null,13250,null,14200]
[4225,"Late Payment Charges",5764,7109,5208,null,5800,null,6000]
[4082,"Retail Services Revenues",3817,3713,3614,null,3975,null,4130]
[4080,"Admin Charge",5395,5519,5598,null,5750,null,5938]
[4084,"Service Transaction Request",54,12,8,null,10,null,13]
[]
[]
[]
[]
[]
[]
[]
[]
["Specific Service Charges",null,{"$f":"C15","v":9280},12870,12605,0,13250,0,14200]
["Late Payment Charges",null,5764,7109,5208,0,5800,0,6000]
["Other Operating Revenues",null,{"$f":"SUM(C17:C19)","v":9266},{"$f":"SUM(D17:D19)","v":9244},{"$f":"SUM(E17:E19)","v":9220},null,{"$f":"SUM(G17:G19)","v":9735},null,{"$f":"SUM(I17:I19)","v":10081}]
["Other Income or Deductions"]
["Total",null,{"$f":"SUM(C28:C31)","v":24310},29223,27033,0,28785,0,30281]
[]
["Description",null,"Account(s)"]
["Specific Service Charges:",null,4235]
["Late Payment Charges:",null,4225]
["Other Distribution Revenues:",null,"4080, 4082, 4084, 4090, 4205, 4210, 4215, 4220, 4240, 4245"]
["Other Income and Expenses:",null,"4305, 4310, 4315, 4320, 4325, 4330, 4335, 4340, 4345, 4350, 4355, 4360, 4365, 4370, 4375, 4380, 4385, 4390, 4395, 4398, 4405, 4415"]
[]
[]
["Note: Add all applicable accounts listed above to the table and include all relevant information."]
["The above table assumes adoption of MIFRS as of January 1, 2013.  If the adoption year differs, please adjust the table accordingly."]
[]
[]
["Account Breakdown Details"]
[]
["For each \"Other Operating Revenue\" and \"Other Income or Deductions\" Account, a detailed breakdown of the account components is required.  See the example below for Account 4405, Interest and Dividend Income."]
[]
[]
["Account 4405 - Interest and Dividend Income"]
[null,null,{"$f":"C12","v":"2010 Actual"},{"$f":"D12","v":"2011 Actual"},{"$f":"E12","v":"2012 Actual²"},{"$f":"F12","v":"2012 Actual²"},"Bridge Year","Bridge Year","Test Year"]
["Reporting Basis",null,{"$f":"IF(ISBLANK(C14), \"\", C14)","v":""},{"$f":"IF(ISBLANK(D14), \"\", D14)","v":""},{"$f":"IF(ISBLANK(E14), \"\", E14)","v":""},null,{"$f":"IF(ISBLANK(G14), \"\", G14)","v":"CGAAP"},{"$f":"IF(ISBLANK(H14), \"\", H14)","v":"MIFRS"},{"$f":"IF(ISBLANK(I14), \"\", I14)","v":"CGAAP"}]
["Short-term Investment Interest"]
["Bank Deposit Interest"]
["Miscellaneous Interest Revenue"]
["etc.1"]
[]
["Total",null,{"$f":"SUM(C53:C57)","v":0},0,0,0,0,0,0]
[]
[]
["Notes:"]
[1,"List and specify any other interest revenue"]
[2,"If the applicant is adopting IFRS or an alternate accounting standard as of January 1, 2012 for financial reporting purposes, 2011 must be presented on both a CGAAP and MIFRS (or alternate accounting standard) basis."]
[3,"If the applicant is adopting IFRS or an alternate accounting standard as of January 1, 2013 for financial reporting purposes, 2012 must be presented on both a CGAAP and MIFRS (or alternate accounting standard) basis."]

{"sheet":"App.2-T_1592_Tax_Variance","index":36,"n_rows":51,"n_cols":5,"rows_kept":51,"cut":false,"hidden":false,"merged":[[27,0,27,2],[50,1,51,4],[34,0,35,0],[39,0,40,0],[42,0,43,0],[45,0,48,0],[50,0,51,0],[34,1,35,4],[37,1,37,4],[45,1,48,4],[8,0,8,4],[9,0,9,4],[11,0,11,4],[13,0,15,2],[16,0,16,2],[17,0,17,2],[18,0,18,2],[19,0,19,2],[24,0,24,2],[42,1,43,4],[30,0,30,2],[39,1,40,4],[25,0,25,2],[26,0,26,2],[28,0,28,2],[29,0,29,2],[37,0,38,0],[20,0,20,2],[21,0,21,2],[22,0,22,2],[23,0,23,2]]}
[null,null,"File Number:",null,{"$f":"'LDC Info'!$E$18","v":"EB-2013-0122"}]
[null,null,"Exhibit:"]
[null,null,"Tab:"]
[null,null,"Schedule:"]
[null,null,"Page:"]
[]
[null,null,"Date:"]
[]
["Appendix 2-T"]
["Deferred PILs Account 1592 Balances"]
[]
["The following table should be completed based on the information requested below, in accordance with the notes following the table. An explanation should be provided for any blank entries."]
[]
["Tax Item",null,null,null,"Principal as of"]
[null,null,null,null,"December 31,"]
[null,null,null,null,"20XX"]
["Large Corporation Tax grossed-up proxy from 2006 EDR application PILs model for the period from May 1, 2006 to April 30, 2007"]
["Large Corporation Tax grossed-up proxy from 2006 EDR application PILs model for the period from January 1, 2006 to April 30, 2006 (4/12ths of the approved grossed-up proxy), if not recorded in PILs account 1562"]
["Ontario Capital Tax rate decrease and increase in capital deduction for 2007"]
["Ontario Capital Tax rate decrease and increase in capital deduction for 2008"]
["Ontario Capital Tax rate decrease and increase in capital deduction for 2009"]
["Ontario Capital Tax rate decrease and increase in capital deduction for 2010"]
["Capital Cost Allowance class changes from 2006 EDR application for 2006"]
["Capital Cost Allowance class changes from 2006 EDR application for 2007"]
["Capital Cost Allowance class changes from 2006 EDR application for 2008"]
["Capital Cost Allowance class changes from 2006 EDR application for 2009"]
["Capital Cost Allowance class changes from 2006 EDR application for 2010"]
["Capital Cost Allowance class changes from 2006 EDR application for 2011"]
["Capital Cost Allowance class changes from any prior application not recorded above.  Please provide details and explanation separately."]
["Insert description of additional item(s) and new rows if needed."]
["Total",null,null,null,{"$f":"SUM(E17:E30)","v":0}]
[]
["Notes:"]
[]
[1,"Revise the deferral and variance account continuity schedule to include account 1592 as a group 2 account and enter all relevant information for transactions, adjustments, etc., for all relevant years."]
[]
[]
[2,"Describe each type of tax item that has been recorded in account 1592."]
[]
[3,"Provide the calculations that show how each item was determined and provide any pertinent supporting evidence and documentation."]
[]
[]
[4,"Please state whether or not the applicant followed the guidance provided in the FAQ of July 2007.  If not, please provide an explanation."]
[]
[]
[5,"Identify the account balance as of December 31, 2011 as per the 2011 Audited Financial Statements.  Identify the account balance as of December 31, 2011 as per the April 2012 2.1.7 RRR filing to the Board.  Provide a reconciliation if the balances provided are not identical to each other and to the total shown on the continuity schedule."]
[]
[]
[]
[]
[6,"Complete the above table based on the answers to the previous.  Add rows as required to complete the analysis in an informative manner.  Please provide the completed table as a working Excel spreadsheet."]

{"sheet":"App.2-OB_Debt Instruments","index":37,"n_rows":36,"n_cols":11,"rows_kept":36,"cut":false,"hidden":false,"merged":[[9,0,9,10],[10,0,10,10],[10,11,10,14],[12,0,12,10]]}
[null,null,null,null,null,null,null,null,null,"File Number:",{"$f":"'LDC Info'!$E$18","v":"EB-2013-0122"}]
[null,null,null,null,null,null,null,null,null,"Exhibit:"]
[null,null,null,null,null,null,null,null,null,"Tab:"]
[null,null,null,null,null,null,null,null,null,"Schedule:"]
[null,null,null,null,null,null,null,null,null,"Page:"]
[]
[null,null,null,null,null,null,null,null,null,"Date:"]
[]
[]
["Appendix 2-OB"]
["Debt Instruments"]
[]
["This table must be completed for the required years of all historical years, the bridge year and the test year."]
[null,null,null,"Year"]
[]
["Row","Description","Lender","Affiliated or Third-Party Debt?","Fixed or Variable-Rate?","Start Date","Term              (years)","Principal                         ($)","Rate (%)                     (Note 2)","Interest ($)       (Note 1)"]
[1,null,null,null,null,null,null,null,null,{"$f":"H17*I17","v":0}]
[2,null,null,null,null,null,null,null,null,{"$f":"H18*I18","v":0}]
[3,null,null,null,null,null,null,null,null,0]
[4,null,null,null,null,null,null,null,null,0]
[5,null,null,null,null,null,null,null,null,0]
[6,null,null,null,null,null,null,null,null,0]
[7,null,null,null,null,null,null,null,null,0]
[8,null,null,null,null,null,null,null,null,0]
[9,null,null,null,null,null,null,null,null,0]
[10,null,null,null,null,null,null,null,null,0]
[11,null,null,null,null,null,null,null,null,0]
[12,null,null,null,null,null,null,null,null,0]
[]
["Total",null,null,null,null,null,null,{"$f":"SUM(H17:H28)","v":0},{"$f":"IF(H30=0,\"\",J30/H30)","v":""},{"$f":"SUM(J17:J28)","v":0}]
[]
["Notes"]
[]
[1,"If financing is in place only part of the year, calculate the pro-rated interest and input in the cell."]
[2,"Input actual or deemed long-term debt rate in accordance with the guidelines in The Report of the Board on the Cost of Capital for Ontario's Regulated Utilities, issued December 11, 2009"]
[3,"Add more lines above row 12 if necessary."]

{"sheet":"App.2-OA CapStructure-CGAAP","index":38,"n_rows":95,"n_cols":15,"rows_kept":95,"cut":false,"hidden":false,"merged":[[82,2,82,14],[65,2,65,14],[81,2,81,14],[34,2,34,14],[31,2,31,14],[50,2,50,14],[66,2,66,14],[63,2,63,15],[33,2,33,14],[49,2,49,14],[9,2,9,14],[10,2,10,14],[14,0,15,0],[15,4,15,8],[18,2,18,14],[12,0,12,14],[17,2,17,14]]}
[null,null,null,null,null,null,null,null,null,null,"File Number:",null,null,null,"EB-20130122"]
[null,null,null,null,null,null,null,null,null,null,"Exhibit:",null,null,null,6]
[null,null,null,null,null,null,null,null,null,null,"Tab:",null,null,null,1]
[null,null,null,null,null,null,null,null,null,null,"Schedule:",null,null,null,1]
[null,null,null,null,null,null,null,null,null,null,"Page:"]
[]
[null,null,null,null,null,null,null,null,null,null,"Date:"]
[]
[]
[null,null,"Appendix 2-OA"]
[null,null,"Capital Structure and Cost of Capital"]
[]
["This table must be completed for the required years of all historical years, the bridge year and the test year."]
[]
["Line No."]
[null,null,"Particulars",null,"Capitalization Ratio",null,null,null,null,null,"Cost Rate",null,null,null,"Return"]
[]
[null,null,2014]
[null,null,"Application"]
[null,null,null,null,"(%)",null,null,null,"($)",null,"(%)",null,null,null,"($)"]
[null,null,"Debt"]
[1,null,"  Long-term Debt",null,0.56000000000000005,null,null,null,1614159.2201534992,null,4.1200000000000001E-2,null,null,null,66503.359870324173]
[2,null,"  Short-term Debt",null,0.04,null,"(1)",null,115297.08715382137,null,2.07E-2,null,null,null,2386.6497040841023]
[3,null,"Total Debt",null,0.60000000000000009,null,null,null,1729456.3073073206,null,3.9833333333333332E-2,null,null,null,68890.009574408279]
[]
[null,null,"Equity"]
[4,null,"  Common Equity",null,0.4,null,null,null,1152970.8715382137,null,8.9800000000000005E-2,null,null,null,103536.78426413159]
[5,null,"  Preferred Shares",null,0,null,null,null,0,null,0,null,null,null,0]
[6,null,"Total Equity",null,0.4,null,null,null,1152970.8715382137,null,8.9799999999999991E-2,null,null,null,103536.78426413159]
[]
[7,null,"Total",null,1,null,null,null,2882427.1788455341,null,5.9819999999999998E-2,null,null,null,172426.79383853986]
[null,null,"*Cost of Capital Parameter Updates for 2013 Cost of Service Applications for Rates Effective May 1, 2013"]
[]
[" ",null,2013]
[null,null,"Application"]
[null,null,null,null,"(%)",null,null,null,"($)",null,"(%)",null,null,null,"($)"]
[null,null,"Debt"]
[1,null,"  Long-term Debt",null,0.56000000000000005,null,null,null,1480348.4778690964,null,5.8700000000000002E-2,null,null,null,86896.455650915959]
[2,null,"  Short-term Debt",null,0.04,null,"(1)",null,105739.17699064974,null,2.07E-2,null,null,null,2188.8009637064497]
[3,null,"Total Debt",null,0.60000000000000009,null,null,null,1586087.6548597461,null,5.616666666666667E-2,null,null,null,89085.256614622413]
[]
[null,null,"Equity"]
[4,null,"  Common Equity",null,0.4,null,null,null,1057391.7699064973,null,9.8500000000000004E-2,null,null,null,104153.08933578999]
[5,null,"  Preferred Shares",null,0,null,null,null,0,null,0,null,null,null,0]
[6,null,"Total Equity",null,0.4,null,null,null,1057391.7699064973,null,9.8500000000000004E-2,null,null,null,104153.08933578999]
[]
[7,null,"Total",null,1,null,null,null,2643479.4247662434,null,7.3100000000000012E-2,null,null,null,193238.34595041239]
[null,null,"* Cost of Capital Parameter Updates for 2012 Cost of Service Applications for Rates Effective May 1, 2012"]
[]
[" ",null,2012]
[null,null,"Application"]
[null,null,null,null,"(%)",null,null,null,"($)",null,"(%)",null,null,null,"($)"]
[null,null,"Debt"]
[1,null,"  Long-term Debt",null,0.56000000000000005,null,null,null,1353326.473146667,null,5.8700000000000002E-2,null,null,null,79440.263973709356]
[2,null,"  Short-term Debt",null,0.04,null,"(1)",null,96666.176653333343,null,2.07E-2,null,null,null,2000.9898567240002]
[3,null,"Total Debt",null,0.60000000000000009,null,null,null,1449992.6498000002,null,5.616666666666667E-2,null,null,null,81441.253830433358]
[]
[null,null,"Equity"]
[4,null,"  Common Equity",null,0.4,null,null,null,966661.76653333346,null,9.8500000000000004E-2,null,null,null,95216.184003533344]
[5,null,"  Preferred Shares",null,0,null,null,null,0,null,0,null,null,null,0]
[6,null,"Total Equity",null,0.4,null,null,null,966661.76653333346,null,9.8500000000000004E-2,null,null,null,95216.184003533344]
[]
[7,null,"Total",null,1,null,null,null,2416654.4163333336,null,7.3100000000000012E-2,null,null,null,176657.43783396669]
[null,null,"*Cost of Capital Parameter Updates for 2011 Cost of Service Applications for Rates Effective May 1 2011\nfor Rates Effective May 1, 2011"]
[]
[" ",null,2011]
[null,null,"Application"]
[null,null,null,null,"(%)",null,null,null,"($)",null,"(%)",null,null,null,"($)"]
[null,null,"Debt"]
[1,null,"  Long-term Debt",null,0.56000000000000005,null,null,null,1308390.8045600001,null,5.8700000000000002E-2,null,null,null,76802.540227672012]
[2,null,"  Short-term Debt",null,0.04,null,"(1)",null,93456.486040000003,null,2.07E-2,null,null,null,1934.549261028]
[3,null,"Total Debt",null,0.60000000000000009,null,null,null,1401847.2906000002,null,5.616666666666667E-2,null,null,null,78737.089488700018]
[]
[null,null,"Equity"]
[4,null,"  Common Equity",null,0.4,null,null,null,934564.86040000012,null,9.8500000000000004E-2,null,null,null,92054.638749400023]
[5,null,"  Preferred Shares",null,0,null,null,null,0,null,0,null,null,null,0]
[6,null,"Total Equity",null,0.4,null,null,null,934564.86040000012,null,9.8500000000000004E-2,null,null,null,92054.638749400023]
[]
[7,null,"Total",null,1,null,null,null,2336412.1510000001,null,7.3100000000000012E-2,null,null,null,170791.72823810004]
[]
[]
[" ",null,2010]
[null,null,"Application"]
[null,null,null,null,"(%)",null,null,null,"($)",null,"(%)",null,null,null,"($)"]
[null,null,"Debt"]
[1,null,"  Long-term Debt",null,0.56000000000000005,null,null,null,1285993.4052933333,null,5.8700000000000002E-2,null,null,null,75487.812890718676]
[2,null,"  Short-term Debt",null,0.04,null,"(1)",null,91856.671806666665,null,2.07E-2,null,null,null,1901.4331063979998]
[3,null,"Total Debt",null,0.60000000000000009,null,null,null,1377850.0771000001,null,5.616666666666667E-2,null,null,null,77389.245997116683]
[]
[null,null,"Equity"]
[4,null,"  Common Equity",null,0.4,null,null,null,918566.71806666674,null,9.8500000000000004E-2,null,null,null,90478.821729566684]
[5,null,"  Preferred Shares",null,0,null,null,null,0,null,0,null,null,null,0]
[6,null,"Total Equity",null,0.4,null,null,null,918566.71806666674,null,9.8500000000000004E-2,null,null,null,90478.821729566684]
[]
[7,null,"Total",null,1,null,null,null,2296416.7951666666,null,7.3100000000000012E-2,null,null,null,167868.06772668337]

{"sheet":"App.2-OA CapStructure-MIFRS","index":39,"n_rows":35,"n_cols":15,"rows_kept":35,"cut":false,"hidden":true,"merged":[[18,2,18,14],[9,2,9,14],[10,2,10,14],[12,0,12,14],[14,0,15,0],[15,4,15,8],[39,2,39,14],[40,2,40,14],[33,0,33,14],[34,2,34,14],[35,2,35,14],[36,2,36,14],[37,2,37,14],[38,2,38,14]]}
[null,null,null,null,null,null,null,null,null,null,"File Number:",null,null,null,{"$f":"'LDC Info'!$E$18","v":"EB-2013-0122"}]
[null,null,null,null,null,null,null,null,null,null,"Exhibit:"]
[null,null,null,null,null,null,null,null,null,null,"Tab:"]
[null,null,null,null,null,null,null,null,null,null,"Schedule:"]
[null,null,null,null,null,null,null,null,null,null,"Page:"]
[]
[null,null,null,null,null,null,null,null,null,null,"Date:"]
[]
[]
[null,null,"Appendix 2-OA"]
[null,null,"Capital Structure and Cost of Capital"]
[]
["This table must be completed for the required years of all historical years, the bridge year and the test year."]
[]
["Line No."]
[null,null,"Particulars",null,"Capitalization Ratio",null,null,null,null,null,"Cost Rate",null,null,null,"Return"]
[]
[]
[null,null,"Application"]
[null,null,null,null,"(%)",null,null,null,"($)",null,"(%)",null,null,null,"($)"]
[null,null,"Debt"]
[1,null,"  Long-term Debt",null,0.56000000000000005,null,null,null,{"$f":"$I$31*E22","v":{"$error":"#REF!"}},null,5.79E-2,null,null,null,{"$f":"K22*I22","v":{"$error":"#REF!"}}]
[2,null,"  Short-term Debt",null,0.04,null,"(1)",null,{"$f":"$I$31*E23","v":{"$error":"#REF!"}},null,2.0799999999999999E-2,null,null,null,{"$f":"K23*I23","v":{"$error":"#REF!"}}]
[3,null,"Total Debt",null,{"$f":"SUM(E22:E23)","v":0.60000000000000009},null,null,null,{"$f":"SUM(I22:I23)","v":{"$error":"#REF!"}},null,{"$f":"IF(E24=0,0,SUMPRODUCT(E22:E23,K22:K23)/E24)","v":5.5426666666666659E-2},null,null,null,{"$f":"SUM(O22:O23)","v":{"$error":"#REF!"}}]
[]
[null,null,"Equity"]
[4,null,"  Common Equity",null,0.4,null,null,null,{"$f":"$I$31*E27","v":{"$error":"#REF!"}},null,9.1200000000000003E-2,null,null,null,{"$f":"K27*I27","v":{"$error":"#REF!"}}]
[5,null,"  Preferred Shares",null,0,null,null,null,{"$f":"$I$31*E28","v":{"$error":"#REF!"}},null,0,null,null,null,{"$f":"K28*I28","v":{"$error":"#REF!"}}]
[6,null,"Total Equity",null,{"$f":"SUM(E27:E28)","v":0.4},null,null,null,{"$f":"SUM(I27:I28)","v":{"$error":"#REF!"}},null,{"$f":"IF(E29=0,0,SUMPRODUCT(E27:E28,K27:K28)/E29)","v":9.1200000000000003E-2},null,null,null,{"$f":"SUM(O27:O28)","v":{"$error":"#REF!"}}]
[]
[7,null,"Total",null,1,null,null,null,{"$f":"#REF!","v":{"$error":"#REF!"}},null,{"$f":"(K24*E24)+(K29*E29)","v":6.9736000000000006E-2},null,null,null,{"$f":"O24+O29","v":{"$error":"#REF!"}}]
[]
[]
["Notes"]
["(1)",null,"4.0% unless an applicant has proposed or been approved for a different amount."]

{"sheet":"App.2-P_Cost_Allocation","index":40,"n_rows":117,"n_cols":6,"rows_kept":117,"cut":false,"hidden":false,"merged":[[31,0,32,4],[34,0,36,4],[38,0,39,4],[8,0,8,5],[9,0,9,5],[52,0,52,1],[53,0,53,1],[45,0,46,1],[45,2,46,2],[48,0,48,1],[49,0,49,1],[50,0,50,1],[51,0,51,1],[47,0,47,1],[42,1,42,5],[44,0,44,1],[45,3,46,3],[45,4,46,4],[45,5,46,5],[83,0,83,1],[65,0,65,5],[79,0,79,1],[80,0,80,1],[81,0,81,1],[82,0,82,1],[62,0,63,5],[54,0,54,1],[55,0,55,1],[56,0,56,1],[57,0,57,1],[58,0,58,1],[86,0,86,1],[87,0,87,1],[88,0,88,1],[67,0,68,5],[104,0,104,1],[70,0,71,5],[93,0,94,5],[96,0,96,5],[89,0,89,1],[84,0,84,1],[85,0,85,1],[75,0,77,1],[75,5,77,5],[76,3,77,3],[76,4,77,4],[78,0,78,1],[105,0,105,1],[100,0,102,1],[100,2,100,4],[100,5,101,5],[103,0,103,1],[113,0,113,1],[121,0,123,5],[106,0,106,1],[107,0,107,1],[108,0,108,1],[109,0,109,1],[110,0,110,1],[111,0,111,1],[116,0,119,5],[112,0,112,1]]}
[null,null,null,null,"File Number:",{"$f":"'LDC Info'!$E$18","v":"EB-2013-0122"}]
[null,null,null,null,"Exhibit:"]
[null,null,null,null,"Tab:"]
[null,null,null,null,"Schedule:"]
[null,null,null,null,"Page:"]
[]
[null,null,null,null,"Date:"]
[]
["Appendix 2-P"]
["Cost Allocation"]
[]
["Please complete the following four tables."]
[]
["A)  Allocated Costs"]
[]
["Classes","Costs Allocated from Previous Study","%","Costs Allocated in Test Year Study                    (Column 7A)","%"]
["Residential",557055,{"$f":"IF(B$28=0,\"\",B17/B$28)","v":0.67510443694941091},722823,{"$f":"IF(D$28=0,\"\",D17/D$28)","v":0.83189049962480954}]
["GS < 50 kW",140228,{"$f":"IF(B$28=0,\"\",B18/B$28)","v":0.1699447002262649},96219,0.11073758303678707]
["GS > 50 kW (or 50 kW < GS < xxx kW, if applicable)",78850,9.5559657221389371E-2,26316,3.0286848077781817E-2]
["GS > xxx kW, if applicable",null,0,null,0]
["Large User, if applicable",null,0,null,0]
["Street Lighting",25794,3.1260187677470096E-2,18880,2.1728822454344154E-2]
["Sentinel Lighting",null,0,null,0]
["Unmetered Scattered Load (USL)",23212,2.8131017925464678E-2,4654,5.3562468062774201E-3]
["Other class, if applicable",null,0,null,0]
[null,null,0,null,0]
["Embedded distributor class",null,0,null,0]
["Total",{"$f":"SUM(B17:B27)","v":825139},{"$f":"SUM(C17:C27)","v":1},{"$f":"SUM(D17:D27)","v":868892},{"$f":"SUM(E17:E27)","v":1}]
[]
["Notes"]
[]
["1     Customer Classification - If proposed rate classes differ from those in place in the previous Cost Allocation study, modify the rate classes to match the current application as closely as possible."]
[]
[]
["2     Host Distributors -  Provide information on embedded distributor(s) as a separate class, if applicable.   If embedded distributor(s) are billed as customers in a General Service class, include the allocated cost and revenue of the embedded distributor(s) in the applicable class.  Also complete Appendix 2-Q."]
[]
[]
["  "]
["3     Class Revenue Requirements - If using the Board-issued model, in column 7A enter the results from Worksheet O-1, Revenue Requirement (row 40 in the 2013 model).  This excludes costs in deferral and variance accounts.  Note to Embedded Distributor(s), it also does not include Account 4750 - Low Voltage (LV) Costs. "]
[]
[]
[]
["B)  Calculated Class Revenues"]
[]
[null,null,"Column 7B","Column 7C","Column 7D","Column 7E"]
["Classes (same as previous table)",null,"Load Forecast (LF) X current approved rates","L.F. X current approved rates X (1 + d)","LF X proposed rates","Miscellaneous Revenue"]
[]
[{"$f":"A17","v":"Residential"},null,601066.65599999996,600826.18147207494,671725.79529506702,26262]
["GS < 50 kW",null,124181.568,124131.88548368722,112420.64265582965,2599]
["GS > 50 kW (or 50 kW < GS < xxx kW, if applicable)",null,88600.194000000003,88564.746866785179,31393.193967677245,193]
["GS > xxx kW, if applicable"]
["Large User, if applicable"]
["Street Lighting",null,14681.014500000001,14675.140925087626,17880.485002682421,1023]
["Sentinel Lighting",null,null,null,null,204]
["Unmetered Scattered Load (USL)",null,10533.7616,10529.547256511223,5377.7569172836093]
["Other class, if applicable"]
[]
[{"$f":"A27","v":"Embedded distributor class"}]
[{"$f":"A28","v":"Total"},null,{"$f":"SUM(C48:C58)","v":839063.19409999996},{"$f":"SUM(D48:D58)","v":838727.50200414623},{"$f":"SUM(E48:E58)","v":838797.87383854005},{"$f":"SUM(F48:F58)","v":30281}]
[]
["Notes:"]
[]
["1     Columns 7B to 7D - LF means Load Forecast of Annual Billing Quantities (i.e. customers or connections X 12, (kWh or kW, as applicable).  Revenue Quantities should be net of Transfomrer Ownership Allowance.  Exclude revenue from rate adders and rate riders.  "]
[]
[]
["2     Columns 7C and 7D - Column total in each column should equal the Base Revenue Requirement"]
[]
["3     Columns 7C - The Board cost allocation model calculates \"1+d\" in worksheet O-1, cell C21. \"d\" is defined as Revenue Deficiency/ Revenue at Current Rates."]
[]
[]
["4     Columns 7E - If using the Board-issued Cost Allocation model, enter Miscellaneous Revenue as it appears in Worksheet O-1, row 19."]
[]
[]
["C)  Rebalancing Revenue-to-Cost (R/C) Ratios"]
[]
["Class",null,"Previously Approved Ratios","Status Quo Ratios","Proposed Ratios","Policy Range"]
[null,null,"Most Recent Year:","(7C + 7E) / (7A)","(7D + 7E) / (7A)"]
[null,null,"20XX"]
[null,null,"%","%","%","%"]
[{"$f":"A48","v":"Residential"},null,103,{"$f":"IF(D17=0,\"\",(D48+F48)/D17*100)","v":86.755427189239271},{"$f":"IF(D17=0,\"\",(E48+F48)/D17*100)","v":96.564137457588799},"85 - 115"]
["GS < 50 kW",null,0.91,{"$f":"IF(D18=0,\"\",(D49+F49)/D18*100)","v":131.71087361507315},119.53942844534826,"80 - 120"]
["GS > 50 kW (or 50 kW < GS < xxx kW, if applicable)",null,121,337.27673987986464,120.02657686455862,"80 - 120"]
["GS > xxx kW, if applicable",null,null,"","","80 - 120"]
["Large User, if applicable",null,null,"","","85 - 115"]
["Street Lighting",null,120,83.146932865930225,100.12439090403824,"70 - 120"]
["Sentinel Lighting",null,null,"","","80 - 120"]
["Unmetered Scattered Load (USL)",null,120,226.24725518932581,115.55128743626149,"80 - 120"]
["Other class, if applicable",null,null,"",""]
[null,null,null,"",""]
[{"$f":"A58","v":"Embedded distributor class"},null,null,"",""]
[]
["Notes"]
[]
["1     Previously Approved Revenue-to-Cost Ratios - For most applicants, Most Recent Year would be the third year of the IRM 3 period,  e.g. if the applicant rebased in 2009 with further adjustments over 2 years, the Most recent year is 2011.  For applicants that have had rates adjusted only under IRM 2, the Most Recent Year is 2006, and the applicant should enter the ratios from their Informational Filing."]
[]
[]
["2     Status Quo Ratios - The Board's updated Cost Allocation Model yields the Status Quo Ratios in Worksheet O-1.  Status Quo means \"Before Rebalancing\"."]
[]
["D)  Proposed Revenue-to-Cost Ratios"]
[]
["Class",null,"Proposed Revenue-to-Cost Ratios",null,null,"Policy Range"]
[null,null,2013,2014,2015]
[null,null,"%","%","%","%"]
[{"$f":"A80","v":"Residential"},null,{"$f":"E80","v":96.564137457588799},0.96543405621899192,0.96543405621899192,{"$f":"F80","v":"85 - 115"}]
[{"$f":"A81","v":"GS < 50 kW"},null,{"$f":"E81","v":119.53942844534826},1.1951351573910101,1.1951351573910101,{"$f":"F81","v":"80 - 120"}]
["GS > 50 kW (or 50 kW < GS < xxx kW, if applicable)",null,120.02657686455862,1.2000003249054041,1.2000003249054041,"80 - 120"]
["GS > xxx kW, if applicable",null,"",null,null,"80 - 120"]
["Large User, if applicable",null,"",null,null,"85 - 115"]
["Street Lighting",null,100.12439090403824,1.1990906462537858,1.1990906462537858,"70 - 120"]
["Sentinel Lighting",null,"",null,null,"80 - 120"]
["Unmetered Scattered Load (USL)",null,115.55128743626149,1.1990906462537858,1.1990906462537858,"80 - 120"]
["Other class, if applicable",null,"",null,null,{"$f":"F88","v":0}]
[null,null,"",null,null,{"$f":"F89","v":0}]
["Embedded distributor class",null,""]
[]
["Note"]
["1     The applicant should complete Table D if it is applying for approval of a revenue to cost ratio in 2012 that is outside the Board’s policy range for any customer class. Table (d) will show the information that the distributor would likely enter in the IRM model) in 2013.  In 2013 Table (d), enter the planned ratios for the classes that will be ‘Change’ and ‘No Change’ in 2013 (in the current Revenue Cost Ratio Adjustment Workform, Worksheet C1.1 ‘Decision – Cost Revenue Adjustment’, column d), and enter TBD for class(es) that will be entered as ‘Rebalance’. "]

{"sheet":"App.2-Q_Cost of Serv. Emb. Dx","index":41,"n_rows":61,"n_cols":7,"rows_kept":61,"cut":false,"hidden":true,"merged":[[59,3,60,3],[59,4,60,4],[54,4,55,4],[8,0,8,6],[9,0,9,6],[16,0,16,1],[16,2,16,3],[54,3,55,3],[9,7,9,11],[12,0,12,6],[11,0,11,6],[14,0,14,1],[14,2,14,3]]}
[null,null,null,null,null,"File Number:",{"$f":"'LDC Info'!$E$18","v":"EB-2013-0122"}]
[null,null,null,null,null,"Exhibit:"]
[null,null,null,null,null,"Tab:"]
[null,null,null,null,null,"Schedule:"]
[null,null,null,null,null,"Page:"]
[]
[null,null,null,null,null,"Date:"]
[]
["Appendix 2-Q"]
["Cost of Serving Embedded Distributor(s) "]
[]
["To be completed by Host Distributors*"]
["(Not required if Host Distributor has an Embedded Distributor rate class, i.e. a separate row in Appendix 2-P.)"]
[]
[]
[]
["Proposed Rate Class for Billing Embedded Distributor(s)"]
[]
["Host's Distribution Facilities used by Embedded Distributor(s)"]
[]
["(1)","(2)","(3)","(4)","(5)","(6) = '(3) + (4)"]
["Asset Class","Total OM&A costs asociated with asset class ","Original cost of asset class ","Accumulated amortization of asset class","Annual amortization of asset class","Net Book Value of asset class"]
["Totals for Host Distributor:","($)","($)","($)","($)"]
["Distribution Stations",null,null,null,null,{"$f":"C24+D24","v":0}]
["Low Voltage Line",null,null,null,null,0]
["LV Line category # 2 (if applcable)",null,null,null,null,0]
["TS (owned by host)",null,null,null,null,0]
["add rows if necessary... ",null,null,null,null,0]
[null,null,null,null,null,0]
[null,null,null,null,null,0]
[]
["(1)","(7)","(8)","(9)","(10)","(11)"]
[{"$f":"A22","v":"Asset Class"},"Total line length or station capacity in asset class","Line length or capacity required to provide LV service to Embedded Distributor(s)","Annual total demand on station/line providing LV services (sum of 12 monthly peaks)","Annual billed Embedded Distributor demand on station/line providing LV services","Embedded Distributor(s)' Responsibility Share "]
["Embedded Distributor's share:","kW or kVa; km","kW or kVA; km","kW or kVA","kW or kVA","percent"]
["Distribution Stations",null,null,null,null,{"$f":"IF(D35=0,0,(C35/B35)*(E35/D35))","v":0}]
["Low Voltage Line",null,null,null,null,{"$f":"IF(D36=0,0,(C36/B36)*(E36/D36))","v":0}]
["LV Line # 2 (if applicable) ",null,null,null,null,{"$f":"IF(D37=0,0,(C37/B37)*(E37/D37))","v":0}]
["TS (owned by host)",null,null,null,null,{"$f":"IF(D38=0,0,(C38/B38)*(E38/D38))","v":0}]
["add rows if necessary ",null,null,null,null,{"$f":"IF(D39=0,0,(C39/B39)*(E39/D39))","v":0}]
[]
["(1)","(12)","(12a)","(13)","(14)","(15)","(16)"]
[{"$f":"A33","v":"Asset Class"},"Return on Assets used to Provide LV services","Taxes/PILs","Annual amortization on assets used to provide LV services","OM&A costs with burden associated with assets used to provide LV services","Total annual cost associated with assets used to provide LV services","Monthly cost associated with the delivery of LV services"]
[null,"($)","($)","($)","($)","($)","$/kW or $/kVA"]
["Distribution Stations",{"$f":"E$55*(F24+B24*E$60)*F35","v":0},{"$f":"(B44-(B$55*C$55*F35*(F24+B24*E58)+B$56*C$56*F35*(F24+B24*E$58)))*E$58/(1-E$58)","v":0},{"$f":"E24*F35","v":0},{"$f":"B24*F35","v":0},{"$f":"SUM(B44:E44)","v":0},{"$f":"IF(E35=0,0,(D44/E35))","v":0}]
["Low Voltage Line",{"$f":"E$55*(F25+B25*E$60)*F36","v":0},{"$f":"(B45-(B$55*C$55*F36*(F25+B25*E59)+B$56*C$56*F36*(F25+B25*E59)))*E$58/(1-E$58)","v":0},{"$f":"E25*F36","v":0},{"$f":"B25*F36","v":0},{"$f":"SUM(B45:E45)","v":0},{"$f":"IF(E36=0,0,(D45/E36))","v":0}]
["LV Line # 2 (if applicable) ",{"$f":"E$55*(F26+B26*E$60)*F37","v":0},{"$f":"(B46-(B$55*C$55*F37*(F26+B26*E60)+B$56*C$56*F37*(F26+B26*E$60)))*E$58/(1-E$58)","v":0},{"$f":"E26*F37","v":0},{"$f":"B26*F37","v":0},{"$f":"SUM(B46:E46)","v":0},{"$f":"IF(E37=0,0,(D46/E37))","v":0}]
["TS (owned by host)",{"$f":"E$55*(F27+B27*E$60)*F38","v":0},{"$f":"(B47-(B$55*C$55*F38*(F27+B27*E61)+B$56*C$56*F38*(F27+B27*E61)))*E$58/(1-E$58)","v":0},{"$f":"E27*F38","v":0},{"$f":"B27*F38","v":0},{"$f":"SUM(B47:E47)","v":0},{"$f":"IF(E38=0,0,(D47/E38))","v":0}]
["add rows if necessary ",{"$f":"E$55*(F28+B28*E$60)*F39","v":0},{"$f":"(B48-(B$55*C$55*F39*(F28+B28*I62)+B$56*C$56*F39*(F28+B28*I62)))*E$58/(1-E$58)","v":0},{"$f":"E28*F39","v":0},{"$f":"B28*F39","v":0},{"$f":"SUM(B48:E48)","v":0},{"$f":"IF(E39=0,0,(D48/E39))","v":0}]
[]
["Total",null,null,null,null,{"$f":"SUM(F44:F48)","v":0},{"$f":"SUM(G44:G48)","v":0}]
[]
["(17)","(18)","(19)","(20)","(21)"]
[null,"Capital Structure","Cost Rate"]
[null,"(%)","(%)",null,"(%)"]
["Long-Term Debt",null,null,"Weighted Average Cost of Capital",{"$f":"IF(B61=0%,0,SUMPRODUCT(B55:B59,C55:C59)/B61)","v":0}]
["Short-term Debt"]
[]
["Common Equity",null,null,"Tax/PILs Rate"]
["Preferred Shares"]
[null,null,null,"Working Capital Allowance Factor"]
["Total",{"$f":"SUM(B55:B59)","v":0}]

{"sheet":"App.2-S_Stranded Meters","index":42,"n_rows":88,"n_cols":8,"rows_kept":88,"cut":false,"hidden":false,"merged":[[87,0,90,7],[80,1,82,7],[84,1,85,7],[65,1,66,7],[72,1,74,7],[76,1,78,7],[68,1,70,7],[58,2,60,7],[62,0,63,7],[33,1,34,7],[36,1,38,7],[40,1,43,7],[45,1,48,7],[53,2,56,7],[8,0,8,7],[9,0,9,7],[25,0,28,7],[30,0,31,7],[50,2,51,7]]}
[null,null,null,null,null,null,"File Number:",{"$f":"'LDC Info'!$E$18","v":"EB-2013-0122"}]
[null,null,null,null,null,null,"Exhibit:"]
[null,null,null,null,null,null,"Tab:"]
[null,null,null,null,null,null,"Schedule:"]
[null,null,null,null,null,null,"Page:"]
[]
[null,null,null,null,null,null,"Date:"]
[]
["Appendix 2-S"]
["Stranded Meter Treatment"]
[]
["Year","Notes","Gross Asset Value","Accumulated Amortization","Contributed Capital (Net of Amortization)","Net Asset","Proceeds on Disposition","Residual Net Book Value"]
[null,null,"(A)","(B)","(C)","(D ) = (A) - (B) - (C)","(E)","(F) = (D) - (E)"]
[2006,null,null,null,null,{"$f":"C14-D14-E14","v":0},null,{"$f":"F14-G14","v":0}]
[2007,null,null,null,null,0,null,0]
[2008,null,null,null,null,0,null,0]
[2009,null,null,null,null,0,null,0]
[2010,null,79072,29822,null,49250,null,49250]
[2011,null,79072,32985,null,46087,null,46087]
[2012,"(1)",79072,36148,null,42924,null,42924]
[]
["Notes:"]
[]
["(1)","For 2012, please indicate whether the amounts provided are on a forecast or actual basis."]
[]
["Some distributors have transferred the cost of stranded meters from Account 1860 - Meters to \"Sub-account Stranded Meter Costs of Account 1555\", while in some cases distributors have left these costs in Account 1860.  Depending on which treatment the applicant has chosen. please provide the information under either of the two scenarios (A and B below), as applicable."]
[]
[]
[]
[]
["Scenario A:  If the stranded meter costs were transferred to \"Sub-account Stranded Meter Costs\" of Account 1555, the above table should be completed and the following information should be provided."]
[]
[]
[1,"A description of the accounting treatment followed by the applicant on stranded meter costs for financial accounting and reporting purposes."]
[]
[]
[2,"The amount of the pooled residual net book value of the removed from service stranded meters, less any contributed capital (net of accumulated amortization), and less any net proceeds from sales, which were transferred to this sub-account as of December 31, 2010."]
[]
[]
[]
[3,"A statement as to whether or not, since transferring the removed stranded meter costs to the sub-account, the recording of depreciation expenses was continued in order to reduce the net book value through accumulated depreciation.  If so, the total depreciation expense amount for the period from the time the costs for the stranded meters were transferred to the sub-account to December 31, 2010 should be provided."]
[]
[]
[]
[]
[null,"If no depreciation expenses were recorded to reduce the net book value of stranded meter costs through accumulated depreciation, the total depreciation expense amount that would have been applicable from the time that the stranded meter costs were transferred to the sub-account of Account 1555 to December 31, 2010 should be provided.  In addition, the following information should be provided:"]
[]
[]
[]
[]
[null,"a)","Whether or not carrying charges were recorded for the stranded meter cost balances in the sub-account, and if so, the total carrying charges recorded to December 31, 2010."]
[]
[]
[null,"b)","The estimated amount of the pooled residual net book value of the removed from service meters, less any net proceeds from sales and contributed capital, at the time when the smart meters will have been fully deployed (e.g., as of December 31, 2010).  If the smart meters have been fully deployed, the actual amount should be provided."]
[]
[]
[]
[]
[null,"c)","A description as to how the applicant intends to recover in rates the remaining costs for stranded meters, including the proposed accounting treatment, the proposed disposition period, and the associated bill impacts."]
[]
[]
[]
["Scenario B:  If the stranded meter costs remained recorded in Account 1860, the above table should be completed and the following information should be provided:"]
[]
[]
[1,"A description of the accounting treatment followed by the applicant on stranded meter costs for financial accounting and reporting purposes."]
[]
[]
[2,"The amount of the pooled residual net book value of the removed from service stranded meters, less any contributed capital (net of accumulated amortization), and less any net proceeds from sales, as of December 31, 2010."]
[]
[]
[]
[3,"A statement as to whether or not the recording of depreciation expenses continued in order to reduce the net book value through accumulated depreciation.  If so, provision of the total (cumulative) depreciation expense for the period from the time that the meters became stranded to December 31, 2010."]
[]
[]
[]
[4,"If no depreciation expenses were recorded to reduce the net book value of stranded meters through accumulated depreciation, the total (cumulative) depreciation expense amount that would have been applicable for the period from the time that the meters became stranded to December 31, 2010."]
[]
[]
[]
[5,"The estimated amount of the pooled residual net book value of the removed from service meters, less any net proceeds from sales and contributed capital, at the time when smart meters will have been fully deployed.  If the smart meters have been fully deployed, please provide the actual amount."]
[]
[]
[]
[6,"A description as to how the applicant intends to recover in rates the costs for stranded meters, including the proposed accounting treatment, the proposed disposition period and the associated bill impacts."]
[]
[]
["Distributors should also provide the Net Book Value per class of meter as of December 31, 2010 as well as the number of meters that were removed / stranded.  In preparing this information, distributors should review the Board's letter of January 16, 2007 Stranded Meter Costs Related to the Installation of Smart Meters   which stated that records were to be kept of the type and number of each meter to support the stranded meter costs."]

{"sheet":"App.2-U_IFRS Transition Costs","index":43,"n_rows":36,"n_cols":12,"rows_kept":36,"cut":false,"hidden":false,"merged":[[22,0,22,2],[8,0,8,11],[9,0,9,11],[11,0,11,11],[13,0,15,2],[13,11,15,11],[16,0,16,2],[17,0,17,2],[18,0,18,2],[19,0,19,2],[20,0,20,2],[21,0,21,2],[38,0,39,0],[38,1,39,4],[23,0,23,2],[24,0,24,2],[25,0,25,2],[26,0,26,2],[27,0,27,2],[28,0,28,2],[29,0,29,2],[33,0,34,0],[33,1,34,11],[36,0,37,0],[36,1,36,4],[41,0,42,0],[41,1,42,4],[44,0,47,0],[44,1,47,4],[49,0,50,0],[49,1,50,4]]}
[null,null,null,null,null,null,null,null,null,"File Number:",{"$f":"'LDC Info'!$E$18","v":"EB-2013-0122"}]
[null,null,null,null,null,null,null,null,null,"Exhibit:"]
[null,null,null,null,null,null,null,null,null,"Tab:"]
[null,null,null,null,null,null,null,null,null,"Schedule:"]
[null,null,null,null,null,null,null,null,null,"Page:"]
[]
[null,null,null,null,null,null,null,null,null,"Date:"]
[]
["Appendix 2-U"]
["One-Time Incremental IFRS Transition Costs"]
[]
["The following table should be completed based on the information requested below. An explanation should be provided for any blank entries.  The entries should include one-time incremental IFRS transition costs that are currently included in Account 1508, Other Regulatory Assets, sub-account Deferred IFRS Transition Costs Account, or Account 1508, Other Regulatory Assets, sub-account IFRS Transition Costs Variance Account."]
[]
["Nature of One-Time Incremental IFRS Transition Costs 1",null,null,null,"Audited Actual","Audited Actual","Audited Actual","Audited Carrying","Total Audited","RRR 2.1.7","Variance 2","Reasons why the costs recorded meet the criteria of one-time IFRS administrative incremental costs"]
[null,null,null,null,"Costs Incurred","Costs Incurred","Costs Incurred","Charges","Actual Costs","Balance"]
[null,null,null,null,2009,2010,2011,"to Dec 31, 2011","to Dec 31, 2011","2011-12-31"]
["professional accounting fees",null,null,null,null,null,null,null,{"$f":"SUM(E17:H17)","v":0}]
["professional legal fees",null,null,null,null,null,null,null,{"$f":"SUM(E18:H18)","v":0}]
["salaries, wages and benefits of staff added to support the transition to IFRS",null,null,null,null,null,null,null,0]
["associated staff training and development costs",null,null,null,null,null,null,null,0]
["costs related to system upgrades, or replacements or changes where IFRS was the major reason for conversion",null,null,null,null,null,null,null,0]
[null,null,null,null,null,null,null,null,0]
[null,null,null,null,null,null,null,null,0]
[null,null,null,null,null,null,null,null,0]
[null,null,null,null,null,null,null,null,0]
[null,null,null,null,null,null,null,null,0]
[null,null,null,null,null,null,null,null,0]
[null,null,null,null,null,null,null,null,0]
["Insert description of additional item(s) and new rows if needed.",null,null,null,null,null,null,null,0]
["Total",null,null,null,{"$f":"SUM(E17:E29)","v":0},{"$f":"SUM(F17:F29)","v":0},{"$f":"SUM(G17:G29)","v":0},{"$f":"SUM(H17:H29)","v":0},{"$f":"SUM(I17:I29)","v":0},null,{"$f":"+I30-J30","v":0}]
[]
[]
["Note:"]
[1,"The Deferred IFRS Transition Costs Account and the IFRS Transition Costs Variance Account are exclusively for necessary, incremental transition costs and shall not include ongoing IFRS compliance costs or impacts arising from adopting accounting policy changes that reflect changes in the timing of the recognition of income. The incremental costs in these accounts shall not include costs related to system upgrades, or replacements or changes where IFRS was not the major reason for conversion. In addition, incremental IFRS costs shall not include capital assets or expenditures."]
[]
[2,"Applicants are to provide an explanation of material variances in evidence"]

{"sheet":"App.2-V_Rev_Reconciliation","index":44,"n_rows":34,"n_cols":16,"rows_kept":34,"cut":false,"hidden":false,"merged":[[33,0,34,13],[8,0,8,15],[11,10,12,10],[9,0,9,15],[11,5,11,6],[11,2,11,4],[11,12,12,12],[11,13,12,13],[11,14,12,14],[11,15,12,15],[11,1,12,1],[12,8,12,9],[11,7,11,9]]}
[null,null,null,null,null,null,null,null,null,null,null,null,null,null,"File Number:",{"$f":"'LDC Info'!$E$18","v":"EB-2013-0122"}]
[null,null,null,null,null,null,null,null,null,null,null,null,null,null,"Exhibit:",8]
[null,null,null,null,null,null,null,null,null,null,null,null,null,null,"Tab:",1]
[null,null,null,null,null,null,null,null,null,null,null,null,null,null,"Schedule:",5]
[null,null,null,null,null,null,null,null,null,null,null,null,null,null,"Page:"]
[]
[null,null,null,null,null,null,null,null,null,null,null,null,null,null,"Date:"]
[]
["Appendix 2-V"]
["Revenue Reconciliation"]
[]
["Rate Class","Customers/ Connections","Number of Customers/Connections",null,null,"Test Year Consumption",null,"Proposed Rates",null,null,"Revenues at Proposed Rates",null,"Class Specific Revenue Requirement","Transformer Allowance Credit","Total","Difference"]
[null,null,"Start of Test Year","End of Test Year","Average","kWh","kW","Monthly Service Charge","Volumetric"]
[null,null,null,null,null,null,null,null,"kWh","kW"]
[]
["Residential","Customers",1998,1998,{"$f":"IF(SUM(C16:D16)=0,0,AVERAGE(C16:D16))","v":1998},21296520,null,13.75,1.729474089170752E-2,null,{"$f":"H16*E16*12+I16*F16+J16*G16","v":697987.79529506702},null,697987.79529506702,null,{"$f":"SUM(M16:N16)","v":697987.79529506702},{"$f":"O16-K16","v":0}]
["GS < 50 kW","Customers",168,168,168,4950960,null,23.47,1.3674948425321482E-2,null,115019.64265582965,null,115019.64265582965,null,115019.64265582965,0]
["GS > 50 to 4,999 kW","Customers",11,11,11,4187781,12372,130,null,1.1660357232199519,{"$f":"H18*E18*12+I18*F18+J18*G18","v":31586.193967677245},null,31586.193967677245,null,31586.193967677245,0]
["Unmetered Scattered Load","Connections",20,20,20,89554,0,12,3.0169025585497122E-2,null,{"$f":"H19*E19*12+I19*F19+J19*G19","v":5581.7569172836093},null,5581.7569172836093]
["StreetLights","Connections",425,425,425,374609,1001,1.75,null,9.9685164861962239,18903.485002682421,null,18903.485002682421,null,18903.485002682421,0]
[]
[null,null,null,null,0,null,null,null,null,null,0,null,null,null,0,0]
[]
[]
[]
[null,null,null,null,0,null,null,null,null,null,0,null,null,null,0,0]
[null,null,null,null,0,null,null,null,null,null,0,null,null,null,0,0]
[null,null,null,null,0,null,null,null,null,null,0,null,null,null,0,0]
[]
["Total",null,null,null,null,null,null,null,null,null,{"$f":"SUM(K16:K28)","v":869078.87383854005},null,{"$f":"SUM(M16:M28)","v":869078.87383854005},{"$f":"SUM(N16:N28)","v":0},{"$f":"M30+N30","v":869078.87383854005},{"$f":"O30-K30","v":0}]
[]
["Note"]
[]
["1       The class specific revenue requirements in column N must be the amounts used in the final rate design process.  The total of column N should equate to the proposed base revenue requirement"]

{"sheet":"App.2-W_Bill Impacts-Res","index":45,"n_rows":85,"n_cols":20,"rows_kept":85,"cut":false,"hidden":false,"merged":[[2,0,2,10],[9,1,9,14],[10,1,10,14],[13,3,13,14],[17,5,17,7],[17,9,17,11],[17,13,17,14],[67,1,67,3],[18,3,19,3],[18,13,19,13],[18,14,19,14],[60,1,60,3],[61,1,61,3],[66,1,66,3]]}
[null,null,null,null,null,null,null,null,null,null,null,null,null,"File Number:",{"$f":"'LDC Info'!$E$18","v":"EB-2013-0122"},null,null,null,null,1]
[null,null,null,null,null,null,null,null,null,null,null,null,null,"Exhibit:",8]
[null,null,null,null,null,null,null,null,null,null,null,null,null,"Tab:",8]
[null,null,null,null,null,null,null,null,null,null,null,null,null,"Schedule:",2]
[null,null,null,null,null,null,null,null,null,null,null,null,null,"Page:",1]
[]
[null,null,null,null,null,null,null,null,null,null,null,null,null,"Date:"]
[]
[]
[null,"Appendix 2-W"]
[null,"Bill Impacts"]
[]
[]
[null,"Customer Class:",null,"Residential"]
[]
[null,null,null,"Consumption",null,800," kWh"]
[]
[null,null,null,null,null,"Current Board-Approved",null,null,null,"Proposed",null,null,null,"Impact"]
[null,null,null,"Charge Unit",null,"Rate","Volume","Charge",null,"Rate","Volume","Charge",null,"$ Change","% Change"]
[null,null,null,null,null,"($)",null,"($)",null,"($)",null,"($)"]
[null,"Monthly Service Charge",null,"Monthly",null,13.7,1,{"$f":"G21*F21","v":13.7},null,13.75,1,{"$f":"K21*J21","v":13.75},null,{"$f":"L21-H21","v":5.0000000000000711E-2},{"$f":"IF((H21)=0,\"\",(N21/H21))","v":3.6496350364964023E-3}]
[null,"Smart Meter Rate Adder",null,"Monthly",null,1.44,1,{"$f":"G22*F22","v":1.44},null,null,1,{"$f":"K22*J22","v":0},null,{"$f":"L22-H22","v":-1.44},{"$f":"IF((H22)=0,\"\",(N22/H22))","v":-1}]
[null,"Stranded Meter Rate Rider",null,"Monthly",null,null,1,0,null,0.82,1,{"$f":"K23*J23","v":0.82},null,{"$f":"L23-H23","v":0.82},{"$f":"IF((H23)=0,\"\",(N23/H23))","v":""}]
[null,null,null,null,null,null,1,0,null,null,1,0,null,0,""]
[null,null,null,null,null,null,1,0,null,null,1,0,null,0,""]
[null,null,null,null,null,null,1,0,null,null,1,0,null,0,""]
[null,"Distribution Volumetric Rate",null,"per kWh",null,1.2800000000000001E-2,{"$f":"$F$16","v":800},10.24,null,1.7299999999999999E-2,{"$f":"$F$16","v":800},13.84,null,3.5999999999999996,0.35156249999999994]
[null,"Smart Meter Disposition Rider",null,"per kWh",null,null,800,0,null,null,{"$f":"$F$16","v":800},0,null,0,""]
[null,"LRAM & SSM Rate Rider",null,"per kWh",null,4.0000000000000002E-4,800,0.32,null,null,800,0,null,-0.32,-1]
[null,null,null,null,null,null,800,{"$f":"G30*F30","v":0},null,null,800,{"$f":"K30*J30","v":0},null,{"$f":"L30-H30","v":0},{"$f":"IF((H30)=0,\"\",(N30/H30))","v":""}]
[null,null,null,null,null,null,800,{"$f":"G31*F31","v":0},null,null,800,{"$f":"K31*J31","v":0},null,{"$f":"L31-H31","v":0},{"$f":"IF((H31)=0,\"\",(N31/H31))","v":""}]
[null,"LRAM",null,"per kWh",null,4.0000000000000002E-4,800,{"$f":"G32*F32","v":0.32},null,null,800,{"$f":"K32*J32","v":0},null,{"$f":"L32-H32","v":-0.32},{"$f":"IF((H32)=0,\"\",(N32/H32))","v":-1}]
[null,"Deferred PILs 1562",null,"per kWh",null,-8.0000000000000004E-4,800,-0.64,null,null,800,0,null,0.64,-1]
[null,null,null,null,null,null,800,0,null,null,800,0,null,0,""]
[null,null,null,null,null,null,800,0,null,null,800,0,null,0,""]
[null,null,null,null,null,null,800,0,null,null,800,0,null,0,""]
[null,"Sub-Total A",null,null,null,null,null,{"$f":"SUM(H21:H36)","v":25.38},null,null,null,{"$f":"SUM(L21:L36)","v":28.41},null,3.0300000000000011,0.11938534278959816]
[null,"Deferral/Variance Account Disposition Rate Rider",null,"per kWh",null,-2.0999999999999999E-3,{"$f":"$F$16","v":800},{"$f":"G38*F38","v":-1.68},null,-1.1000000000000001E-3,{"$f":"$F$16","v":800},{"$f":"K38*J38","v":-0.88},null,0.79999999999999993,{"$f":"IF((H38)=0,\"\",(N38/H38))","v":-0.47619047619047616}]
[null,"Global Adj DVA",null,"per kWh",null,1.4E-3,{"$f":"$F$16","v":800},1.1199999999999999,null,-6.9999999999999999E-4,{"$f":"$F$16","v":800},-0.55999999999999994,null,-1.6799999999999997,{"$f":"IF((H39)=0,\"\",(N39/H39))","v":-1.5}]
[null,null,null,null,null,null,{"$f":"$F$16","v":800},0,null,null,{"$f":"$F$16","v":800},0,null,0,{"$f":"IF((H40)=0,\"\",(N40/H40))","v":""}]
[null,null,null,null,null,null,{"$f":"$F$16","v":800},0,null,null,{"$f":"$F$16","v":800},0,null,0,{"$f":"IF((H41)=0,\"\",(N41/H41))","v":""}]
[null,"Low Voltage Service Charge",null,"per kWh",null,1.4E-3,{"$f":"$F$16","v":800},1.1199999999999999,null,1.9E-3,{"$f":"$F$16","v":800},1.52,null,0.40000000000000013,{"$f":"IF((H42)=0,\"\",(N42/H42))","v":0.35714285714285732}]
[null,"Smart Meter Entity Charge",null,"Monthly",null,0.79,1,0.79,null,0.79,800,632,null,631.21]
[null,"Sub-Total B - Distribution (includes Sub-Total A)",null,null,null,null,null,{"$f":"SUM(H38:H42)+H37","v":25.939999999999998},null,null,null,{"$f":"SUM(L38:L42)+L37","v":28.490000000000002},null,2.5500000000000043,{"$f":"IF((H44)=0,\"\",(N44/H44))","v":9.8303777949113505E-2}]
[null,"RTSR - Network",null,"per kWh",null,6.8999999999999999E-3,{"$f":"F16*(1+F71)","v":808.46319999999992},{"$f":"G45*F45","v":5.5783960799999992},null,5.7000000000000002E-3,{"$f":"F16*(1+J71)","v":808.52959999999996},{"$f":"K45*J45","v":4.6086187199999999},null,-0.96977735999999926,-0.1738451960191395]
[null,"RTSR - Line and Transformation Connection",null,"per kWh",null,5.1999999999999998E-3,{"$f":"G45","v":808.46319999999992},{"$f":"G46*F46","v":4.2040086399999996},null,4.7999999999999996E-3,{"$f":"K45","v":808.52959999999996},{"$f":"K46*J46","v":3.8809420799999996},null,-0.32306656,-7.6847263567945481E-2]
[null,"Sub-Total C - Delivery (including Sub-Total B)",null,null,null,null,null,{"$f":"SUM(H44:H46)","v":35.722404719999993},null,null,null,{"$f":"SUM(L44:L46)","v":36.979560800000002},null,1.2571560800000086,3.5192369882539327E-2]
[null,"Wholesale Market Service Charge (WMSC)",null,"per kWh",null,4.4000000000000003E-3,{"$f":"G46","v":808.46319999999992},{"$f":"G48*F48","v":3.5572380799999999},null,4.4000000000000003E-3,{"$f":"K46","v":808.52959999999996},{"$f":"K48*J48","v":3.5575302400000002},null,2.9216000000031883E-4,8.2131134725826066E-5]
[null,"Rural and Remote Rate Protection (RRRP)",null,"per kWh",null,1.1999999999999999E-3,{"$f":"G46","v":808.46319999999992},0.97015583999999977,null,1.1999999999999999E-3,{"$f":"K46","v":808.52959999999996},0.97023551999999991,null,7.9680000000137419E-5,8.2131134725878095E-5]
[null,"Standard Supply Service Charge",null,"Monthly",null,0.25,1,0.25,null,0.25,1,0.25,null,0,0]
[null,"Debt Retirement Charge (DRC)",null,null,null,null,{"$f":"G49","v":808.46319999999992},0,null,null,{"$f":"K49","v":808.52959999999996},0,null,0,""]
[null,"Energy - RPP - Tier 1",null,"per kWh",null,7.4999999999999997E-2,{"$f":"IF($T$1=1,IF($F$16>=600,600,IF($F$16<600,$F$16*(1+$F$71),$F$16-600)),IF($T$1=2,IF($F$16>=1000,1000,IF($F$16<1000,$F$16*(1+$F$71),$F$16-1000))))","v":600},{"$f":"G52*F52","v":45},null,7.4999999999999997E-2,{"$f":"IF($T$1=1,IF($F$16>=600,600,IF($F$16<600,$F$16*(1+$J$71),$F$16-600)),IF($T$1=2,IF($F$16>=1000,1000,IF($F$16<1000,$F$16*(1+$J$71),$F$16-1000))))","v":600},{"$f":"K52*J52","v":45},null,0,0]
[null,"Energy - RPP - Tier 2",null,"per kWh",null,8.7999999999999995E-2,{"$f":"IF($T$1=1,IF($F$16>=600,$F$16*(1+$F$71)-600,IF($F$16<600,0,)), IF($T$1=2,IF($F$16>=1000,$F$16*(1+$F$71)-1000,IF($F$16<1000,0))))","v":208.46319999999992},{"$f":"G53*F53","v":18.344761599999991},null,8.7999999999999995E-2,{"$f":"IF($T$1=1,IF($F$16>=600,$F$16*(1+$J$71)-600,IF($F$16<600,0,)), IF($T$1=2,IF($F$16>=1000,$F$16*(1+$J$71)-1000,IF($F$16<1000,0))))","v":208.52959999999996},{"$f":"K53*J53","v":18.350604799999996},null,5.8432000000046003E-3,3.1852144647137869E-4]
[null,"TOU - Off Peak",null,"per kWh",null,6.5000000000000002E-2,{"$f":"0.64*$F$16*(1+$F$71)","v":517.41644799999995},33.632069119999997,null,6.5000000000000002E-2,{"$f":"0.64*$F$16*(1+$J$71)","v":517.45894399999997},33.63483136,null,2.7622400000026914E-3,8.2131134725816471E-5]
[null,"TOU - Mid Peak",null,"per kWh",null,0.1,{"$f":"0.18*$F$16*(1+$F$71)","v":145.52337599999998},14.5523376,null,0.1,{"$f":"0.18*$F$16*(1+$J$71)","v":145.53532799999999},14.553532799999999,null,1.1951999999997298E-3,8.2131134725717877E-5]
[null,"TOU - On Peak",null,"per kWh",null,0.11700000000000001,{"$f":"0.18*$F$16*(1+$F$71)","v":145.52337599999998},17.026234991999999,null,0.11700000000000001,{"$f":"0.18*$F$16*(1+$J$71)","v":145.53532799999999},17.027633376000001,null,1.3983840000015846E-3,8.2131134725829509E-5]
[]
[null,"Total Bill on RPP (before Taxes)",null,null,null,null,null,{"$f":"SUM(H47:H53)","v":103.84456023999999},null,null,null,{"$f":"SUM(L47:L53)","v":105.10793135999999},null,1.2633711200000022,1.2165982667557805E-2]
[null,"HST",null,null,null,0.13,null,{"$f":"H58*F59","v":13.499792831199999},null,0.13,null,{"$f":"L58*J59","v":13.664031076800001},null,{"$f":"L59-H59","v":0.16423824560000178},{"$f":"IF((H59)=0,\"\",(N59/H59))","v":1.2165982667557914E-2}]
[null,"Total Bill (including HST)",null,null,null,null,null,{"$f":"H58+H59","v":117.34435307119999},null,null,null,{"$f":"L58+L59","v":118.7719624368},null,{"$f":"L60-H60","v":1.4276093656000057},{"$f":"IF((H60)=0,\"\",(N60/H60))","v":1.2165982667557832E-2}]
[null,"Ontario Clean Energy Benefit 1",null,null,null,null,null,{"$f":"ROUND(-H60*10%,2)","v":-11.73},null,null,null,{"$f":"ROUND(-L60*10%,2)","v":-11.88},null,{"$f":"L61-H61","v":-0.15000000000000036},{"$f":"IF((H61)=0,\"\",(N61/H61))","v":1.278772378516627E-2}]
[null,"Total Bill on RPP (including OCEB)",null,null,null,null,null,{"$f":"SUM(H60:H61)","v":105.61435307119999},null,null,null,{"$f":"SUM(L60:L61)","v":106.8919624368},null,{"$f":"L62-H62","v":1.2776093656000143},{"$f":"IF((H62)=0,\"\",(N62/H62))","v":1.2096929332500036E-2}]
[]
[null,"Total Bill on TOU (before Taxes)",null,null,null,null,null,{"$f":"SUM(H47:H51,H54:H56)","v":105.71044035199998},null,null,null,{"$f":"SUM(L47:L51,L54:L56)","v":106.973324096},null,{"$f":"L64-H64","v":1.2628837440000211},{"$f":"IF((H64)=0,\"\",(N64/H64))","v":1.1946632137703778E-2}]
[null,"HST",null,null,null,0.13,null,{"$f":"H64*F65","v":13.742357245759997},null,0.13,null,{"$f":"L64*J65","v":13.906532132480001},null,0.16417488672000324,1.1946632137703812E-2]
[null,"Total Bill (including HST)",null,null,null,null,null,{"$f":"H64+H65","v":119.45279759775997},null,null,null,{"$f":"L64+L65","v":120.87985622847999},null,1.4270586307200261,1.1946632137703797E-2]
[null,"Ontario Clean Energy Benefit 1",null,null,null,null,null,{"$f":"ROUND(-H66*10%,2)","v":-11.95},null,null,null,{"$f":"ROUND(-L66*10%,2)","v":-12.09},null,-0.14000000000000057,1.1715481171548166E-2]
[null,"Total Bill on TOU (including OCEB)",null,null,null,null,null,{"$f":"H66+H67","v":107.50279759775997},null,null,null,{"$f":"L66+L67","v":108.78985622847999},null,1.2870586307200256,1.197232685549054E-2]
[]
[]
[null,"Loss Factor (%)",null,null,null,1.0579E-2,null,null,null,1.0662E-2]
[]
["1 Applicable to eligible customers only.  Refer to the Ontario Clean Energy Benefit Act, 2010."]
[]
["Note that the \"Charge $\" columns provide breakdowns of the amounts that each bill component contributes to the total monthly bill at the referenced "]
["consumption level at existing and proposed rates."]
[]
["Applicants must provide bill impacts for residential at 800 kWh and GS<50kW at 2000 kWh. In addition, their filing should cover the range that is relevant"]
["to their service territory, class by class. A general guideline of consumption levels follows:"]
[]
["Residential (kWh) - 100, 250, 500, 800, 1000, 1500, 2000"]
["GS<50kW (kWh) - 1000, 2000, 5000, 10000, 15000"]
["GS>50kW (kW) - 60, 100, 500, 1000"]
["Large User - range appropriate for utility"]
["Lighting Classes and USL - 150 kWh and 1 kW, range appropriate for utility."]

{"sheet":"App.2-W_Bill Impacts GS<50","index":46,"n_rows":85,"n_cols":20,"rows_kept":85,"cut":false,"hidden":false,"merged":[[2,0,2,10],[9,1,9,14],[10,1,10,14],[13,3,13,14],[17,5,17,7],[17,9,17,11],[17,13,17,14],[67,1,67,3],[18,3,19,3],[18,13,19,13],[18,14,19,14],[60,1,60,3],[61,1,61,3],[66,1,66,3]]}
[null,null,null,null,null,null,null,null,null,null,null,null,null,"File Number:",{"$f":"'LDC Info'!$E$18","v":"EB-2013-0122"},null,null,null,null,1]
[null,null,null,null,null,null,null,null,null,null,null,null,null,"Exhibit:",8]
[null,null,null,null,null,null,null,null,null,null,null,null,null,"Tab:",8]
[null,null,null,null,null,null,null,null,null,null,null,null,null,"Schedule:",2]
[null,null,null,null,null,null,null,null,null,null,null,null,null,"Page:",2]
[]
[null,null,null,null,null,null,null,null,null,null,null,null,null,"Date:"]
[]
[]
[null,"Appendix 2-W"]
[null,"Bill Impacts"]
[]
[]
[null,"Customer Class:",null,"GS<50"]
[]
[null,null,null,"Consumption",null,2000," kWh"]
[]
[null,null,null,null,null,"Current Board-Approved",null,null,null,"Proposed",null,null,null,"Impact"]
[null,null,null,"Charge Unit",null,"Rate","Volume","Charge",null,"Rate","Volume","Charge",null,"$ Change","% Change"]
[null,null,null,null,null,"($)",null,"($)",null,"($)",null,"($)"]
[null,"Monthly Service Charge",null,"Monthly",null,20.34,1,{"$f":"G21*F21","v":20.34},null,23.47,1,{"$f":"K21*J21","v":23.47},null,{"$f":"L21-H21","v":3.129999999999999},{"$f":"IF((H21)=0,\"\",(N21/H21))","v":0.15388397246804322}]
[null,"Smart Meter Rate Adder",null,"Monthly",null,4.2,1,{"$f":"G22*F22","v":4.2},null,null,1,{"$f":"K22*J22","v":0},null,{"$f":"L22-H22","v":-4.2},{"$f":"IF((H22)=0,\"\",(N22/H22))","v":-1}]
[null,"Stranded Meter Rate Rider",null,"Monthly",null,null,1,0,null,0.85,1,{"$f":"K23*J23","v":0.85},null,{"$f":"L23-H23","v":0.85},{"$f":"IF((H23)=0,\"\",(N23/H23))","v":""}]
[null,null,null,null,null,null,1,0,null,null,1,0,null,0,""]
[null,null,null,null,null,null,1,0,null,null,1,0,null,0,""]
[null,null,null,null,null,null,1,0,null,null,1,0,null,0,""]
[null,"Distribution Volumetric Rate",null,"per kWh",null,1.6799999999999999E-2,{"$f":"$F$16","v":2000},33.6,null,1.37E-2,{"$f":"$F$16","v":2000},27.400000000000002,null,-6.1999999999999993,-0.18452380952380951]
[null,"Smart Meter Disposition Rider",null,null,null,null,2000,0,null,null,{"$f":"$F$16","v":2000},0,null,0,""]
[null,"LRAM & SSM Rate Rider",null,null,null,null,2000,0,null,null,2000,0,null,0,""]
[null,null,null,null,null,null,2000,{"$f":"G30*F30","v":0},null,null,2000,{"$f":"K30*J30","v":0},null,{"$f":"L30-H30","v":0},{"$f":"IF((H30)=0,\"\",(N30/H30))","v":""}]
[null,null,null,null,null,null,2000,{"$f":"G31*F31","v":0},null,null,2000,{"$f":"K31*J31","v":0},null,{"$f":"L31-H31","v":0},{"$f":"IF((H31)=0,\"\",(N31/H31))","v":""}]
[null,"LRAM",null,null,null,null,2000,{"$f":"G32*F32","v":0},null,null,2000,{"$f":"K32*J32","v":0},null,{"$f":"L32-H32","v":0},{"$f":"IF((H32)=0,\"\",(N32/H32))","v":""}]
[null,"Deferred PILs 1562",null,"per kWh",null,-8.0000000000000004E-4,2000,-1.6,null,null,2000,0,null,1.6,-1]
[null,null,null,null,null,null,2000,0,null,null,2000,0,null,0,""]
[null,null,null,null,null,null,2000,0,null,null,2000,0,null,0,""]
[null,null,null,null,null,null,2000,0,null,null,2000,0,null,0,""]
[null,"Sub-Total A",null,null,null,null,null,{"$f":"SUM(H21:H36)","v":56.54},null,null,null,{"$f":"SUM(L21:L36)","v":51.72},null,-4.82,-8.5249380969225338E-2]
[null,"Deferral/Variance Account Disposition Rate Rider",null,"per kWh",null,-2.0999999999999999E-3,{"$f":"$F$16","v":2000},{"$f":"G38*F38","v":-4.2},null,-1E-3,{"$f":"$F$16","v":2000},{"$f":"K38*J38","v":-2},null,2.2000000000000002,{"$f":"IF((H38)=0,\"\",(N38/H38))","v":-0.52380952380952384}]
[null,"Global Adj DVA",null,"per kWh",null,1.4E-3,{"$f":"$F$16","v":2000},2.8,null,-6.9999999999999999E-4,{"$f":"$F$16","v":2000},-1.4,null,-4.1999999999999993,{"$f":"IF((H39)=0,\"\",(N39/H39))","v":-1.4999999999999998}]
[null,null,null,null,null,null,{"$f":"$F$16","v":2000},0,null,null,{"$f":"$F$16","v":2000},0,null,0,{"$f":"IF((H40)=0,\"\",(N40/H40))","v":""}]
[null,null,null,null,null,null,{"$f":"$F$16","v":2000},0,null,null,{"$f":"$F$16","v":2000},0,null,0,{"$f":"IF((H41)=0,\"\",(N41/H41))","v":""}]
[null,"Low Voltage Service Charge",null,"per kWh",null,1.2999999999999999E-3,{"$f":"$F$16","v":2000},2.6,null,1.6000000000000001E-3,{"$f":"$F$16","v":2000},3.2,null,0.60000000000000009,{"$f":"IF((H42)=0,\"\",(N42/H42))","v":0.23076923076923078}]
[null,"Smart Meter Entity Charge",null,"Monthly",null,0.79,1,0.79,null,0.79,2000,1580,null,1579.21]
[null,"Sub-Total B - Distribution (includes Sub-Total A)",null,null,null,null,null,{"$f":"SUM(H38:H42)+H37","v":57.74},null,null,null,{"$f":"SUM(L38:L42)+L37","v":51.519999999999996},null,-6.220000000000006,{"$f":"IF((H44)=0,\"\",(N44/H44))","v":-0.10772428126082448}]
[null,"RTSR - Network",null,"per kWh",null,6.4000000000000003E-3,{"$f":"F16*(1+F71)","v":2021.1579999999999},{"$f":"G45*F45","v":12.935411200000001},null,5.3E-3,{"$f":"F16*(1+J71)","v":2021.3239999999998},{"$f":"K45*J45","v":10.713017199999999},null,-2.2223940000000013,-0.17180698515405535]
[null,"RTSR - Line and Transformation Connection",null,"per kWh",null,4.5999999999999999E-3,{"$f":"G45","v":2021.1579999999999},{"$f":"G46*F46","v":9.2973267999999987},null,4.1999999999999997E-3,{"$f":"K45","v":2021.3239999999998},{"$f":"K46*J46","v":8.4895607999999996},null,-0.8077659999999991,-8.6881532442206852E-2]
[null,"Sub-Total C - Delivery (including Sub-Total B)",null,null,null,null,null,{"$f":"SUM(H44:H46)","v":79.972737999999993},null,null,null,{"$f":"SUM(L44:L46)","v":70.722577999999999},null,-9.2501599999999939,-0.11566641622298833]
[null,"Wholesale Market Service Charge (WMSC)",null,"per kWh",null,4.4000000000000003E-3,{"$f":"G46","v":2021.1579999999999},{"$f":"G48*F48","v":8.8930951999999994},null,4.4000000000000003E-3,{"$f":"K46","v":2021.3239999999998},{"$f":"K48*J48","v":8.8938255999999996},null,7.3040000000013094E-4,8.2131134725751162E-5]
[null,"Rural and Remote Rate Protection (RRRP)",null,"per kWh",null,1.1999999999999999E-3,{"$f":"G46","v":2021.1579999999999},2.4253895999999995,null,1.1999999999999999E-3,{"$f":"K46","v":2021.3239999999998},2.4255887999999994,null,1.9919999999995497E-4,8.213113472571789E-5]
[null,"Standard Supply Service Charge",null,"Monthly",null,0.25,1,0.25,null,0.25,1,0.25,null,0,0]
[null,"Debt Retirement Charge (DRC)",null,null,null,null,{"$f":"G49","v":2021.1579999999999},0,null,null,{"$f":"K49","v":2021.3239999999998},0,null,0,""]
[null,"Energy - RPP - Tier 1",null,"per kWh",null,7.4999999999999997E-2,{"$f":"IF($T$1=1,IF($F$16>=600,600,IF($F$16<600,$F$16*(1+$F$71),$F$16-600)),IF($T$1=2,IF($F$16>=1000,1000,IF($F$16<1000,$F$16*(1+$F$71),$F$16-1000))))","v":600},{"$f":"G52*F52","v":45},null,7.4999999999999997E-2,{"$f":"IF($T$1=1,IF($F$16>=600,600,IF($F$16<600,$F$16*(1+$J$71),$F$16-600)),IF($T$1=2,IF($F$16>=1000,1000,IF($F$16<1000,$F$16*(1+$J$71),$F$16-1000))))","v":600},{"$f":"K52*J52","v":45},null,0,0]
[null,"Energy - RPP - Tier 2",null,"per kWh",null,8.7999999999999995E-2,{"$f":"IF($T$1=1,IF($F$16>=600,$F$16*(1+$F$71)-600,IF($F$16<600,0,)), IF($T$1=2,IF($F$16>=1000,$F$16*(1+$F$71)-1000,IF($F$16<1000,0))))","v":1421.1579999999999},{"$f":"G53*F53","v":125.06190399999998},null,8.7999999999999995E-2,{"$f":"IF($T$1=1,IF($F$16>=600,$F$16*(1+$J$71)-600,IF($F$16<600,0,)), IF($T$1=2,IF($F$16>=1000,$F$16*(1+$J$71)-1000,IF($F$16<1000,0))))","v":1421.3239999999998},{"$f":"K53*J53","v":125.07651199999998},null,1.4607999999995513E-2,1.1680615385477832E-4]
[null,"TOU - Off Peak",null,"per kWh",null,6.5000000000000002E-2,{"$f":"0.64*$F$16*(1+$F$71)","v":1293.5411199999999},84.0801728,null,6.5000000000000002E-2,{"$f":"0.64*$F$16*(1+$J$71)","v":1293.6473599999999},84.087078399999996,null,6.9055999999960704E-3,8.2131134725689701E-5]
[null,"TOU - Mid Peak",null,"per kWh",null,0.1,{"$f":"0.18*$F$16*(1+$F$71)","v":363.80843999999996},36.380843999999996,null,0.1,{"$f":"0.18*$F$16*(1+$J$71)","v":363.83831999999995},36.383831999999998,null,2.9880000000019891E-3,8.2131134725791114E-5]
[null,"TOU - On Peak",null,"per kWh",null,0.11700000000000001,{"$f":"0.18*$F$16*(1+$F$71)","v":363.80843999999996},42.565587479999998,null,0.11700000000000001,{"$f":"0.18*$F$16*(1+$J$71)","v":363.83831999999995},42.56908344,null,3.4959600000021851E-3,8.2131134725787767E-5]
[]
[null,"Total Bill on RPP (before Taxes)",null,null,null,null,null,{"$f":"SUM(H47:H53)","v":261.60312679999998},null,null,null,{"$f":"SUM(L47:L53)","v":252.36850439999998},null,-9.2346224000000063,-3.5300122414286095E-2]
[null,"HST",null,null,null,0.13,null,{"$f":"H58*F59","v":34.008406483999998},null,0.13,null,{"$f":"L58*J59","v":32.807905571999996},null,{"$f":"L59-H59","v":-1.2005009120000025},{"$f":"IF((H59)=0,\"\",(N59/H59))","v":-3.5300122414286143E-2}]
[null,"Total Bill (including HST)",null,null,null,null,null,{"$f":"H58+H59","v":295.61153328399996},null,null,null,{"$f":"L58+L59","v":285.17640997199999},null,{"$f":"L60-H60","v":-10.435123311999973},{"$f":"IF((H60)=0,\"\",(N60/H60))","v":-3.5300122414285984E-2}]
[null,"Ontario Clean Energy Benefit 1",null,null,null,null,null,{"$f":"ROUND(-H60*10%,2)","v":-29.56},null,null,null,{"$f":"ROUND(-L60*10%,2)","v":-28.52},null,{"$f":"L61-H61","v":1.0399999999999991},{"$f":"IF((H61)=0,\"\",(N61/H61))","v":-3.5182679296346386E-2}]
[null,"Total Bill on RPP (including OCEB)",null,null,null,null,null,{"$f":"SUM(H60:H61)","v":266.05153328399996},null,null,null,{"$f":"SUM(L60:L61)","v":256.65640997200001},null,{"$f":"L62-H62","v":-9.3951233119999529},{"$f":"IF((H62)=0,\"\",(N62/H62))","v":-3.5313171083930624E-2}]
[]
[null,"Total Bill on TOU (before Taxes)",null,null,null,null,null,{"$f":"SUM(H47:H51,H54:H56)","v":254.56782708},null,null,null,{"$f":"SUM(L47:L51,L54:L56)","v":245.33198623999999},null,{"$f":"L64-H64","v":-9.2358408400000087},{"$f":"IF((H64)=0,\"\",(N64/H64))","v":-3.6280471676012581E-2}]
[null,"HST",null,null,null,0.13,null,{"$f":"H64*F65","v":33.093817520400002},null,0.13,null,{"$f":"L64*J65","v":31.893158211199999},null,-1.2006593092000024,-3.6280471676012616E-2]
[null,"Total Bill (including HST)",null,null,null,null,null,{"$f":"H64+H65","v":287.6616446004},null,null,null,{"$f":"L64+L65","v":277.22514445119998},null,-10.436500149200015,-3.6280471676012602E-2]
[null,"Ontario Clean Energy Benefit 1",null,null,null,null,null,{"$f":"ROUND(-H66*10%,2)","v":-28.77},null,null,null,{"$f":"ROUND(-L66*10%,2)","v":-27.72},null,1.0500000000000007,-3.6496350364963528E-2]
[null,"Total Bill on TOU (including OCEB)",null,null,null,null,null,{"$f":"H66+H67","v":258.89164460040001},null,null,null,{"$f":"L66+L67","v":249.50514445119998},null,-9.3865001492000317,-3.6256481601359213E-2]
[]
[]
[null,"Loss Factor (%)",null,null,null,1.0579E-2,null,null,null,1.0662E-2]
[]
["1 Applicable to eligible customers only.  Refer to the Ontario Clean Energy Benefit Act, 2010."]
[]
["Note that the \"Charge $\" columns provide breakdowns of the amounts that each bill component contributes to the total monthly bill at the referenced "]
["consumption level at existing and proposed rates."]
[]
["Applicants must provide bill impacts for residential at 800 kWh and GS<50kW at 2000 kWh. In addition, their filing should cover the range that is relevant"]
["to their service territory, class by class. A general guideline of consumption levels follows:"]
[]
["Residential (kWh) - 100, 250, 500, 800, 1000, 1500, 2000"]
["GS<50kW (kWh) - 1000, 2000, 5000, 10000, 15000"]
["GS>50kW (kW) - 60, 100, 500, 1000"]
["Large User - range appropriate for utility"]
["Lighting Classes and USL - 150 kWh and 1 kW, range appropriate for utility."]

{"sheet":"App.2-W_Bill Impacts GS>50","index":47,"n_rows":85,"n_cols":20,"rows_kept":85,"cut":false,"hidden":false,"merged":[[2,0,2,10],[9,1,9,14],[10,1,10,14],[13,3,13,14],[17,5,17,7],[17,9,17,11],[17,13,17,14],[67,1,67,3],[18,3,19,3],[18,13,19,13],[18,14,19,14],[60,1,60,3],[61,1,61,3],[66,1,66,3]]}
[null,null,null,null,null,null,null,null,null,null,null,null,null,"File Number:",{"$f":"'LDC Info'!$E$18","v":"EB-2013-0122"},null,null,null,null,1]
[null,null,null,null,null,null,null,null,null,null,null,null,null,"Exhibit:",8]
[null,null,null,null,null,null,null,null,null,null,null,null,null,"Tab:",8]
[null,null,null,null,null,null,null,null,null,null,null,null,null,"Schedule:",2]
[null,null,null,null,null,null,null,null,null,null,null,null,null,"Page:",3]
[]
[null,null,null,null,null,null,null,null,null,null,null,null,null,"Date:"]
[]
[]
[null,"Appendix 2-W"]
[null,"Bill Impacts"]
[]
[]
[null,"Customer Class:",null,"GS>50"]
[]
[null,null,null,"Consumption",null,100," kW"]
[]
[null,null,null,null,null,"Current Board-Approved",null,null,null,"Proposed",null,null,null,"Impact"]
[null,null,null,"Charge Unit",null,"Rate","Volume","Charge",null,"Rate","Volume","Charge",null,"$ Change","% Change"]
[null,null,null,null,null,"($)",null,"($)",null,"($)",null,"($)"]
[null,"Monthly Service Charge",null,"Monthly",null,245.27,1,{"$f":"G21*F21","v":245.27},null,130,1,{"$f":"K21*J21","v":130},null,{"$f":"L21-H21","v":-115.27000000000001},{"$f":"IF((H21)=0,\"\",(N21/H21))","v":-0.46997186773759531}]
[null,"Smart Meter Rate Adder",null,"Monthly",null,14.3,1,{"$f":"G22*F22","v":14.3},null,null,1,{"$f":"K22*J22","v":0},null,{"$f":"L22-H22","v":-14.3},{"$f":"IF((H22)=0,\"\",(N22/H22))","v":-1}]
[null,null,null,null,null,null,1,0,null,null,1,{"$f":"K23*J23","v":0},null,{"$f":"L23-H23","v":0},{"$f":"IF((H23)=0,\"\",(N23/H23))","v":""}]
[null,null,null,null,null,null,1,0,null,null,1,0,null,0,""]
[null,null,null,null,null,null,1,0,null,null,1,0,null,0,""]
[null,null,null,null,null,null,1,0,null,null,1,0,null,0,""]
[null,"Distribution Volumetric Rate",null,"per kW",null,4.5445000000000002,{"$f":"$F$16","v":100},454.45000000000005,null,1.1659999999999999,{"$f":"$F$16","v":100},116.6,null,-337.85,-0.74342611948509185]
[null,"Smart Meter Disposition Rider",null,null,null,null,100,0,null,null,{"$f":"$F$16","v":100},0,null,0,""]
[null,"LRAM & SSM Rate Rider",null,null,null,null,100,0,null,null,100,0,null,0,""]
[null,null,null,null,null,null,100,{"$f":"G30*F30","v":0},null,null,100,{"$f":"K30*J30","v":0},null,{"$f":"L30-H30","v":0},{"$f":"IF((H30)=0,\"\",(N30/H30))","v":""}]
[null,"LRAM",null,"per kW",null,2.8400000000000002E-2,100,{"$f":"G31*F31","v":2.8400000000000003},null,null,100,{"$f":"K31*J31","v":0},null,{"$f":"L31-H31","v":-2.8400000000000003},{"$f":"IF((H31)=0,\"\",(N31/H31))","v":-1}]
[null,"Deferred PILs 1562",null,"per kW",null,-0.26050000000000001,100,{"$f":"G32*F32","v":-26.05},null,null,100,{"$f":"K32*J32","v":0},null,{"$f":"L32-H32","v":26.05},{"$f":"IF((H32)=0,\"\",(N32/H32))","v":-1}]
[null,null,null,null,null,null,100,0,null,null,100,0,null,0,""]
[null,null,null,null,null,null,100,0,null,null,100,0,null,0,""]
[null,null,null,null,null,null,100,0,null,null,100,0,null,0,""]
[null,null,null,null,null,null,100,0,null,null,100,0,null,0,""]
[null,"Sub-Total A",null,null,null,null,null,{"$f":"SUM(H21:H36)","v":690.81000000000006},null,null,null,{"$f":"SUM(L21:L36)","v":246.6},null,-444.21000000000004,-0.64302775003257051]
[null,"Deferral/Variance Account Disposition Rate Rider",null,"per kW",null,-0.71089999999999998,{"$f":"$F$16","v":100},{"$f":"G38*F38","v":-71.09},null,-0.35339999999999999,{"$f":"$F$16","v":100},{"$f":"K38*J38","v":-35.339999999999996},null,35.750000000000007,{"$f":"IF((H38)=0,\"\",(N38/H38))","v":-0.50288366858911249}]
[null,"Global Adj DVA",null,"per kW",null,0.4834,{"$f":"$F$16","v":100},48.339999999999996,null,-0.24249999999999999,{"$f":"$F$16","v":100},-24.25,null,-72.59,{"$f":"IF((H39)=0,\"\",(N39/H39))","v":-1.5016549441456353}]
[null,null,null,null,null,null,{"$f":"$F$16","v":100},0,null,null,{"$f":"$F$16","v":100},0,null,0,{"$f":"IF((H40)=0,\"\",(N40/H40))","v":""}]
[null,null,null,null,null,null,{"$f":"$F$16","v":100},0,null,null,{"$f":"$F$16","v":100},0,null,0,{"$f":"IF((H41)=0,\"\",(N41/H41))","v":""}]
[null,"Low Voltage Service Charge",null,"per kW",null,0.4778,{"$f":"$F$16","v":100},47.78,null,0.61299999999999999,{"$f":"$F$16","v":100},61.3,null,13.519999999999996,{"$f":"IF((H42)=0,\"\",(N42/H42))","v":0.28296358308915853}]
[null,"Smart Meter Entity Charge",null,"Monthly",null,0.79,1,0.79,null,0.79,100,79,null,78.209999999999994]
[null,"Sub-Total B - Distribution (includes Sub-Total A)",null,null,null,null,null,{"$f":"SUM(H38:H42)+H37","v":715.84},null,null,null,{"$f":"SUM(L38:L42)+L37","v":248.31},null,-467.53000000000003,{"$f":"IF((H44)=0,\"\",(N44/H44))","v":-0.65312080911935633}]
[null,"RTSR - Network",null,"per kW",null,2.5726,{"$f":"F16*(1+F71)","v":101.05789999999999},{"$f":"G45*F45","v":259.98155353999999},null,2.1331000000000002,{"$f":"F16*(1+J71)","v":101.06619999999999},{"$f":"K45*J45","v":215.58431122000002},null,-44.397242319999975,-0.17077074013702725]
[null,"RTSR - Line and Transformation Connection",null,"per kW",null,1.8286,{"$f":"G45","v":101.05789999999999},{"$f":"G46*F46","v":184.79447593999998},null,1.6822999999999999,{"$f":"K45","v":101.06619999999999},{"$f":"K46*J46","v":170.02366825999999},null,-14.77080767999999,-7.9931002292491962E-2]
[null,"Sub-Total C - Delivery (including Sub-Total B)",null,null,null,null,null,{"$f":"SUM(H44:H46)","v":1160.61602948},null,null,null,{"$f":"SUM(L44:L46)","v":633.91797947999999},null,-526.69804999999997,-0.45380904331984862]
[null,"Wholesale Market Service Charge (WMSC)",null,"per kWh",null,4.4000000000000003E-3,{"$f":"G46","v":101.05789999999999},{"$f":"G48*F48","v":0.44465475999999998},null,4.4000000000000003E-3,{"$f":"K46","v":101.06619999999999},{"$f":"K48*J48","v":0.44469128000000002},null,3.6520000000039854E-5,8.2131134725826066E-5]
[null,"Rural and Remote Rate Protection (RRRP)",null,"per kWh",null,1.1999999999999999E-3,{"$f":"G46","v":101.05789999999999},0.12126947999999997,null,1.1999999999999999E-3,{"$f":"K46","v":101.06619999999999},0.12127943999999999,null,9.9600000000171773E-6,8.2131134725878095E-5]
[null,"Standard Supply Service Charge",null,"Monthly",null,0.25,1,0.25,null,0.25,1,0.25,null,0,0]
[null,"Debt Retirement Charge (DRC)",null,null,null,null,{"$f":"G49","v":101.05789999999999},0,null,null,{"$f":"K49","v":101.06619999999999},0,null,0,""]
[null,"Energy - RPP - Tier 1",null,"per kWh",null,7.4999999999999997E-2,{"$f":"IF($T$1=1,IF($F$16>=600,600,IF($F$16<600,$F$16*(1+$F$71),$F$16-600)),IF($T$1=2,IF($F$16>=1000,1000,IF($F$16<1000,$F$16*(1+$F$71),$F$16-1000))))","v":101.05789999999999},{"$f":"G52*F52","v":7.5793424999999992},null,7.4999999999999997E-2,{"$f":"IF($T$1=1,IF($F$16>=600,600,IF($F$16<600,$F$16*(1+$J$71),$F$16-600)),IF($T$1=2,IF($F$16>=1000,1000,IF($F$16<1000,$F$16*(1+$J$71),$F$16-1000))))","v":101.06619999999999},{"$f":"K52*J52","v":7.5799649999999996},null,6.2250000000041439E-4,8.2131134725791114E-5]
[null,"Energy - RPP - Tier 2",null,"per kWh",null,8.7999999999999995E-2,{"$f":"IF($T$1=1,IF($F$16>=600,$F$16*(1+$F$71)-600,IF($F$16<600,0,)), IF($T$1=2,IF($F$16>=1000,$F$16*(1+$F$71)-1000,IF($F$16<1000,0))))","v":0},{"$f":"G53*F53","v":0},null,8.7999999999999995E-2,{"$f":"IF($T$1=1,IF($F$16>=600,$F$16*(1+$J$71)-600,IF($F$16<600,0,)), IF($T$1=2,IF($F$16>=1000,$F$16*(1+$J$71)-1000,IF($F$16<1000,0))))","v":0},{"$f":"K53*J53","v":0},null,0,""]
[null,"TOU - Off Peak",null,"per kWh",null,6.5000000000000002E-2,{"$f":"0.64*$F$16*(1+$F$71)","v":64.677055999999993},4.2040086399999996,null,6.5000000000000002E-2,{"$f":"0.64*$F$16*(1+$J$71)","v":64.682367999999997},4.20435392,null,3.4528000000033643E-4,8.2131134725816471E-5]
[null,"TOU - Mid Peak",null,"per kWh",null,0.1,{"$f":"0.18*$F$16*(1+$F$71)","v":18.190421999999998},1.8190421999999999,null,0.1,{"$f":"0.18*$F$16*(1+$J$71)","v":18.191915999999999},1.8191915999999999,null,1.4939999999996623E-4,8.2131134725717877E-5]
[null,"TOU - On Peak",null,"per kWh",null,0.11700000000000001,{"$f":"0.18*$F$16*(1+$F$71)","v":18.190421999999998},2.1282793739999999,null,0.11700000000000001,{"$f":"0.18*$F$16*(1+$J$71)","v":18.191915999999999},2.1284541720000001,null,1.7479800000019807E-4,8.2131134725829509E-5]
[]
[null,"Total Bill on RPP (before Taxes)",null,null,null,null,null,{"$f":"SUM(H47:H53)","v":1169.0112962199998},null,null,null,{"$f":"SUM(L47:L53)","v":642.3139152},null,-526.69738101999985,-0.45054943671038661]
[null,"HST",null,null,null,0.13,null,{"$f":"H58*F59","v":151.9714685086},null,0.13,null,{"$f":"L58*J59","v":83.500808976000002},null,{"$f":"L59-H59","v":-68.470659532599996},{"$f":"IF((H59)=0,\"\",(N59/H59))","v":-0.45054943671038666}]
[null,"Total Bill (including HST)",null,null,null,null,null,{"$f":"H58+H59","v":1320.9827647285999},null,null,null,{"$f":"L58+L59","v":725.81472417600003},null,{"$f":"L60-H60","v":-595.1680405525999},{"$f":"IF((H60)=0,\"\",(N60/H60))","v":-0.45054943671038666}]
[null,"Ontario Clean Energy Benefit 1",null,null,null,null,null,{"$f":"ROUND(-H60*10%,2)","v":-132.1},null,null,null,{"$f":"ROUND(-L60*10%,2)","v":-72.58},null,{"$f":"L61-H61","v":59.519999999999996},{"$f":"IF((H61)=0,\"\",(N61/H61))","v":-0.45056775170325508}]
[null,"Total Bill on RPP (including OCEB)",null,null,null,null,null,{"$f":"SUM(H60:H61)","v":1188.8827647286},null,null,null,{"$f":"SUM(L60:L61)","v":653.23472417599999},null,{"$f":"L62-H62","v":-535.64804055260004},{"$f":"IF((H62)=0,\"\",(N62/H62))","v":-0.45054740168167767}]
[]
[null,"Total Bill on TOU (before Taxes)",null,null,null,null,null,{"$f":"SUM(H47:H51,H54:H56)","v":1169.5832839339998},null,null,null,{"$f":"SUM(L47:L51,L54:L56)","v":642.88594989199999},null,{"$f":"L64-H64","v":-526.69733404199985},{"$f":"IF((H64)=0,\"\",(N64/H64))","v":-0.45032905418279018}]
[null,"HST",null,null,null,0.13,null,{"$f":"H64*F65","v":152.04582691141999},null,0.13,null,{"$f":"L64*J65","v":83.575173485960008},null,-68.470653425459986,-0.45032905418279012]
[null,"Total Bill (including HST)",null,null,null,null,null,{"$f":"H64+H65","v":1321.6291108454197},null,null,null,{"$f":"L64+L65","v":726.46112337796001},null,-595.16798746745974,-0.45032905418279012]
[null,"Ontario Clean Energy Benefit 1",null,null,null,null,null,{"$f":"ROUND(-H66*10%,2)","v":-132.16},null,null,null,{"$f":"ROUND(-L66*10%,2)","v":-72.650000000000006},null,59.509999999999991,-0.45028753026634377]
[null,"Total Bill on TOU (including OCEB)",null,null,null,null,null,{"$f":"H66+H67","v":1189.4691108454197},null,null,null,{"$f":"L66+L67","v":653.81112337796003},null,-535.65798746745963,-0.45033366783836759]
[]
[]
[null,"Loss Factor (%)",null,null,null,1.0579E-2,null,null,null,1.0662E-2]
[]
["1 Applicable to eligible customers only.  Refer to the Ontario Clean Energy Benefit Act, 2010."]
[]
["Note that the \"Charge $\" columns provide breakdowns of the amounts that each bill component contributes to the total monthly bill at the referenced "]
["consumption level at existing and proposed rates."]
[]
["Applicants must provide bill impacts for residential at 800 kWh and GS<50kW at 2000 kWh. In addition, their filing should cover the range that is relevant"]
["to their service territory, class by class. A general guideline of consumption levels follows:"]
[]
["Residential (kWh) - 100, 250, 500, 800, 1000, 1500, 2000"]
["GS<50kW (kWh) - 1000, 2000, 5000, 10000, 15000"]
["GS>50kW (kW) - 60, 100, 500, 1000"]
["Large User - range appropriate for utility"]
["Lighting Classes and USL - 150 kWh and 1 kW, range appropriate for utility."]

{"sheet":"App.2-W_Bill Impacts-USL","index":48,"n_rows":85,"n_cols":20,"rows_kept":85,"cut":false,"hidden":false,"merged":[[2,0,2,10],[9,1,9,14],[10,1,10,14],[13,3,13,14],[17,5,17,7],[17,9,17,11],[17,13,17,14],[67,1,67,3],[18,3,19,3],[18,13,19,13],[18,14,19,14],[60,1,60,3],[61,1,61,3],[66,1,66,3]]}
[null,null,null,null,null,null,null,null,null,null,null,null,null,"File Number:",{"$f":"'LDC Info'!$E$18","v":"EB-2013-0122"},null,null,null,null,1]
[null,null,null,null,null,null,null,null,null,null,null,null,null,"Exhibit:",8]
[null,null,null,null,null,null,null,null,null,null,null,null,null,"Tab:",8]
[null,null,null,null,null,null,null,null,null,null,null,null,null,"Schedule:",2]
[null,null,null,null,null,null,null,null,null,null,null,null,null,"Page:",4]
[]
[null,null,null,null,null,null,null,null,null,null,null,null,null,"Date:"]
[]
[]
[null,"Appendix 2-W"]
[null,"Bill Impacts"]
[]
[]
[null,"Customer Class:",null,"Unmetered Scatterred Load"]
[]
[null,null,null,"Consumption",null,500," kWh"]
[]
[null,null,null,null,null,"Current Board-Approved",null,null,null,"Proposed",null,null,null,"Impact"]
[null,null,null,"Charge Unit",null,"Rate","Volume","Charge",null,"Rate","Volume","Charge",null,"$ Change","% Change"]
[null,null,null,null,null,"($)",null,"($)",null,"($)",null,"($)"]
[null,"Monthly Service Charge",null,"Monthly",null,40.01,1,{"$f":"G21*F21","v":40.01},null,12,1,{"$f":"K21*J21","v":12},null,{"$f":"L21-H21","v":-28.009999999999998},{"$f":"IF((H21)=0,\"\",(N21/H21))","v":-0.70007498125468637}]
[null,"Smart Meter Rate Adder",null,null,null,null,1,{"$f":"G22*F22","v":0},null,null,1,{"$f":"K22*J22","v":0},null,{"$f":"L22-H22","v":0},{"$f":"IF((H22)=0,\"\",(N22/H22))","v":""}]
[null,null,null,null,null,null,1,0,null,null,1,{"$f":"K23*J23","v":0},null,{"$f":"L23-H23","v":0},{"$f":"IF((H23)=0,\"\",(N23/H23))","v":""}]
[null,null,null,null,null,null,1,0,null,null,1,0,null,0,""]
[null,null,null,null,null,null,1,0,null,null,1,0,null,0,""]
[null,null,null,null,null,null,1,0,null,null,1,0,null,0,""]
[null,"Distribution Volumetric Rate",null,"per kWh",null,1.04E-2,{"$f":"$F$16","v":500},5.2,null,3.0200000000000001E-2,{"$f":"$F$16","v":500},15.100000000000001,null,9.9000000000000021,1.9038461538461542]
[null,"Smart Meter Disposition Rider",null,null,null,null,500,0,null,null,{"$f":"$F$16","v":500},0,null,0,""]
[null,"LRAM & SSM Rate Rider",null,null,null,null,500,0,null,null,500,0,null,0,""]
[null,null,null,null,null,null,500,{"$f":"G30*F30","v":0},null,null,500,{"$f":"K30*J30","v":0},null,{"$f":"L30-H30","v":0},{"$f":"IF((H30)=0,\"\",(N30/H30))","v":""}]
[null,null,null,null,null,null,500,{"$f":"G31*F31","v":0},null,null,500,{"$f":"K31*J31","v":0},null,{"$f":"L31-H31","v":0},{"$f":"IF((H31)=0,\"\",(N31/H31))","v":""}]
[null,"Deferred PILs 1562",null,"per kWh",null,-5.1000000000000004E-3,500,{"$f":"G32*F32","v":-2.5500000000000003},null,null,500,{"$f":"K32*J32","v":0},null,{"$f":"L32-H32","v":2.5500000000000003},{"$f":"IF((H32)=0,\"\",(N32/H32))","v":-1}]
[null,null,null,null,null,null,500,0,null,null,500,0,null,0,""]
[null,null,null,null,null,null,500,0,null,null,500,0,null,0,""]
[null,null,null,null,null,null,500,0,null,null,500,0,null,0,""]
[null,null,null,null,null,null,500,0,null,null,500,0,null,0,""]
[null,"Sub-Total A",null,null,null,null,null,{"$f":"SUM(H21:H36)","v":42.660000000000004},null,null,null,{"$f":"SUM(L21:L36)","v":27.1},null,-15.560000000000002,-0.36474449132676984]
[null,"Deferral/Variance Account Disposition Rate Rider",null,"per kWh",null,-2.0999999999999999E-3,{"$f":"$F$16","v":500},{"$f":"G38*F38","v":-1.05},null,-1.1000000000000001E-3,{"$f":"$F$16","v":500},{"$f":"K38*J38","v":-0.55000000000000004},null,0.5,{"$f":"IF((H38)=0,\"\",(N38/H38))","v":-0.47619047619047616}]
[null,"Global Adj DVA",null,null,null,1.4E-3,{"$f":"$F$16","v":500},0.7,null,-6.9999999999999999E-4,{"$f":"$F$16","v":500},-0.35,null,-1.0499999999999998,{"$f":"IF((H39)=0,\"\",(N39/H39))","v":-1.4999999999999998}]
[null,null,null,"per kWh",null,null,{"$f":"$F$16","v":500},0,null,null,{"$f":"$F$16","v":500},0,null,0,{"$f":"IF((H40)=0,\"\",(N40/H40))","v":""}]
[null,null,null,null,null,null,{"$f":"$F$16","v":500},0,null,null,{"$f":"$F$16","v":500},0,null,0,{"$f":"IF((H41)=0,\"\",(N41/H41))","v":""}]
[null,"Low Voltage Service Charge",null,"per kWh",null,1.2999999999999999E-3,{"$f":"$F$16","v":500},0.65,null,1.6000000000000001E-3,{"$f":"$F$16","v":500},0.8,null,0.15000000000000002,{"$f":"IF((H42)=0,\"\",(N42/H42))","v":0.23076923076923078}]
[null,"Smart Meter Entity Charge",null,"Monthly",null,0.79,1,0.79,null,0.79,500,395,null,394.21]
[null,"Sub-Total B - Distribution (includes Sub-Total A)",null,null,null,null,null,{"$f":"SUM(H38:H42)+H37","v":42.96},null,null,null,{"$f":"SUM(L38:L42)+L37","v":27},null,-15.96,{"$f":"IF((H44)=0,\"\",(N44/H44))","v":-0.37150837988826818}]
[null,"RTSR - Network",null,"per kWh",null,6.4000000000000003E-3,{"$f":"F16*(1+F71)","v":505.28949999999998},{"$f":"G45*F45","v":3.2338528000000002},null,5.3E-3,{"$f":"F16*(1+J71)","v":505.33099999999996},{"$f":"K45*J45","v":2.6782542999999999},null,-0.55559850000000033,-0.17180698515405535]
[null,"RTSR - Line and Transformation Connection",null,"per kWh",null,4.5999999999999999E-3,{"$f":"G45","v":505.28949999999998},{"$f":"G46*F46","v":2.3243316999999997},null,4.1999999999999997E-3,{"$f":"K45","v":505.33099999999996},{"$f":"K46*J46","v":2.1223901999999999},null,-0.20194149999999977,-8.6881532442206852E-2]
[null,"Sub-Total C - Delivery (including Sub-Total B)",null,null,null,null,null,{"$f":"SUM(H44:H46)","v":48.518184500000004},null,null,null,{"$f":"SUM(L44:L46)","v":31.800644499999997},null,-16.717540000000007,-0.34456235682108027]
[null,"Wholesale Market Service Charge (WMSC)",null,"per kWh",null,4.4000000000000003E-3,{"$f":"G46","v":505.28949999999998},{"$f":"G48*F48","v":2.2232737999999999},null,4.4000000000000003E-3,{"$f":"K46","v":505.33099999999996},{"$f":"K48*J48","v":2.2234563999999999},null,1.8260000000003274E-4,8.2131134725751162E-5]
[null,"Rural and Remote Rate Protection (RRRP)",null,"per kWh",null,1.1999999999999999E-3,{"$f":"G46","v":505.28949999999998},0.60634739999999987,null,1.1999999999999999E-3,{"$f":"K46","v":505.33099999999996},0.60639719999999986,null,4.9799999999988742E-5,8.213113472571789E-5]
[null,"Standard Supply Service Charge",null,"Monthly",null,0.25,1,0.25,null,0.25,1,0.25,null,0,0]
[null,"Debt Retirement Charge (DRC)",null,null,null,null,{"$f":"G49","v":505.28949999999998},0,null,null,{"$f":"K49","v":505.33099999999996},0,null,0,""]
[null,"Energy - RPP - Tier 1",null,"per kWh",null,7.4999999999999997E-2,{"$f":"IF($T$1=1,IF($F$16>=600,600,IF($F$16<600,$F$16*(1+$F$71),$F$16-600)),IF($T$1=2,IF($F$16>=1000,1000,IF($F$16<1000,$F$16*(1+$F$71),$F$16-1000))))","v":505.28949999999998},{"$f":"G52*F52","v":37.8967125},null,7.4999999999999997E-2,{"$f":"IF($T$1=1,IF($F$16>=600,600,IF($F$16<600,$F$16*(1+$J$71),$F$16-600)),IF($T$1=2,IF($F$16>=1000,1000,IF($F$16<1000,$F$16*(1+$J$71),$F$16-1000))))","v":505.33099999999996},{"$f":"K52*J52","v":37.899824999999993},null,3.1124999999931902E-3,8.2131134725556737E-5]
[null,"Energy - RPP - Tier 2",null,"per kWh",null,8.7999999999999995E-2,{"$f":"IF($T$1=1,IF($F$16>=600,$F$16*(1+$F$71)-600,IF($F$16<600,0,)), IF($T$1=2,IF($F$16>=1000,$F$16*(1+$F$71)-1000,IF($F$16<1000,0))))","v":0},{"$f":"G53*F53","v":0},null,8.7999999999999995E-2,{"$f":"IF($T$1=1,IF($F$16>=600,$F$16*(1+$J$71)-600,IF($F$16<600,0,)), IF($T$1=2,IF($F$16>=1000,$F$16*(1+$J$71)-1000,IF($F$16<1000,0))))","v":0},{"$f":"K53*J53","v":0},null,0,""]
[null,"TOU - Off Peak",null,"per kWh",null,6.5000000000000002E-2,{"$f":"0.64*$F$16*(1+$F$71)","v":323.38527999999997},21.0200432,null,6.5000000000000002E-2,{"$f":"0.64*$F$16*(1+$J$71)","v":323.41183999999998},21.021769599999999,null,1.7263999999990176E-3,8.2131134725689701E-5]
[null,"TOU - Mid Peak",null,"per kWh",null,0.1,{"$f":"0.18*$F$16*(1+$F$71)","v":90.95210999999999},9.095210999999999,null,0.1,{"$f":"0.18*$F$16*(1+$J$71)","v":90.959579999999988},9.0959579999999995,null,7.4700000000049727E-4,8.2131134725791114E-5]
[null,"TOU - On Peak",null,"per kWh",null,0.11700000000000001,{"$f":"0.18*$F$16*(1+$F$71)","v":90.95210999999999},10.641396869999999,null,0.11700000000000001,{"$f":"0.18*$F$16*(1+$J$71)","v":90.959579999999988},10.64227086,null,8.7399000000054627E-4,8.2131134725787767E-5]
[]
[null,"Total Bill on RPP (before Taxes)",null,null,null,null,null,{"$f":"SUM(H47:H53)","v":89.494518200000002},null,null,null,{"$f":"SUM(L47:L53)","v":72.780323099999976},null,-16.714195100000026,-0.18676222226983313]
[null,"HST",null,null,null,0.13,null,{"$f":"H58*F59","v":11.634287366000001},null,0.13,null,{"$f":"L58*J59","v":9.4614420029999966},null,{"$f":"L59-H59","v":-2.172845363000004},{"$f":"IF((H59)=0,\"\",(N59/H59))","v":-0.18676222226983316}]
[null,"Total Bill (including HST)",null,null,null,null,null,{"$f":"H58+H59","v":101.128805566},null,null,null,{"$f":"L58+L59","v":82.241765102999977},null,{"$f":"L60-H60","v":-18.887040463000019},{"$f":"IF((H60)=0,\"\",(N60/H60))","v":-0.18676222226983302}]
[null,"Ontario Clean Energy Benefit 1",null,null,null,null,null,{"$f":"ROUND(-H60*10%,2)","v":-10.11},null,null,null,{"$f":"ROUND(-L60*10%,2)","v":-8.2200000000000006},null,{"$f":"L61-H61","v":1.8899999999999988},{"$f":"IF((H61)=0,\"\",(N61/H61))","v":-0.18694362017804145}]
[null,"Total Bill on RPP (including OCEB)",null,null,null,null,null,{"$f":"SUM(H60:H61)","v":91.018805565999997},null,null,null,{"$f":"SUM(L60:L61)","v":74.021765102999979},null,{"$f":"L62-H62","v":-16.997040463000019},{"$f":"IF((H62)=0,\"\",(N62/H62))","v":-0.18674207332544088}]
[]
[null,"Total Bill on TOU (before Taxes)",null,null,null,null,null,{"$f":"SUM(H47:H51,H54:H56)","v":92.354456769999985},null,null,null,{"$f":"SUM(L47:L51,L54:L56)","v":75.640496559999988},null,{"$f":"L64-H64","v":-16.713960209999996},{"$f":"IF((H64)=0,\"\",(N64/H64))","v":-0.1809762170073127}]
[null,"HST",null,null,null,0.13,null,{"$f":"H64*F65","v":12.006079380099999},null,0.13,null,{"$f":"L64*J65","v":9.8332645527999993},null,-2.1728148272999999,-0.1809762170073127]
[null,"Total Bill (including HST)",null,null,null,null,null,{"$f":"H64+H65","v":104.36053615009999},null,null,null,{"$f":"L64+L65","v":85.473761112799991},null,-18.886775037299998,-0.1809762170073127]
[null,"Ontario Clean Energy Benefit 1",null,null,null,null,null,{"$f":"ROUND(-H66*10%,2)","v":-10.44},null,null,null,{"$f":"ROUND(-L66*10%,2)","v":-8.5500000000000007},null,1.8899999999999988,-0.18103448275862058]
[null,"Total Bill on TOU (including OCEB)",null,null,null,null,null,{"$f":"H66+H67","v":93.920536150099991},null,null,null,{"$f":"L66+L67","v":76.923761112799994},null,-16.996775037299997,-0.18096974031468943]
[]
[]
[null,"Loss Factor (%)",null,null,null,1.0579E-2,null,null,null,1.0662E-2]
[]
["1 Applicable to eligible customers only.  Refer to the Ontario Clean Energy Benefit Act, 2010."]
[]
["Note that the \"Charge $\" columns provide breakdowns of the amounts that each bill component contributes to the total monthly bill at the referenced "]
["consumption level at existing and proposed rates."]
[]
["Applicants must provide bill impacts for residential at 800 kWh and GS<50kW at 2000 kWh. In addition, their filing should cover the range that is relevant"]
["to their service territory, class by class. A general guideline of consumption levels follows:"]
[]
["Residential (kWh) - 100, 250, 500, 800, 1000, 1500, 2000"]
["GS<50kW (kWh) - 1000, 2000, 5000, 10000, 15000"]
["GS>50kW (kW) - 60, 100, 500, 1000"]
["Large User - range appropriate for utility"]
["Lighting Classes and USL - 150 kWh and 1 kW, range appropriate for utility."]

{"sheet":"App.2-W_Bill Impacts-SL","index":49,"n_rows":85,"n_cols":20,"rows_kept":85,"cut":false,"hidden":false,"merged":[[18,13,19,13],[18,14,19,14],[2,0,2,10],[17,5,17,7],[17,9,17,11],[17,13,17,14],[13,3,13,14],[9,1,9,14],[10,1,10,14],[60,1,60,3],[66,1,66,3],[67,1,67,3],[61,1,61,3],[18,3,19,3]]}
[null,null,null,null,null,null,null,null,null,null,null,null,null,"File Number:",{"$f":"'LDC Info'!$E$18","v":"EB-2013-0122"},null,null,null,null,1]
[null,null,null,null,null,null,null,null,null,null,null,null,null,"Exhibit:",8]
[null,null,null,null,null,null,null,null,null,null,null,null,null,"Tab:",8]
[null,null,null,null,null,null,null,null,null,null,null,null,null,"Schedule:",2]
[null,null,null,null,null,null,null,null,null,null,null,null,null,"Page:",5]
[]
[null,null,null,null,null,null,null,null,null,null,null,null,null,"Date:"]
[]
[]
[null,"Appendix 2-W"]
[null,"Bill Impacts"]
[]
[]
[null,"Customer Class:",null,"StreetLights"]
[]
[null,null,null,"Consumption",null,1," kW"]
[]
[null,null,null,null,null,"Current Board-Approved",null,null,null,"Proposed",null,null,null,"Impact"]
[null,null,null,"Charge Unit",null,"Rate","Volume","Charge",null,"Rate","Volume","Charge",null,"$ Change","% Change"]
[null,null,null,null,null,"($)",null,"($)",null,"($)",null,"($)"]
[null,"Monthly Service Charge",null,"Monthly",null,1.6,1,{"$f":"G21*F21","v":1.6},null,1.75,1,{"$f":"K21*J21","v":1.75},null,{"$f":"L21-H21","v":0.14999999999999991},{"$f":"IF((H21)=0,\"\",(N21/H21))","v":9.3749999999999944E-2}]
[null,"Smart Meter Rate Adder",null,null,null,null,1,{"$f":"G22*F22","v":0},null,null,1,{"$f":"K22*J22","v":0},null,{"$f":"L22-H22","v":0},{"$f":"IF((H22)=0,\"\",(N22/H22))","v":""}]
[null,null,null,null,null,null,1,0,null,null,1,{"$f":"K23*J23","v":0},null,{"$f":"L23-H23","v":0},{"$f":"IF((H23)=0,\"\",(N23/H23))","v":""}]
[null,null,null,null,null,null,1,0,null,null,1,0,null,0,""]
[null,null,null,null,null,null,1,0,null,null,1,0,null,0,""]
[null,null,null,null,null,null,1,0,null,null,1,0,null,0,""]
[null,"Distribution Volumetric Rate",null,"per kW",null,6.5145,{"$f":"$F$16","v":1},6.5145,null,9.9685000000000006,{"$f":"$F$16","v":1},9.9685000000000006,null,3.4540000000000006,0.53020185739504189]
[null,"Smart Meter Disposition Rider",null,null,null,null,1,0,null,null,{"$f":"$F$16","v":1},0,null,0,""]
[null,"LRAM & SSM Rate Rider",null,null,null,null,1,0,null,null,1,0,null,0,""]
[null,null,null,null,null,null,1,{"$f":"G30*F30","v":0},null,null,1,{"$f":"K30*J30","v":0},null,{"$f":"L30-H30","v":0},{"$f":"IF((H30)=0,\"\",(N30/H30))","v":""}]
[null,null,null,null,null,null,1,{"$f":"G31*F31","v":0},null,null,1,{"$f":"K31*J31","v":0},null,{"$f":"L31-H31","v":0},{"$f":"IF((H31)=0,\"\",(N31/H31))","v":""}]
[null,"Deferred PILs 1562",null,"per kW",null,-0.57079999999999997,1,{"$f":"G32*F32","v":-0.57079999999999997},null,null,1,{"$f":"K32*J32","v":0},null,{"$f":"L32-H32","v":0.57079999999999997},{"$f":"IF((H32)=0,\"\",(N32/H32))","v":-1}]
[null,null,null,null,null,null,1,0,null,null,1,0,null,0,""]
[null,null,null,null,null,null,1,0,null,null,1,0,null,0,""]
[null,null,null,null,null,null,1,0,null,null,1,0,null,0,""]
[null,null,null,null,null,null,1,0,null,null,1,0,null,0,""]
[null,"Sub-Total A",null,null,null,null,null,{"$f":"SUM(H21:H36)","v":7.5436999999999994},null,null,null,{"$f":"SUM(L21:L36)","v":11.718500000000001},null,4.1748000000000012,0.55341543274520477]
[null,"Deferral/Variance Account Disposition Rate Rider",null,"per kW",null,-0.7349,{"$f":"$F$16","v":1},{"$f":"G38*F38","v":-0.7349},null,-0.49209999999999998,{"$f":"$F$16","v":1},{"$f":"K38*J38","v":-0.49209999999999998},null,{"$f":"L38-H38","v":0.24280000000000002},{"$f":"IF((H38)=0,\"\",(N38/H38))","v":-0.33038508640631381}]
[null,"Global Adj DVA",null,"per kW",null,null,{"$f":"$F$16","v":1},{"$f":"G39*F39","v":0},null,-0.25009999999999999,{"$f":"$F$16","v":1},-0.25009999999999999,null,-0.25009999999999999,{"$f":"IF((H39)=0,\"\",(N39/H39))","v":""}]
[null,null,null,null,null,null,{"$f":"$F$16","v":1},{"$f":"G40*F40","v":0},null,null,{"$f":"$F$16","v":1},0,null,0,{"$f":"IF((H40)=0,\"\",(N40/H40))","v":""}]
[null,null,null,null,null,null,{"$f":"$F$16","v":1},{"$f":"G41*F41","v":0},null,null,{"$f":"$F$16","v":1},0,null,0,{"$f":"IF((H41)=0,\"\",(N41/H41))","v":""}]
[null,"Low Voltage Service Charge",null,"per kW",null,0.36940000000000001,{"$f":"$F$16","v":1},{"$f":"G42*F42","v":0.36940000000000001},null,0.47389999999999999,{"$f":"$F$16","v":1},0.47389999999999999,null,0.10449999999999998,{"$f":"IF((H42)=0,\"\",(N42/H42))","v":0.28289117487818077}]
[null,"Smart Meter Entity Charge",null,"Monthly",null,0.79,1,null,null,0.79,1,0.79,null,0.79]
[null,"Sub-Total B - Distribution (includes Sub-Total A)",null,null,null,null,null,{"$f":"SUM(H38:H42)+H37","v":7.1781999999999995},null,null,null,{"$f":"SUM(L38:L42)+L37","v":11.450200000000001},null,{"$f":"L44-H44","v":4.2720000000000011},{"$f":"IF((H44)=0,\"\",(N44/H44))","v":0.59513527068067229}]
[null,"RTSR - Network",null,"per kW",null,1.9402999999999999,{"$f":"F16*(1+F71)","v":1.0105789999999999},{"$f":"G45*F45","v":1.9608264336999996},null,1.6088,{"$f":"F16*(1+J71)","v":1.0106619999999999},{"$f":"K45*J45","v":1.6259530255999999},null,-0.33487340809999977,-0.17078176953587232]
[null,"RTSR - Line and Transformation Connection",null,"per kW",null,1.4136,{"$f":"G45","v":1.0105789999999999},{"$f":"G46*F46","v":1.4285544743999998},null,1.3005,{"$f":"K45","v":1.0106619999999999},{"$f":"K46*J46","v":1.314365931},null,-0.11418854339999984,-7.9932929017606846E-2]
[null,"Sub-Total C - Delivery (including Sub-Total B)",null,null,null,null,null,{"$f":"SUM(H44:H46)","v":10.5675809081},null,null,null,{"$f":"SUM(L44:L46)","v":14.390518956599999},null,3.8229380484999993,0.36176094432073247]
[null,"Wholesale Market Service Charge (WMSC)",null,"per kWh",null,4.4000000000000003E-3,{"$f":"G46","v":1.0105789999999999},{"$f":"G48*F48","v":4.4465475999999997E-3},null,4.4000000000000003E-3,{"$f":"K46","v":1.0106619999999999},{"$f":"K48*J48","v":4.4469128000000002E-3},null,3.6520000000050262E-7,8.2131134725849472E-5]
[null,"Rural and Remote Rate Protection (RRRP)",null,"per kW",null,1.1999999999999999E-3,{"$f":"G46","v":1.0105789999999999},1.2126947999999997E-3,null,1.1999999999999999E-3,{"$f":"K46","v":1.0106619999999999},1.2127943999999998E-3,null,9.9600000000137079E-8,8.2131134725849499E-5]
[null,"Standard Supply Service Charge",null,"Monthly",null,0.25,1,0.25,null,0.25,1,0.25,null,0,0]
[null,"Debt Retirement Charge (DRC)",null,null,null,null,{"$f":"G49","v":1.0105789999999999},0,null,null,{"$f":"K49","v":1.0106619999999999},0,null,0,""]
[null,"Energy - RPP - Tier 1",null,"per kWh",null,7.4999999999999997E-2,{"$f":"IF($T$1=1,IF($F$16>=600,600,IF($F$16<600,$F$16*(1+$F$71),$F$16-600)),IF($T$1=2,IF($F$16>=1000,1000,IF($F$16<1000,$F$16*(1+$F$71),$F$16-1000))))","v":1.0105789999999999},{"$f":"G52*F52","v":7.5793424999999984E-2},null,7.4999999999999997E-2,{"$f":"IF($T$1=1,IF($F$16>=600,600,IF($F$16<600,$F$16*(1+$J$71),$F$16-600)),IF($T$1=2,IF($F$16>=1000,1000,IF($F$16<1000,$F$16*(1+$J$71),$F$16-1000))))","v":1.0106619999999999},{"$f":"K52*J52","v":7.5799649999999996E-2},null,6.2250000000124706E-6,8.2131134725900985E-5]
[null,"Energy - RPP - Tier 2",null,"per kWh",null,8.7999999999999995E-2,{"$f":"IF($T$1=1,IF($F$16>=600,$F$16*(1+$F$71)-600,IF($F$16<600,0,)), IF($T$1=2,IF($F$16>=1000,$F$16*(1+$F$71)-1000,IF($F$16<1000,0))))","v":0},{"$f":"G53*F53","v":0},null,8.7999999999999995E-2,{"$f":"IF($T$1=1,IF($F$16>=600,$F$16*(1+$J$71)-600,IF($F$16<600,0,)), IF($T$1=2,IF($F$16>=1000,$F$16*(1+$J$71)-1000,IF($F$16<1000,0))))","v":0},{"$f":"K53*J53","v":0},null,0,""]
[null,"TOU - Off Peak",null,"per kWh",null,6.5000000000000002E-2,{"$f":"0.64*$F$16*(1+$F$71)","v":0.64677055999999999},4.2040086400000003E-2,null,6.5000000000000002E-2,{"$f":"0.64*$F$16*(1+$J$71)","v":0.64682368000000001},4.20435392E-2,null,3.4527999999978132E-6,8.2131134725684415E-5]
[null,"TOU - Mid Peak",null,"per kWh",null,0.1,{"$f":"0.18*$F$16*(1+$F$71)","v":0.18190421999999998},1.8190421999999998E-2,null,0.1,{"$f":"0.18*$F$16*(1+$J$71)","v":0.18191916},1.8191915999999999E-2,null,1.4940000000011888E-6,8.2131134725801794E-5]
[null,"TOU - On Peak",null,"per kWh",null,0.11700000000000001,{"$f":"0.18*$F$16*(1+$F$71)","v":0.18190421999999998},2.128279374E-2,null,0.11700000000000001,{"$f":"0.18*$F$16*(1+$J$71)","v":0.18191916},2.1284541720000001E-2,null,1.7479800000011481E-6,8.2131134725790383E-5]
[]
[null,"Total Bill on RPP (before Taxes)",null,null,null,null,null,{"$f":"SUM(H47:H53)","v":10.899033575500001},null,null,null,{"$f":"SUM(L47:L53)","v":14.721978313800001},null,3.8229447383000004,0.3507599744342122]
[null,"HST",null,null,null,0.13,null,{"$f":"H58*F59","v":1.4168743648150002},null,0.13,null,{"$f":"L58*J59","v":1.9138571807940001},null,{"$f":"L59-H59","v":0.49698281597899996},{"$f":"IF((H59)=0,\"\",(N59/H59))","v":0.35075997443421209}]
[null,"Total Bill (including HST)",null,null,null,null,null,{"$f":"H58+H59","v":12.315907940315},null,null,null,{"$f":"L58+L59","v":16.635835494594001},null,{"$f":"L60-H60","v":4.3199275542790012},{"$f":"IF((H60)=0,\"\",(N60/H60))","v":0.35075997443421225}]
[null,"Ontario Clean Energy Benefit 1",null,null,null,null,null,{"$f":"ROUND(-H60*10%,2)","v":-1.23},null,null,null,{"$f":"ROUND(-L60*10%,2)","v":-1.66},null,{"$f":"L61-H61","v":-0.42999999999999994},{"$f":"IF((H61)=0,\"\",(N61/H61))","v":0.34959349593495931}]
[null,"Total Bill on RPP (including OCEB)",null,null,null,null,null,{"$f":"SUM(H60:H61)","v":11.085907940315},null,null,null,{"$f":"SUM(L60:L61)","v":14.975835494594001},null,{"$f":"L62-H62","v":3.8899275542790015},{"$f":"IF((H62)=0,\"\",(N62/H62))","v":0.35088939717178197}]
[]
[null,"Total Bill on TOU (before Taxes)",null,null,null,null,null,{"$f":"SUM(H47:H51,H54:H56)","v":10.90475345264},null,null,null,{"$f":"SUM(L47:L51,L54:L56)","v":14.72769866072},null,{"$f":"L64-H64","v":3.8229452080800002},{"$f":"IF((H64)=0,\"\",(N64/H64))","v":0.35057603316602076}]
[null,"HST",null,null,null,0.13,null,{"$f":"H64*F65","v":1.4176179488431999},null,0.13,null,{"$f":"L64*J65","v":1.9146008258936},null,0.49698287705040012,0.35057603316602087]
[null,"Total Bill (including HST)",null,null,null,null,null,{"$f":"H64+H65","v":12.322371401483199},null,null,null,{"$f":"L64+L65","v":16.642299486613599},null,4.3199280851303996,0.35057603316602076]
[null,"Ontario Clean Energy Benefit 1",null,null,null,null,null,{"$f":"ROUND(-H66*10%,2)","v":-1.23},null,null,null,{"$f":"ROUND(-L66*10%,2)","v":-1.66},null,-0.42999999999999994,0.34959349593495931]
[null,"Total Bill on TOU (including OCEB)",null,null,null,null,null,{"$f":"H66+H67","v":11.092371401483199},null,null,null,{"$f":"L66+L67","v":14.982299486613599},null,3.8899280851303999,0.35068498379077573]
[]
[]
[null,"Loss Factor (%)",null,null,null,1.0579E-2,null,null,null,1.0662E-2]
[]
["1 Applicable to eligible customers only.  Refer to the Ontario Clean Energy Benefit Act, 2010."]
[]
["Note that the \"Charge $\" columns provide breakdowns of the amounts that each bill component contributes to the total monthly bill at the referenced "]
["consumption level at existing and proposed rates."]
[]
["Applicants must provide bill impacts for residential at 800 kWh and GS<50kW at 2000 kWh. In addition, their filing should cover the range that is relevant"]
["to their service territory, class by class. A general guideline of consumption levels follows:"]
[]
["Residential (kWh) - 100, 250, 500, 800, 1000, 1500, 2000"]
["GS<50kW (kWh) - 1000, 2000, 5000, 10000, 15000"]
["GS>50kW (kW) - 60, 100, 500, 1000"]
["Large User - range appropriate for utility"]
["Lighting Classes and USL - 150 kWh and 1 kW, range appropriate for utility."]

{"sheet":"Sheet1","index":50,"n_rows":0,"n_cols":0,"rows_kept":0,"cut":false,"hidden":false,"merged":[]}